Workbook

Sheet Project Database
B2: General Inputs
C3: Start Date | E3: 2020-01-01 | Q3: =Template!F48 -> 0.06632807553
F5: 2020 | G5: 2021 | H5: 2022 | I5: 2023 | J5: 2024 | K5: 2025 | L5: 2026 | M5: 2027 | N5: 2028
C6: USD Inflation | E6: % p.a. | F6: 0.01 | G6: 0.018 | H6: 0.025 | I6: 0.03 | J6: 0.018 | K6: 0.02 | L6: 0.02 | M6: 0.02 | N6: 0.02
C7: ZAR Inflation | E7: % p.a. | F7: 0.04 | G7: 0.04 | H7: 0.04 | I7: 0.03 | J7: 0.03 | K7: 0.03 | L7: 0.03 | M7: 0.03 | N7: 0.03
C8: PPP Exchange Rate | E8: ZAR/USD | F8: 15 | G8: =F8*(1+G7)/(1+G6) -> 15.32416503 | H8: =G8*(1+H7)/(1+H6) -> 15.5484211 | I8: 15.5484211 | J8: 15.73170308 | K8: 15.88593546 | L8: 16.04167993 | M8: 16.1989513 | N8: 16.35776455
C10: Equity Commitment | E10: ZAR | F10: 300000
C11: Debt Commitment | E11: ZAR | F11: 800000
C12: Interest Rate | E12: % p.a. | F12: 0.07
B14: Database of Projects
E15: Construction | F15: Construction period | G15: COD | H15: Life | I15: End date | J15: Capacity | K15: Yield | L15: Cost | M15: O&M | N15: Price | O15: Inflate Price | Q15: Seasonality
E16: Date | F16: Months | G16: date | H16: Years | J16: KWp | K16: KWh/KWp | L16: USD/KWp | M16: USD/Kwyear | N16: USD/MWh | O16: Flag | Q16: 1 | R16: 2 | S16: 3 | T16: 4 | U16: 5 | V16: 6 | W16: 7 | X16: 8 | Y16: 9 | Z16: 10 | AA16: 11 | AB16: 12
D17: Project 1 | E17: 2020-05-01 | F17: 2 | G17: =EDATE(E17,F17) -> 2020-07-01 | H17: 40 | I17: =EDATE(G17,H17*12) -> 2060-07-01 | J17: 300 | K17: 1600 | L17: 800 | M17: 5 | N17: 33 | O17: TRUE | Q17: 0.12 | R17: 0.1 | S17: 0.09 | T17: 0.09 | U17: 0.08 | V17: 0.07 | W17: 0.06 | X17: 0.06 | Y17: 0.06 | Z17: 0.08 | AA17: 0.09 | AB17: 0.1
D18: Project 2 | E18: 2020-08-01 | F18: 3 | G18: =EDATE(E18,F18) -> 2020-11-01 | H18: 30 | I18: =EDATE(G18,H18*12) -> 2050-11-01 | J18: 500 | K18: 1400 | L18: 650 | M18: 8 | N18: 42.0626098 | O18: FALSE | Q18: 0.1 | R18: 0.1 | S18: 0.09 | T18: 0.09 | U18: 0.08 | V18: 0.07 | W18: 0.06 | X18: 0.06 | Y18: 0.06 | Z18: 0.08 | AA18: 0.1 | AB18: 0.11
D19: Project 3 | E19: 2021-09-01 | F19: 5 | G19: 2022-02-01 | H19: 36 | I19: 2058-02-01 | J19: 200 | K19: 1500 | L19: 800 | M19: 5 | N19: 43 | O19: TRUE | Q19: =1/12 -> 0.08333333333 | R19: =1/12 -> 0.08333333333 | S19: 0.08333333333 | T19: 0.08333333333 | U19: 0.08333333333 | V19: 0.08333333333 | W19: 0.08333333333 | X19: 0.08333333333 | Y19: 0.08333333333 | Z19: 0.08333333333 | AA19: 0.08333333333 | AB19: 0.08333333333
D20: Project 4 | E20: 2021-10-01 | F20: 4 | G20: 2022-02-01 | H20: 25 | I20: 2047-02-01 | J20: 800 | K20: 1300 | L20: 600 | M20: 10 | N20: 36 | O20: FALSE | Q20: 0.12 | R20: 0.1 | S20: 0.09 | T20: 0.09 | U20: 0.08 | V20: 0.07 | W20: 0.06 | X20: 0.06 | Y20: 0.06 | Z20: 0.08 | AA20: 0.09 | AB20: 0.1
D21: Project 5 | E21: 2021-05-01 | F21: 3 | G21: =EDATE(E21,F21) -> 2021-08-01 | H21: 30 | I21: =EDATE(G21,H21*12) -> 2051-08-01 | J21: 600 | K21: 1400 | L21: 700 | M21: 12 | N21: 42 | O21: TRUE | Q21: 0.1 | R21: 0.1 | S21: 0.09 | T21: 0.09 | U21: 0.08 | V21: 0.07 | W21: 0.06 | X21: 0.06 | Y21: 0.06 | Z21: 0.08 | AA21: 0.1 | AB21: 0.11
D22: Project 6 | E22: 2021-05-01 | F22: 2 | G22: 2021-07-01 | H22: 32 | I22: 2053-07-01 | J22: 1000 | K22: 1500 | L22: 650 | M22: 8 | N22: 37 | O22: FALSE | Q22: =1/12 -> 0.08333333333 | R22: =1/12 -> 0.08333333333 | S22: 0.08333333333 | T22: 0.08333333333 | U22: 0.08333333333 | V22: 0.08333333333 | W22: 0.08333333333 | X22: 0.08333333333 | Y22: 0.08333333333 | Z22: 0.08333333333 | AA22: 0.08333333333 | AB22: 0.08333333333
D23: Project 7 | E23: 2021-05-01 | F23: 5 | G23: 2021-10-01 | H23: 24 | I23: 2045-10-01 | J23: 400 | K23: 1300 | L23: 900 | M23: 5 | N23: 42 | O23: TRUE | Q23: 0.12 | R23: 0.1 | S23: 0.09 | T23: 0.09 | U23: 0.08 | V23: 0.07 | W23: 0.06 | X23: 0.06 | Y23: 0.06 | Z23: 0.08 | AA23: 0.09 | AB23: 0.1
D24: Project 8 | E24: 2021-05-01 | F24: 3 | G24: 2021-08-01 | H24: 25 | I24: 2046-08-01 | J24: 500 | K24: 1400 | L24: 800 | M24: 10 | N24: 42 | O24: TRUE | Q24: 0.1 | R24: 0.1 | S24: 0.09 | T24: 0.09 | U24: 0.08 | V24: 0.07 | W24: 0.06 | X24: 0.06 | Y24: 0.06 | Z24: 0.08 | AA24: 0.1 | AB24: 0.11
D25: Project 9 | E25: 2022-10-01 | F25: 2 | G25: 2022-12-01 | H25: 25 | I25: 2047-12-01 | J25: 700 | K25: 1500 | L25: 700 | M25: 5 | N25: 35 | O25: FALSE | Q25: =1/12 -> 0.08333333333 | R25: =1/12 -> 0.08333333333 | S25: 0.08333333333 | T25: 0.08333333333 | U25: 0.08333333333 | V25: 0.08333333333 | W25: 0.08333333333 | X25: 0.08333333333 | Y25: 0.08333333333 | Z25: 0.08333333333 | AA25: 0.08333333333 | AB25: 0.08333333333
D26: Project 10 | E26: 2022-11-01 | F26: 4 | G26: 2023-03-01 | H26: 25 | I26: 2048-03-01 | J26: 900 | K26: 1500 | L26: 670 | M26: 10 | N26: 37 | O26: FALSE | Q26: 0.12 | R26: 0.1 | S26: 0.09 | T26: 0.09 | U26: 0.08 | V26: 0.07 | W26: 0.06 | X26: 0.06 | Y26: 0.06 | Z26: 0.08 | AA26: 0.09 | AB26: 0.1
B28: Project Results
E29: USD IRR | F29: ZAR IRR | G29: Cap Exp | H29: Cap Exp
E30: % p.a. | F30: % p.a. | G30: USD | H30: ZAR
D31: Project 1
D32: Project 2
D33: Project 3
D34: Project 4
D35: Project 5
D36: Project 6
D37: Project 7
D38: Project 8
D39: Project 9
D40: Project 10

Sheet Template
D1: Project Name | F1: Project 3 | H1: =MATCH(F1,'Project Database'!D:D,0) -> 19
E2: Unit | F2: Driver | G2: Driver | H2: Sum
C3: Period | J3: 0 | K3: 1 | L3: 2 | M3: 3 | N3: 4 | O3: 5 | P3: 6 | Q3: 7 | R3: 8 | S3: 9 | T3: 10 | U3: 11 | V3: 12 | W3: 13 | X3: 14 | Y3: 15 | Z3: 16 | AA3: 17 | AB3: 18 | AC3: 19 | AD3: 20 | AE3: 21 | AF3: 22 | AG3: 23 | AH3: 24 | AI3: 25 | AJ3: 26 | AK3: 27 | AL3: 28 | AM3: 29 | AN3: 30 | AO3: 31 | AP3: 32 | AQ3: 33 | AR3: 34 | AS3: 35 | AT3: 36 | AU3: 37 | AV3: 38 | AW3: 39 | AX3: 40 | AY3: 41 | AZ3: 42 | BA3: 43 | BB3: 44 | BC3: 45 | BD3: 46 | BE3: 47 | BF3: 48 | BG3: 49 | BH3: 50 | BI3: 51 | BJ3: 52 | BK3: 53 | BL3: 54 | BM3: 55 | BN3: 56 | BO3: 57 | BP3: 58 | BQ3: 59 | BR3: 60 | BS3: 61 | BT3: 62 | BU3: 63 | BV3: 64 | BW3: 65 | BX3: 66 | BY3: 67 | BZ3: 68 | CA3: 69 | CB3: 70 | CC3: 71 | CD3: 72 | CE3: 73 | CF3: 74 | CG3: 75 | CH3: 76 | CI3: 77 | CJ3: 78 | CK3: 79 | CL3: 80 | CM3: 81 | CN3: 82 | CO3: 83 | CP3: 84 | CQ3: 85 | CR3: 86 | CS3: 87 | CT3: 88 | CU3: 89 | CV3: 90 | CW3: 91 | CX3: 92 | CY3: 93 | CZ3: 94 | DA3: 95 | DB3: 96 | DC3: 97 | DD3: 98 | DE3: 99 | DF3: 100 | DG3: 101 | DH3: 102 | DI3: 103 | DJ3: 104 | DK3: 105 | DL3: 106 | DM3: 107 | DN3: 108 | DO3: 109 | DP3: 110 | DQ3: 111 | DR3: 112 | DS3: 113 | DT3: 114 | DU3: 115 | DV3: 116 | DW3: 117 | DX3: 118 | DY3: 119 | DZ3: 120 | EA3: 121 | EB3: 122 | EC3: 123 | ED3: 124 | EE3: 125 | EF3: 126 | EG3: 127 | EH3: 128 | EI3: 129 | EJ3: 130 | EK3: 131 | EL3: 132 | EM3: 133 | EN3: 134 | EO3: 135 | EP3: 136 | EQ3: 137 | ER3: 138 | ES3: 139 | ET3: 140 | EU3: 141 | EV3: 142 | EW3: 143 | EX3: 144 | EY3: 145 | EZ3: 146 | FA3: 147 | FB3: 148 | FC3: 149 | FD3: 150 | FE3: 151 | FF3: 152 | FG3: 153 | FH3: 154 | FI3: 155 | FJ3: 156 | FK3: 157 | FL3: 158 | FM3: 159 | FN3: 160 | FO3: 161 | FP3: 162 | FQ3: 163 | FR3: 164 | FS3: 165 | FT3: 166 | FU3: 167 | FV3: 168 | FW3: 169 | FX3: 170 | FY3: 171 | FZ3: 172 | GA3: 173 | GB3: 174 | GC3: 175 | GD3: 176 | GE3: 177 | GF3: 178 | GG3: 179 | GH3: 180 | GI3: 181 | GJ3: 182 | GK3: 183 | GL3: 184 | GM3: 185 | GN3: 186 | GO3: 187 | GP3: 188 | GQ3: 189 | GR3: 190 | GS3: 191 | GT3: 192 | GU3: 193 | GV3: 194 | GW3: 195 | GX3: 196 | GY3: 197 | GZ3: 198 | HA3: 199 | HB3: 200 | HC3: 201 | HD3: 202 | HE3: 203 | HF3: 204 | HG3: 205 | HH3: 206 | HI3: 207 | HJ3: 208 | HK3: 209 | HL3: 210 | HM3: 211 | HN3: 212 | HO3: 213 | HP3: 214 | HQ3: 215 | HR3: 216 | HS3: 217 | HT3: 218 | HU3: 219 | HV3: 220 | HW3: 221 | HX3: 222 | HY3: 223 | HZ3: 224 | IA3: 225 | IB3: 226 | IC3: 227 | ID3: 228 | IE3: 229 | IF3: 230 | IG3: 231 | IH3: 232 | II3: 233 | IJ3: 234 | IK3: 235 | IL3: 236 | IM3: 237 | IN3: 238 | IO3: 239 | IP3: 240 | IQ3: 241 | IR3: 242 | IS3: 243 | IT3: 244 | IU3: 245 | IV3: 246 | IW3: 247 | IX3: 248 | IY3: 249 | IZ3: 250 | JA3: 251 | JB3: 252 | JC3: 253 | JD3: 254 | JE3: 255 | JF3: 256 | JG3: 257 | JH3: 258 | JI3: 259 | JJ3: 260 | JK3: 261 | JL3: 262 | JM3: 263 | JN3: 264 | JO3: 265 | JP3: 266 | JQ3: 267 | JR3: 268 | JS3: 269 | JT3: 270 | JU3: 271 | JV3: 272 | JW3: 273 | JX3: 274 | JY3: 275 | JZ3: 276 | KA3: 277 | KB3: 278 | KC3: 279 | KD3: 280 | KE3: 281 | KF3: 282 | KG3: 283 | KH3: 284 | KI3: 285 | KJ3: 286 | KK3: 287 | KL3: 288 | KM3: 289 | KN3: 290 | KO3: 291 | KP3: 292 | KQ3: 293 | KR3: 294 | KS3: 295 | KT3: 296 | KU3: 297 | KV3: 298 | KW3: 299 | KX3: 300 | KY3: 301 | KZ3: 302 | LA3: 303 | LB3: 304 | LC3: 305 | LD3: 306 | LE3: 307 | LF3: 308 | LG3: 309 | LH3: 310 | LI3: 311 | LJ3: 312 | LK3: 313 | LL3: 314 | LM3: 315 | LN3: 316 | LO3: 317 | LP3: 318 | LQ3: 319 | LR3: 320 | LS3: 321 | LT3: 322 | LU3: 323 | LV3: 324 | LW3: 325 | LX3: 326 | LY3: 327 | LZ3: 328 | MA3: 329 | MB3: 330 | MC3: 331 | MD3: 332 | ME3: 333 | MF3: 334 | MG3: 335 | MH3: 336 | MI3: 337 | MJ3: 338 | MK3: 339 | ML3: 340 | MM3: 341 | MN3: 342 | MO3: 343 | MP3: 344 | MQ3: 345 | MR3: 346 | MS3: 347 | MT3: 348 | MU3: 349 | MV3: 350 | MW3: 351 | MX3: 352 | MY3: 353 | MZ3: 354 | NA3: 355 | NB3: 356 | NC3: 357 | ND3: 358 | NE3: 359 | NF3: 360 | NG3: 361 | NH3: 362 | NI3: 363 | NJ3: 364 | NK3: 365 | NL3: 366 | NM3: 367 | NN3: 368 | NO3: 369 | NP3: 370 | NQ3: 371 | NR3: 372 | NS3: 373 | NT3: 374 | NU3: 375 | NV3: 376 | NW3: 377 | NX3: 378 | NY3: 379 | NZ3: 380 | OA3: 381 | OB3: 382 | OC3: 383 | OD3: 384 | OE3: 385 | OF3: 386 | OG3: 387 | OH3: 388 | OI3: 389 | OJ3: 390 | OK3: 391 | OL3: 392 | OM3: 393 | ON3: 394 | OO3: 395 | OP3: 396 | OQ3: 397 | OR3: 398 | OS3: 399 | OT3: 400 | OU3: 401 | OV3: 402 | OW3: 403 | OX3: 404 | OY3: 405 | OZ3: 406 | PA3: 407 | PB3: 408 | PC3: 409 | PD3: 410 | PE3: 411 | PF3: 412 | PG3: 413 | PH3: 414 | PI3: 415 | PJ3: 416 | PK3: 417 | PL3: 418 | PM3: 419 | PN3: 420 | PO3: 421 | PP3: 422 | PQ3: 423 | PR3: 424 | PS3: 425 | PT3: 426 | PU3: 427 | PV3: 428 | PW3: 429 | PX3: 430 | PY3: 431 | PZ3: 432 | QA3: 433 | QB3: 434 | QC3: 435 | QD3: 436 | QE3: 437 | QF3: 438 | QG3: 439 | QH3: 440 | QI3: 441 | QJ3: 442 | QK3: 443 | QL3: 444 | QM3: 445 | QN3: 446 | QO3: 447 | QP3: 448 | QQ3: 449 | QR3: 450 | QS3: 451 | QT3: 452 | QU3: 453 | QV3: 454 | QW3: 455 | QX3: 456 | QY3: 457 | QZ3: 458 | RA3: 459 | RB3: 460 | RC3: 461 | RD3: 462 | RE3: 463 | RF3: 464 | RG3: 465 | RH3: 466 | RI3: 467 | RJ3: 468 | RK3: 469 | RL3: 470 | RM3: 471 | RN3: 472 | RO3: 473 | RP3: 474 | RQ3: 475 | RR3: 476 | RS3: 477 | RT3: 478 | RU3: 479 | RV3: 480 | RW3: 481 | RX3: 482 | RY3: 483 | RZ3: 484 | SA3: 485 | SB3: 486 | SC3: 487 | SD3: 488 | SE3: 489 | SF3: 490 | SG3: 491 | SH3: 492 | SI3: 493 | SJ3: 494 | SK3: 495 | SL3: 496 | SM3: 497 | SN3: 498 | SO3: 499 | SP3: 500 | SQ3: 501 | SR3: 502 | SS3: 503 | ST3: 504 | SU3: 505 | SV3: 506 | SW3: 507 | SX3: 508 | SY3: 509 | SZ3: 510 | TA3: 511 | TB3: 512 | TC3: 513 | TD3: 514 | TE3: 515 | TF3: 516 | TG3: 517 | TH3: 518 | TI3: 519 | TJ3: 520 | TK3: 521 | TL3: 522 | TM3: 523 | TN3: 524 | TO3: 525 | TP3: 526 | TQ3: 527 | TR3: 528 | TS3: 529 | TT3: 530 | TU3: 531 | TV3: 532 | TW3: 533 | TX3: 534 | TY3: 535 | TZ3: 536 | UA3: 537 | UB3: 538 | UC3: 539 | UD3: 540 | UE3: 541 | UF3: 542 | UG3: 543 | UH3: 544 | UI3: 545 | UJ3: 546 | UK3: 547 | UL3: 548 | UM3: 549 | UN3: 550 | UO3: 551 | UP3: 552 | UQ3: 553 | UR3: 554 | US3: 555 | UT3: 556 | UU3: 557 | UV3: 558 | UW3: 559 | UX3: 560 | UY3: 561 | UZ3: 562 | VA3: 563 | VB3: 564 | VC3: 565 | VD3: 566 | VE3: 567 | VF3: 568 | VG3: 569 | VH3: 570 | VI3: 571 | VJ3: 572 | VK3: 573 | VL3: 574 | VM3: 575 | VN3: 576 | VO3: 577 | VP3: 578 | VQ3: 579 | VR3: 580 | VS3: 581 | VT3: 582 | VU3: 583 | VV3: 584 | VW3: 585 | VX3: 586 | VY3: 587 | VZ3: 588 | WA3: 589 | WB3: 590 | WC3: 591 | WD3: 592 | WE3: 593 | WF3: 594 | WG3: 595 | WH3: 596 | WI3: 597 | WJ3: 598 | WK3: 599 | WL3: 600
C4: Date | F4: ='Project Database'!$E$3 -> 2020-01-01 | J4: =F4 -> 2020-01-01 | K4: =EDATE(J4,1) -> 2020-02-01 | L4: =EDATE(K4,1) -> 2020-03-01 | M4: 2020-04-01 | N4: 2020-05-01 | O4: 2020-06-01 | P4: 2020-07-01 | Q4: 2020-08-01 | R4: 2020-09-01 | S4: 2020-10-01 | T4: 2020-11-01 | U4: 2020-12-01 | V4: 2021-01-01 | W4: 2021-02-01 | X4: 2021-03-01 | Y4: 2021-04-01 | Z4: 2021-05-01 | AA4: 2021-06-01 | AB4: 2021-07-01 | AC4: 2021-08-01 | AD4: 2021-09-01 | AE4: 2021-10-01 | AF4: 2021-11-01 | AG4: 2021-12-01 | AH4: 2022-01-01 | AI4: 2022-02-01 | AJ4: 2022-03-01 | AK4: 2022-04-01 | AL4: 2022-05-01 | AM4: 2022-06-01 | AN4: 2022-07-01 | AO4: 2022-08-01 | AP4: 2022-09-01 | AQ4: 2022-10-01 | AR4: 2022-11-01 | AS4: 2022-12-01 | AT4: 2023-01-01 | AU4: 2023-02-01 | AV4: 2023-03-01 | AW4: 2023-04-01 | AX4: 2023-05-01 | AY4: 2023-06-01 | AZ4: 2023-07-01 | BA4: 2023-08-01 | BB4: 2023-09-01 | BC4: 2023-10-01 | BD4: 2023-11-01 | BE4: 2023-12-01 | BF4: 2024-01-01 | BG4: 2024-02-01 | BH4: 2024-03-01 | BI4: 2024-04-01 | BJ4: 2024-05-01 | BK4: 2024-06-01 | BL4: 2024-07-01 | BM4: 2024-08-01 | BN4: 2024-09-01 | BO4: 2024-10-01 | BP4: 2024-11-01 | BQ4: 2024-12-01 | BR4: 2025-01-01 | BS4: 2025-02-01 | BT4: 2025-03-01 | BU4: 2025-04-01 | BV4: 2025-05-01 | BW4: 2025-06-01 | BX4: =EDATE(BW4,1) -> 2025-07-01 | BY4: 2025-08-01 | BZ4: 2025-09-01 | CA4: 2025-10-01 | CB4: 2025-11-01 | CC4: 2025-12-01 | CD4: 2026-01-01 | CE4: 2026-02-01 | CF4: 2026-03-01 | CG4: 2026-04-01 | CH4: 2026-05-01 | CI4: 2026-06-01 | CJ4: 2026-07-01 | CK4: 2026-08-01 | CL4: 2026-09-01 | CM4: 2026-10-01 | CN4: 2026-11-01 | CO4: 2026-12-01 | CP4: 2027-01-01 | CQ4: 2027-02-01 | CR4: 2027-03-01 | CS4: 2027-04-01 | CT4: 2027-05-01 | CU4: 2027-06-01 | CV4: 2027-07-01 | CW4: 2027-08-01 | CX4: 2027-09-01 | CY4: 2027-10-01 | CZ4: 2027-11-01 | DA4: 2027-12-01 | DB4: 2028-01-01 | DC4: 2028-02-01 | DD4: 2028-03-01 | DE4: 2028-04-01 | DF4: 2028-05-01 | DG4: 2028-06-01 | DH4: 2028-07-01 | DI4: 2028-08-01 | DJ4: 2028-09-01 | DK4: 2028-10-01 | DL4: 2028-11-01 | DM4: 2028-12-01 | DN4: 2029-01-01 | DO4: 2029-02-01 | DP4: 2029-03-01 | DQ4: 2029-04-01 | DR4: 2029-05-01 | DS4: 2029-06-01 | DT4: 2029-07-01 | DU4: 2029-08-01 | DV4: 2029-09-01 | DW4: 2029-10-01 | DX4: 2029-11-01 | DY4: 2029-12-01 | DZ4: 2030-01-01 | EA4: 2030-02-01 | EB4: 2030-03-01 | EC4: 2030-04-01 | ED4: 2030-05-01 | EE4: 2030-06-01 | EF4: 2030-07-01 | EG4: 2030-08-01 | EH4: 2030-09-01 | EI4: 2030-10-01 | EJ4: =EDATE(EI4,1) -> 2030-11-01 | EK4: 2030-12-01 | EL4: 2031-01-01 | EM4: 2031-02-01 | EN4: 2031-03-01 | EO4: 2031-04-01 | EP4: 2031-05-01 | EQ4: 2031-06-01 | ER4: 2031-07-01 | ES4: 2031-08-01 | ET4: 2031-09-01 | EU4: 2031-10-01 | EV4: 2031-11-01 | EW4: 2031-12-01 | EX4: 2032-01-01 | EY4: 2032-02-01 | EZ4: 2032-03-01 | FA4: 2032-04-01 | FB4: 2032-05-01 | FC4: 2032-06-01 | FD4: 2032-07-01 | FE4: 2032-08-01 | FF4: 2032-09-01 | FG4: 2032-10-01 | FH4: 2032-11-01 | FI4: 2032-12-01 | FJ4: 2033-01-01 | FK4: 2033-02-01 | FL4: 2033-03-01 | FM4: 2033-04-01 | FN4: 2033-05-01 | FO4: 2033-06-01 | FP4: 2033-07-01 | FQ4: 2033-08-01 | FR4: 2033-09-01 | FS4: 2033-10-01 | FT4: 2033-11-01 | FU4: 2033-12-01 | FV4: 2034-01-01 | FW4: 2034-02-01 | FX4: 2034-03-01 | FY4: 2034-04-01 | FZ4: 2034-05-01 | GA4: 2034-06-01 | GB4: 2034-07-01 | GC4: 2034-08-01 | GD4: 2034-09-01 | GE4: 2034-10-01 | GF4: 2034-11-01 | GG4: 2034-12-01 | GH4: 2035-01-01 | GI4: 2035-02-01 | GJ4: 2035-03-01 | GK4: 2035-04-01 | GL4: 2035-05-01 | GM4: 2035-06-01 | GN4: 2035-07-01 | GO4: 2035-08-01 | GP4: 2035-09-01 | GQ4: 2035-10-01 | GR4: 2035-11-01 | GS4: 2035-12-01 | GT4: 2036-01-01 | GU4: 2036-02-01 | GV4: =EDATE(GU4,1) -> 2036-03-01 | GW4: 2036-04-01 | GX4: 2036-05-01 | GY4: 2036-06-01 | GZ4: 2036-07-01 | HA4: 2036-08-01 | HB4: 2036-09-01 | HC4: 2036-10-01 | HD4: 2036-11-01 | HE4: 2036-12-01 | HF4: 2037-01-01 | HG4: 2037-02-01 | HH4: 2037-03-01 | HI4: 2037-04-01 | HJ4: 2037-05-01 | HK4: 2037-06-01 | HL4: 2037-07-01 | HM4: 2037-08-01 | HN4: 2037-09-01 | HO4: 2037-10-01 | HP4: 2037-11-01 | HQ4: 2037-12-01 | HR4: 2038-01-01 | HS4: 2038-02-01 | HT4: 2038-03-01 | HU4: 2038-04-01 | HV4: 2038-05-01 | HW4: 2038-06-01 | HX4: 2038-07-01 | HY4: 2038-08-01 | HZ4: 2038-09-01 | IA4: 2038-10-01 | IB4: 2038-11-01 | IC4: 2038-12-01 | ID4: 2039-01-01 | IE4: 2039-02-01 | IF4: 2039-03-01 | IG4: 2039-04-01 | IH4: 2039-05-01 | II4: 2039-06-01 | IJ4: 2039-07-01 | IK4: 2039-08-01 | IL4: 2039-09-01 | IM4: 2039-10-01 | IN4: 2039-11-01 | IO4: 2039-12-01 | IP4: 2040-01-01 | IQ4: 2040-02-01 | IR4: 2040-03-01 | IS4: 2040-04-01 | IT4: 2040-05-01 | IU4: 2040-06-01 | IV4: 2040-07-01 | IW4: 2040-08-01 | IX4: 2040-09-01 | IY4: 2040-10-01 | IZ4: 2040-11-01 | JA4: 2040-12-01 | JB4: 2041-01-01 | JC4: 2041-02-01 | JD4: 2041-03-01 | JE4: 2041-04-01 | JF4: 2041-05-01 | JG4: 2041-06-01 | JH4: =EDATE(JG4,1) -> 2041-07-01 | JI4: 2041-08-01 | JJ4: 2041-09-01 | JK4: 2041-10-01 | JL4: 2041-11-01 | JM4: 2041-12-01 | JN4: 2042-01-01 | JO4: 2042-02-01 | JP4: 2042-03-01 | JQ4: 2042-04-01 | JR4: 2042-05-01 | JS4: 2042-06-01 | JT4: 2042-07-01 | JU4: 2042-08-01 | JV4: 2042-09-01 | JW4: 2042-10-01 | JX4: 2042-11-01 | JY4: 2042-12-01 | JZ4: 2043-01-01 | KA4: 2043-02-01 | KB4: 2043-03-01 | KC4: 2043-04-01 | KD4: 2043-05-01 | KE4: 2043-06-01 | KF4: 2043-07-01 | KG4: 2043-08-01 | KH4: 2043-09-01 | KI4: 2043-10-01 | KJ4: 2043-11-01 | KK4: 2043-12-01 | KL4: 2044-01-01 | KM4: 2044-02-01 | KN4: 2044-03-01 | KO4: 2044-04-01 | KP4: 2044-05-01 | KQ4: 2044-06-01 | KR4: 2044-07-01 | KS4: 2044-08-01 | KT4: 2044-09-01 | KU4: 2044-10-01 | KV4: 2044-11-01 | KW4: 2044-12-01 | KX4: 2045-01-01 | KY4: 2045-02-01 | KZ4: 2045-03-01 | LA4: 2045-04-01 | LB4: 2045-05-01 | LC4: 2045-06-01 | LD4: 2045-07-01 | LE4: 2045-08-01 | LF4: 2045-09-01 | LG4: 2045-10-01 | LH4: 2045-11-01 | LI4: 2045-12-01 | LJ4: 2046-01-01 | LK4: 2046-02-01 | LL4: 2046-03-01 | LM4: 2046-04-01 | LN4: 2046-05-01 | LO4: 2046-06-01 | LP4: 2046-07-01 | LQ4: 2046-08-01 | LR4: 2046-09-01 | LS4: 2046-10-01 | LT4: =EDATE(LS4,1) -> 2046-11-01 | LU4: 2046-12-01 | LV4: 2047-01-01 | LW4: 2047-02-01 | LX4: 2047-03-01 | LY4: 2047-04-01 | LZ4: 2047-05-01 | MA4: 2047-06-01 | MB4: 2047-07-01 | MC4: 2047-08-01 | MD4: 2047-09-01 | ME4: 2047-10-01 | MF4: 2047-11-01 | MG4: 2047-12-01 | MH4: 2048-01-01 | MI4: 2048-02-01 | MJ4: 2048-03-01 | MK4: 2048-04-01 | ML4: 2048-05-01 | MM4: 2048-06-01 | MN4: 2048-07-01 | MO4: 2048-08-01 | MP4: 2048-09-01 | MQ4: 2048-10-01 | MR4: 2048-11-01 | MS4: 2048-12-01 | MT4: 2049-01-01 | MU4: 2049-02-01 | MV4: 2049-03-01 | MW4: 2049-04-01 | MX4: 2049-05-01 | MY4: 2049-06-01 | MZ4: 2049-07-01 | NA4: 2049-08-01 | NB4: 2049-09-01 | NC4: 2049-10-01 | ND4: 2049-11-01 | NE4: 2049-12-01 | NF4: 2050-01-01 | NG4: 2050-02-01 | NH4: 2050-03-01 | NI4: 2050-04-01 | NJ4: 2050-05-01 | NK4: 2050-06-01 | NL4: 2050-07-01 | NM4: 2050-08-01 | NN4: 2050-09-01 | NO4: 2050-10-01 | NP4: 2050-11-01 | NQ4: 2050-12-01 | NR4: 2051-01-01 | NS4: 2051-02-01 | NT4: 2051-03-01 | NU4: 2051-04-01 | NV4: 2051-05-01 | NW4: 2051-06-01 | NX4: 2051-07-01 | NY4: 2051-08-01 | NZ4: 2051-09-01 | OA4: 2051-10-01 | OB4: 2051-11-01 | OC4: 2051-12-01 | OD4: 2052-01-01 | OE4: 2052-02-01 | OF4: =EDATE(OE4,1) -> 2052-03-01 | OG4: 2052-04-01 | OH4: 2052-05-01 | OI4: 2052-06-01 | OJ4: 2052-07-01 | OK4: 2052-08-01 | OL4: 2052-09-01 | OM4: 2052-10-01 | ON4: 2052-11-01 | OO4: 2052-12-01 | OP4: 2053-01-01 | OQ4: 2053-02-01 | OR4: 2053-03-01 | OS4: 2053-04-01 | OT4: 2053-05-01 | OU4: 2053-06-01 | OV4: 2053-07-01 | OW4: 2053-08-01 | OX4: 2053-09-01 | OY4: 2053-10-01 | OZ4: 2053-11-01 | PA4: 2053-12-01 | PB4: 2054-01-01 | PC4: 2054-02-01 | PD4: 2054-03-01 | PE4: 2054-04-01 | PF4: 2054-05-01 | PG4: 2054-06-01 | PH4: 2054-07-01 | PI4: 2054-08-01 | PJ4: 2054-09-01 | PK4: 2054-10-01 | PL4: 2054-11-01 | PM4: 2054-12-01 | PN4: 2055-01-01 | PO4: 2055-02-01 | PP4: 2055-03-01 | PQ4: 2055-04-01 | PR4: 2055-05-01 | PS4: 2055-06-01 | PT4: 2055-07-01 | PU4: 2055-08-01 | PV4: 2055-09-01 | PW4: 2055-10-01 | PX4: 2055-11-01 | PY4: 2055-12-01 | PZ4: 2056-01-01 | QA4: 2056-02-01 | QB4: 2056-03-01 | QC4: 2056-04-01 | QD4: 2056-05-01 | QE4: 2056-06-01 | QF4: 2056-07-01 | QG4: 2056-08-01 | QH4: 2056-09-01 | QI4: 2056-10-01 | QJ4: 2056-11-01 | QK4: 2056-12-01 | QL4: 2057-01-01 | QM4: 2057-02-01 | QN4: 2057-03-01 | QO4: 2057-04-01 | QP4: 2057-05-01 | QQ4: 2057-06-01 | QR4: =EDATE(QQ4,1) -> 2057-07-01 | QS4: 2057-08-01 | QT4: 2057-09-01 | QU4: 2057-10-01 | QV4: 2057-11-01 | QW4: 2057-12-01 | QX4: 2058-01-01 | QY4: 2058-02-01 | QZ4: 2058-03-01 | RA4: 2058-04-01 | RB4: 2058-05-01 | RC4: 2058-06-01 | RD4: 2058-07-01 | RE4: 2058-08-01 | RF4: 2058-09-01 | RG4: 2058-10-01 | RH4: 2058-11-01 | RI4: 2058-12-01 | RJ4: 2059-01-01 | RK4: 2059-02-01 | RL4: 2059-03-01 | RM4: 2059-04-01 | RN4: 2059-05-01 | RO4: 2059-06-01 | RP4: 2059-07-01 | RQ4: 2059-08-01 | RR4: 2059-09-01 | RS4: 2059-10-01 | RT4: 2059-11-01 | RU4: 2059-12-01 | RV4: 2060-01-01 | RW4: 2060-02-01 | RX4: 2060-03-01 | RY4: 2060-04-01 | RZ4: 2060-05-01 | SA4: 2060-06-01 | SB4: 2060-07-01 | SC4: 2060-08-01 | SD4: 2060-09-01 | SE4: 2060-10-01 | SF4: 2060-11-01 | SG4: 2060-12-01 | SH4: 2061-01-01 | SI4: 2061-02-01 | SJ4: 2061-03-01 | SK4: 2061-04-01 | SL4: 2061-05-01 | SM4: 2061-06-01 | SN4: 2061-07-01 | SO4: 2061-08-01 | SP4: 2061-09-01 | SQ4: 2061-10-01 | SR4: 2061-11-01 | SS4: 2061-12-01 | ST4: 2062-01-01 | SU4: 2062-02-01 | SV4: 2062-03-01 | SW4: 2062-04-01 | SX4: 2062-05-01 | SY4: 2062-06-01 | SZ4: 2062-07-01 | TA4: 2062-08-01 | TB4: 2062-09-01 | TC4: 2062-10-01 | TD4: =EDATE(TC4,1) -> 2062-11-01 | TE4: 2062-12-01 | TF4: 2063-01-01 | TG4: 2063-02-01 | TH4: 2063-03-01 | TI4: 2063-04-01 | TJ4: 2063-05-01 | TK4: 2063-06-01 | TL4: 2063-07-01 | TM4: 2063-08-01 | TN4: 2063-09-01 | TO4: 2063-10-01 | TP4: 2063-11-01 | TQ4: 2063-12-01 | TR4: 2064-01-01 | TS4: 2064-02-01 | TT4: 2064-03-01 | TU4: 2064-04-01 | TV4: 2064-05-01 | TW4: 2064-06-01 | TX4: 2064-07-01 | TY4: 2064-08-01 | TZ4: 2064-09-01 | UA4: 2064-10-01 | UB4: 2064-11-01 | UC4: 2064-12-01 | UD4: 2065-01-01 | UE4: 2065-02-01 | UF4: 2065-03-01 | UG4: 2065-04-01 | UH4: 2065-05-01 | UI4: 2065-06-01 | UJ4: 2065-07-01 | UK4: 2065-08-01 | UL4: 2065-09-01 | UM4: 2065-10-01 | UN4: 2065-11-01 | UO4: 2065-12-01 | UP4: 2066-01-01 | UQ4: 2066-02-01 | UR4: 2066-03-01 | US4: 2066-04-01 | UT4: 2066-05-01 | UU4: 2066-06-01 | UV4: 2066-07-01 | UW4: 2066-08-01 | UX4: 2066-09-01 | UY4: 2066-10-01 | UZ4: 2066-11-01 | VA4: 2066-12-01 | VB4: 2067-01-01 | VC4: 2067-02-01 | VD4: 2067-03-01 | VE4: 2067-04-01 | VF4: 2067-05-01 | VG4: 2067-06-01 | VH4: 2067-07-01 | VI4: 2067-08-01 | VJ4: 2067-09-01 | VK4: 2067-10-01 | VL4: 2067-11-01 | VM4: 2067-12-01 | VN4: 2068-01-01 | VO4: 2068-02-01 | VP4: =EDATE(VO4,1) -> 2068-03-01 | VQ4: 2068-04-01 | VR4: 2068-05-01 | VS4: 2068-06-01 | VT4: 2068-07-01 | VU4: 2068-08-01 | VV4: 2068-09-01 | VW4: 2068-10-01 | VX4: 2068-11-01 | VY4: 2068-12-01 | VZ4: 2069-01-01 | WA4: 2069-02-01 | WB4: 2069-03-01 | WC4: 2069-04-01 | WD4: 2069-05-01 | WE4: 2069-06-01 | WF4: 2069-07-01 | WG4: 2069-08-01 | WH4: 2069-09-01 | WI4: 2069-10-01 | WJ4: 2069-11-01 | WK4: 2069-12-01 | WL4: 2070-01-01
C5: Month Number | J5: =MONTH(J4) -> 1 | K5: =MONTH(K4) -> 2 | L5: 3 | M5: 4 | N5: 5 | O5: 6 | P5: 7 | Q5: 8 | R5: 9 | S5: 10 | T5: 11 | U5: 12 | V5: 1 | W5: 2 | X5: 3 | Y5: 4 | Z5: 5 | AA5: 6 | AB5: 7 | AC5: 8 | AD5: 9 | AE5: 10 | AF5: 11 | AG5: 12 | AH5: 1 | AI5: 2 | AJ5: 3 | AK5: 4 | AL5: 5 | AM5: 6 | AN5: 7 | AO5: 8 | AP5: 9 | AQ5: 10 | AR5: 11 | AS5: 12 | AT5: 1 | AU5: 2 | AV5: 3 | AW5: 4 | AX5: 5 | AY5: 6 | AZ5: 7 | BA5: 8 | BB5: 9 | BC5: 10 | BD5: 11 | BE5: 12 | BF5: 1 | BG5: 2 | BH5: 3 | BI5: 4 | BJ5: 5 | BK5: 6 | BL5: 7 | BM5: 8 | BN5: 9 | BO5: 10 | BP5: 11 | BQ5: 12 | BR5: 1 | BS5: 2 | BT5: 3 | BU5: 4 | BV5: 5 | BW5: =MONTH(BW4) -> 6 | BX5: 7 | BY5: 8 | BZ5: 9 | CA5: 10 | CB5: 11 | CC5: 12 | CD5: 1 | CE5: 2 | CF5: 3 | CG5: 4 | CH5: 5 | CI5: 6 | CJ5: 7 | CK5: 8 | CL5: 9 | CM5: 10 | CN5: 11 | CO5: 12 | CP5: 1 | CQ5: 2 | CR5: 3 | CS5: 4 | CT5: 5 | CU5: 6 | CV5: 7 | CW5: 8 | CX5: 9 | CY5: 10 | CZ5: 11 | DA5: 12 | DB5: 1 | DC5: 2 | DD5: 3 | DE5: 4 | DF5: 5 | DG5: 6 | DH5: 7 | DI5: 8 | DJ5: 9 | DK5: 10 | DL5: 11 | DM5: 12 | DN5: 1 | DO5: 2 | DP5: 3 | DQ5: 4 | DR5: 5 | DS5: 6 | DT5: 7 | DU5: 8 | DV5: 9 | DW5: 10 | DX5: 11 | DY5: 12 | DZ5: 1 | EA5: 2 | EB5: 3 | EC5: 4 | ED5: 5 | EE5: 6 | EF5: 7 | EG5: 8 | EH5: 9 | EI5: =MONTH(EI4) -> 10 | EJ5: 11 | EK5: 12 | EL5: 1 | EM5: 2 | EN5: 3 | EO5: 4 | EP5: 5 | EQ5: 6 | ER5: 7 | ES5: 8 | ET5: 9 | EU5: 10 | EV5: 11 | EW5: 12 | EX5: 1 | EY5: 2 | EZ5: 3 | FA5: 4 | FB5: 5 | FC5: 6 | FD5: 7 | FE5: 8 | FF5: 9 | FG5: 10 | FH5: 11 | FI5: 12 | FJ5: 1 | FK5: 2 | FL5: 3 | FM5: 4 | FN5: 5 | FO5: 6 | FP5: 7 | FQ5: 8 | FR5: 9 | FS5: 10 | FT5: 11 | FU5: 12 | FV5: 1 | FW5: 2 | FX5: 3 | FY5: 4 | FZ5: 5 | GA5: 6 | GB5: 7 | GC5: 8 | GD5: 9 | GE5: 10 | GF5: 11 | GG5: 12 | GH5: 1 | GI5: 2 | GJ5: 3 | GK5: 4 | GL5: 5 | GM5: 6 | GN5: 7 | GO5: 8 | GP5: 9 | GQ5: 10 | GR5: 11 | GS5: 12 | GT5: 1 | GU5: =MONTH(GU4) -> 2 | GV5: 3 | GW5: 4 | GX5: 5 | GY5: 6 | GZ5: 7 | HA5: 8 | HB5: 9 | HC5: 10 | HD5: 11 | HE5: 12 | HF5: 1 | HG5: 2 | HH5: 3 | HI5: 4 | HJ5: 5 | HK5: 6 | HL5: 7 | HM5: 8 | HN5: 9 | HO5: 10 | HP5: 11 | HQ5: 12 | HR5: 1 | HS5: 2 | HT5: 3 | HU5: 4 | HV5: 5 | HW5: 6 | HX5: 7 | HY5: 8 | HZ5: 9 | IA5: 10 | IB5: 11 | IC5: 12 | ID5: 1 | IE5: 2 | IF5: 3 | IG5: 4 | IH5: 5 | II5: 6 | IJ5: 7 | IK5: 8 | IL5: 9 | IM5: 10 | IN5: 11 | IO5: 12 | IP5: 1 | IQ5: 2 | IR5: 3 | IS5: 4 | IT5: 5 | IU5: 6 | IV5: 7 | IW5: 8 | IX5: 9 | IY5: 10 | IZ5: 11 | JA5: 12 | JB5: 1 | JC5: 2 | JD5: 3 | JE5: 4 | JF5: 5 | JG5: =MONTH(JG4) -> 6 | JH5: 7 | JI5: 8 | JJ5: 9 | JK5: 10 | JL5: 11 | JM5: 12 | JN5: 1 | JO5: 2 | JP5: 3 | JQ5: 4 | JR5: 5 | JS5: 6 | JT5: 7 | JU5: 8 | JV5: 9 | JW5: 10 | JX5: 11 | JY5: 12 | JZ5: 1 | KA5: 2 | KB5: 3 | KC5: 4 | KD5: 5 | KE5: 6 | KF5: 7 | KG5: 8 | KH5: 9 | KI5: 10 | KJ5: 11 | KK5: 12 | KL5: 1 | KM5: 2 | KN5: 3 | KO5: 4 | KP5: 5 | KQ5: 6 | KR5: 7 | KS5: 8 | KT5: 9 | KU5: 10 | KV5: 11 | KW5: 12 | KX5: 1 | KY5: 2 | KZ5: 3 | LA5: 4 | LB5: 5 | LC5: 6 | LD5: 7 | LE5: 8 | LF5: 9 | LG5: 10 | LH5: 11 | LI5: 12 | LJ5: 1 | LK5: 2 | LL5: 3 | LM5: 4 | LN5: 5 | LO5: 6 | LP5: 7 | LQ5: 8 | LR5: 9 | LS5: =MONTH(LS4) -> 10 | LT5: 11 | LU5: 12 | LV5: 1 | LW5: 2 | LX5: 3 | LY5: 4 | LZ5: 5 | MA5: 6 | MB5: 7 | MC5: 8 | MD5: 9 | ME5: 10 | MF5: 11 | MG5: 12 | MH5: 1 | MI5: 2 | MJ5: 3 | MK5: 4 | ML5: 5 | MM5: 6 | MN5: 7 | MO5: 8 | MP5: 9 | MQ5: 10 | MR5: 11 | MS5: 12 | MT5: 1 | MU5: 2 | MV5: 3 | MW5: 4 | MX5: 5 | MY5: 6 | MZ5: 7 | NA5: 8 | NB5: 9 | NC5: 10 | ND5: 11 | NE5: 12 | NF5: 1 | NG5: 2 | NH5: 3 | NI5: 4 | NJ5: 5 | NK5: 6 | NL5: 7 | NM5: 8 | NN5: 9 | NO5: 10 | NP5: 11 | NQ5: 12 | NR5: 1 | NS5: 2 | NT5: 3 | NU5: 4 | NV5: 5 | NW5: 6 | NX5: 7 | NY5: 8 | NZ5: 9 | OA5: 10 | OB5: 11 | OC5: 12 | OD5: 1 | OE5: =MONTH(OE4) -> 2 | OF5: 3 | OG5: 4 | OH5: 5 | OI5: 6 | OJ5: 7 | OK5: 8 | OL5: 9 | OM5: 10 | ON5: 11 | OO5: 12 | OP5: 1 | OQ5: 2 | OR5: 3 | OS5: 4 | OT5: 5 | OU5: 6 | OV5: 7 | OW5: 8 | OX5: 9 | OY5: 10 | OZ5: 11 | PA5: 12 | PB5: 1 | PC5: 2 | PD5: 3 | PE5: 4 | PF5: 5 | PG5: 6 | PH5: 7 | PI5: 8 | PJ5: 9 | PK5: 10 | PL5: 11 | PM5: 12 | PN5: 1 | PO5: 2 | PP5: 3 | PQ5: 4 | PR5: 5 | PS5: 6 | PT5: 7 | PU5: 8 | PV5: 9 | PW5: 10 | PX5: 11 | PY5: 12 | PZ5: 1 | QA5: 2 | QB5: 3 | QC5: 4 | QD5: 5 | QE5: 6 | QF5: 7 | QG5: 8 | QH5: 9 | QI5: 10 | QJ5: 11 | QK5: 12 | QL5: 1 | QM5: 2 | QN5: 3 | QO5: 4 | QP5: 5 | QQ5: =MONTH(QQ4) -> 6 | QR5: 7 | QS5: 8 | QT5: 9 | QU5: 10 | QV5: 11 | QW5: 12 | QX5: 1 | QY5: 2 | QZ5: 3 | RA5: 4 | RB5: 5 | RC5: 6 | RD5: 7 | RE5: 8 | RF5: 9 | RG5: 10 | RH5: 11 | RI5: 12 | RJ5: 1 | RK5: 2 | RL5: 3 | RM5: 4 | RN5: 5 | RO5: 6 | RP5: 7 | RQ5: 8 | RR5: 9 | RS5: 10 | RT5: 11 | RU5: 12 | RV5: 1 | RW5: 2 | RX5: 3 | RY5: 4 | RZ5: 5 | SA5: 6 | SB5: 7 | SC5: 8 | SD5: 9 | SE5: 10 | SF5: 11 | SG5: 12 | SH5: 1 | SI5: 2 | SJ5: 3 | SK5: 4 | SL5: 5 | SM5: 6 | SN5: 7 | SO5: 8 | SP5: 9 | SQ5: 10 | SR5: 11 | SS5: 12 | ST5: 1 | SU5: 2 | SV5: 3 | SW5: 4 | SX5: 5 | SY5: 6 | SZ5: 7 | TA5: 8 | TB5: 9 | TC5: =MONTH(TC4) -> 10 | TD5: 11 | TE5: 12 | TF5: 1 | TG5: 2 | TH5: 3 | TI5: 4 | TJ5: 5 | TK5: 6 | TL5: 7 | TM5: 8 | TN5: 9 | TO5: 10 | TP5: 11 | TQ5: 12 | TR5: 1 | TS5: 2 | TT5: 3 | TU5: 4 | TV5: 5 | TW5: 6 | TX5: 7 | TY5: 8 | TZ5: 9 | UA5: 10 | UB5: 11 | UC5: 12 | UD5: 1 | UE5: 2 | UF5: 3 | UG5: 4 | UH5: 5 | UI5: 6 | UJ5: 7 | UK5: 8 | UL5: 9 | UM5: 10 | UN5: 11 | UO5: 12 | UP5: 1 | UQ5: 2 | UR5: 3 | US5: 4 | UT5: 5 | UU5: 6 | UV5: 7 | UW5: 8 | UX5: 9 | UY5: 10 | UZ5: 11 | VA5: 12 | VB5: 1 | VC5: 2 | VD5: 3 | VE5: 4 | VF5: 5 | VG5: 6 | VH5: 7 | VI5: 8 | VJ5: 9 | VK5: 10 | VL5: 11 | VM5: 12 | VN5: 1 | VO5: =MONTH(VO4) -> 2 | VP5: 3 | VQ5: 4 | VR5: 5 | VS5: 6 | VT5: 7 | VU5: 8 | VV5: 9 | VW5: 10 | VX5: 11 | VY5: 12 | VZ5: 1 | WA5: 2 | WB5: 3 | WC5: 4 | WD5: 5 | WE5: 6 | WF5: 7 | WG5: 8 | WH5: 9 | WI5: 10 | WJ5: 11 | WK5: 12 | WL5: 1
C6: Construction peiod | F6: =INDEX('Project Database'!E:E,Template!H1) -> 2021-09-01 | G6: =INDEX('Project Database'!G:G,Template!H1) -> 2022-02-01 | H6: =SUM(J6:WL6) -> 5 | J6: =AND(J4>=$F$6,J4<$G$6)*1 -> 0 | K6: =AND(K4>=$F$6,K4<$G$6)*1 -> 0 | L6: 0 | M6: 0 | N6: 0 | O6: 0 | P6: 0 | Q6: 0 | R6: 0 | S6: 0 | T6: 0 | U6: 0 | V6: 0 | W6: 0 | X6: 0 | Y6: 0 | Z6: 0 | AA6: 0 | AB6: 0 | AC6: 0 | AD6: 1 | AE6: 1 | AF6: 1 | AG6: 1 | AH6: 1 | AI6: 0 | AJ6: 0 | AK6: 0 | AL6: 0 | AM6: 0 | AN6: 0 | AO6: 0 | AP6: 0 | AQ6: 0 | AR6: 0 | AS6: 0 | AT6: 0 | AU6: 0 | AV6: 0 | AW6: 0 | AX6: 0 | AY6: 0 | AZ6: 0 | BA6: 0 | BB6: 0 | BC6: 0 | BD6: 0 | BE6: 0 | BF6: 0 | BG6: 0 | BH6: 0 | BI6: 0 | BJ6: 0 | BK6: 0 | BL6: 0 | BM6: 0 | BN6: 0 | BO6: 0 | BP6: 0 | BQ6: 0 | BR6: 0 | BS6: 0 | BT6: 0 | BU6: 0 | BV6: 0 | BW6: =AND(BW4>=$F$6,BW4<$G$6)*1 -> 0 | BX6: 0 | BY6: 0 | BZ6: 0 | CA6: 0 | CB6: 0 | CC6: 0 | CD6: 0 | CE6: 0 | CF6: 0 | CG6: 0 | CH6: 0 | CI6: 0 | CJ6: 0 | CK6: 0 | CL6: 0 | CM6: 0 | CN6: 0 | CO6: 0 | CP6: 0 | CQ6: 0 | CR6: 0 | CS6: 0 | CT6: 0 | CU6: 0 | CV6: 0 | CW6: 0 | CX6: 0 | CY6: 0 | CZ6: 0 | DA6: 0 | DB6: 0 | DC6: 0 | DD6: 0 | DE6: 0 | DF6: 0 | DG6: 0 | DH6: 0 | DI6: 0 | DJ6: 0 | DK6: 0 | DL6: 0 | DM6: 0 | DN6: 0 | DO6: 0 | DP6: 0 | DQ6: 0 | DR6: 0 | DS6: 0 | DT6: 0 | DU6: 0 | DV6: 0 | DW6: 0 | DX6: 0 | DY6: 0 | DZ6: 0 | EA6: 0 | EB6: 0 | EC6: 0 | ED6: 0 | EE6: 0 | EF6: 0 | EG6: 0 | EH6: 0 | EI6: =AND(EI4>=$F$6,EI4<$G$6)*1 -> 0 | EJ6: 0 | EK6: 0 | EL6: 0 | EM6: 0 | EN6: 0 | EO6: 0 | EP6: 0 | EQ6: 0 | ER6: 0 | ES6: 0 | ET6: 0 | EU6: 0 | EV6: 0 | EW6: 0 | EX6: 0 | EY6: 0 | EZ6: 0 | FA6: 0 | FB6: 0 | FC6: 0 | FD6: 0 | FE6: 0 | FF6: 0 | FG6: 0 | FH6: 0 | FI6: 0 | FJ6: 0 | FK6: 0 | FL6: 0 | FM6: 0 | FN6: 0 | FO6: 0 | FP6: 0 | FQ6: 0 | FR6: 0 | FS6: 0 | FT6: 0 | FU6: 0 | FV6: 0 | FW6: 0 | FX6: 0 | FY6: 0 | FZ6: 0 | GA6: 0 | GB6: 0 | GC6: 0 | GD6: 0 | GE6: 0 | GF6: 0 | GG6: 0 | GH6: 0 | GI6: 0 | GJ6: 0 | GK6: 0 | GL6: 0 | GM6: 0 | GN6: 0 | GO6: 0 | GP6: 0 | GQ6: 0 | GR6: 0 | GS6: 0 | GT6: 0 | GU6: =AND(GU4>=$F$6,GU4<$G$6)*1 -> 0 | GV6: 0 | GW6: 0 | GX6: 0 | GY6: 0 | GZ6: 0 | HA6: 0 | HB6: 0 | HC6: 0 | HD6: 0 | HE6: 0 | HF6: 0 | HG6: 0 | HH6: 0 | HI6: 0 | HJ6: 0 | HK6: 0 | HL6: 0 | HM6: 0 | HN6: 0 | HO6: 0 | HP6: 0 | HQ6: 0 | HR6: 0 | HS6: 0 | HT6: 0 | HU6: 0 | HV6: 0 | HW6: 0 | HX6: 0 | HY6: 0 | HZ6: 0 | IA6: 0 | IB6: 0 | IC6: 0 | ID6: 0 | IE6: 0 | IF6: 0 | IG6: 0 | IH6: 0 | II6: 0 | IJ6: 0 | IK6: 0 | IL6: 0 | IM6: 0 | IN6: 0 | IO6: 0 | IP6: 0 | IQ6: 0 | IR6: 0 | IS6: 0 | IT6: 0 | IU6: 0 | IV6: 0 | IW6: 0 | IX6: 0 | IY6: 0 | IZ6: 0 | JA6: 0 | JB6: 0 | JC6: 0 | JD6: 0 | JE6: 0 | JF6: 0 | JG6: =AND(JG4>=$F$6,JG4<$G$6)*1 -> 0 | JH6: 0 | JI6: 0 | JJ6: 0 | JK6: 0 | JL6: 0 | JM6: 0 | JN6: 0 | JO6: 0 | JP6: 0 | JQ6: 0 | JR6: 0 | JS6: 0 | JT6: 0 | JU6: 0 | JV6: 0 | JW6: 0 | JX6: 0 | JY6: 0 | JZ6: 0 | KA6: 0 | KB6: 0 | KC6: 0 | KD6: 0 | KE6: 0 | KF6: 0 | KG6: 0 | KH6: 0 | KI6: 0 | KJ6: 0 | KK6: 0 | KL6: 0 | KM6: 0 | KN6: 0 | KO6: 0 | KP6: 0 | KQ6: 0 | KR6: 0 | KS6: 0 | KT6: 0 | KU6: 0 | KV6: 0 | KW6: 0 | KX6: 0 | KY6: 0 | KZ6: 0 | LA6: 0 | LB6: 0 | LC6: 0 | LD6: 0 | LE6: 0 | LF6: 0 | LG6: 0 | LH6: 0 | LI6: 0 | LJ6: 0 | LK6: 0 | LL6: 0 | LM6: 0 | LN6: 0 | LO6: 0 | LP6: 0 | LQ6: 0 | LR6: 0 | LS6: =AND(LS4>=$F$6,LS4<$G$6)*1 -> 0 | LT6: 0 | LU6: 0 | LV6: 0 | LW6: 0 | LX6: 0 | LY6: 0 | LZ6: 0 | MA6: 0 | MB6: 0 | MC6: 0 | MD6: 0 | ME6: 0 | MF6: 0 | MG6: 0 | MH6: 0 | MI6: 0 | MJ6: 0 | MK6: 0 | ML6: 0 | MM6: 0 | MN6: 0 | MO6: 0 | MP6: 0 | MQ6: 0 | MR6: 0 | MS6: 0 | MT6: 0 | MU6: 0 | MV6: 0 | MW6: 0 | MX6: 0 | MY6: 0 | MZ6: 0 | NA6: 0 | NB6: 0 | NC6: 0 | ND6: 0 | NE6: 0 | NF6: 0 | NG6: 0 | NH6: 0 | NI6: 0 | NJ6: 0 | NK6: 0 | NL6: 0 | NM6: 0 | NN6: 0 | NO6: 0 | NP6: 0 | NQ6: 0 | NR6: 0 | NS6: 0 | NT6: 0 | NU6: 0 | NV6: 0 | NW6: 0 | NX6: 0 | NY6: 0 | NZ6: 0 | OA6: 0 | OB6: 0 | OC6: 0 | OD6: 0 | OE6: =AND(OE4>=$F$6,OE4<$G$6)*1 -> 0 | OF6: 0 | OG6: 0 | OH6: 0 | OI6: 0 | OJ6: 0 | OK6: 0 | OL6: 0 | OM6: 0 | ON6: 0 | OO6: 0 | OP6: 0 | OQ6: 0 | OR6: 0 | OS6: 0 | OT6: 0 | OU6: 0 | OV6: 0 | OW6: 0 | OX6: 0 | OY6: 0 | OZ6: 0 | PA6: 0 | PB6: 0 | PC6: 0 | PD6: 0 | PE6: 0 | PF6: 0 | PG6: 0 | PH6: 0 | PI6: 0 | PJ6: 0 | PK6: 0 | PL6: 0 | PM6: 0 | PN6: 0 | PO6: 0 | PP6: 0 | PQ6: 0 | PR6: 0 | PS6: 0 | PT6: 0 | PU6: 0 | PV6: 0 | PW6: 0 | PX6: 0 | PY6: 0 | PZ6: 0 | QA6: 0 | QB6: 0 | QC6: 0 | QD6: 0 | QE6: 0 | QF6: 0 | QG6: 0 | QH6: 0 | QI6: 0 | QJ6: 0 | QK6: 0 | QL6: 0 | QM6: 0 | QN6: 0 | QO6: 0 | QP6: 0 | QQ6: =AND(QQ4>=$F$6,QQ4<$G$6)*1 -> 0 | QR6: 0 | QS6: 0 | QT6: 0 | QU6: 0 | QV6: 0 | QW6: 0 | QX6: 0 | QY6: 0 | QZ6: 0 | RA6: 0 | RB6: 0 | RC6: 0 | RD6: 0 | RE6: 0 | RF6: 0 | RG6: 0 | RH6: 0 | RI6: 0 | RJ6: 0 | RK6: 0 | RL6: 0 | RM6: 0 | RN6: 0 | RO6: 0 | RP6: 0 | RQ6: 0 | RR6: 0 | RS6: 0 | RT6: 0 | RU6: 0 | RV6: 0 | RW6: 0 | RX6: 0 | RY6: 0 | RZ6: 0 | SA6: 0 | SB6: 0 | SC6: 0 | SD6: 0 | SE6: 0 | SF6: 0 | SG6: 0 | SH6: 0 | SI6: 0 | SJ6: 0 | SK6: 0 | SL6: 0 | SM6: 0 | SN6: 0 | SO6: 0 | SP6: 0 | SQ6: 0 | SR6: 0 | SS6: 0 | ST6: 0 | SU6: 0 | SV6: 0 | SW6: 0 | SX6: 0 | SY6: 0 | SZ6: 0 | TA6: 0 | TB6: 0 | TC6: =AND(TC4>=$F$6,TC4<$G$6)*1 -> 0 | TD6: 0 | TE6: 0 | TF6: 0 | TG6: 0 | TH6: 0 | TI6: 0 | TJ6: 0 | TK6: 0 | TL6: 0 | TM6: 0 | TN6: 0 | TO6: 0 | TP6: 0 | TQ6: 0 | TR6: 0 | TS6: 0 | TT6: 0 | TU6: 0 | TV6: 0 | TW6: 0 | TX6: 0 | TY6: 0 | TZ6: 0 | UA6: 0 | UB6: 0 | UC6: 0 | UD6: 0 | UE6: 0 | UF6: 0 | UG6: 0 | UH6: 0 | UI6: 0 | UJ6: 0 | UK6: 0 | UL6: 0 | UM6: 0 | UN6: 0 | UO6: 0 | UP6: 0 | UQ6: 0 | UR6: 0 | US6: 0 | UT6: 0 | UU6: 0 | UV6: 0 | UW6: 0 | UX6: 0 | UY6: 0 | UZ6: 0 | VA6: 0 | VB6: 0 | VC6: 0 | VD6: 0 | VE6: 0 | VF6: 0 | VG6: 0 | VH6: 0 | VI6: 0 | VJ6: 0 | VK6: 0 | VL6: 0 | VM6: 0 | VN6: 0 | VO6: =AND(VO4>=$F$6,VO4<$G$6)*1 -> 0 | VP6: 0 | VQ6: 0 | VR6: 0 | VS6: 0 | VT6: 0 | VU6: 0 | VV6: 0 | VW6: 0 | VX6: 0 | VY6: 0 | VZ6: 0 | WA6: 0 | WB6: 0 | WC6: 0 | WD6: 0 | WE6: 0 | WF6: 0 | WG6: 0 | WH6: 0 | WI6: 0 | WJ6: 0 | WK6: 0 | WL6: 0
C7: Operation Flag | E7: Flag | F7: =INDEX('Project Database'!G:G,Template!H1) -> 2022-02-01 | G7: =INDEX('Project Database'!I:I,Template!H1) -> 2058-02-01 | H7: =SUM(J7:WL7)/12 -> 36 | J7: =AND(J4>=$F$7,J4<$G$7)*1 -> 0 | K7: =AND(K4>=$F$7,K4<$G$7)*1 -> 0 | L7: 0 | M7: 0 | N7: 0 | O7: 0 | P7: 0 | Q7: 0 | R7: 0 | S7: 0 | T7: 0 | U7: 0 | V7: 0 | W7: 0 | X7: 0 | Y7: 0 | Z7: 0 | AA7: 0 | AB7: 0 | AC7: 0 | AD7: 0 | AE7: 0 | AF7: 0 | AG7: 0 | AH7: 0 | AI7: 1 | AJ7: 1 | AK7: 1 | AL7: 1 | AM7: 1 | AN7: 1 | AO7: 1 | AP7: 1 | AQ7: 1 | AR7: 1 | AS7: 1 | AT7: 1 | AU7: 1 | AV7: 1 | AW7: 1 | AX7: 1 | AY7: 1 | AZ7: 1 | BA7: 1 | BB7: 1 | BC7: 1 | BD7: 1 | BE7: 1 | BF7: 1 | BG7: 1 | BH7: 1 | BI7: 1 | BJ7: 1 | BK7: 1 | BL7: 1 | BM7: 1 | BN7: 1 | BO7: 1 | BP7: 1 | BQ7: 1 | BR7: 1 | BS7: 1 | BT7: 1 | BU7: 1 | BV7: 1 | BW7: =AND(BW4>=$F$7,BW4<$G$7)*1 -> 1 | BX7: 1 | BY7: 1 | BZ7: 1 | CA7: 1 | CB7: 1 | CC7: 1 | CD7: 1 | CE7: 1 | CF7: 1 | CG7: 1 | CH7: 1 | CI7: 1 | CJ7: 1 | CK7: 1 | CL7: 1 | CM7: 1 | CN7: 1 | CO7: 1 | CP7: 1 | CQ7: 1 | CR7: 1 | CS7: 1 | CT7: 1 | CU7: 1 | CV7: 1 | CW7: 1 | CX7: 1 | CY7: 1 | CZ7: 1 | DA7: 1 | DB7: 1 | DC7: 1 | DD7: 1 | DE7: 1 | DF7: 1 | DG7: 1 | DH7: 1 | DI7: 1 | DJ7: 1 | DK7: 1 | DL7: 1 | DM7: 1 | DN7: 1 | DO7: 1 | DP7: 1 | DQ7: 1 | DR7: 1 | DS7: 1 | DT7: 1 | DU7: 1 | DV7: 1 | DW7: 1 | DX7: 1 | DY7: 1 | DZ7: 1 | EA7: 1 | EB7: 1 | EC7: 1 | ED7: 1 | EE7: 1 | EF7: 1 | EG7: 1 | EH7: 1 | EI7: =AND(EI4>=$F$7,EI4<$G$7)*1 -> 1 | EJ7: 1 | EK7: 1 | EL7: 1 | EM7: 1 | EN7: 1 | EO7: 1 | EP7: 1 | EQ7: 1 | ER7: 1 | ES7: 1 | ET7: 1 | EU7: 1 | EV7: 1 | EW7: 1 | EX7: 1 | EY7: 1 | EZ7: 1 | FA7: 1 | FB7: 1 | FC7: 1 | FD7: 1 | FE7: 1 | FF7: 1 | FG7: 1 | FH7: 1 | FI7: 1 | FJ7: 1 | FK7: 1 | FL7: 1 | FM7: 1 | FN7: 1 | FO7: 1 | FP7: 1 | FQ7: 1 | FR7: 1 | FS7: 1 | FT7: 1 | FU7: 1 | FV7: 1 | FW7: 1 | FX7: 1 | FY7: 1 | FZ7: 1 | GA7: 1 | GB7: 1 | GC7: 1 | GD7: 1 | GE7: 1 | GF7: 1 | GG7: 1 | GH7: 1 | GI7: 1 | GJ7: 1 | GK7: 1 | GL7: 1 | GM7: 1 | GN7: 1 | GO7: 1 | GP7: 1 | GQ7: 1 | GR7: 1 | GS7: 1 | GT7: 1 | GU7: =AND(GU4>=$F$7,GU4<$G$7)*1 -> 1 | GV7: 1 | GW7: 1 | GX7: 1 | GY7: 1 | GZ7: 1 | HA7: 1 | HB7: 1 | HC7: 1 | HD7: 1 | HE7: 1 | HF7: 1 | HG7: 1 | HH7: 1 | HI7: 1 | HJ7: 1 | HK7: 1 | HL7: 1 | HM7: 1 | HN7: 1 | HO7: 1 | HP7: 1 | HQ7: 1 | HR7: 1 | HS7: 1 | HT7: 1 | HU7: 1 | HV7: 1 | HW7: 1 | HX7: 1 | HY7: 1 | HZ7: 1 | IA7: 1 | IB7: 1 | IC7: 1 | ID7: 1 | IE7: 1 | IF7: 1 | IG7: 1 | IH7: 1 | II7: 1 | IJ7: 1 | IK7: 1 | IL7: 1 | IM7: 1 | IN7: 1 | IO7: 1 | IP7: 1 | IQ7: 1 | IR7: 1 | IS7: 1 | IT7: 1 | IU7: 1 | IV7: 1 | IW7: 1 | IX7: 1 | IY7: 1 | IZ7: 1 | JA7: 1 | JB7: 1 | JC7: 1 | JD7: 1 | JE7: 1 | JF7: 1 | JG7: =AND(JG4>=$F$7,JG4<$G$7)*1 -> 1 | JH7: 1 | JI7: 1 | JJ7: 1 | JK7: 1 | JL7: 1 | JM7: 1 | JN7: 1 | JO7: 1 | JP7: 1 | JQ7: 1 | JR7: 1 | JS7: 1 | JT7: 1 | JU7: 1 | JV7: 1 | JW7: 1 | JX7: 1 | JY7: 1 | JZ7: 1 | KA7: 1 | KB7: 1 | KC7: 1 | KD7: 1 | KE7: 1 | KF7: 1 | KG7: 1 | KH7: 1 | KI7: 1 | KJ7: 1 | KK7: 1 | KL7: 1 | KM7: 1 | KN7: 1 | KO7: 1 | KP7: 1 | KQ7: 1 | KR7: 1 | KS7: 1 | KT7: 1 | KU7: 1 | KV7: 1 | KW7: 1 | KX7: 1 | KY7: 1 | KZ7: 1 | LA7: 1 | LB7: 1 | LC7: 1 | LD7: 1 | LE7: 1 | LF7: 1 | LG7: 1 | LH7: 1 | LI7: 1 | LJ7: 1 | LK7: 1 | LL7: 1 | LM7: 1 | LN7: 1 | LO7: 1 | LP7: 1 | LQ7: 1 | LR7: 1 | LS7: =AND(LS4>=$F$7,LS4<$G$7)*1 -> 1 | LT7: 1 | LU7: 1 | LV7: 1 | LW7: 1 | LX7: 1 | LY7: 1 | LZ7: 1 | MA7: 1 | MB7: 1 | MC7: 1 | MD7: 1 | ME7: 1 | MF7: 1 | MG7: 1 | MH7: 1 | MI7: 1 | MJ7: 1 | MK7: 1 | ML7: 1 | MM7: 1 | MN7: 1 | MO7: 1 | MP7: 1 | MQ7: 1 | MR7: 1 | MS7: 1 | MT7: 1 | MU7: 1 | MV7: 1 | MW7: 1 | MX7: 1 | MY7: 1 | MZ7: 1 | NA7: 1 | NB7: 1 | NC7: 1 | ND7: 1 | NE7: 1 | NF7: 1 | NG7: 1 | NH7: 1 | NI7: 1 | NJ7: 1 | NK7: 1 | NL7: 1 | NM7: 1 | NN7: 1 | NO7: 1 | NP7: 1 | NQ7: 1 | NR7: 1 | NS7: 1 | NT7: 1 | NU7: 1 | NV7: 1 | NW7: 1 | NX7: 1 | NY7: 1 | NZ7: 1 | OA7: 1 | OB7: 1 | OC7: 1 | OD7: 1 | OE7: =AND(OE4>=$F$7,OE4<$G$7)*1 -> 1 | OF7: 1 | OG7: 1 | OH7: 1 | OI7: 1 | OJ7: 1 | OK7: 1 | OL7: 1 | OM7: 1 | ON7: 1 | OO7: 1 | OP7: 1 | OQ7: 1 | OR7: 1 | OS7: 1 | OT7: 1 | OU7: 1 | OV7: 1 | OW7: 1 | OX7: 1 | OY7: 1 | OZ7: 1 | PA7: 1 | PB7: 1 | PC7: 1 | PD7: 1 | PE7: 1 | PF7: 1 | PG7: 1 | PH7: 1 | PI7: 1 | PJ7: 1 | PK7: 1 | PL7: 1 | PM7: 1 | PN7: 1 | PO7: 1 | PP7: 1 | PQ7: 1 | PR7: 1 | PS7: 1 | PT7: 1 | PU7: 1 | PV7: 1 | PW7: 1 | PX7: 1 | PY7: 1 | PZ7: 1 | QA7: 1 | QB7: 1 | QC7: 1 | QD7: 1 | QE7: 1 | QF7: 1 | QG7: 1 | QH7: 1 | QI7: 1 | QJ7: 1 | QK7: 1 | QL7: 1 | QM7: 1 | QN7: 1 | QO7: 1 | QP7: 1 | QQ7: =AND(QQ4>=$F$7,QQ4<$G$7)*1 -> 1 | QR7: 1 | QS7: 1 | QT7: 1 | QU7: 1 | QV7: 1 | QW7: 1 | QX7: 1 | QY7: 0 | QZ7: 0 | RA7: 0 | RB7: 0 | RC7: 0 | RD7: 0 | RE7: 0 | RF7: 0 | RG7: 0 | RH7: 0 | RI7: 0 | RJ7: 0 | RK7: 0 | RL7: 0 | RM7: 0 | RN7: 0 | RO7: 0 | RP7: 0 | RQ7: 0 | RR7: 0 | RS7: 0 | RT7: 0 | RU7: 0 | RV7: 0 | RW7: 0 | RX7: 0 | RY7: 0 | RZ7: 0 | SA7: 0 | SB7: 0 | SC7: 0 | SD7: 0 | SE7: 0 | SF7: 0 | SG7: 0 | SH7: 0 | SI7: 0 | SJ7: 0 | SK7: 0 | SL7: 0 | SM7: 0 | SN7: 0 | SO7: 0 | SP7: 0 | SQ7: 0 | SR7: 0 | SS7: 0 | ST7: 0 | SU7: 0 | SV7: 0 | SW7: 0 | SX7: 0 | SY7: 0 | SZ7: 0 | TA7: 0 | TB7: 0 | TC7: =AND(TC4>=$F$7,TC4<$G$7)*1 -> 0 | TD7: 0 | TE7: 0 | TF7: 0 | TG7: 0 | TH7: 0 | TI7: 0 | TJ7: 0 | TK7: 0 | TL7: 0 | TM7: 0 | TN7: 0 | TO7: 0 | TP7: 0 | TQ7: 0 | TR7: 0 | TS7: 0 | TT7: 0 | TU7: 0 | TV7: 0 | TW7: 0 | TX7: 0 | TY7: 0 | TZ7: 0 | UA7: 0 | UB7: 0 | UC7: 0 | UD7: 0 | UE7: 0 | UF7: 0 | UG7: 0 | UH7: 0 | UI7: 0 | UJ7: 0 | UK7: 0 | UL7: 0 | UM7: 0 | UN7: 0 | UO7: 0 | UP7: 0 | UQ7: 0 | UR7: 0 | US7: 0 | UT7: 0 | UU7: 0 | UV7: 0 | UW7: 0 | UX7: 0 | UY7: 0 | UZ7: 0 | VA7: 0 | VB7: 0 | VC7: 0 | VD7: 0 | VE7: 0 | VF7: 0 | VG7: 0 | VH7: 0 | VI7: 0 | VJ7: 0 | VK7: 0 | VL7: 0 | VM7: 0 | VN7: 0 | VO7: =AND(VO4>=$F$7,VO4<$G$7)*1 -> 0 | VP7: 0 | VQ7: 0 | VR7: 0 | VS7: 0 | VT7: 0 | VU7: 0 | VV7: 0 | VW7: 0 | VX7: 0 | VY7: 0 | VZ7: 0 | WA7: 0 | WB7: 0 | WC7: 0 | WD7: 0 | WE7: 0 | WF7: 0 | WG7: 0 | WH7: 0 | WI7: 0 | WJ7: 0 | WK7: 0 | WL7: 0
B9: Operation
C10: Capacity | E10: KWP | F10: =INDEX('Project Database'!J:J,Template!H1) -> 200 | J10: =$F$10*J7 -> 0 | K10: =$F$10*K7 -> 0 | L10: 0 | M10: 0 | N10: 0 | O10: 0 | P10: 0 | Q10: 0 | R10: 0 | S10: 0 | T10: 0 | U10: 0 | V10: 0 | W10: 0 | X10: 0 | Y10: 0 | Z10: 0 | AA10: 0 | AB10: 0 | AC10: 0 | AD10: 0 | AE10: 0 | AF10: 0 | AG10: 0 | AH10: 0 | AI10: 200 | AJ10: 200 | AK10: 200 | AL10: 200 | AM10: 200 | AN10: 200 | AO10: 200 | AP10: 200 | AQ10: 200 | AR10: 200 | AS10: 200 | AT10: 200 | AU10: 200 | AV10: 200 | AW10: 200 | AX10: 200 | AY10: 200 | AZ10: 200 | BA10: 200 | BB10: 200 | BC10: 200 | BD10: 200 | BE10: 200 | BF10: 200 | BG10: 200 | BH10: 200 | BI10: 200 | BJ10: 200 | BK10: 200 | BL10: 200 | BM10: 200 | BN10: 200 | BO10: 200 | BP10: 200 | BQ10: 200 | BR10: 200 | BS10: 200 | BT10: 200 | BU10: 200 | BV10: 200 | BW10: =$F$10*BW7 -> 200 | BX10: 200 | BY10: 200 | BZ10: 200 | CA10: 200 | CB10: 200 | CC10: 200 | CD10: 200 | CE10: 200 | CF10: 200 | CG10: 200 | CH10: 200 | CI10: 200 | CJ10: 200 | CK10: 200 | CL10: 200 | CM10: 200 | CN10: 200 | CO10: 200 | CP10: 200 | CQ10: 200 | CR10: 200 | CS10: 200 | CT10: 200 | CU10: 200 | CV10: 200 | CW10: 200 | CX10: 200 | CY10: 200 | CZ10: 200 | DA10: 200 | DB10: 200 | DC10: 200 | DD10: 200 | DE10: 200 | DF10: 200 | DG10: 200 | DH10: 200 | DI10: 200 | DJ10: 200 | DK10: 200 | DL10: 200 | DM10: 200 | DN10: 200 | DO10: 200 | DP10: 200 | DQ10: 200 | DR10: 200 | DS10: 200 | DT10: 200 | DU10: 200 | DV10: 200 | DW10: 200 | DX10: 200 | DY10: 200 | DZ10: 200 | EA10: 200 | EB10: 200 | EC10: 200 | ED10: 200 | EE10: 200 | EF10: 200 | EG10: 200 | EH10: 200 | EI10: =$F$10*EI7 -> 200 | EJ10: 200 | EK10: 200 | EL10: 200 | EM10: 200 | EN10: 200 | EO10: 200 | EP10: 200 | EQ10: 200 | ER10: 200 | ES10: 200 | ET10: 200 | EU10: 200 | EV10: 200 | EW10: 200 | EX10: 200 | EY10: 200 | EZ10: 200 | FA10: 200 | FB10: 200 | FC10: 200 | FD10: 200 | FE10: 200 | FF10: 200 | FG10: 200 | FH10: 200 | FI10: 200 | FJ10: 200 | FK10: 200 | FL10: 200 | FM10: 200 | FN10: 200 | FO10: 200 | FP10: 200 | FQ10: 200 | FR10: 200 | FS10: 200 | FT10: 200 | FU10: 200 | FV10: 200 | FW10: 200 | FX10: 200 | FY10: 200 | FZ10: 200 | GA10: 200 | GB10: 200 | GC10: 200 | GD10: 200 | GE10: 200 | GF10: 200 | GG10: 200 | GH10: 200 | GI10: 200 | GJ10: 200 | GK10: 200 | GL10: 200 | GM10: 200 | GN10: 200 | GO10: 200 | GP10: 200 | GQ10: 200 | GR10: 200 | GS10: 200 | GT10: 200 | GU10: =$F$10*GU7 -> 200 | GV10: 200 | GW10: 200 | GX10: 200 | GY10: 200 | GZ10: 200 | HA10: 200 | HB10: 200 | HC10: 200 | HD10: 200 | HE10: 200 | HF10: 200 | HG10: 200 | HH10: 200 | HI10: 200 | HJ10: 200 | HK10: 200 | HL10: 200 | HM10: 200 | HN10: 200 | HO10: 200 | HP10: 200 | HQ10: 200 | HR10: 200 | HS10: 200 | HT10: 200 | HU10: 200 | HV10: 200 | HW10: 200 | HX10: 200 | HY10: 200 | HZ10: 200 | IA10: 200 | IB10: 200 | IC10: 200 | ID10: 200 | IE10: 200 | IF10: 200 | IG10: 200 | IH10: 200 | II10: 200 | IJ10: 200 | IK10: 200 | IL10: 200 | IM10: 200 | IN10: 200 | IO10: 200 | IP10: 200 | IQ10: 200 | IR10: 200 | IS10: 200 | IT10: 200 | IU10: 200 | IV10: 200 | IW10: 200 | IX10: 200 | IY10: 200 | IZ10: 200 | JA10: 200 | JB10: 200 | JC10: 200 | JD10: 200 | JE10: 200 | JF10: 200 | JG10: =$F$10*JG7 -> 200 | JH10: 200 | JI10: 200 | JJ10: 200 | JK10: 200 | JL10: 200 | JM10: 200 | JN10: 200 | JO10: 200 | JP10: 200 | JQ10: 200 | JR10: 200 | JS10: 200 | JT10: 200 | JU10: 200 | JV10: 200 | JW10: 200 | JX10: 200 | JY10: 200 | JZ10: 200 | KA10: 200 | KB10: 200 | KC10: 200 | KD10: 200 | KE10: 200 | KF10: 200 | KG10: 200 | KH10: 200 | KI10: 200 | KJ10: 200 | KK10: 200 | KL10: 200 | KM10: 200 | KN10: 200 | KO10: 200 | KP10: 200 | KQ10: 200 | KR10: 200 | KS10: 200 | KT10: 200 | KU10: 200 | KV10: 200 | KW10: 200 | KX10: 200 | KY10: 200 | KZ10: 200 | LA10: 200 | LB10: 200 | LC10: 200 | LD10: 200 | LE10: 200 | LF10: 200 | LG10: 200 | LH10: 200 | LI10: 200 | LJ10: 200 | LK10: 200 | LL10: 200 | LM10: 200 | LN10: 200 | LO10: 200 | LP10: 200 | LQ10: 200 | LR10: 200 | LS10: =$F$10*LS7 -> 200 | LT10: 200 | LU10: 200 | LV10: 200 | LW10: 200 | LX10: 200 | LY10: 200 | LZ10: 200 | MA10: 200 | MB10: 200 | MC10: 200 | MD10: 200 | ME10: 200 | MF10: 200 | MG10: 200 | MH10: 200 | MI10: 200 | MJ10: 200 | MK10: 200 | ML10: 200 | MM10: 200 | MN10: 200 | MO10: 200 | MP10: 200 | MQ10: 200 | MR10: 200 | MS10: 200 | MT10: 200 | MU10: 200 | MV10: 200 | MW10: 200 | MX10: 200 | MY10: 200 | MZ10: 200 | NA10: 200 | NB10: 200 | NC10: 200 | ND10: 200 | NE10: 200 | NF10: 200 | NG10: 200 | NH10: 200 | NI10: 200 | NJ10: 200 | NK10: 200 | NL10: 200 | NM10: 200 | NN10: 200 | NO10: 200 | NP10: 200 | NQ10: 200 | NR10: 200 | NS10: 200 | NT10: 200 | NU10: 200 | NV10: 200 | NW10: 200 | NX10: 200 | NY10: 200 | NZ10: 200 | OA10: 200 | OB10: 200 | OC10: 200 | OD10: 200 | OE10: =$F$10*OE7 -> 200 | OF10: 200 | OG10: 200 | OH10: 200 | OI10: 200 | OJ10: 200 | OK10: 200 | OL10: 200 | OM10: 200 | ON10: 200 | OO10: 200 | OP10: 200 | OQ10: 200 | OR10: 200 | OS10: 200 | OT10: 200 | OU10: 200 | OV10: 200 | OW10: 200 | OX10: 200 | OY10: 200 | OZ10: 200 | PA10: 200 | PB10: 200 | PC10: 200 | PD10: 200 | PE10: 200 | PF10: 200 | PG10: 200 | PH10: 200 | PI10: 200 | PJ10: 200 | PK10: 200 | PL10: 200 | PM10: 200 | PN10: 200 | PO10: 200 | PP10: 200 | PQ10: 200 | PR10: 200 | PS10: 200 | PT10: 200 | PU10: 200 | PV10: 200 | PW10: 200 | PX10: 200 | PY10: 200 | PZ10: 200 | QA10: 200 | QB10: 200 | QC10: 200 | QD10: 200 | QE10: 200 | QF10: 200 | QG10: 200 | QH10: 200 | QI10: 200 | QJ10: 200 | QK10: 200 | QL10: 200 | QM10: 200 | QN10: 200 | QO10: 200 | QP10: 200 | QQ10: =$F$10*QQ7 -> 200 | QR10: 200 | QS10: 200 | QT10: 200 | QU10: 200 | QV10: 200 | QW10: 200 | QX10: 200 | QY10: 0 | QZ10: 0 | RA10: 0 | RB10: 0 | RC10: 0 | RD10: 0 | RE10: 0 | RF10: 0 | RG10: 0 | RH10: 0 | RI10: 0 | RJ10: 0 | RK10: 0 | RL10: 0 | RM10: 0 | RN10: 0 | RO10: 0 | RP10: 0 | RQ10: 0 | RR10: 0 | RS10: 0 | RT10: 0 | RU10: 0 | RV10: 0 | RW10: 0 | RX10: 0 | RY10: 0 | RZ10: 0 | SA10: 0 | SB10: 0 | SC10: 0 | SD10: 0 | SE10: 0 | SF10: 0 | SG10: 0 | SH10: 0 | SI10: 0 | SJ10: 0 | SK10: 0 | SL10: 0 | SM10: 0 | SN10: 0 | SO10: 0 | SP10: 0 | SQ10: 0 | SR10: 0 | SS10: 0 | ST10: 0 | SU10: 0 | SV10: 0 | SW10: 0 | SX10: 0 | SY10: 0 | SZ10: 0 | TA10: 0 | TB10: 0 | TC10: =$F$10*TC7 -> 0 | TD10: 0 | TE10: 0 | TF10: 0 | TG10: 0 | TH10: 0 | TI10: 0 | TJ10: 0 | TK10: 0 | TL10: 0 | TM10: 0 | TN10: 0 | TO10: 0 | TP10: 0 | TQ10: 0 | TR10: 0 | TS10: 0 | TT10: 0 | TU10: 0 | TV10: 0 | TW10: 0 | TX10: 0 | TY10: 0 | TZ10: 0 | UA10: 0 | UB10: 0 | UC10: 0 | UD10: 0 | UE10: 0 | UF10: 0 | UG10: 0 | UH10: 0 | UI10: 0 | UJ10: 0 | UK10: 0 | UL10: 0 | UM10: 0 | UN10: 0 | UO10: 0 | UP10: 0 | UQ10: 0 | UR10: 0 | US10: 0 | UT10: 0 | UU10: 0 | UV10: 0 | UW10: 0 | UX10: 0 | UY10: 0 | UZ10: 0 | VA10: 0 | VB10: 0 | VC10: 0 | VD10: 0 | VE10: 0 | VF10: 0 | VG10: 0 | VH10: 0 | VI10: 0 | VJ10: 0 | VK10: 0 | VL10: 0 | VM10: 0 | VN10: 0 | VO10: =$F$10*VO7 -> 0 | VP10: 0 | VQ10: 0 | VR10: 0 | VS10: 0 | VT10: 0 | VU10: 0 | VV10: 0 | VW10: 0 | VX10: 0 | VY10: 0 | VZ10: 0 | WA10: 0 | WB10: 0 | WC10: 0 | WD10: 0 | WE10: 0 | WF10: 0 | WG10: 0 | WH10: 0 | WI10: 0 | WJ10: 0 | WK10: 0 | WL10: 0
C11: Yield | E11: KWH/KWP | F11: =INDEX('Project Database'!K:K,Template!H1) -> 1500 | G11: =F11 -> 1500 | J11: =$G$11*J7 -> 0 | K11: =$G$11*K7 -> 0 | L11: 0 | M11: 0 | N11: 0 | O11: 0 | P11: 0 | Q11: 0 | R11: 0 | S11: 0 | T11: 0 | U11: 0 | V11: 0 | W11: 0 | X11: 0 | Y11: 0 | Z11: 0 | AA11: 0 | AB11: 0 | AC11: 0 | AD11: 0 | AE11: 0 | AF11: 0 | AG11: 0 | AH11: 0 | AI11: 1500 | AJ11: 1500 | AK11: 1500 | AL11: 1500 | AM11: 1500 | AN11: 1500 | AO11: 1500 | AP11: 1500 | AQ11: 1500 | AR11: 1500 | AS11: 1500 | AT11: 1500 | AU11: 1500 | AV11: 1500 | AW11: 1500 | AX11: 1500 | AY11: 1500 | AZ11: 1500 | BA11: 1500 | BB11: 1500 | BC11: 1500 | BD11: 1500 | BE11: 1500 | BF11: 1500 | BG11: 1500 | BH11: 1500 | BI11: 1500 | BJ11: 1500 | BK11: 1500 | BL11: 1500 | BM11: 1500 | BN11: 1500 | BO11: 1500 | BP11: 1500 | BQ11: 1500 | BR11: 1500 | BS11: 1500 | BT11: 1500 | BU11: 1500 | BV11: 1500 | BW11: =$G$11*BW7 -> 1500 | BX11: 1500 | BY11: 1500 | BZ11: 1500 | CA11: 1500 | CB11: 1500 | CC11: 1500 | CD11: 1500 | CE11: 1500 | CF11: 1500 | CG11: 1500 | CH11: 1500 | CI11: 1500 | CJ11: 1500 | CK11: 1500 | CL11: 1500 | CM11: 1500 | CN11: 1500 | CO11: 1500 | CP11: 1500 | CQ11: 1500 | CR11: 1500 | CS11: 1500 | CT11: 1500 | CU11: 1500 | CV11: 1500 | CW11: 1500 | CX11: 1500 | CY11: 1500 | CZ11: 1500 | DA11: 1500 | DB11: 1500 | DC11: 1500 | DD11: 1500 | DE11: 1500 | DF11: 1500 | DG11: 1500 | DH11: 1500 | DI11: 1500 | DJ11: 1500 | DK11: 1500 | DL11: 1500 | DM11: 1500 | DN11: 1500 | DO11: 1500 | DP11: 1500 | DQ11: 1500 | DR11: 1500 | DS11: 1500 | DT11: 1500 | DU11: 1500 | DV11: 1500 | DW11: 1500 | DX11: 1500 | DY11: 1500 | DZ11: 1500 | EA11: 1500 | EB11: 1500 | EC11: 1500 | ED11: 1500 | EE11: 1500 | EF11: 1500 | EG11: 1500 | EH11: 1500 | EI11: =$G$11*EI7 -> 1500 | EJ11: 1500 | EK11: 1500 | EL11: 1500 | EM11: 1500 | EN11: 1500 | EO11: 1500 | EP11: 1500 | EQ11: 1500 | ER11: 1500 | ES11: 1500 | ET11: 1500 | EU11: 1500 | EV11: 1500 | EW11: 1500 | EX11: 1500 | EY11: 1500 | EZ11: 1500 | FA11: 1500 | FB11: 1500 | FC11: 1500 | FD11: 1500 | FE11: 1500 | FF11: 1500 | FG11: 1500 | FH11: 1500 | FI11: 1500 | FJ11: 1500 | FK11: 1500 | FL11: 1500 | FM11: 1500 | FN11: 1500 | FO11: 1500 | FP11: 1500 | FQ11: 1500 | FR11: 1500 | FS11: 1500 | FT11: 1500 | FU11: 1500 | FV11: 1500 | FW11: 1500 | FX11: 1500 | FY11: 1500 | FZ11: 1500 | GA11: 1500 | GB11: 1500 | GC11: 1500 | GD11: 1500 | GE11: 1500 | GF11: 1500 | GG11: 1500 | GH11: 1500 | GI11: 1500 | GJ11: 1500 | GK11: 1500 | GL11: 1500 | GM11: 1500 | GN11: 1500 | GO11: 1500 | GP11: 1500 | GQ11: 1500 | GR11: 1500 | GS11: 1500 | GT11: 1500 | GU11: =$G$11*GU7 -> 1500 | GV11: 1500 | GW11: 1500 | GX11: 1500 | GY11: 1500 | GZ11: 1500 | HA11: 1500 | HB11: 1500 | HC11: 1500 | HD11: 1500 | HE11: 1500 | HF11: 1500 | HG11: 1500 | HH11: 1500 | HI11: 1500 | HJ11: 1500 | HK11: 1500 | HL11: 1500 | HM11: 1500 | HN11: 1500 | HO11: 1500 | HP11: 1500 | HQ11: 1500 | HR11: 1500 | HS11: 1500 | HT11: 1500 | HU11: 1500 | HV11: 1500 | HW11: 1500 | HX11: 1500 | HY11: 1500 | HZ11: 1500 | IA11: 1500 | IB11: 1500 | IC11: 1500 | ID11: 1500 | IE11: 1500 | IF11: 1500 | IG11: 1500 | IH11: 1500 | II11: 1500 | IJ11: 1500 | IK11: 1500 | IL11: 1500 | IM11: 1500 | IN11: 1500 | IO11: 1500 | IP11: 1500 | IQ11: 1500 | IR11: 1500 | IS11: 1500 | IT11: 1500 | IU11: 1500 | IV11: 1500 | IW11: 1500 | IX11: 1500 | IY11: 1500 | IZ11: 1500 | JA11: 1500 | JB11: 1500 | JC11: 1500 | JD11: 1500 | JE11: 1500 | JF11: 1500 | JG11: =$G$11*JG7 -> 1500 | JH11: 1500 | JI11: 1500 | JJ11: 1500 | JK11: 1500 | JL11: 1500 | JM11: 1500 | JN11: 1500 | JO11: 1500 | JP11: 1500 | JQ11: 1500 | JR11: 1500 | JS11: 1500 | JT11: 1500 | JU11: 1500 | JV11: 1500 | JW11: 1500 | JX11: 1500 | JY11: 1500 | JZ11: 1500 | KA11: 1500 | KB11: 1500 | KC11: 1500 | KD11: 1500 | KE11: 1500 | KF11: 1500 | KG11: 1500 | KH11: 1500 | KI11: 1500 | KJ11: 1500 | KK11: 1500 | KL11: 1500 | KM11: 1500 | KN11: 1500 | KO11: 1500 | KP11: 1500 | KQ11: 1500 | KR11: 1500 | KS11: 1500 | KT11: 1500 | KU11: 1500 | KV11: 1500 | KW11: 1500 | KX11: 1500 | KY11: 1500 | KZ11: 1500 | LA11: 1500 | LB11: 1500 | LC11: 1500 | LD11: 1500 | LE11: 1500 | LF11: 1500 | LG11: 1500 | LH11: 1500 | LI11: 1500 | LJ11: 1500 | LK11: 1500 | LL11: 1500 | LM11: 1500 | LN11: 1500 | LO11: 1500 | LP11: 1500 | LQ11: 1500 | LR11: 1500 | LS11: =$G$11*LS7 -> 1500 | LT11: 1500 | LU11: 1500 | LV11: 1500 | LW11: 1500 | LX11: 1500 | LY11: 1500 | LZ11: 1500 | MA11: 1500 | MB11: 1500 | MC11: 1500 | MD11: 1500 | ME11: 1500 | MF11: 1500 | MG11: 1500 | MH11: 1500 | MI11: 1500 | MJ11: 1500 | MK11: 1500 | ML11: 1500 | MM11: 1500 | MN11: 1500 | MO11: 1500 | MP11: 1500 | MQ11: 1500 | MR11: 1500 | MS11: 1500 | MT11: 1500 | MU11: 1500 | MV11: 1500 | MW11: 1500 | MX11: 1500 | MY11: 1500 | MZ11: 1500 | NA11: 1500 | NB11: 1500 | NC11: 1500 | ND11: 1500 | NE11: 1500 | NF11: 1500 | NG11: 1500 | NH11: 1500 | NI11: 1500 | NJ11: 1500 | NK11: 1500 | NL11: 1500 | NM11: 1500 | NN11: 1500 | NO11: 1500 | NP11: 1500 | NQ11: 1500 | NR11: 1500 | NS11: 1500 | NT11: 1500 | NU11: 1500 | NV11: 1500 | NW11: 1500 | NX11: 1500 | NY11: 1500 | NZ11: 1500 | OA11: 1500 | OB11: 1500 | OC11: 1500 | OD11: 1500 | OE11: =$G$11*OE7 -> 1500 | OF11: 1500 | OG11: 1500 | OH11: 1500 | OI11: 1500 | OJ11: 1500 | OK11: 1500 | OL11: 1500 | OM11: 1500 | ON11: 1500 | OO11: 1500 | OP11: 1500 | OQ11: 1500 | OR11: 1500 | OS11: 1500 | OT11: 1500 | OU11: 1500 | OV11: 1500 | OW11: 1500 | OX11: 1500 | OY11: 1500 | OZ11: 1500 | PA11: 1500 | PB11: 1500 | PC11: 1500 | PD11: 1500 | PE11: 1500 | PF11: 1500 | PG11: 1500 | PH11: 1500 | PI11: 1500 | PJ11: 1500 | PK11: 1500 | PL11: 1500 | PM11: 1500 | PN11: 1500 | PO11: 1500 | PP11: 1500 | PQ11: 1500 | PR11: 1500 | PS11: 1500 | PT11: 1500 | PU11: 1500 | PV11: 1500 | PW11: 1500 | PX11: 1500 | PY11: 1500 | PZ11: 1500 | QA11: 1500 | QB11: 1500 | QC11: 1500 | QD11: 1500 | QE11: 1500 | QF11: 1500 | QG11: 1500 | QH11: 1500 | QI11: 1500 | QJ11: 1500 | QK11: 1500 | QL11: 1500 | QM11: 1500 | QN11: 1500 | QO11: 1500 | QP11: 1500 | QQ11: =$G$11*QQ7 -> 1500 | QR11: 1500 | QS11: 1500 | QT11: 1500 | QU11: 1500 | QV11: 1500 | QW11: 1500 | QX11: 1500 | QY11: 0 | QZ11: 0 | RA11: 0 | RB11: 0 | RC11: 0 | RD11: 0 | RE11: 0 | RF11: 0 | RG11: 0 | RH11: 0 | RI11: 0 | RJ11: 0 | RK11: 0 | RL11: 0 | RM11: 0 | RN11: 0 | RO11: 0 | RP11: 0 | RQ11: 0 | RR11: 0 | RS11: 0 | RT11: 0 | RU11: 0 | RV11: 0 | RW11: 0 | RX11: 0 | RY11: 0 | RZ11: 0 | SA11: 0 | SB11: 0 | SC11: 0 | SD11: 0 | SE11: 0 | SF11: 0 | SG11: 0 | SH11: 0 | SI11: 0 | SJ11: 0 | SK11: 0 | SL11: 0 | SM11: 0 | SN11: 0 | SO11: 0 | SP11: 0 | SQ11: 0 | SR11: 0 | SS11: 0 | ST11: 0 | SU11: 0 | SV11: 0 | SW11: 0 | SX11: 0 | SY11: 0 | SZ11: 0 | TA11: 0 | TB11: 0 | TC11: =$G$11*TC7 -> 0 | TD11: 0 | TE11: 0 | TF11: 0 | TG11: 0 | TH11: 0 | TI11: 0 | TJ11: 0 | TK11: 0 | TL11: 0 | TM11: 0 | TN11: 0 | TO11: 0 | TP11: 0 | TQ11: 0 | TR11: 0 | TS11: 0 | TT11: 0 | TU11: 0 | TV11: 0 | TW11: 0 | TX11: 0 | TY11: 0 | TZ11: 0 | UA11: 0 | UB11: 0 | UC11: 0 | UD11: 0 | UE11: 0 | UF11: 0 | UG11: 0 | UH11: 0 | UI11: 0 | UJ11: 0 | UK11: 0 | UL11: 0 | UM11: 0 | UN11: 0 | UO11: 0 | UP11: 0 | UQ11: 0 | UR11: 0 | US11: 0 | UT11: 0 | UU11: 0 | UV11: 0 | UW11: 0 | UX11: 0 | UY11: 0 | UZ11: 0 | VA11: 0 | VB11: 0 | VC11: 0 | VD11: 0 | VE11: 0 | VF11: 0 | VG11: 0 | VH11: 0 | VI11: 0 | VJ11: 0 | VK11: 0 | VL11: 0 | VM11: 0 | VN11: 0 | VO11: =$G$11*VO7 -> 0 | VP11: 0 | VQ11: 0 | VR11: 0 | VS11: 0 | VT11: 0 | VU11: 0 | VV11: 0 | VW11: 0 | VX11: 0 | VY11: 0 | VZ11: 0 | WA11: 0 | WB11: 0 | WC11: 0 | WD11: 0 | WE11: 0 | WF11: 0 | WG11: 0 | WH11: 0 | WI11: 0 | WJ11: 0 | WK11: 0 | WL11: 0
C12: Match of Month for Seasonal Factor | E12: Index # | J12: =MATCH(J5,'Project Database'!16:16,0) -> 17 | K12: =MATCH(K5,'Project Database'!16:16,0) -> 18 | L12: =MATCH(L5,'Project Database'!16:16,0) -> 19 | M12: =MATCH(M5,'Project Database'!16:16,0) -> 20 | N12: =MATCH(N5,'Project Database'!16:16,0) -> 21 | O12: =MATCH(O5,'Project Database'!16:16,0) -> 22 | P12: =MATCH(P5,'Project Database'!16:16,0) -> 23 | Q12: =MATCH(Q5,'Project Database'!16:16,0) -> 24 | R12: =MATCH(R5,'Project Database'!16:16,0) -> 25 | S12: =MATCH(S5,'Project Database'!16:16,0) -> 26 | T12: =MATCH(T5,'Project Database'!16:16,0) -> 27 | U12: =MATCH(U5,'Project Database'!16:16,0) -> 28 | V12: =MATCH(V5,'Project Database'!16:16,0) -> 17 | W12: =MATCH(W5,'Project Database'!16:16,0) -> 18 | X12: =MATCH(X5,'Project Database'!16:16,0) -> 19 | Y12: =MATCH(Y5,'Project Database'!16:16,0) -> 20 | Z12: =MATCH(Z5,'Project Database'!16:16,0) -> 21 | AA12: =MATCH(AA5,'Project Database'!16:16,0) -> 22 | AB12: =MATCH(AB5,'Project Database'!16:16,0) -> 23 | AC12: =MATCH(AC5,'Project Database'!16:16,0) -> 24 | AD12: =MATCH(AD5,'Project Database'!16:16,0) -> 25 | AE12: =MATCH(AE5,'Project Database'!16:16,0) -> 26 | AF12: =MATCH(AF5,'Project Database'!16:16,0) -> 27 | AG12: =MATCH(AG5,'Project Database'!16:16,0) -> 28 | AH12: =MATCH(AH5,'Project Database'!16:16,0) -> 17 | AI12: =MATCH(AI5,'Project Database'!16:16,0) -> 18 | AJ12: =MATCH(AJ5,'Project Database'!16:16,0) -> 19 | AK12: =MATCH(AK5,'Project Database'!16:16,0) -> 20 | AL12: =MATCH(AL5,'Project Database'!16:16,0) -> 21 | AM12: =MATCH(AM5,'Project Database'!16:16,0) -> 22 | AN12: =MATCH(AN5,'Project Database'!16:16,0) -> 23 | AO12: =MATCH(AO5,'Project Database'!16:16,0) -> 24 | AP12: =MATCH(AP5,'Project Database'!16:16,0) -> 25 | AQ12: =MATCH(AQ5,'Project Database'!16:16,0) -> 26 | AR12: =MATCH(AR5,'Project Database'!16:16,0) -> 27 | AS12: =MATCH(AS5,'Project Database'!16:16,0) -> 28 | AT12: =MATCH(AT5,'Project Database'!16:16,0) -> 17 | AU12: =MATCH(AU5,'Project Database'!16:16,0) -> 18 | AV12: =MATCH(AV5,'Project Database'!16:16,0) -> 19 | AW12: =MATCH(AW5,'Project Database'!16:16,0) -> 20 | AX12: =MATCH(AX5,'Project Database'!16:16,0) -> 21 | AY12: =MATCH(AY5,'Project Database'!16:16,0) -> 22 | AZ12: =MATCH(AZ5,'Project Database'!16:16,0) -> 23 | BA12: =MATCH(BA5,'Project Database'!16:16,0) -> 24 | BB12: =MATCH(BB5,'Project Database'!16:16,0) -> 25 | BC12: =MATCH(BC5,'Project Database'!16:16,0) -> 26 | BD12: =MATCH(BD5,'Project Database'!16:16,0) -> 27 | BE12: =MATCH(BE5,'Project Database'!16:16,0) -> 28 | BF12: =MATCH(BF5,'Project Database'!16:16,0) -> 17 | BG12: =MATCH(BG5,'Project Database'!16:16,0) -> 18 | BH12: =MATCH(BH5,'Project Database'!16:16,0) -> 19 | BI12: =MATCH(BI5,'Project Database'!16:16,0) -> 20 | BJ12: =MATCH(BJ5,'Project Database'!16:16,0) -> 21 | BK12: =MATCH(BK5,'Project Database'!16:16,0) -> 22 | BL12: =MATCH(BL5,'Project Database'!16:16,0) -> 23 | BM12: =MATCH(BM5,'Project Database'!16:16,0) -> 24 | BN12: =MATCH(BN5,'Project Database'!16:16,0) -> 25 | BO12: =MATCH(BO5,'Project Database'!16:16,0) -> 26 | BP12: =MATCH(BP5,'Project Database'!16:16,0) -> 27 | BQ12: =MATCH(BQ5,'Project Database'!16:16,0) -> 28 | BR12: =MATCH(BR5,'Project Database'!16:16,0) -> 17 | BS12: =MATCH(BS5,'Project Database'!16:16,0) -> 18 | BT12: =MATCH(BT5,'Project Database'!16:16,0) -> 19 | BU12: =MATCH(BU5,'Project Database'!16:16,0) -> 20 | BV12: =MATCH(BV5,'Project Database'!16:16,0) -> 21 | BW12: =MATCH(BW5,'Project Database'!16:16,0) -> 22 | BX12: =MATCH(BX5,'Project Database'!16:16,0) -> 23 | BY12: =MATCH(BY5,'Project Database'!16:16,0) -> 24 | BZ12: =MATCH(BZ5,'Project Database'!16:16,0) -> 25 | CA12: =MATCH(CA5,'Project Database'!16:16,0) -> 26 | CB12: =MATCH(CB5,'Project Database'!16:16,0) -> 27 | CC12: =MATCH(CC5,'Project Database'!16:16,0) -> 28 | CD12: =MATCH(CD5,'Project Database'!16:16,0) -> 17 | CE12: =MATCH(CE5,'Project Database'!16:16,0) -> 18 | CF12: =MATCH(CF5,'Project Database'!16:16,0) -> 19 | CG12: =MATCH(CG5,'Project Database'!16:16,0) -> 20 | CH12: =MATCH(CH5,'Project Database'!16:16,0) -> 21 | CI12: =MATCH(CI5,'Project Database'!16:16,0) -> 22 | CJ12: =MATCH(CJ5,'Project Database'!16:16,0) -> 23 | CK12: =MATCH(CK5,'Project Database'!16:16,0) -> 24 | CL12: =MATCH(CL5,'Project Database'!16:16,0) -> 25 | CM12: =MATCH(CM5,'Project Database'!16:16,0) -> 26 | CN12: =MATCH(CN5,'Project Database'!16:16,0) -> 27 | CO12: =MATCH(CO5,'Project Database'!16:16,0) -> 28 | CP12: =MATCH(CP5,'Project Database'!16:16,0) -> 17 | CQ12: =MATCH(CQ5,'Project Database'!16:16,0) -> 18 | CR12: =MATCH(CR5,'Project Database'!16:16,0) -> 19 | CS12: =MATCH(CS5,'Project Database'!16:16,0) -> 20 | CT12: =MATCH(CT5,'Project Database'!16:16,0) -> 21 | CU12: =MATCH(CU5,'Project Database'!16:16,0) -> 22 | CV12: =MATCH(CV5,'Project Database'!16:16,0) -> 23 | CW12: =MATCH(CW5,'Project Database'!16:16,0) -> 24 | CX12: =MATCH(CX5,'Project Database'!16:16,0) -> 25 | CY12: =MATCH(CY5,'Project Database'!16:16,0) -> 26 | CZ12: =MATCH(CZ5,'Project Database'!16:16,0) -> 27 | DA12: =MATCH(DA5,'Project Database'!16:16,0) -> 28 | DB12: =MATCH(DB5,'Project Database'!16:16,0) -> 17 | DC12: =MATCH(DC5,'Project Database'!16:16,0) -> 18 | DD12: =MATCH(DD5,'Project Database'!16:16,0) -> 19 | DE12: =MATCH(DE5,'Project Database'!16:16,0) -> 20 | DF12: =MATCH(DF5,'Project Database'!16:16,0) -> 21 | DG12: =MATCH(DG5,'Project Database'!16:16,0) -> 22 | DH12: =MATCH(DH5,'Project Database'!16:16,0) -> 23 | DI12: =MATCH(DI5,'Project Database'!16:16,0) -> 24 | DJ12: =MATCH(DJ5,'Project Database'!16:16,0) -> 25 | DK12: =MATCH(DK5,'Project Database'!16:16,0) -> 26 | DL12: =MATCH(DL5,'Project Database'!16:16,0) -> 27 | DM12: =MATCH(DM5,'Project Database'!16:16,0) -> 28 | DN12: =MATCH(DN5,'Project Database'!16:16,0) -> 17 | DO12: =MATCH(DO5,'Project Database'!16:16,0) -> 18 | DP12: =MATCH(DP5,'Project Database'!16:16,0) -> 19 | DQ12: =MATCH(DQ5,'Project Database'!16:16,0) -> 20 | DR12: =MATCH(DR5,'Project Database'!16:16,0) -> 21 | DS12: =MATCH(DS5,'Project Database'!16:16,0) -> 22 | DT12: =MATCH(DT5,'Project Database'!16:16,0) -> 23 | DU12: =MATCH(DU5,'Project Database'!16:16,0) -> 24 | DV12: =MATCH(DV5,'Project Database'!16:16,0) -> 25 | DW12: =MATCH(DW5,'Project Database'!16:16,0) -> 26 | DX12: =MATCH(DX5,'Project Database'!16:16,0) -> 27 | DY12: =MATCH(DY5,'Project Database'!16:16,0) -> 28 | DZ12: =MATCH(DZ5,'Project Database'!16:16,0) -> 17 | EA12: =MATCH(EA5,'Project Database'!16:16,0) -> 18 | EB12: =MATCH(EB5,'Project Database'!16:16,0) -> 19 | EC12: =MATCH(EC5,'Project Database'!16:16,0) -> 20 | ED12: =MATCH(ED5,'Project Database'!16:16,0) -> 21 | EE12: =MATCH(EE5,'Project Database'!16:16,0) -> 22 | EF12: =MATCH(EF5,'Project Database'!16:16,0) -> 23 | EG12: =MATCH(EG5,'Project Database'!16:16,0) -> 24 | EH12: =MATCH(EH5,'Project Database'!16:16,0) -> 25 | EI12: =MATCH(EI5,'Project Database'!16:16,0) -> 26 | EJ12: =MATCH(EJ5,'Project Database'!16:16,0) -> 27 | EK12: =MATCH(EK5,'Project Database'!16:16,0) -> 28 | EL12: =MATCH(EL5,'Project Database'!16:16,0) -> 17 | EM12: =MATCH(EM5,'Project Database'!16:16,0) -> 18 | EN12: =MATCH(EN5,'Project Database'!16:16,0) -> 19 | EO12: =MATCH(EO5,'Project Database'!16:16,0) -> 20 | EP12: =MATCH(EP5,'Project Database'!16:16,0) -> 21 | EQ12: =MATCH(EQ5,'Project Database'!16:16,0) -> 22 | ER12: =MATCH(ER5,'Project Database'!16:16,0) -> 23 | ES12: =MATCH(ES5,'Project Database'!16:16,0) -> 24 | ET12: =MATCH(ET5,'Project Database'!16:16,0) -> 25 | EU12: =MATCH(EU5,'Project Database'!16:16,0) -> 26 | EV12: =MATCH(EV5,'Project Database'!16:16,0) -> 27 | EW12: =MATCH(EW5,'Project Database'!16:16,0) -> 28 | EX12: =MATCH(EX5,'Project Database'!16:16,0) -> 17 | EY12: =MATCH(EY5,'Project Database'!16:16,0) -> 18 | EZ12: =MATCH(EZ5,'Project Database'!16:16,0) -> 19 | FA12: =MATCH(FA5,'Project Database'!16:16,0) -> 20 | FB12: =MATCH(FB5,'Project Database'!16:16,0) -> 21 | FC12: =MATCH(FC5,'Project Database'!16:16,0) -> 22 | FD12: =MATCH(FD5,'Project Database'!16:16,0) -> 23 | FE12: =MATCH(FE5,'Project Database'!16:16,0) -> 24 | FF12: =MATCH(FF5,'Project Database'!16:16,0) -> 25 | FG12: =MATCH(FG5,'Project Database'!16:16,0) -> 26 | FH12: =MATCH(FH5,'Project Database'!16:16,0) -> 27 | FI12: =MATCH(FI5,'Project Database'!16:16,0) -> 28 | FJ12: =MATCH(FJ5,'Project Database'!16:16,0) -> 17 | FK12: =MATCH(FK5,'Project Database'!16:16,0) -> 18 | FL12: =MATCH(FL5,'Project Database'!16:16,0) -> 19 | FM12: =MATCH(FM5,'Project Database'!16:16,0) -> 20 | FN12: =MATCH(FN5,'Project Database'!16:16,0) -> 21 | FO12: =MATCH(FO5,'Project Database'!16:16,0) -> 22 | FP12: =MATCH(FP5,'Project Database'!16:16,0) -> 23 | FQ12: =MATCH(FQ5,'Project Database'!16:16,0) -> 24 | FR12: =MATCH(FR5,'Project Database'!16:16,0) -> 25 | FS12: =MATCH(FS5,'Project Database'!16:16,0) -> 26 | FT12: =MATCH(FT5,'Project Database'!16:16,0) -> 27 | FU12: =MATCH(FU5,'Project Database'!16:16,0) -> 28 | FV12: =MATCH(FV5,'Project Database'!16:16,0) -> 17 | FW12: =MATCH(FW5,'Project Database'!16:16,0) -> 18 | FX12: =MATCH(FX5,'Project Database'!16:16,0) -> 19 | FY12: =MATCH(FY5,'Project Database'!16:16,0) -> 20 | FZ12: =MATCH(FZ5,'Project Database'!16:16,0) -> 21 | GA12: =MATCH(GA5,'Project Database'!16:16,0) -> 22 | GB12: =MATCH(GB5,'Project Database'!16:16,0) -> 23 | GC12: =MATCH(GC5,'Project Database'!16:16,0) -> 24 | GD12: =MATCH(GD5,'Project Database'!16:16,0) -> 25 | GE12: =MATCH(GE5,'Project Database'!16:16,0) -> 26 | GF12: =MATCH(GF5,'Project Database'!16:16,0) -> 27 | GG12: =MATCH(GG5,'Project Database'!16:16,0) -> 28 | GH12: =MATCH(GH5,'Project Database'!16:16,0) -> 17 | GI12: =MATCH(GI5,'Project Database'!16:16,0) -> 18 | GJ12: =MATCH(GJ5,'Project Database'!16:16,0) -> 19 | GK12: =MATCH(GK5,'Project Database'!16:16,0) -> 20 | GL12: =MATCH(GL5,'Project Database'!16:16,0) -> 21 | GM12: =MATCH(GM5,'Project Database'!16:16,0) -> 22 | GN12: =MATCH(GN5,'Project Database'!16:16,0) -> 23 | GO12: =MATCH(GO5,'Project Database'!16:16,0) -> 24 | GP12: =MATCH(GP5,'Project Database'!16:16,0) -> 25 | GQ12: =MATCH(GQ5,'Project Database'!16:16,0) -> 26 | GR12: =MATCH(GR5,'Project Database'!16:16,0) -> 27 | GS12: =MATCH(GS5,'Project Database'!16:16,0) -> 28 | GT12: =MATCH(GT5,'Project Database'!16:16,0) -> 17 | GU12: =MATCH(GU5,'Project Database'!16:16,0) -> 18 | GV12: =MATCH(GV5,'Project Database'!16:16,0) -> 19 | GW12: =MATCH(GW5,'Project Database'!16:16,0) -> 20 | GX12: =MATCH(GX5,'Project Database'!16:16,0) -> 21 | GY12: =MATCH(GY5,'Project Database'!16:16,0) -> 22 | GZ12: =MATCH(GZ5,'Project Database'!16:16,0) -> 23 | HA12: =MATCH(HA5,'Project Database'!16:16,0) -> 24 | HB12: =MATCH(HB5,'Project Database'!16:16,0) -> 25 | HC12: =MATCH(HC5,'Project Database'!16:16,0) -> 26 | HD12: =MATCH(HD5,'Project Database'!16:16,0) -> 27 | HE12: =MATCH(HE5,'Project Database'!16:16,0) -> 28 | HF12: =MATCH(HF5,'Project Database'!16:16,0) -> 17 | HG12: =MATCH(HG5,'Project Database'!16:16,0) -> 18 | HH12: =MATCH(HH5,'Project Database'!16:16,0) -> 19 | HI12: =MATCH(HI5,'Project Database'!16:16,0) -> 20 | HJ12: =MATCH(HJ5,'Project Database'!16:16,0) -> 21 | HK12: =MATCH(HK5,'Project Database'!16:16,0) -> 22 | HL12: =MATCH(HL5,'Project Database'!16:16,0) -> 23 | HM12: =MATCH(HM5,'Project Database'!16:16,0) -> 24 | HN12: =MATCH(HN5,'Project Database'!16:16,0) -> 25 | HO12: =MATCH(HO5,'Project Database'!16:16,0) -> 26 | HP12: =MATCH(HP5,'Project Database'!16:16,0) -> 27 | HQ12: =MATCH(HQ5,'Project Database'!16:16,0) -> 28 | HR12: =MATCH(HR5,'Project Database'!16:16,0) -> 17 | HS12: =MATCH(HS5,'Project Database'!16:16,0) -> 18 | HT12: =MATCH(HT5,'Project Database'!16:16,0) -> 19 | HU12: =MATCH(HU5,'Project Database'!16:16,0) -> 20 | HV12: =MATCH(HV5,'Project Database'!16:16,0) -> 21 | HW12: =MATCH(HW5,'Project Database'!16:16,0) -> 22 | HX12: =MATCH(HX5,'Project Database'!16:16,0) -> 23 | HY12: =MATCH(HY5,'Project Database'!16:16,0) -> 24 | HZ12: =MATCH(HZ5,'Project Database'!16:16,0) -> 25 | IA12: =MATCH(IA5,'Project Database'!16:16,0) -> 26 | IB12: =MATCH(IB5,'Project Database'!16:16,0) -> 27 | IC12: =MATCH(IC5,'Project Database'!16:16,0) -> 28 | ID12: =MATCH(ID5,'Project Database'!16:16,0) -> 17 | IE12: =MATCH(IE5,'Project Database'!16:16,0) -> 18 | IF12: =MATCH(IF5,'Project Database'!16:16,0) -> 19 | IG12: =MATCH(IG5,'Project Database'!16:16,0) -> 20 | IH12: =MATCH(IH5,'Project Database'!16:16,0) -> 21 | II12: =MATCH(II5,'Project Database'!16:16,0) -> 22 | IJ12: =MATCH(IJ5,'Project Database'!16:16,0) -> 23 | IK12: =MATCH(IK5,'Project Database'!16:16,0) -> 24 | IL12: =MATCH(IL5,'Project Database'!16:16,0) -> 25 | IM12: =MATCH(IM5,'Project Database'!16:16,0) -> 26 | IN12: =MATCH(IN5,'Project Database'!16:16,0) -> 27 | IO12: =MATCH(IO5,'Project Database'!16:16,0) -> 28 | IP12: =MATCH(IP5,'Project Database'!16:16,0) -> 17 | IQ12: =MATCH(IQ5,'Project Database'!16:16,0) -> 18 | IR12: =MATCH(IR5,'Project Database'!16:16,0) -> 19 | IS12: =MATCH(IS5,'Project Database'!16:16,0) -> 20 | IT12: =MATCH(IT5,'Project Database'!16:16,0) -> 21 | IU12: =MATCH(IU5,'Project Database'!16:16,0) -> 22 | IV12: =MATCH(IV5,'Project Database'!16:16,0) -> 23 | IW12: =MATCH(IW5,'Project Database'!16:16,0) -> 24 | IX12: =MATCH(IX5,'Project Database'!16:16,0) -> 25 | IY12: =MATCH(IY5,'Project Database'!16:16,0) -> 26 | IZ12: =MATCH(IZ5,'Project Database'!16:16,0) -> 27 | JA12: =MATCH(JA5,'Project Database'!16:16,0) -> 28 | JB12: =MATCH(JB5,'Project Database'!16:16,0) -> 17 | JC12: =MATCH(JC5,'Project Database'!16:16,0) -> 18 | JD12: =MATCH(JD5,'Project Database'!16:16,0) -> 19 | JE12: =MATCH(JE5,'Project Database'!16:16,0) -> 20 | JF12: =MATCH(JF5,'Project Database'!16:16,0) -> 21 | JG12: =MATCH(JG5,'Project Database'!16:16,0) -> 22 | JH12: =MATCH(JH5,'Project Database'!16:16,0) -> 23 | JI12: =MATCH(JI5,'Project Database'!16:16,0) -> 24 | JJ12: =MATCH(JJ5,'Project Database'!16:16,0) -> 25 | JK12: =MATCH(JK5,'Project Database'!16:16,0) -> 26 | JL12: =MATCH(JL5,'Project Database'!16:16,0) -> 27 | JM12: =MATCH(JM5,'Project Database'!16:16,0) -> 28 | JN12: =MATCH(JN5,'Project Database'!16:16,0) -> 17 | JO12: =MATCH(JO5,'Project Database'!16:16,0) -> 18 | JP12: =MATCH(JP5,'Project Database'!16:16,0) -> 19 | JQ12: =MATCH(JQ5,'Project Database'!16:16,0) -> 20 | JR12: =MATCH(JR5,'Project Database'!16:16,0) -> 21 | JS12: =MATCH(JS5,'Project Database'!16:16,0) -> 22 | JT12: =MATCH(JT5,'Project Database'!16:16,0) -> 23 | JU12: =MATCH(JU5,'Project Database'!16:16,0) -> 24 | JV12: =MATCH(JV5,'Project Database'!16:16,0) -> 25 | JW12: =MATCH(JW5,'Project Database'!16:16,0) -> 26 | JX12: =MATCH(JX5,'Project Database'!16:16,0) -> 27 | JY12: =MATCH(JY5,'Project Database'!16:16,0) -> 28 | JZ12: =MATCH(JZ5,'Project Database'!16:16,0) -> 17 | KA12: =MATCH(KA5,'Project Database'!16:16,0) -> 18 | KB12: =MATCH(KB5,'Project Database'!16:16,0) -> 19 | KC12: =MATCH(KC5,'Project Database'!16:16,0) -> 20 | KD12: =MATCH(KD5,'Project Database'!16:16,0) -> 21 | KE12: =MATCH(KE5,'Project Database'!16:16,0) -> 22 | KF12: =MATCH(KF5,'Project Database'!16:16,0) -> 23 | KG12: =MATCH(KG5,'Project Database'!16:16,0) -> 24 | KH12: =MATCH(KH5,'Project Database'!16:16,0) -> 25 | KI12: =MATCH(KI5,'Project Database'!16:16,0) -> 26 | KJ12: =MATCH(KJ5,'Project Database'!16:16,0) -> 27 | KK12: =MATCH(KK5,'Project Database'!16:16,0) -> 28 | KL12: =MATCH(KL5,'Project Database'!16:16,0) -> 17 | KM12: =MATCH(KM5,'Project Database'!16:16,0) -> 18 | KN12: =MATCH(KN5,'Project Database'!16:16,0) -> 19 | KO12: =MATCH(KO5,'Project Database'!16:16,0) -> 20 | KP12: =MATCH(KP5,'Project Database'!16:16,0) -> 21 | KQ12: =MATCH(KQ5,'Project Database'!16:16,0) -> 22 | KR12: =MATCH(KR5,'Project Database'!16:16,0) -> 23 | KS12: =MATCH(KS5,'Project Database'!16:16,0) -> 24 | KT12: =MATCH(KT5,'Project Database'!16:16,0) -> 25 | KU12: =MATCH(KU5,'Project Database'!16:16,0) -> 26 | KV12: =MATCH(KV5,'Project Database'!16:16,0) -> 27 | KW12: =MATCH(KW5,'Project Database'!16:16,0) -> 28 | KX12: =MATCH(KX5,'Project Database'!16:16,0) -> 17 | KY12: =MATCH(KY5,'Project Database'!16:16,0) -> 18 | KZ12: =MATCH(KZ5,'Project Database'!16:16,0) -> 19 | LA12: =MATCH(LA5,'Project Database'!16:16,0) -> 20 | LB12: =MATCH(LB5,'Project Database'!16:16,0) -> 21 | LC12: =MATCH(LC5,'Project Database'!16:16,0) -> 22 | LD12: =MATCH(LD5,'Project Database'!16:16,0) -> 23 | LE12: =MATCH(LE5,'Project Database'!16:16,0) -> 24 | LF12: =MATCH(LF5,'Project Database'!16:16,0) -> 25 | LG12: =MATCH(LG5,'Project Database'!16:16,0) -> 26 | LH12: =MATCH(LH5,'Project Database'!16:16,0) -> 27 | LI12: =MATCH(LI5,'Project Database'!16:16,0) -> 28 | LJ12: =MATCH(LJ5,'Project Database'!16:16,0) -> 17 | LK12: =MATCH(LK5,'Project Database'!16:16,0) -> 18 | LL12: =MATCH(LL5,'Project Database'!16:16,0) -> 19 | LM12: =MATCH(LM5,'Project Database'!16:16,0) -> 20 | LN12: =MATCH(LN5,'Project Database'!16:16,0) -> 21 | LO12: =MATCH(LO5,'Project Database'!16:16,0) -> 22 | LP12: =MATCH(LP5,'Project Database'!16:16,0) -> 23 | LQ12: =MATCH(LQ5,'Project Database'!16:16,0) -> 24 | LR12: =MATCH(LR5,'Project Database'!16:16,0) -> 25 | LS12: =MATCH(LS5,'Project Database'!16:16,0) -> 26 | LT12: =MATCH(LT5,'Project Database'!16:16,0) -> 27 | LU12: =MATCH(LU5,'Project Database'!16:16,0) -> 28 | LV12: =MATCH(LV5,'Project Database'!16:16,0) -> 17 | LW12: =MATCH(LW5,'Project Database'!16:16,0) -> 18 | LX12: =MATCH(LX5,'Project Database'!16:16,0) -> 19 | LY12: =MATCH(LY5,'Project Database'!16:16,0) -> 20 | LZ12: =MATCH(LZ5,'Project Database'!16:16,0) -> 21 | MA12: =MATCH(MA5,'Project Database'!16:16,0) -> 22 | MB12: =MATCH(MB5,'Project Database'!16:16,0) -> 23 | MC12: =MATCH(MC5,'Project Database'!16:16,0) -> 24 | MD12: =MATCH(MD5,'Project Database'!16:16,0) -> 25 | ME12: =MATCH(ME5,'Project Database'!16:16,0) -> 26 | MF12: =MATCH(MF5,'Project Database'!16:16,0) -> 27 | MG12: =MATCH(MG5,'Project Database'!16:16,0) -> 28 | MH12: =MATCH(MH5,'Project Database'!16:16,0) -> 17 | MI12: =MATCH(MI5,'Project Database'!16:16,0) -> 18 | MJ12: =MATCH(MJ5,'Project Database'!16:16,0) -> 19 | MK12: =MATCH(MK5,'Project Database'!16:16,0) -> 20 | ML12: =MATCH(ML5,'Project Database'!16:16,0) -> 21 | MM12: =MATCH(MM5,'Project Database'!16:16,0) -> 22 | MN12: =MATCH(MN5,'Project Database'!16:16,0) -> 23 | MO12: =MATCH(MO5,'Project Database'!16:16,0) -> 24 | MP12: =MATCH(MP5,'Project Database'!16:16,0) -> 25 | MQ12: =MATCH(MQ5,'Project Database'!16:16,0) -> 26 | MR12: =MATCH(MR5,'Project Database'!16:16,0) -> 27 | MS12: =MATCH(MS5,'Project Database'!16:16,0) -> 28 | MT12: =MATCH(MT5,'Project Database'!16:16,0) -> 17 | MU12: =MATCH(MU5,'Project Database'!16:16,0) -> 18 | MV12: =MATCH(MV5,'Project Database'!16:16,0) -> 19 | MW12: =MATCH(MW5,'Project Database'!16:16,0) -> 20 | MX12: =MATCH(MX5,'Project Database'!16:16,0) -> 21 | MY12: =MATCH(MY5,'Project Database'!16:16,0) -> 22 | MZ12: =MATCH(MZ5,'Project Database'!16:16,0) -> 23 | NA12: =MATCH(NA5,'Project Database'!16:16,0) -> 24 | NB12: =MATCH(NB5,'Project Database'!16:16,0) -> 25 | NC12: =MATCH(NC5,'Project Database'!16:16,0) -> 26 | ND12: =MATCH(ND5,'Project Database'!16:16,0) -> 27 | NE12: =MATCH(NE5,'Project Database'!16:16,0) -> 28 | NF12: =MATCH(NF5,'Project Database'!16:16,0) -> 17 | NG12: =MATCH(NG5,'Project Database'!16:16,0) -> 18 | NH12: =MATCH(NH5,'Project Database'!16:16,0) -> 19 | NI12: =MATCH(NI5,'Project Database'!16:16,0) -> 20 | NJ12: =MATCH(NJ5,'Project Database'!16:16,0) -> 21 | NK12: =MATCH(NK5,'Project Database'!16:16,0) -> 22 | NL12: =MATCH(NL5,'Project Database'!16:16,0) -> 23 | NM12: =MATCH(NM5,'Project Database'!16:16,0) -> 24 | NN12: =MATCH(NN5,'Project Database'!16:16,0) -> 25 | NO12: =MATCH(NO5,'Project Database'!16:16,0) -> 26 | NP12: =MATCH(NP5,'Project Database'!16:16,0) -> 27 | NQ12: =MATCH(NQ5,'Project Database'!16:16,0) -> 28 | NR12: =MATCH(NR5,'Project Database'!16:16,0) -> 17 | NS12: =MATCH(NS5,'Project Database'!16:16,0) -> 18 | NT12: =MATCH(NT5,'Project Database'!16:16,0) -> 19 | NU12: =MATCH(NU5,'Project Database'!16:16,0) -> 20 | NV12: =MATCH(NV5,'Project Database'!16:16,0) -> 21 | NW12: =MATCH(NW5,'Project Database'!16:16,0) -> 22 | NX12: =MATCH(NX5,'Project Database'!16:16,0) -> 23 | NY12: =MATCH(NY5,'Project Database'!16:16,0) -> 24 | NZ12: =MATCH(NZ5,'Project Database'!16:16,0) -> 25 | OA12: =MATCH(OA5,'Project Database'!16:16,0) -> 26 | OB12: =MATCH(OB5,'Project Database'!16:16,0) -> 27 | OC12: =MATCH(OC5,'Project Database'!16:16,0) -> 28 | OD12: =MATCH(OD5,'Project Database'!16:16,0) -> 17 | OE12: =MATCH(OE5,'Project Database'!16:16,0) -> 18 | OF12: =MATCH(OF5,'Project Database'!16:16,0) -> 19 | OG12: =MATCH(OG5,'Project Database'!16:16,0) -> 20 | OH12: =MATCH(OH5,'Project Database'!16:16,0) -> 21 | OI12: =MATCH(OI5,'Project Database'!16:16,0) -> 22 | OJ12: =MATCH(OJ5,'Project Database'!16:16,0) -> 23 | OK12: =MATCH(OK5,'Project Database'!16:16,0) -> 24 | OL12: =MATCH(OL5,'Project Database'!16:16,0) -> 25 | OM12: =MATCH(OM5,'Project Database'!16:16,0) -> 26 | ON12: =MATCH(ON5,'Project Database'!16:16,0) -> 27 | OO12: =MATCH(OO5,'Project Database'!16:16,0) -> 28 | OP12: =MATCH(OP5,'Project Database'!16:16,0) -> 17 | OQ12: =MATCH(OQ5,'Project Database'!16:16,0) -> 18 | OR12: =MATCH(OR5,'Project Database'!16:16,0) -> 19 | OS12: =MATCH(OS5,'Project Database'!16:16,0) -> 20 | OT12: =MATCH(OT5,'Project Database'!16:16,0) -> 21 | OU12: =MATCH(OU5,'Project Database'!16:16,0) -> 22 | OV12: =MATCH(OV5,'Project Database'!16:16,0) -> 23 | OW12: =MATCH(OW5,'Project Database'!16:16,0) -> 24 | OX12: =MATCH(OX5,'Project Database'!16:16,0) -> 25 | OY12: =MATCH(OY5,'Project Database'!16:16,0) -> 26 | OZ12: =MATCH(OZ5,'Project Database'!16:16,0) -> 27 | PA12: =MATCH(PA5,'Project Database'!16:16,0) -> 28 | PB12: =MATCH(PB5,'Project Database'!16:16,0) -> 17 | PC12: =MATCH(PC5,'Project Database'!16:16,0) -> 18 | PD12: =MATCH(PD5,'Project Database'!16:16,0) -> 19 | PE12: =MATCH(PE5,'Project Database'!16:16,0) -> 20 | PF12: =MATCH(PF5,'Project Database'!16:16,0) -> 21 | PG12: =MATCH(PG5,'Project Database'!16:16,0) -> 22 | PH12: =MATCH(PH5,'Project Database'!16:16,0) -> 23 | PI12: =MATCH(PI5,'Project Database'!16:16,0) -> 24 | PJ12: =MATCH(PJ5,'Project Database'!16:16,0) -> 25 | PK12: =MATCH(PK5,'Project Database'!16:16,0) -> 26 | PL12: =MATCH(PL5,'Project Database'!16:16,0) -> 27 | PM12: =MATCH(PM5,'Project Database'!16:16,0) -> 28 | PN12: =MATCH(PN5,'Project Database'!16:16,0) -> 17 | PO12: =MATCH(PO5,'Project Database'!16:16,0) -> 18 | PP12: =MATCH(PP5,'Project Database'!16:16,0) -> 19 | PQ12: =MATCH(PQ5,'Project Database'!16:16,0) -> 20 | PR12: =MATCH(PR5,'Project Database'!16:16,0) -> 21 | PS12: =MATCH(PS5,'Project Database'!16:16,0) -> 22 | PT12: =MATCH(PT5,'Project Database'!16:16,0) -> 23 | PU12: =MATCH(PU5,'Project Database'!16:16,0) -> 24 | PV12: =MATCH(PV5,'Project Database'!16:16,0) -> 25 | PW12: =MATCH(PW5,'Project Database'!16:16,0) -> 26 | PX12: =MATCH(PX5,'Project Database'!16:16,0) -> 27 | PY12: =MATCH(PY5,'Project Database'!16:16,0) -> 28 | PZ12: =MATCH(PZ5,'Project Database'!16:16,0) -> 17 | QA12: =MATCH(QA5,'Project Database'!16:16,0) -> 18 | QB12: =MATCH(QB5,'Project Database'!16:16,0) -> 19 | QC12: =MATCH(QC5,'Project Database'!16:16,0) -> 20 | QD12: =MATCH(QD5,'Project Database'!16:16,0) -> 21 | QE12: =MATCH(QE5,'Project Database'!16:16,0) -> 22 | QF12: =MATCH(QF5,'Project Database'!16:16,0) -> 23 | QG12: =MATCH(QG5,'Project Database'!16:16,0) -> 24 | QH12: =MATCH(QH5,'Project Database'!16:16,0) -> 25 | QI12: =MATCH(QI5,'Project Database'!16:16,0) -> 26 | QJ12: =MATCH(QJ5,'Project Database'!16:16,0) -> 27 | QK12: =MATCH(QK5,'Project Database'!16:16,0) -> 28 | QL12: =MATCH(QL5,'Project Database'!16:16,0) -> 17 | QM12: =MATCH(QM5,'Project Database'!16:16,0) -> 18 | QN12: =MATCH(QN5,'Project Database'!16:16,0) -> 19 | QO12: =MATCH(QO5,'Project Database'!16:16,0) -> 20 | QP12: =MATCH(QP5,'Project Database'!16:16,0) -> 21 | QQ12: =MATCH(QQ5,'Project Database'!16:16,0) -> 22 | QR12: =MATCH(QR5,'Project Database'!16:16,0) -> 23 | QS12: =MATCH(QS5,'Project Database'!16:16,0) -> 24 | QT12: =MATCH(QT5,'Project Database'!16:16,0) -> 25 | QU12: =MATCH(QU5,'Project Database'!16:16,0) -> 26 | QV12: =MATCH(QV5,'Project Database'!16:16,0) -> 27 | QW12: =MATCH(QW5,'Project Database'!16:16,0) -> 28 | QX12: =MATCH(QX5,'Project Database'!16:16,0) -> 17 | QY12: =MATCH(QY5,'Project Database'!16:16,0) -> 18 | QZ12: =MATCH(QZ5,'Project Database'!16:16,0) -> 19 | RA12: =MATCH(RA5,'Project Database'!16:16,0) -> 20 | RB12: =MATCH(RB5,'Project Database'!16:16,0) -> 21 | RC12: =MATCH(RC5,'Project Database'!16:16,0) -> 22 | RD12: =MATCH(RD5,'Project Database'!16:16,0) -> 23 | RE12: =MATCH(RE5,'Project Database'!16:16,0) -> 24 | RF12: =MATCH(RF5,'Project Database'!16:16,0) -> 25 | RG12: =MATCH(RG5,'Project Database'!16:16,0) -> 26 | RH12: =MATCH(RH5,'Project Database'!16:16,0) -> 27 | RI12: =MATCH(RI5,'Project Database'!16:16,0) -> 28 | RJ12: =MATCH(RJ5,'Project Database'!16:16,0) -> 17 | RK12: =MATCH(RK5,'Project Database'!16:16,0) -> 18 | RL12: =MATCH(RL5,'Project Database'!16:16,0) -> 19 | RM12: =MATCH(RM5,'Project Database'!16:16,0) -> 20 | RN12: =MATCH(RN5,'Project Database'!16:16,0) -> 21 | RO12: =MATCH(RO5,'Project Database'!16:16,0) -> 22 | RP12: =MATCH(RP5,'Project Database'!16:16,0) -> 23 | RQ12: =MATCH(RQ5,'Project Database'!16:16,0) -> 24 | RR12: =MATCH(RR5,'Project Database'!16:16,0) -> 25 | RS12: =MATCH(RS5,'Project Database'!16:16,0) -> 26 | RT12: =MATCH(RT5,'Project Database'!16:16,0) -> 27 | RU12: =MATCH(RU5,'Project Database'!16:16,0) -> 28 | RV12: =MATCH(RV5,'Project Database'!16:16,0) -> 17 | RW12: =MATCH(RW5,'Project Database'!16:16,0) -> 18 | RX12: =MATCH(RX5,'Project Database'!16:16,0) -> 19 | RY12: =MATCH(RY5,'Project Database'!16:16,0) -> 20 | RZ12: =MATCH(RZ5,'Project Database'!16:16,0) -> 21 | SA12: =MATCH(SA5,'Project Database'!16:16,0) -> 22 | SB12: =MATCH(SB5,'Project Database'!16:16,0) -> 23 | SC12: =MATCH(SC5,'Project Database'!16:16,0) -> 24 | SD12: =MATCH(SD5,'Project Database'!16:16,0) -> 25 | SE12: =MATCH(SE5,'Project Database'!16:16,0) -> 26 | SF12: =MATCH(SF5,'Project Database'!16:16,0) -> 27 | SG12: =MATCH(SG5,'Project Database'!16:16,0) -> 28 | SH12: =MATCH(SH5,'Project Database'!16:16,0) -> 17 | SI12: =MATCH(SI5,'Project Database'!16:16,0) -> 18 | SJ12: =MATCH(SJ5,'Project Database'!16:16,0) -> 19 | SK12: =MATCH(SK5,'Project Database'!16:16,0) -> 20 | SL12: =MATCH(SL5,'Project Database'!16:16,0) -> 21 | SM12: =MATCH(SM5,'Project Database'!16:16,0) -> 22 | SN12: =MATCH(SN5,'Project Database'!16:16,0) -> 23 | SO12: =MATCH(SO5,'Project Database'!16:16,0) -> 24 | SP12: =MATCH(SP5,'Project Database'!16:16,0) -> 25 | SQ12: =MATCH(SQ5,'Project Database'!16:16,0) -> 26 | SR12: =MATCH(SR5,'Project Database'!16:16,0) -> 27 | SS12: =MATCH(SS5,'Project Database'!16:16,0) -> 28 | ST12: =MATCH(ST5,'Project Database'!16:16,0) -> 17 | SU12: =MATCH(SU5,'Project Database'!16:16,0) -> 18 | SV12: =MATCH(SV5,'Project Database'!16:16,0) -> 19 | SW12: =MATCH(SW5,'Project Database'!16:16,0) -> 20 | SX12: =MATCH(SX5,'Project Database'!16:16,0) -> 21 | SY12: =MATCH(SY5,'Project Database'!16:16,0) -> 22 | SZ12: =MATCH(SZ5,'Project Database'!16:16,0) -> 23 | TA12: =MATCH(TA5,'Project Database'!16:16,0) -> 24 | TB12: =MATCH(TB5,'Project Database'!16:16,0) -> 25 | TC12: =MATCH(TC5,'Project Database'!16:16,0) -> 26 | TD12: =MATCH(TD5,'Project Database'!16:16,0) -> 27 | TE12: =MATCH(TE5,'Project Database'!16:16,0) -> 28 | TF12: =MATCH(TF5,'Project Database'!16:16,0) -> 17 | TG12: =MATCH(TG5,'Project Database'!16:16,0) -> 18 | TH12: =MATCH(TH5,'Project Database'!16:16,0) -> 19 | TI12: =MATCH(TI5,'Project Database'!16:16,0) -> 20 | TJ12: =MATCH(TJ5,'Project Database'!16:16,0) -> 21 | TK12: =MATCH(TK5,'Project Database'!16:16,0) -> 22 | TL12: =MATCH(TL5,'Project Database'!16:16,0) -> 23 | TM12: =MATCH(TM5,'Project Database'!16:16,0) -> 24 | TN12: =MATCH(TN5,'Project Database'!16:16,0) -> 25 | TO12: =MATCH(TO5,'Project Database'!16:16,0) -> 26 | TP12: =MATCH(TP5,'Project Database'!16:16,0) -> 27 | TQ12: =MATCH(TQ5,'Project Database'!16:16,0) -> 28 | TR12: =MATCH(TR5,'Project Database'!16:16,0) -> 17 | TS12: =MATCH(TS5,'Project Database'!16:16,0) -> 18 | TT12: =MATCH(TT5,'Project Database'!16:16,0) -> 19 | TU12: =MATCH(TU5,'Project Database'!16:16,0) -> 20 | TV12: =MATCH(TV5,'Project Database'!16:16,0) -> 21 | TW12: =MATCH(TW5,'Project Database'!16:16,0) -> 22 | TX12: =MATCH(TX5,'Project Database'!16:16,0) -> 23 | TY12: =MATCH(TY5,'Project Database'!16:16,0) -> 24 | TZ12: =MATCH(TZ5,'Project Database'!16:16,0) -> 25 | UA12: =MATCH(UA5,'Project Database'!16:16,0) -> 26 | UB12: =MATCH(UB5,'Project Database'!16:16,0) -> 27 | UC12: =MATCH(UC5,'Project Database'!16:16,0) -> 28 | UD12: =MATCH(UD5,'Project Database'!16:16,0) -> 17 | UE12: =MATCH(UE5,'Project Database'!16:16,0) -> 18 | UF12: =MATCH(UF5,'Project Database'!16:16,0) -> 19 | UG12: =MATCH(UG5,'Project Database'!16:16,0) -> 20 | UH12: =MATCH(UH5,'Project Database'!16:16,0) -> 21 | UI12: =MATCH(UI5,'Project Database'!16:16,0) -> 22 | UJ12: =MATCH(UJ5,'Project Database'!16:16,0) -> 23 | UK12: =MATCH(UK5,'Project Database'!16:16,0) -> 24 | UL12: =MATCH(UL5,'Project Database'!16:16,0) -> 25 | UM12: =MATCH(UM5,'Project Database'!16:16,0) -> 26 | UN12: =MATCH(UN5,'Project Database'!16:16,0) -> 27 | UO12: =MATCH(UO5,'Project Database'!16:16,0) -> 28 | UP12: =MATCH(UP5,'Project Database'!16:16,0) -> 17 | UQ12: =MATCH(UQ5,'Project Database'!16:16,0) -> 18 | UR12: =MATCH(UR5,'Project Database'!16:16,0) -> 19 | US12: =MATCH(US5,'Project Database'!16:16,0) -> 20 | UT12: =MATCH(UT5,'Project Database'!16:16,0) -> 21 | UU12: =MATCH(UU5,'Project Database'!16:16,0) -> 22 | UV12: =MATCH(UV5,'Project Database'!16:16,0) -> 23 | UW12: =MATCH(UW5,'Project Database'!16:16,0) -> 24 | UX12: =MATCH(UX5,'Project Database'!16:16,0) -> 25 | UY12: =MATCH(UY5,'Project Database'!16:16,0) -> 26 | UZ12: =MATCH(UZ5,'Project Database'!16:16,0) -> 27 | VA12: =MATCH(VA5,'Project Database'!16:16,0) -> 28 | VB12: =MATCH(VB5,'Project Database'!16:16,0) -> 17 | VC12: =MATCH(VC5,'Project Database'!16:16,0) -> 18 | VD12: =MATCH(VD5,'Project Database'!16:16,0) -> 19 | VE12: =MATCH(VE5,'Project Database'!16:16,0) -> 20 | VF12: =MATCH(VF5,'Project Database'!16:16,0) -> 21 | VG12: =MATCH(VG5,'Project Database'!16:16,0) -> 22 | VH12: =MATCH(VH5,'Project Database'!16:16,0) -> 23 | VI12: =MATCH(VI5,'Project Database'!16:16,0) -> 24 | VJ12: =MATCH(VJ5,'Project Database'!16:16,0) -> 25 | VK12: =MATCH(VK5,'Project Database'!16:16,0) -> 26 | VL12: =MATCH(VL5,'Project Database'!16:16,0) -> 27 | VM12: =MATCH(VM5,'Project Database'!16:16,0) -> 28 | VN12: =MATCH(VN5,'Project Database'!16:16,0) -> 17 | VO12: =MATCH(VO5,'Project Database'!16:16,0) -> 18 | VP12: =MATCH(VP5,'Project Database'!16:16,0) -> 19 | VQ12: =MATCH(VQ5,'Project Database'!16:16,0) -> 20 | VR12: =MATCH(VR5,'Project Database'!16:16,0) -> 21 | VS12: =MATCH(VS5,'Project Database'!16:16,0) -> 22 | VT12: =MATCH(VT5,'Project Database'!16:16,0) -> 23 | VU12: =MATCH(VU5,'Project Database'!16:16,0) -> 24 | VV12: =MATCH(VV5,'Project Database'!16:16,0) -> 25 | VW12: =MATCH(VW5,'Project Database'!16:16,0) -> 26 | VX12: =MATCH(VX5,'Project Database'!16:16,0) -> 27 | VY12: =MATCH(VY5,'Project Database'!16:16,0) -> 28 | VZ12: =MATCH(VZ5,'Project Database'!16:16,0) -> 17 | WA12: =MATCH(WA5,'Project Database'!16:16,0) -> 18 | WB12: =MATCH(WB5,'Project Database'!16:16,0) -> 19 | WC12: =MATCH(WC5,'Project Database'!16:16,0) -> 20 | WD12: =MATCH(WD5,'Project Database'!16:16,0) -> 21 | WE12: =MATCH(WE5,'Project Database'!16:16,0) -> 22 | WF12: =MATCH(WF5,'Project Database'!16:16,0) -> 23 | WG12: =MATCH(WG5,'Project Database'!16:16,0) -> 24 | WH12: =MATCH(WH5,'Project Database'!16:16,0) -> 25 | WI12: =MATCH(WI5,'Project Database'!16:16,0) -> 26 | WJ12: =MATCH(WJ5,'Project Database'!16:16,0) -> 27 | WK12: =MATCH(WK5,'Project Database'!16:16,0) -> 28 | WL12: =MATCH(WL5,'Project Database'!16:16,0) -> 17
C13: Seasonal Factor | E13: % p.p. | J13: =INDEX('Project Database'!1:1048576,Template!$H$1,Template!J12) -> 0.08333333333 | K13: =INDEX('Project Database'!1:1048576,Template!$H$1,Template!K12) -> 0.08333333333 | L13: =INDEX('Project Database'!1:1048576,Template!$H$1,Template!L12) -> 0.08333333333 | M13: =INDEX('Project Database'!1:1048576,Template!$H$1,Template!M12) -> 0.08333333333 | N13: =INDEX('Project Database'!1:1048576,Template!$H$1,Template!N12) -> 0.08333333333 | O13: =INDEX('Project Database'!1:1048576,Template!$H$1,Template!O12) -> 0.08333333333 | P13: =INDEX('Project Database'!1:1048576,Template!$H$1,Template!P12) -> 0.08333333333 | Q13: =INDEX('Project Database'!1:1048576,Template!$H$1,Template!Q12) -> 0.08333333333 | R13: =INDEX('Project Database'!1:1048576,Template!$H$1,Template!R12) -> 0.08333333333 | S13: =INDEX('Project Database'!1:1048576,Template!$H$1,Template!S12) -> 0.08333333333 | T13: =INDEX('Project Database'!1:1048576,Template!$H$1,Template!T12) -> 0.08333333333 | U13: =INDEX('Project Database'!1:1048576,Template!$H$1,Template!U12) -> 0.08333333333 | V13: =INDEX('Project Database'!1:1048576,Template!$H$1,Template!V12) -> 0.08333333333 | W13: =INDEX('Project Database'!1:1048576,Template!$H$1,Template!W12) -> 0.08333333333 | X13: =INDEX('Project Database'!1:1048576,Template!$H$1,Template!X12) -> 0.08333333333 | Y13: =INDEX('Project Database'!1:1048576,Template!$H$1,Template!Y12) -> 0.08333333333 | Z13: =INDEX('Project Database'!1:1048576,Template!$H$1,Template!Z12) -> 0.08333333333 | AA13: =INDEX('Project Database'!1:1048576,Template!$H$1,Template!AA12) -> 0.08333333333 | AB13: =INDEX('Project Database'!1:1048576,Template!$H$1,Template!AB12) -> 0.08333333333 | AC13: =INDEX('Project Database'!1:1048576,Template!$H$1,Template!AC12) -> 0.08333333333 | AD13: =INDEX('Project Database'!1:1048576,Template!$H$1,Template!AD12) -> 0.08333333333 | AE13: =INDEX('Project Database'!1:1048576,Template!$H$1,Template!AE12) -> 0.08333333333 | AF13: =INDEX('Project Database'!1:1048576,Template!$H$1,Template!AF12) -> 0.08333333333 | AG13: =INDEX('Project Database'!1:1048576,Template!$H$1,Template!AG12) -> 0.08333333333 | AH13: =INDEX('Project Database'!1:1048576,Template!$H$1,Template!AH12) -> 0.08333333333 | AI13: =INDEX('Project Database'!1:1048576,Template!$H$1,Template!AI12) -> 0.08333333333 | AJ13: =INDEX('Project Database'!1:1048576,Template!$H$1,Template!AJ12) -> 0.08333333333 | AK13: =INDEX('Project Database'!1:1048576,Template!$H$1,Template!AK12) -> 0.08333333333 | AL13: =INDEX('Project Database'!1:1048576,Template!$H$1,Template!AL12) -> 0.08333333333 | AM13: =INDEX('Project Database'!1:1048576,Template!$H$1,Template!AM12) -> 0.08333333333 | AN13: =INDEX('Project Database'!1:1048576,Template!$H$1,Template!AN12) -> 0.08333333333 | AO13: =INDEX('Project Database'!1:1048576,Template!$H$1,Template!AO12) -> 0.08333333333 | AP13: =INDEX('Project Database'!1:1048576,Template!$H$1,Template!AP12) -> 0.08333333333 | AQ13: =INDEX('Project Database'!1:1048576,Template!$H$1,Template!AQ12) -> 0.08333333333 | AR13: =INDEX('Project Database'!1:1048576,Template!$H$1,Template!AR12) -> 0.08333333333 | AS13: =INDEX('Project Database'!1:1048576,Template!$H$1,Template!AS12) -> 0.08333333333 | AT13: =INDEX('Project Database'!1:1048576,Template!$H$1,Template!AT12) -> 0.08333333333 | AU13: =INDEX('Project Database'!1:1048576,Template!$H$1,Template!AU12) -> 0.08333333333 | AV13: =INDEX('Project Database'!1:1048576,Template!$H$1,Template!AV12) -> 0.08333333333 | AW13: =INDEX('Project Database'!1:1048576,Template!$H$1,Template!AW12) -> 0.08333333333 | AX13: =INDEX('Project Database'!1:1048576,Template!$H$1,Template!AX12) -> 0.08333333333 | AY13: =INDEX('Project Database'!1:1048576,Template!$H$1,Template!AY12) -> 0.08333333333 | AZ13: =INDEX('Project Database'!1:1048576,Template!$H$1,Template!AZ12) -> 0.08333333333 | BA13: =INDEX('Project Database'!1:1048576,Template!$H$1,Template!BA12) -> 0.08333333333 | BB13: =INDEX('Project Database'!1:1048576,Template!$H$1,Template!BB12) -> 0.08333333333 | BC13: =INDEX('Project Database'!1:1048576,Template!$H$1,Template!BC12) -> 0.08333333333 | BD13: =INDEX('Project Database'!1:1048576,Template!$H$1,Template!BD12) -> 0.08333333333 | BE13: =INDEX('Project Database'!1:1048576,Template!$H$1,Template!BE12) -> 0.08333333333 | BF13: =INDEX('Project Database'!1:1048576,Template!$H$1,Template!BF12) -> 0.08333333333 | BG13: =INDEX('Project Database'!1:1048576,Template!$H$1,Template!BG12) -> 0.08333333333 | BH13: =INDEX('Project Database'!1:1048576,Template!$H$1,Template!BH12) -> 0.08333333333 | BI13: =INDEX('Project Database'!1:1048576,Template!$H$1,Template!BI12) -> 0.08333333333 | BJ13: =INDEX('Project Database'!1:1048576,Template!$H$1,Template!BJ12) -> 0.08333333333 | BK13: =INDEX('Project Database'!1:1048576,Template!$H$1,Template!BK12) -> 0.08333333333 | BL13: =INDEX('Project Database'!1:1048576,Template!$H$1,Template!BL12) -> 0.08333333333 | BM13: =INDEX('Project Database'!1:1048576,Template!$H$1,Template!BM12) -> 0.08333333333 | BN13: =INDEX('Project Database'!1:1048576,Template!$H$1,Template!BN12) -> 0.08333333333 | BO13: =INDEX('Project Database'!1:1048576,Template!$H$1,Template!BO12) -> 0.08333333333 | BP13: =INDEX('Project Database'!1:1048576,Template!$H$1,Template!BP12) -> 0.08333333333 | BQ13: =INDEX('Project Database'!1:1048576,Template!$H$1,Template!BQ12) -> 0.08333333333 | BR13: =INDEX('Project Database'!1:1048576,Template!$H$1,Template!BR12) -> 0.08333333333 | BS13: =INDEX('Project Database'!1:1048576,Template!$H$1,Template!BS12) -> 0.08333333333 | BT13: =INDEX('Project Database'!1:1048576,Template!$H$1,Template!BT12) -> 0.08333333333 | BU13: =INDEX('Project Database'!1:1048576,Template!$H$1,Template!BU12) -> 0.08333333333 | BV13: =INDEX('Project Database'!1:1048576,Template!$H$1,Template!BV12) -> 0.08333333333 | BW13: =INDEX('Project Database'!1:1048576,Template!$H$1,Template!BW12) -> 0.08333333333 | BX13: =INDEX('Project Database'!1:1048576,Template!$H$1,Template!BX12) -> 0.08333333333 | BY13: =INDEX('Project Database'!1:1048576,Template!$H$1,Template!BY12) -> 0.08333333333 | BZ13: =INDEX('Project Database'!1:1048576,Template!$H$1,Template!BZ12) -> 0.08333333333 | CA13: =INDEX('Project Database'!1:1048576,Template!$H$1,Template!CA12) -> 0.08333333333 | CB13: =INDEX('Project Database'!1:1048576,Template!$H$1,Template!CB12) -> 0.08333333333 | CC13: =INDEX('Project Database'!1:1048576,Template!$H$1,Template!CC12) -> 0.08333333333 | CD13: =INDEX('Project Database'!1:1048576,Template!$H$1,Template!CD12) -> 0.08333333333 | CE13: =INDEX('Project Database'!1:1048576,Template!$H$1,Template!CE12) -> 0.08333333333 | CF13: =INDEX('Project Database'!1:1048576,Template!$H$1,Template!CF12) -> 0.08333333333 | CG13: =INDEX('Project Database'!1:1048576,Template!$H$1,Template!CG12) -> 0.08333333333 | CH13: =INDEX('Project Database'!1:1048576,Template!$H$1,Template!CH12) -> 0.08333333333 | CI13: =INDEX('Project Database'!1:1048576,Template!$H$1,Template!CI12) -> 0.08333333333 | CJ13: =INDEX('Project Database'!1:1048576,Template!$H$1,Template!CJ12) -> 0.08333333333 | CK13: =INDEX('Project Database'!1:1048576,Template!$H$1,Template!CK12) -> 0.08333333333 | CL13: =INDEX('Project Database'!1:1048576,Template!$H$1,Template!CL12) -> 0.08333333333 | CM13: =INDEX('Project Database'!1:1048576,Template!$H$1,Template!CM12) -> 0.08333333333 | CN13: =INDEX('Project Database'!1:1048576,Template!$H$1,Template!CN12) -> 0.08333333333 | CO13: =INDEX('Project Database'!1:1048576,Template!$H$1,Template!CO12) -> 0.08333333333 | CP13: =INDEX('Project Database'!1:1048576,Template!$H$1,Template!CP12) -> 0.08333333333 | CQ13: =INDEX('Project Database'!1:1048576,Template!$H$1,Template!CQ12) -> 0.08333333333 | CR13: =INDEX('Project Database'!1:1048576,Template!$H$1,Template!CR12) -> 0.08333333333 | CS13: =INDEX('Project Database'!1:1048576,Template!$H$1,Template!CS12) -> 0.08333333333 | CT13: =INDEX('Project Database'!1:1048576,Template!$H$1,Template!CT12) -> 0.08333333333 | CU13: =INDEX('Project Database'!1:1048576,Template!$H$1,Template!CU12) -> 0.08333333333 | CV13: =INDEX('Project Database'!1:1048576,Template!$H$1,Template!CV12) -> 0.08333333333 | CW13: =INDEX('Project Database'!1:1048576,Template!$H$1,Template!CW12) -> 0.08333333333 | CX13: =INDEX('Project Database'!1:1048576,Template!$H$1,Template!CX12) -> 0.08333333333 | CY13: =INDEX('Project Database'!1:1048576,Template!$H$1,Template!CY12) -> 0.08333333333 | CZ13: =INDEX('Project Database'!1:1048576,Template!$H$1,Template!CZ12) -> 0.08333333333 | DA13: =INDEX('Project Database'!1:1048576,Template!$H$1,Template!DA12) -> 0.08333333333 | DB13: =INDEX('Project Database'!1:1048576,Template!$H$1,Template!DB12) -> 0.08333333333 | DC13: =INDEX('Project Database'!1:1048576,Template!$H$1,Template!DC12) -> 0.08333333333 | DD13: =INDEX('Project Database'!1:1048576,Template!$H$1,Template!DD12) -> 0.08333333333 | DE13: =INDEX('Project Database'!1:1048576,Template!$H$1,Template!DE12) -> 0.08333333333 | DF13: =INDEX('Project Database'!1:1048576,Template!$H$1,Template!DF12) -> 0.08333333333 | DG13: =INDEX('Project Database'!1:1048576,Template!$H$1,Template!DG12) -> 0.08333333333 | DH13: =INDEX('Project Database'!1:1048576,Template!$H$1,Template!DH12) -> 0.08333333333 | DI13: =INDEX('Project Database'!1:1048576,Template!$H$1,Template!DI12) -> 0.08333333333 | DJ13: =INDEX('Project Database'!1:1048576,Template!$H$1,Template!DJ12) -> 0.08333333333 | DK13: =INDEX('Project Database'!1:1048576,Template!$H$1,Template!DK12) -> 0.08333333333 | DL13: =INDEX('Project Database'!1:1048576,Template!$H$1,Template!DL12) -> 0.08333333333 | DM13: =INDEX('Project Database'!1:1048576,Template!$H$1,Template!DM12) -> 0.08333333333 | DN13: =INDEX('Project Database'!1:1048576,Template!$H$1,Template!DN12) -> 0.08333333333 | DO13: =INDEX('Project Database'!1:1048576,Template!$H$1,Template!DO12) -> 0.08333333333 | DP13: =INDEX('Project Database'!1:1048576,Template!$H$1,Template!DP12) -> 0.08333333333 | DQ13: =INDEX('Project Database'!1:1048576,Template!$H$1,Template!DQ12) -> 0.08333333333 | DR13: =INDEX('Project Database'!1:1048576,Template!$H$1,Template!DR12) -> 0.08333333333 | DS13: =INDEX('Project Database'!1:1048576,Template!$H$1,Template!DS12) -> 0.08333333333 | DT13: =INDEX('Project Database'!1:1048576,Template!$H$1,Template!DT12) -> 0.08333333333 | DU13: =INDEX('Project Database'!1:1048576,Template!$H$1,Template!DU12) -> 0.08333333333 | DV13: =INDEX('Project Database'!1:1048576,Template!$H$1,Template!DV12) -> 0.08333333333 | DW13: =INDEX('Project Database'!1:1048576,Template!$H$1,Template!DW12) -> 0.08333333333 | DX13: =INDEX('Project Database'!1:1048576,Template!$H$1,Template!DX12) -> 0.08333333333 | DY13: =INDEX('Project Database'!1:1048576,Template!$H$1,Template!DY12) -> 0.08333333333 | DZ13: =INDEX('Project Database'!1:1048576,Template!$H$1,Template!DZ12) -> 0.08333333333 | EA13: =INDEX('Project Database'!1:1048576,Template!$H$1,Template!EA12) -> 0.08333333333 | EB13: =INDEX('Project Database'!1:1048576,Template!$H$1,Template!EB12) -> 0.08333333333 | EC13: =INDEX('Project Database'!1:1048576,Template!$H$1,Template!EC12) -> 0.08333333333 | ED13: =INDEX('Project Database'!1:1048576,Template!$H$1,Template!ED12) -> 0.08333333333 | EE13: =INDEX('Project Database'!1:1048576,Template!$H$1,Template!EE12) -> 0.08333333333 | EF13: =INDEX('Project Database'!1:1048576,Template!$H$1,Template!EF12) -> 0.08333333333 | EG13: =INDEX('Project Database'!1:1048576,Template!$H$1,Template!EG12) -> 0.08333333333 | EH13: =INDEX('Project Database'!1:1048576,Template!$H$1,Template!EH12) -> 0.08333333333 | EI13: =INDEX('Project Database'!1:1048576,Template!$H$1,Template!EI12) -> 0.08333333333 | EJ13: =INDEX('Project Database'!1:1048576,Template!$H$1,Template!EJ12) -> 0.08333333333 | EK13: =INDEX('Project Database'!1:1048576,Template!$H$1,Template!EK12) -> 0.08333333333 | EL13: =INDEX('Project Database'!1:1048576,Template!$H$1,Template!EL12) -> 0.08333333333 | EM13: =INDEX('Project Database'!1:1048576,Template!$H$1,Template!EM12) -> 0.08333333333 | EN13: =INDEX('Project Database'!1:1048576,Template!$H$1,Template!EN12) -> 0.08333333333 | EO13: =INDEX('Project Database'!1:1048576,Template!$H$1,Template!EO12) -> 0.08333333333 | EP13: =INDEX('Project Database'!1:1048576,Template!$H$1,Template!EP12) -> 0.08333333333 | EQ13: =INDEX('Project Database'!1:1048576,Template!$H$1,Template!EQ12) -> 0.08333333333 | ER13: =INDEX('Project Database'!1:1048576,Template!$H$1,Template!ER12) -> 0.08333333333 | ES13: =INDEX('Project Database'!1:1048576,Template!$H$1,Template!ES12) -> 0.08333333333 | ET13: =INDEX('Project Database'!1:1048576,Template!$H$1,Template!ET12) -> 0.08333333333 | EU13: =INDEX('Project Database'!1:1048576,Template!$H$1,Template!EU12) -> 0.08333333333 | EV13: =INDEX('Project Database'!1:1048576,Template!$H$1,Template!EV12) -> 0.08333333333 | EW13: =INDEX('Project Database'!1:1048576,Template!$H$1,Template!EW12) -> 0.08333333333 | EX13: =INDEX('Project Database'!1:1048576,Template!$H$1,Template!EX12) -> 0.08333333333 | EY13: =INDEX('Project Database'!1:1048576,Template!$H$1,Template!EY12) -> 0.08333333333 | EZ13: =INDEX('Project Database'!1:1048576,Template!$H$1,Template!EZ12) -> 0.08333333333 | FA13: =INDEX('Project Database'!1:1048576,Template!$H$1,Template!FA12) -> 0.08333333333 | FB13: =INDEX('Project Database'!1:1048576,Template!$H$1,Template!FB12) -> 0.08333333333 | FC13: =INDEX('Project Database'!1:1048576,Template!$H$1,Template!FC12) -> 0.08333333333 | FD13: =INDEX('Project Database'!1:1048576,Template!$H$1,Template!FD12) -> 0.08333333333 | FE13: =INDEX('Project Database'!1:1048576,Template!$H$1,Template!FE12) -> 0.08333333333 | FF13: =INDEX('Project Database'!1:1048576,Template!$H$1,Template!FF12) -> 0.08333333333 | FG13: =INDEX('Project Database'!1:1048576,Template!$H$1,Template!FG12) -> 0.08333333333 | FH13: =INDEX('Project Database'!1:1048576,Template!$H$1,Template!FH12) -> 0.08333333333 | FI13: =INDEX('Project Database'!1:1048576,Template!$H$1,Template!FI12) -> 0.08333333333 | FJ13: =INDEX('Project Database'!1:1048576,Template!$H$1,Template!FJ12) -> 0.08333333333 | FK13: =INDEX('Project Database'!1:1048576,Template!$H$1,Template!FK12) -> 0.08333333333 | FL13: =INDEX('Project Database'!1:1048576,Template!$H$1,Template!FL12) -> 0.08333333333 | FM13: =INDEX('Project Database'!1:1048576,Template!$H$1,Template!FM12) -> 0.08333333333 | FN13: =INDEX('Project Database'!1:1048576,Template!$H$1,Template!FN12) -> 0.08333333333 | FO13: =INDEX('Project Database'!1:1048576,Template!$H$1,Template!FO12) -> 0.08333333333 | FP13: =INDEX('Project Database'!1:1048576,Template!$H$1,Template!FP12) -> 0.08333333333 | FQ13: =INDEX('Project Database'!1:1048576,Template!$H$1,Template!FQ12) -> 0.08333333333 | FR13: =INDEX('Project Database'!1:1048576,Template!$H$1,Template!FR12) -> 0.08333333333 | FS13: =INDEX('Project Database'!1:1048576,Template!$H$1,Template!FS12) -> 0.08333333333 | FT13: =INDEX('Project Database'!1:1048576,Template!$H$1,Template!FT12) -> 0.08333333333 | FU13: =INDEX('Project Database'!1:1048576,Template!$H$1,Template!FU12) -> 0.08333333333 | FV13: =INDEX('Project Database'!1:1048576,Template!$H$1,Template!FV12) -> 0.08333333333 | FW13: =INDEX('Project Database'!1:1048576,Template!$H$1,Template!FW12) -> 0.08333333333 | FX13: =INDEX('Project Database'!1:1048576,Template!$H$1,Template!FX12) -> 0.08333333333 | FY13: =INDEX('Project Database'!1:1048576,Template!$H$1,Template!FY12) -> 0.08333333333 | FZ13: =INDEX('Project Database'!1:1048576,Template!$H$1,Template!FZ12) -> 0.08333333333 | GA13: =INDEX('Project Database'!1:1048576,Template!$H$1,Template!GA12) -> 0.08333333333 | GB13: =INDEX('Project Database'!1:1048576,Template!$H$1,Template!GB12) -> 0.08333333333 | GC13: =INDEX('Project Database'!1:1048576,Template!$H$1,Template!GC12) -> 0.08333333333 | GD13: =INDEX('Project Database'!1:1048576,Template!$H$1,Template!GD12) -> 0.08333333333 | GE13: =INDEX('Project Database'!1:1048576,Template!$H$1,Template!GE12) -> 0.08333333333 | GF13: =INDEX('Project Database'!1:1048576,Template!$H$1,Template!GF12) -> 0.08333333333 | GG13: =INDEX('Project Database'!1:1048576,Template!$H$1,Template!GG12) -> 0.08333333333 | GH13: =INDEX('Project Database'!1:1048576,Template!$H$1,Template!GH12) -> 0.08333333333 | GI13: =INDEX('Project Database'!1:1048576,Template!$H$1,Template!GI12) -> 0.08333333333 | GJ13: =INDEX('Project Database'!1:1048576,Template!$H$1,Template!GJ12) -> 0.08333333333 | GK13: =INDEX('Project Database'!1:1048576,Template!$H$1,Template!GK12) -> 0.08333333333 | GL13: =INDEX('Project Database'!1:1048576,Template!$H$1,Template!GL12) -> 0.08333333333 | GM13: =INDEX('Project Database'!1:1048576,Template!$H$1,Template!GM12) -> 0.08333333333 | GN13: =INDEX('Project Database'!1:1048576,Template!$H$1,Template!GN12) -> 0.08333333333 | GO13: =INDEX('Project Database'!1:1048576,Template!$H$1,Template!GO12) -> 0.08333333333 | GP13: =INDEX('Project Database'!1:1048576,Template!$H$1,Template!GP12) -> 0.08333333333 | GQ13: =INDEX('Project Database'!1:1048576,Template!$H$1,Template!GQ12) -> 0.08333333333 | GR13: =INDEX('Project Database'!1:1048576,Template!$H$1,Template!GR12) -> 0.08333333333 | GS13: =INDEX('Project Database'!1:1048576,Template!$H$1,Template!GS12) -> 0.08333333333 | GT13: =INDEX('Project Database'!1:1048576,Template!$H$1,Template!GT12) -> 0.08333333333 | GU13: =INDEX('Project Database'!1:1048576,Template!$H$1,Template!GU12) -> 0.08333333333 | GV13: =INDEX('Project Database'!1:1048576,Template!$H$1,Template!GV12) -> 0.08333333333 | GW13: =INDEX('Project Database'!1:1048576,Template!$H$1,Template!GW12) -> 0.08333333333 | GX13: =INDEX('Project Database'!1:1048576,Template!$H$1,Template!GX12) -> 0.08333333333 | GY13: =INDEX('Project Database'!1:1048576,Template!$H$1,Template!GY12) -> 0.08333333333 | GZ13: =INDEX('Project Database'!1:1048576,Template!$H$1,Template!GZ12) -> 0.08333333333 | HA13: =INDEX('Project Database'!1:1048576,Template!$H$1,Template!HA12) -> 0.08333333333 | HB13: =INDEX('Project Database'!1:1048576,Template!$H$1,Template!HB12) -> 0.08333333333 | HC13: =INDEX('Project Database'!1:1048576,Template!$H$1,Template!HC12) -> 0.08333333333 | HD13: =INDEX('Project Database'!1:1048576,Template!$H$1,Template!HD12) -> 0.08333333333 | HE13: =INDEX('Project Database'!1:1048576,Template!$H$1,Template!HE12) -> 0.08333333333 | HF13: =INDEX('Project Database'!1:1048576,Template!$H$1,Template!HF12) -> 0.08333333333 | HG13: =INDEX('Project Database'!1:1048576,Template!$H$1,Template!HG12) -> 0.08333333333 | HH13: =INDEX('Project Database'!1:1048576,Template!$H$1,Template!HH12) -> 0.08333333333 | HI13: =INDEX('Project Database'!1:1048576,Template!$H$1,Template!HI12) -> 0.08333333333 | HJ13: =INDEX('Project Database'!1:1048576,Template!$H$1,Template!HJ12) -> 0.08333333333 | HK13: =INDEX('Project Database'!1:1048576,Template!$H$1,Template!HK12) -> 0.08333333333 | HL13: =INDEX('Project Database'!1:1048576,Template!$H$1,Template!HL12) -> 0.08333333333 | HM13: =INDEX('Project Database'!1:1048576,Template!$H$1,Template!HM12) -> 0.08333333333 | HN13: =INDEX('Project Database'!1:1048576,Template!$H$1,Template!HN12) -> 0.08333333333 | HO13: =INDEX('Project Database'!1:1048576,Template!$H$1,Template!HO12) -> 0.08333333333 | HP13: =INDEX('Project Database'!1:1048576,Template!$H$1,Template!HP12) -> 0.08333333333 | HQ13: =INDEX('Project Database'!1:1048576,Template!$H$1,Template!HQ12) -> 0.08333333333 | HR13: =INDEX('Project Database'!1:1048576,Template!$H$1,Template!HR12) -> 0.08333333333 | HS13: =INDEX('Project Database'!1:1048576,Template!$H$1,Template!HS12) -> 0.08333333333 | HT13: =INDEX('Project Database'!1:1048576,Template!$H$1,Template!HT12) -> 0.08333333333 | HU13: =INDEX('Project Database'!1:1048576,Template!$H$1,Template!HU12) -> 0.08333333333 | HV13: =INDEX('Project Database'!1:1048576,Template!$H$1,Template!HV12) -> 0.08333333333 | HW13: =INDEX('Project Database'!1:1048576,Template!$H$1,Template!HW12) -> 0.08333333333 | HX13: =INDEX('Project Database'!1:1048576,Template!$H$1,Template!HX12) -> 0.08333333333 | HY13: =INDEX('Project Database'!1:1048576,Template!$H$1,Template!HY12) -> 0.08333333333 | HZ13: =INDEX('Project Database'!1:1048576,Template!$H$1,Template!HZ12) -> 0.08333333333 | IA13: =INDEX('Project Database'!1:1048576,Template!$H$1,Template!IA12) -> 0.08333333333 | IB13: =INDEX('Project Database'!1:1048576,Template!$H$1,Template!IB12) -> 0.08333333333 | IC13: =INDEX('Project Database'!1:1048576,Template!$H$1,Template!IC12) -> 0.08333333333 | ID13: =INDEX('Project Database'!1:1048576,Template!$H$1,Template!ID12) -> 0.08333333333 | IE13: =INDEX('Project Database'!1:1048576,Template!$H$1,Template!IE12) -> 0.08333333333 | IF13: =INDEX('Project Database'!1:1048576,Template!$H$1,Template!IF12) -> 0.08333333333 | IG13: =INDEX('Project Database'!1:1048576,Template!$H$1,Template!IG12) -> 0.08333333333 | IH13: =INDEX('Project Database'!1:1048576,Template!$H$1,Template!IH12) -> 0.08333333333 | II13: =INDEX('Project Database'!1:1048576,Template!$H$1,Template!II12) -> 0.08333333333 | IJ13: =INDEX('Project Database'!1:1048576,Template!$H$1,Template!IJ12) -> 0.08333333333 | IK13: =INDEX('Project Database'!1:1048576,Template!$H$1,Template!IK12) -> 0.08333333333 | IL13: =INDEX('Project Database'!1:1048576,Template!$H$1,Template!IL12) -> 0.08333333333 | IM13: =INDEX('Project Database'!1:1048576,Template!$H$1,Template!IM12) -> 0.08333333333 | IN13: =INDEX('Project Database'!1:1048576,Template!$H$1,Template!IN12) -> 0.08333333333 | IO13: =INDEX('Project Database'!1:1048576,Template!$H$1,Template!IO12) -> 0.08333333333 | IP13: =INDEX('Project Database'!1:1048576,Template!$H$1,Template!IP12) -> 0.08333333333 | IQ13: =INDEX('Project Database'!1:1048576,Template!$H$1,Template!IQ12) -> 0.08333333333 | IR13: =INDEX('Project Database'!1:1048576,Template!$H$1,Template!IR12) -> 0.08333333333 | IS13: =INDEX('Project Database'!1:1048576,Template!$H$1,Template!IS12) -> 0.08333333333 | IT13: =INDEX('Project Database'!1:1048576,Template!$H$1,Template!IT12) -> 0.08333333333 | IU13: =INDEX('Project Database'!1:1048576,Template!$H$1,Template!IU12) -> 0.08333333333 | IV13: =INDEX('Project Database'!1:1048576,Template!$H$1,Template!IV12) -> 0.08333333333 | IW13: =INDEX('Project Database'!1:1048576,Template!$H$1,Template!IW12) -> 0.08333333333 | IX13: =INDEX('Project Database'!1:1048576,Template!$H$1,Template!IX12) -> 0.08333333333 | IY13: =INDEX('Project Database'!1:1048576,Template!$H$1,Template!IY12) -> 0.08333333333 | IZ13: =INDEX('Project Database'!1:1048576,Template!$H$1,Template!IZ12) -> 0.08333333333 | JA13: =INDEX('Project Database'!1:1048576,Template!$H$1,Template!JA12) -> 0.08333333333 | JB13: =INDEX('Project Database'!1:1048576,Template!$H$1,Template!JB12) -> 0.08333333333 | JC13: =INDEX('Project Database'!1:1048576,Template!$H$1,Template!JC12) -> 0.08333333333 | JD13: =INDEX('Project Database'!1:1048576,Template!$H$1,Template!JD12) -> 0.08333333333 | JE13: =INDEX('Project Database'!1:1048576,Template!$H$1,Template!JE12) -> 0.08333333333 | JF13: =INDEX('Project Database'!1:1048576,Template!$H$1,Template!JF12) -> 0.08333333333 | JG13: =INDEX('Project Database'!1:1048576,Template!$H$1,Template!JG12) -> 0.08333333333 | JH13: =INDEX('Project Database'!1:1048576,Template!$H$1,Template!JH12) -> 0.08333333333 | JI13: =INDEX('Project Database'!1:1048576,Template!$H$1,Template!JI12) -> 0.08333333333 | JJ13: =INDEX('Project Database'!1:1048576,Template!$H$1,Template!JJ12) -> 0.08333333333 | JK13: =INDEX('Project Database'!1:1048576,Template!$H$1,Template!JK12) -> 0.08333333333 | JL13: =INDEX('Project Database'!1:1048576,Template!$H$1,Template!JL12) -> 0.08333333333 | JM13: =INDEX('Project Database'!1:1048576,Template!$H$1,Template!JM12) -> 0.08333333333 | JN13: =INDEX('Project Database'!1:1048576,Template!$H$1,Template!JN12) -> 0.08333333333 | JO13: =INDEX('Project Database'!1:1048576,Template!$H$1,Template!JO12) -> 0.08333333333 | JP13: =INDEX('Project Database'!1:1048576,Template!$H$1,Template!JP12) -> 0.08333333333 | JQ13: =INDEX('Project Database'!1:1048576,Template!$H$1,Template!JQ12) -> 0.08333333333 | JR13: =INDEX('Project Database'!1:1048576,Template!$H$1,Template!JR12) -> 0.08333333333 | JS13: =INDEX('Project Database'!1:1048576,Template!$H$1,Template!JS12) -> 0.08333333333 | JT13: =INDEX('Project Database'!1:1048576,Template!$H$1,Template!JT12) -> 0.08333333333 | JU13: =INDEX('Project Database'!1:1048576,Template!$H$1,Template!JU12) -> 0.08333333333 | JV13: =INDEX('Project Database'!1:1048576,Template!$H$1,Template!JV12) -> 0.08333333333 | JW13: =INDEX('Project Database'!1:1048576,Template!$H$1,Template!JW12) -> 0.08333333333 | JX13: =INDEX('Project Database'!1:1048576,Template!$H$1,Template!JX12) -> 0.08333333333 | JY13: =INDEX('Project Database'!1:1048576,Template!$H$1,Template!JY12) -> 0.08333333333 | JZ13: =INDEX('Project Database'!1:1048576,Template!$H$1,Template!JZ12) -> 0.08333333333 | KA13: =INDEX('Project Database'!1:1048576,Template!$H$1,Template!KA12) -> 0.08333333333 | KB13: =INDEX('Project Database'!1:1048576,Template!$H$1,Template!KB12) -> 0.08333333333 | KC13: =INDEX('Project Database'!1:1048576,Template!$H$1,Template!KC12) -> 0.08333333333 | KD13: =INDEX('Project Database'!1:1048576,Template!$H$1,Template!KD12) -> 0.08333333333 | KE13: =INDEX('Project Database'!1:1048576,Template!$H$1,Template!KE12) -> 0.08333333333 | KF13: =INDEX('Project Database'!1:1048576,Template!$H$1,Template!KF12) -> 0.08333333333 | KG13: =INDEX('Project Database'!1:1048576,Template!$H$1,Template!KG12) -> 0.08333333333 | KH13: =INDEX('Project Database'!1:1048576,Template!$H$1,Template!KH12) -> 0.08333333333 | KI13: =INDEX('Project Database'!1:1048576,Template!$H$1,Template!KI12) -> 0.08333333333 | KJ13: =INDEX('Project Database'!1:1048576,Template!$H$1,Template!KJ12) -> 0.08333333333 | KK13: =INDEX('Project Database'!1:1048576,Template!$H$1,Template!KK12) -> 0.08333333333 | KL13: =INDEX('Project Database'!1:1048576,Template!$H$1,Template!KL12) -> 0.08333333333 | KM13: =INDEX('Project Database'!1:1048576,Template!$H$1,Template!KM12) -> 0.08333333333 | KN13: =INDEX('Project Database'!1:1048576,Template!$H$1,Template!KN12) -> 0.08333333333 | KO13: =INDEX('Project Database'!1:1048576,Template!$H$1,Template!KO12) -> 0.08333333333 | KP13: =INDEX('Project Database'!1:1048576,Template!$H$1,Template!KP12) -> 0.08333333333 | KQ13: =INDEX('Project Database'!1:1048576,Template!$H$1,Template!KQ12) -> 0.08333333333 | KR13: =INDEX('Project Database'!1:1048576,Template!$H$1,Template!KR12) -> 0.08333333333 | KS13: =INDEX('Project Database'!1:1048576,Template!$H$1,Template!KS12) -> 0.08333333333 | KT13: =INDEX('Project Database'!1:1048576,Template!$H$1,Template!KT12) -> 0.08333333333 | KU13: =INDEX('Project Database'!1:1048576,Template!$H$1,Template!KU12) -> 0.08333333333 | KV13: =INDEX('Project Database'!1:1048576,Template!$H$1,Template!KV12) -> 0.08333333333 | KW13: =INDEX('Project Database'!1:1048576,Template!$H$1,Template!KW12) -> 0.08333333333 | KX13: =INDEX('Project Database'!1:1048576,Template!$H$1,Template!KX12) -> 0.08333333333 | KY13: =INDEX('Project Database'!1:1048576,Template!$H$1,Template!KY12) -> 0.08333333333 | KZ13: =INDEX('Project Database'!1:1048576,Template!$H$1,Template!KZ12) -> 0.08333333333 | LA13: =INDEX('Project Database'!1:1048576,Template!$H$1,Template!LA12) -> 0.08333333333 | LB13: =INDEX('Project Database'!1:1048576,Template!$H$1,Template!LB12) -> 0.08333333333 | LC13: =INDEX('Project Database'!1:1048576,Template!$H$1,Template!LC12) -> 0.08333333333 | LD13: =INDEX('Project Database'!1:1048576,Template!$H$1,Template!LD12) -> 0.08333333333 | LE13: =INDEX('Project Database'!1:1048576,Template!$H$1,Template!LE12) -> 0.08333333333 | LF13: =INDEX('Project Database'!1:1048576,Template!$H$1,Template!LF12) -> 0.08333333333 | LG13: =INDEX('Project Database'!1:1048576,Template!$H$1,Template!LG12) -> 0.08333333333 | LH13: =INDEX('Project Database'!1:1048576,Template!$H$1,Template!LH12) -> 0.08333333333 | LI13: =INDEX('Project Database'!1:1048576,Template!$H$1,Template!LI12) -> 0.08333333333 | LJ13: =INDEX('Project Database'!1:1048576,Template!$H$1,Template!LJ12) -> 0.08333333333 | LK13: =INDEX('Project Database'!1:1048576,Template!$H$1,Template!LK12) -> 0.08333333333 | LL13: =INDEX('Project Database'!1:1048576,Template!$H$1,Template!LL12) -> 0.08333333333 | LM13: =INDEX('Project Database'!1:1048576,Template!$H$1,Template!LM12) -> 0.08333333333 | LN13: =INDEX('Project Database'!1:1048576,Template!$H$1,Template!LN12) -> 0.08333333333 | LO13: =INDEX('Project Database'!1:1048576,Template!$H$1,Template!LO12) -> 0.08333333333 | LP13: =INDEX('Project Database'!1:1048576,Template!$H$1,Template!LP12) -> 0.08333333333 | LQ13: =INDEX('Project Database'!1:1048576,Template!$H$1,Template!LQ12) -> 0.08333333333 | LR13: =INDEX('Project Database'!1:1048576,Template!$H$1,Template!LR12) -> 0.08333333333 | LS13: =INDEX('Project Database'!1:1048576,Template!$H$1,Template!LS12) -> 0.08333333333 | LT13: =INDEX('Project Database'!1:1048576,Template!$H$1,Template!LT12) -> 0.08333333333 | LU13: =INDEX('Project Database'!1:1048576,Template!$H$1,Template!LU12) -> 0.08333333333 | LV13: =INDEX('Project Database'!1:1048576,Template!$H$1,Template!LV12) -> 0.08333333333 | LW13: =INDEX('Project Database'!1:1048576,Template!$H$1,Template!LW12) -> 0.08333333333 | LX13: =INDEX('Project Database'!1:1048576,Template!$H$1,Template!LX12) -> 0.08333333333 | LY13: =INDEX('Project Database'!1:1048576,Template!$H$1,Template!LY12) -> 0.08333333333 | LZ13: =INDEX('Project Database'!1:1048576,Template!$H$1,Template!LZ12) -> 0.08333333333 | MA13: =INDEX('Project Database'!1:1048576,Template!$H$1,Template!MA12) -> 0.08333333333 | MB13: =INDEX('Project Database'!1:1048576,Template!$H$1,Template!MB12) -> 0.08333333333 | MC13: =INDEX('Project Database'!1:1048576,Template!$H$1,Template!MC12) -> 0.08333333333 | MD13: =INDEX('Project Database'!1:1048576,Template!$H$1,Template!MD12) -> 0.08333333333 | ME13: =INDEX('Project Database'!1:1048576,Template!$H$1,Template!ME12) -> 0.08333333333 | MF13: =INDEX('Project Database'!1:1048576,Template!$H$1,Template!MF12) -> 0.08333333333 | MG13: =INDEX('Project Database'!1:1048576,Template!$H$1,Template!MG12) -> 0.08333333333 | MH13: =INDEX('Project Database'!1:1048576,Template!$H$1,Template!MH12) -> 0.08333333333 | MI13: =INDEX('Project Database'!1:1048576,Template!$H$1,Template!MI12) -> 0.08333333333 | MJ13: =INDEX('Project Database'!1:1048576,Template!$H$1,Template!MJ12) -> 0.08333333333 | MK13: =INDEX('Project Database'!1:1048576,Template!$H$1,Template!MK12) -> 0.08333333333 | ML13: =INDEX('Project Database'!1:1048576,Template!$H$1,Template!ML12) -> 0.08333333333 | MM13: =INDEX('Project Database'!1:1048576,Template!$H$1,Template!MM12) -> 0.08333333333 | MN13: =INDEX('Project Database'!1:1048576,Template!$H$1,Template!MN12) -> 0.08333333333 | MO13: =INDEX('Project Database'!1:1048576,Template!$H$1,Template!MO12) -> 0.08333333333 | MP13: =INDEX('Project Database'!1:1048576,Template!$H$1,Template!MP12) -> 0.08333333333 | MQ13: =INDEX('Project Database'!1:1048576,Template!$H$1,Template!MQ12) -> 0.08333333333 | MR13: =INDEX('Project Database'!1:1048576,Template!$H$1,Template!MR12) -> 0.08333333333 | MS13: =INDEX('Project Database'!1:1048576,Template!$H$1,Template!MS12) -> 0.08333333333 | MT13: =INDEX('Project Database'!1:1048576,Template!$H$1,Template!MT12) -> 0.08333333333 | MU13: =INDEX('Project Database'!1:1048576,Template!$H$1,Template!MU12) -> 0.08333333333 | MV13: =INDEX('Project Database'!1:1048576,Template!$H$1,Template!MV12) -> 0.08333333333 | MW13: =INDEX('Project Database'!1:1048576,Template!$H$1,Template!MW12) -> 0.08333333333 | MX13: =INDEX('Project Database'!1:1048576,Template!$H$1,Template!MX12) -> 0.08333333333 | MY13: =INDEX('Project Database'!1:1048576,Template!$H$1,Template!MY12) -> 0.08333333333 | MZ13: =INDEX('Project Database'!1:1048576,Template!$H$1,Template!MZ12) -> 0.08333333333 | NA13: =INDEX('Project Database'!1:1048576,Template!$H$1,Template!NA12) -> 0.08333333333 | NB13: =INDEX('Project Database'!1:1048576,Template!$H$1,Template!NB12) -> 0.08333333333 | NC13: =INDEX('Project Database'!1:1048576,Template!$H$1,Template!NC12) -> 0.08333333333 | ND13: =INDEX('Project Database'!1:1048576,Template!$H$1,Template!ND12) -> 0.08333333333 | NE13: =INDEX('Project Database'!1:1048576,Template!$H$1,Template!NE12) -> 0.08333333333 | NF13: =INDEX('Project Database'!1:1048576,Template!$H$1,Template!NF12) -> 0.08333333333 | NG13: =INDEX('Project Database'!1:1048576,Template!$H$1,Template!NG12) -> 0.08333333333 | NH13: =INDEX('Project Database'!1:1048576,Template!$H$1,Template!NH12) -> 0.08333333333 | NI13: =INDEX('Project Database'!1:1048576,Template!$H$1,Template!NI12) -> 0.08333333333 | NJ13: =INDEX('Project Database'!1:1048576,Template!$H$1,Template!NJ12) -> 0.08333333333 | NK13: =INDEX('Project Database'!1:1048576,Template!$H$1,Template!NK12) -> 0.08333333333 | NL13: =INDEX('Project Database'!1:1048576,Template!$H$1,Template!NL12) -> 0.08333333333 | NM13: =INDEX('Project Database'!1:1048576,Template!$H$1,Template!NM12) -> 0.08333333333 | NN13: =INDEX('Project Database'!1:1048576,Template!$H$1,Template!NN12) -> 0.08333333333 | NO13: =INDEX('Project Database'!1:1048576,Template!$H$1,Template!NO12) -> 0.08333333333 | NP13: =INDEX('Project Database'!1:1048576,Template!$H$1,Template!NP12) -> 0.08333333333 | NQ13: =INDEX('Project Database'!1:1048576,Template!$H$1,Template!NQ12) -> 0.08333333333 | NR13: =INDEX('Project Database'!1:1048576,Template!$H$1,Template!NR12) -> 0.08333333333 | NS13: =INDEX('Project Database'!1:1048576,Template!$H$1,Template!NS12) -> 0.08333333333 | NT13: =INDEX('Project Database'!1:1048576,Template!$H$1,Template!NT12) -> 0.08333333333 | NU13: =INDEX('Project Database'!1:1048576,Template!$H$1,Template!NU12) -> 0.08333333333 | NV13: =INDEX('Project Database'!1:1048576,Template!$H$1,Template!NV12) -> 0.08333333333 | NW13: =INDEX('Project Database'!1:1048576,Template!$H$1,Template!NW12) -> 0.08333333333 | NX13: =INDEX('Project Database'!1:1048576,Template!$H$1,Template!NX12) -> 0.08333333333 | NY13: =INDEX('Project Database'!1:1048576,Template!$H$1,Template!NY12) -> 0.08333333333 | NZ13: =INDEX('Project Database'!1:1048576,Template!$H$1,Template!NZ12) -> 0.08333333333 | OA13: =INDEX('Project Database'!1:1048576,Template!$H$1,Template!OA12) -> 0.08333333333 | OB13: =INDEX('Project Database'!1:1048576,Template!$H$1,Template!OB12) -> 0.08333333333 | OC13: =INDEX('Project Database'!1:1048576,Template!$H$1,Template!OC12) -> 0.08333333333 | OD13: =INDEX('Project Database'!1:1048576,Template!$H$1,Template!OD12) -> 0.08333333333 | OE13: =INDEX('Project Database'!1:1048576,Template!$H$1,Template!OE12) -> 0.08333333333 | OF13: =INDEX('Project Database'!1:1048576,Template!$H$1,Template!OF12) -> 0.08333333333 | OG13: =INDEX('Project Database'!1:1048576,Template!$H$1,Template!OG12) -> 0.08333333333 | OH13: =INDEX('Project Database'!1:1048576,Template!$H$1,Template!OH12) -> 0.08333333333 | OI13: =INDEX('Project Database'!1:1048576,Template!$H$1,Template!OI12) -> 0.08333333333 | OJ13: =INDEX('Project Database'!1:1048576,Template!$H$1,Template!OJ12) -> 0.08333333333 | OK13: =INDEX('Project Database'!1:1048576,Template!$H$1,Template!OK12) -> 0.08333333333 | OL13: =INDEX('Project Database'!1:1048576,Template!$H$1,Template!OL12) -> 0.08333333333 | OM13: =INDEX('Project Database'!1:1048576,Template!$H$1,Template!OM12) -> 0.08333333333 | ON13: =INDEX('Project Database'!1:1048576,Template!$H$1,Template!ON12) -> 0.08333333333 | OO13: =INDEX('Project Database'!1:1048576,Template!$H$1,Template!OO12) -> 0.08333333333 | OP13: =INDEX('Project Database'!1:1048576,Template!$H$1,Template!OP12) -> 0.08333333333 | OQ13: =INDEX('Project Database'!1:1048576,Template!$H$1,Template!OQ12) -> 0.08333333333 | OR13: =INDEX('Project Database'!1:1048576,Template!$H$1,Template!OR12) -> 0.08333333333 | OS13: =INDEX('Project Database'!1:1048576,Template!$H$1,Template!OS12) -> 0.08333333333 | OT13: =INDEX('Project Database'!1:1048576,Template!$H$1,Template!OT12) -> 0.08333333333 | OU13: =INDEX('Project Database'!1:1048576,Template!$H$1,Template!OU12) -> 0.08333333333 | OV13: =INDEX('Project Database'!1:1048576,Template!$H$1,Template!OV12) -> 0.08333333333 | OW13: =INDEX('Project Database'!1:1048576,Template!$H$1,Template!OW12) -> 0.08333333333 | OX13: =INDEX('Project Database'!1:1048576,Template!$H$1,Template!OX12) -> 0.08333333333 | OY13: =INDEX('Project Database'!1:1048576,Template!$H$1,Template!OY12) -> 0.08333333333 | OZ13: =INDEX('Project Database'!1:1048576,Template!$H$1,Template!OZ12) -> 0.08333333333 | PA13: =INDEX('Project Database'!1:1048576,Template!$H$1,Template!PA12) -> 0.08333333333 | PB13: =INDEX('Project Database'!1:1048576,Template!$H$1,Template!PB12) -> 0.08333333333 | PC13: =INDEX('Project Database'!1:1048576,Template!$H$1,Template!PC12) -> 0.08333333333 | PD13: =INDEX('Project Database'!1:1048576,Template!$H$1,Template!PD12) -> 0.08333333333 | PE13: =INDEX('Project Database'!1:1048576,Template!$H$1,Template!PE12) -> 0.08333333333 | PF13: =INDEX('Project Database'!1:1048576,Template!$H$1,Template!PF12) -> 0.08333333333 | PG13: =INDEX('Project Database'!1:1048576,Template!$H$1,Template!PG12) -> 0.08333333333 | PH13: =INDEX('Project Database'!1:1048576,Template!$H$1,Template!PH12) -> 0.08333333333 | PI13: =INDEX('Project Database'!1:1048576,Template!$H$1,Template!PI12) -> 0.08333333333 | PJ13: =INDEX('Project Database'!1:1048576,Template!$H$1,Template!PJ12) -> 0.08333333333 | PK13: =INDEX('Project Database'!1:1048576,Template!$H$1,Template!PK12) -> 0.08333333333 | PL13: =INDEX('Project Database'!1:1048576,Template!$H$1,Template!PL12) -> 0.08333333333 | PM13: =INDEX('Project Database'!1:1048576,Template!$H$1,Template!PM12) -> 0.08333333333 | PN13: =INDEX('Project Database'!1:1048576,Template!$H$1,Template!PN12) -> 0.08333333333 | PO13: =INDEX('Project Database'!1:1048576,Template!$H$1,Template!PO12) -> 0.08333333333 | PP13: =INDEX('Project Database'!1:1048576,Template!$H$1,Template!PP12) -> 0.08333333333 | PQ13: =INDEX('Project Database'!1:1048576,Template!$H$1,Template!PQ12) -> 0.08333333333 | PR13: =INDEX('Project Database'!1:1048576,Template!$H$1,Template!PR12) -> 0.08333333333 | PS13: =INDEX('Project Database'!1:1048576,Template!$H$1,Template!PS12) -> 0.08333333333 | PT13: =INDEX('Project Database'!1:1048576,Template!$H$1,Template!PT12) -> 0.08333333333 | PU13: =INDEX('Project Database'!1:1048576,Template!$H$1,Template!PU12) -> 0.08333333333 | PV13: =INDEX('Project Database'!1:1048576,Template!$H$1,Template!PV12) -> 0.08333333333 | PW13: =INDEX('Project Database'!1:1048576,Template!$H$1,Template!PW12) -> 0.08333333333 | PX13: =INDEX('Project Database'!1:1048576,Template!$H$1,Template!PX12) -> 0.08333333333 | PY13: =INDEX('Project Database'!1:1048576,Template!$H$1,Template!PY12) -> 0.08333333333 | PZ13: =INDEX('Project Database'!1:1048576,Template!$H$1,Template!PZ12) -> 0.08333333333 | QA13: =INDEX('Project Database'!1:1048576,Template!$H$1,Template!QA12) -> 0.08333333333 | QB13: =INDEX('Project Database'!1:1048576,Template!$H$1,Template!QB12) -> 0.08333333333 | QC13: =INDEX('Project Database'!1:1048576,Template!$H$1,Template!QC12) -> 0.08333333333 | QD13: =INDEX('Project Database'!1:1048576,Template!$H$1,Template!QD12) -> 0.08333333333 | QE13: =INDEX('Project Database'!1:1048576,Template!$H$1,Template!QE12) -> 0.08333333333 | QF13: =INDEX('Project Database'!1:1048576,Template!$H$1,Template!QF12) -> 0.08333333333 | QG13: =INDEX('Project Database'!1:1048576,Template!$H$1,Template!QG12) -> 0.08333333333 | QH13: =INDEX('Project Database'!1:1048576,Template!$H$1,Template!QH12) -> 0.08333333333 | QI13: =INDEX('Project Database'!1:1048576,Template!$H$1,Template!QI12) -> 0.08333333333 | QJ13: =INDEX('Project Database'!1:1048576,Template!$H$1,Template!QJ12) -> 0.08333333333 | QK13: =INDEX('Project Database'!1:1048576,Template!$H$1,Template!QK12) -> 0.08333333333 | QL13: =INDEX('Project Database'!1:1048576,Template!$H$1,Template!QL12) -> 0.08333333333 | QM13: =INDEX('Project Database'!1:1048576,Template!$H$1,Template!QM12) -> 0.08333333333 | QN13: =INDEX('Project Database'!1:1048576,Template!$H$1,Template!QN12) -> 0.08333333333 | QO13: =INDEX('Project Database'!1:1048576,Template!$H$1,Template!QO12) -> 0.08333333333 | QP13: =INDEX('Project Database'!1:1048576,Template!$H$1,Template!QP12) -> 0.08333333333 | QQ13: =INDEX('Project Database'!1:1048576,Template!$H$1,Template!QQ12) -> 0.08333333333 | QR13: =INDEX('Project Database'!1:1048576,Template!$H$1,Template!QR12) -> 0.08333333333 | QS13: =INDEX('Project Database'!1:1048576,Template!$H$1,Template!QS12) -> 0.08333333333 | QT13: =INDEX('Project Database'!1:1048576,Template!$H$1,Template!QT12) -> 0.08333333333 | QU13: =INDEX('Project Database'!1:1048576,Template!$H$1,Template!QU12) -> 0.08333333333 | QV13: =INDEX('Project Database'!1:1048576,Template!$H$1,Template!QV12) -> 0.08333333333 | QW13: =INDEX('Project Database'!1:1048576,Template!$H$1,Template!QW12) -> 0.08333333333 | QX13: =INDEX('Project Database'!1:1048576,Template!$H$1,Template!QX12) -> 0.08333333333 | QY13: =INDEX('Project Database'!1:1048576,Template!$H$1,Template!QY12) -> 0.08333333333 | QZ13: =INDEX('Project Database'!1:1048576,Template!$H$1,Template!QZ12) -> 0.08333333333 | RA13: =INDEX('Project Database'!1:1048576,Template!$H$1,Template!RA12) -> 0.08333333333 | RB13: =INDEX('Project Database'!1:1048576,Template!$H$1,Template!RB12) -> 0.08333333333 | RC13: =INDEX('Project Database'!1:1048576,Template!$H$1,Template!RC12) -> 0.08333333333 | RD13: =INDEX('Project Database'!1:1048576,Template!$H$1,Template!RD12) -> 0.08333333333 | RE13: =INDEX('Project Database'!1:1048576,Template!$H$1,Template!RE12) -> 0.08333333333 | RF13: =INDEX('Project Database'!1:1048576,Template!$H$1,Template!RF12) -> 0.08333333333 | RG13: =INDEX('Project Database'!1:1048576,Template!$H$1,Template!RG12) -> 0.08333333333 | RH13: =INDEX('Project Database'!1:1048576,Template!$H$1,Template!RH12) -> 0.08333333333 | RI13: =INDEX('Project Database'!1:1048576,Template!$H$1,Template!RI12) -> 0.08333333333 | RJ13: =INDEX('Project Database'!1:1048576,Template!$H$1,Template!RJ12) -> 0.08333333333 | RK13: =INDEX('Project Database'!1:1048576,Template!$H$1,Template!RK12) -> 0.08333333333 | RL13: =INDEX('Project Database'!1:1048576,Template!$H$1,Template!RL12) -> 0.08333333333 | RM13: =INDEX('Project Database'!1:1048576,Template!$H$1,Template!RM12) -> 0.08333333333 | RN13: =INDEX('Project Database'!1:1048576,Template!$H$1,Template!RN12) -> 0.08333333333 | RO13: =INDEX('Project Database'!1:1048576,Template!$H$1,Template!RO12) -> 0.08333333333 | RP13: =INDEX('Project Database'!1:1048576,Template!$H$1,Template!RP12) -> 0.08333333333 | RQ13: =INDEX('Project Database'!1:1048576,Template!$H$1,Template!RQ12) -> 0.08333333333 | RR13: =INDEX('Project Database'!1:1048576,Template!$H$1,Template!RR12) -> 0.08333333333 | RS13: =INDEX('Project Database'!1:1048576,Template!$H$1,Template!RS12) -> 0.08333333333 | RT13: =INDEX('Project Database'!1:1048576,Template!$H$1,Template!RT12) -> 0.08333333333 | RU13: =INDEX('Project Database'!1:1048576,Template!$H$1,Template!RU12) -> 0.08333333333 | RV13: =INDEX('Project Database'!1:1048576,Template!$H$1,Template!RV12) -> 0.08333333333 | RW13: =INDEX('Project Database'!1:1048576,Template!$H$1,Template!RW12) -> 0.08333333333 | RX13: =INDEX('Project Database'!1:1048576,Template!$H$1,Template!RX12) -> 0.08333333333 | RY13: =INDEX('Project Database'!1:1048576,Template!$H$1,Template!RY12) -> 0.08333333333 | RZ13: =INDEX('Project Database'!1:1048576,Template!$H$1,Template!RZ12) -> 0.08333333333 | SA13: =INDEX('Project Database'!1:1048576,Template!$H$1,Template!SA12) -> 0.08333333333 | SB13: =INDEX('Project Database'!1:1048576,Template!$H$1,Template!SB12) -> 0.08333333333 | SC13: =INDEX('Project Database'!1:1048576,Template!$H$1,Template!SC12) -> 0.08333333333 | SD13: =INDEX('Project Database'!1:1048576,Template!$H$1,Template!SD12) -> 0.08333333333 | SE13: =INDEX('Project Database'!1:1048576,Template!$H$1,Template!SE12) -> 0.08333333333 | SF13: =INDEX('Project Database'!1:1048576,Template!$H$1,Template!SF12) -> 0.08333333333 | SG13: =INDEX('Project Database'!1:1048576,Template!$H$1,Template!SG12) -> 0.08333333333 | SH13: =INDEX('Project Database'!1:1048576,Template!$H$1,Template!SH12) -> 0.08333333333 | SI13: =INDEX('Project Database'!1:1048576,Template!$H$1,Template!SI12) -> 0.08333333333 | SJ13: =INDEX('Project Database'!1:1048576,Template!$H$1,Template!SJ12) -> 0.08333333333 | SK13: =INDEX('Project Database'!1:1048576,Template!$H$1,Template!SK12) -> 0.08333333333 | SL13: =INDEX('Project Database'!1:1048576,Template!$H$1,Template!SL12) -> 0.08333333333 | SM13: =INDEX('Project Database'!1:1048576,Template!$H$1,Template!SM12) -> 0.08333333333 | SN13: =INDEX('Project Database'!1:1048576,Template!$H$1,Template!SN12) -> 0.08333333333 | SO13: =INDEX('Project Database'!1:1048576,Template!$H$1,Template!SO12) -> 0.08333333333 | SP13: =INDEX('Project Database'!1:1048576,Template!$H$1,Template!SP12) -> 0.08333333333 | SQ13: =INDEX('Project Database'!1:1048576,Template!$H$1,Template!SQ12) -> 0.08333333333 | SR13: =INDEX('Project Database'!1:1048576,Template!$H$1,Template!SR12) -> 0.08333333333 | SS13: =INDEX('Project Database'!1:1048576,Template!$H$1,Template!SS12) -> 0.08333333333 | ST13: =INDEX('Project Database'!1:1048576,Template!$H$1,Template!ST12) -> 0.08333333333 | SU13: =INDEX('Project Database'!1:1048576,Template!$H$1,Template!SU12) -> 0.08333333333 | SV13: =INDEX('Project Database'!1:1048576,Template!$H$1,Template!SV12) -> 0.08333333333 | SW13: =INDEX('Project Database'!1:1048576,Template!$H$1,Template!SW12) -> 0.08333333333 | SX13: =INDEX('Project Database'!1:1048576,Template!$H$1,Template!SX12) -> 0.08333333333 | SY13: =INDEX('Project Database'!1:1048576,Template!$H$1,Template!SY12) -> 0.08333333333 | SZ13: =INDEX('Project Database'!1:1048576,Template!$H$1,Template!SZ12) -> 0.08333333333 | TA13: =INDEX('Project Database'!1:1048576,Template!$H$1,Template!TA12) -> 0.08333333333 | TB13: =INDEX('Project Database'!1:1048576,Template!$H$1,Template!TB12) -> 0.08333333333 | TC13: =INDEX('Project Database'!1:1048576,Template!$H$1,Template!TC12) -> 0.08333333333 | TD13: =INDEX('Project Database'!1:1048576,Template!$H$1,Template!TD12) -> 0.08333333333 | TE13: =INDEX('Project Database'!1:1048576,Template!$H$1,Template!TE12) -> 0.08333333333 | TF13: =INDEX('Project Database'!1:1048576,Template!$H$1,Template!TF12) -> 0.08333333333 | TG13: =INDEX('Project Database'!1:1048576,Template!$H$1,Template!TG12) -> 0.08333333333 | TH13: =INDEX('Project Database'!1:1048576,Template!$H$1,Template!TH12) -> 0.08333333333 | TI13: =INDEX('Project Database'!1:1048576,Template!$H$1,Template!TI12) -> 0.08333333333 | TJ13: =INDEX('Project Database'!1:1048576,Template!$H$1,Template!TJ12) -> 0.08333333333 | TK13: =INDEX('Project Database'!1:1048576,Template!$H$1,Template!TK12) -> 0.08333333333 | TL13: =INDEX('Project Database'!1:1048576,Template!$H$1,Template!TL12) -> 0.08333333333 | TM13: =INDEX('Project Database'!1:1048576,Template!$H$1,Template!TM12) -> 0.08333333333 | TN13: =INDEX('Project Database'!1:1048576,Template!$H$1,Template!TN12) -> 0.08333333333 | TO13: =INDEX('Project Database'!1:1048576,Template!$H$1,Template!TO12) -> 0.08333333333 | TP13: =INDEX('Project Database'!1:1048576,Template!$H$1,Template!TP12) -> 0.08333333333 | TQ13: =INDEX('Project Database'!1:1048576,Template!$H$1,Template!TQ12) -> 0.08333333333 | TR13: =INDEX('Project Database'!1:1048576,Template!$H$1,Template!TR12) -> 0.08333333333 | TS13: =INDEX('Project Database'!1:1048576,Template!$H$1,Template!TS12) -> 0.08333333333 | TT13: =INDEX('Project Database'!1:1048576,Template!$H$1,Template!TT12) -> 0.08333333333 | TU13: =INDEX('Project Database'!1:1048576,Template!$H$1,Template!TU12) -> 0.08333333333 | TV13: =INDEX('Project Database'!1:1048576,Template!$H$1,Template!TV12) -> 0.08333333333 | TW13: =INDEX('Project Database'!1:1048576,Template!$H$1,Template!TW12) -> 0.08333333333 | TX13: =INDEX('Project Database'!1:1048576,Template!$H$1,Template!TX12) -> 0.08333333333 | TY13: =INDEX('Project Database'!1:1048576,Template!$H$1,Template!TY12) -> 0.08333333333 | TZ13: =INDEX('Project Database'!1:1048576,Template!$H$1,Template!TZ12) -> 0.08333333333 | UA13: =INDEX('Project Database'!1:1048576,Template!$H$1,Template!UA12) -> 0.08333333333 | UB13: =INDEX('Project Database'!1:1048576,Template!$H$1,Template!UB12) -> 0.08333333333 | UC13: =INDEX('Project Database'!1:1048576,Template!$H$1,Template!UC12) -> 0.08333333333 | UD13: =INDEX('Project Database'!1:1048576,Template!$H$1,Template!UD12) -> 0.08333333333 | UE13: =INDEX('Project Database'!1:1048576,Template!$H$1,Template!UE12) -> 0.08333333333 | UF13: =INDEX('Project Database'!1:1048576,Template!$H$1,Template!UF12) -> 0.08333333333 | UG13: =INDEX('Project Database'!1:1048576,Template!$H$1,Template!UG12) -> 0.08333333333 | UH13: =INDEX('Project Database'!1:1048576,Template!$H$1,Template!UH12) -> 0.08333333333 | UI13: =INDEX('Project Database'!1:1048576,Template!$H$1,Template!UI12) -> 0.08333333333 | UJ13: =INDEX('Project Database'!1:1048576,Template!$H$1,Template!UJ12) -> 0.08333333333 | UK13: =INDEX('Project Database'!1:1048576,Template!$H$1,Template!UK12) -> 0.08333333333 | UL13: =INDEX('Project Database'!1:1048576,Template!$H$1,Template!UL12) -> 0.08333333333 | UM13: =INDEX('Project Database'!1:1048576,Template!$H$1,Template!UM12) -> 0.08333333333 | UN13: =INDEX('Project Database'!1:1048576,Template!$H$1,Template!UN12) -> 0.08333333333 | UO13: =INDEX('Project Database'!1:1048576,Template!$H$1,Template!UO12) -> 0.08333333333 | UP13: =INDEX('Project Database'!1:1048576,Template!$H$1,Template!UP12) -> 0.08333333333 | UQ13: =INDEX('Project Database'!1:1048576,Template!$H$1,Template!UQ12) -> 0.08333333333 | UR13: =INDEX('Project Database'!1:1048576,Template!$H$1,Template!UR12) -> 0.08333333333 | US13: =INDEX('Project Database'!1:1048576,Template!$H$1,Template!US12) -> 0.08333333333 | UT13: =INDEX('Project Database'!1:1048576,Template!$H$1,Template!UT12) -> 0.08333333333 | UU13: =INDEX('Project Database'!1:1048576,Template!$H$1,Template!UU12) -> 0.08333333333 | UV13: =INDEX('Project Database'!1:1048576,Template!$H$1,Template!UV12) -> 0.08333333333 | UW13: =INDEX('Project Database'!1:1048576,Template!$H$1,Template!UW12) -> 0.08333333333 | UX13: =INDEX('Project Database'!1:1048576,Template!$H$1,Template!UX12) -> 0.08333333333 | UY13: =INDEX('Project Database'!1:1048576,Template!$H$1,Template!UY12) -> 0.08333333333 | UZ13: =INDEX('Project Database'!1:1048576,Template!$H$1,Template!UZ12) -> 0.08333333333 | VA13: =INDEX('Project Database'!1:1048576,Template!$H$1,Template!VA12) -> 0.08333333333 | VB13: =INDEX('Project Database'!1:1048576,Template!$H$1,Template!VB12) -> 0.08333333333 | VC13: =INDEX('Project Database'!1:1048576,Template!$H$1,Template!VC12) -> 0.08333333333 | VD13: =INDEX('Project Database'!1:1048576,Template!$H$1,Template!VD12) -> 0.08333333333 | VE13: =INDEX('Project Database'!1:1048576,Template!$H$1,Template!VE12) -> 0.08333333333 | VF13: =INDEX('Project Database'!1:1048576,Template!$H$1,Template!VF12) -> 0.08333333333 | VG13: =INDEX('Project Database'!1:1048576,Template!$H$1,Template!VG12) -> 0.08333333333 | VH13: =INDEX('Project Database'!1:1048576,Template!$H$1,Template!VH12) -> 0.08333333333 | VI13: =INDEX('Project Database'!1:1048576,Template!$H$1,Template!VI12) -> 0.08333333333 | VJ13: =INDEX('Project Database'!1:1048576,Template!$H$1,Template!VJ12) -> 0.08333333333 | VK13: =INDEX('Project Database'!1:1048576,Template!$H$1,Template!VK12) -> 0.08333333333 | VL13: =INDEX('Project Database'!1:1048576,Template!$H$1,Template!VL12) -> 0.08333333333 | VM13: =INDEX('Project Database'!1:1048576,Template!$H$1,Template!VM12) -> 0.08333333333 | VN13: =INDEX('Project Database'!1:1048576,Template!$H$1,Template!VN12) -> 0.08333333333 | VO13: =INDEX('Project Database'!1:1048576,Template!$H$1,Template!VO12) -> 0.08333333333 | VP13: =INDEX('Project Database'!1:1048576,Template!$H$1,Template!VP12) -> 0.08333333333 | VQ13: =INDEX('Project Database'!1:1048576,Template!$H$1,Template!VQ12) -> 0.08333333333 | VR13: =INDEX('Project Database'!1:1048576,Template!$H$1,Template!VR12) -> 0.08333333333 | VS13: =INDEX('Project Database'!1:1048576,Template!$H$1,Template!VS12) -> 0.08333333333 | VT13: =INDEX('Project Database'!1:1048576,Template!$H$1,Template!VT12) -> 0.08333333333 | VU13: =INDEX('Project Database'!1:1048576,Template!$H$1,Template!VU12) -> 0.08333333333 | VV13: =INDEX('Project Database'!1:1048576,Template!$H$1,Template!VV12) -> 0.08333333333 | VW13: =INDEX('Project Database'!1:1048576,Template!$H$1,Template!VW12) -> 0.08333333333 | VX13: =INDEX('Project Database'!1:1048576,Template!$H$1,Template!VX12) -> 0.08333333333 | VY13: =INDEX('Project Database'!1:1048576,Template!$H$1,Template!VY12) -> 0.08333333333 | VZ13: =INDEX('Project Database'!1:1048576,Template!$H$1,Template!VZ12) -> 0.08333333333 | WA13: =INDEX('Project Database'!1:1048576,Template!$H$1,Template!WA12) -> 0.08333333333 | WB13: =INDEX('Project Database'!1:1048576,Template!$H$1,Template!WB12) -> 0.08333333333 | WC13: =INDEX('Project Database'!1:1048576,Template!$H$1,Template!WC12) -> 0.08333333333 | WD13: =INDEX('Project Database'!1:1048576,Template!$H$1,Template!WD12) -> 0.08333333333 | WE13: =INDEX('Project Database'!1:1048576,Template!$H$1,Template!WE12) -> 0.08333333333 | WF13: =INDEX('Project Database'!1:1048576,Template!$H$1,Template!WF12) -> 0.08333333333 | WG13: =INDEX('Project Database'!1:1048576,Template!$H$1,Template!WG12) -> 0.08333333333 | WH13: =INDEX('Project Database'!1:1048576,Template!$H$1,Template!WH12) -> 0.08333333333 | WI13: =INDEX('Project Database'!1:1048576,Template!$H$1,Template!WI12) -> 0.08333333333 | WJ13: =INDEX('Project Database'!1:1048576,Template!$H$1,Template!WJ12) -> 0.08333333333 | WK13: =INDEX('Project Database'!1:1048576,Template!$H$1,Template!WK12) -> 0.08333333333 | WL13: =INDEX('Project Database'!1:1048576,Template!$H$1,Template!WL12) -> 0.08333333333
C14: Production | E14: KWH | H14: =SUM(J14:AX14) -> 400000 | J14: =J10*J11*J13 -> 0 | K14: =K10*K11*K13 -> 0 | L14: 0 | M14: 0 | N14: 0 | O14: 0 | P14: 0 | Q14: 0 | R14: 0 | S14: 0 | T14: 0 | U14: 0 | V14: 0 | W14: 0 | X14: 0 | Y14: 0 | Z14: 0 | AA14: 0 | AB14: 0 | AC14: 0 | AD14: 0 | AE14: 0 | AF14: 0 | AG14: 0 | AH14: 0 | AI14: 25000 | AJ14: 25000 | AK14: 25000 | AL14: 25000 | AM14: 25000 | AN14: 25000 | AO14: 25000 | AP14: 25000 | AQ14: 25000 | AR14: 25000 | AS14: 25000 | AT14: 25000 | AU14: 25000 | AV14: 25000 | AW14: 25000 | AX14: 25000 | AY14: 25000 | AZ14: 25000 | BA14: 25000 | BB14: 25000 | BC14: 25000 | BD14: 25000 | BE14: 25000 | BF14: 25000 | BG14: 25000 | BH14: 25000 | BI14: 25000 | BJ14: 25000 | BK14: 25000 | BL14: 25000 | BM14: 25000 | BN14: 25000 | BO14: 25000 | BP14: 25000 | BQ14: 25000 | BR14: 25000 | BS14: 25000 | BT14: 25000 | BU14: 25000 | BV14: 25000 | BW14: =BW10*BW11*BW13 -> 25000 | BX14: 25000 | BY14: 25000 | BZ14: 25000 | CA14: 25000 | CB14: 25000 | CC14: 25000 | CD14: 25000 | CE14: 25000 | CF14: 25000 | CG14: 25000 | CH14: 25000 | CI14: 25000 | CJ14: 25000 | CK14: 25000 | CL14: 25000 | CM14: 25000 | CN14: 25000 | CO14: 25000 | CP14: 25000 | CQ14: 25000 | CR14: 25000 | CS14: 25000 | CT14: 25000 | CU14: 25000 | CV14: 25000 | CW14: 25000 | CX14: 25000 | CY14: 25000 | CZ14: 25000 | DA14: 25000 | DB14: 25000 | DC14: 25000 | DD14: 25000 | DE14: 25000 | DF14: 25000 | DG14: 25000 | DH14: 25000 | DI14: 25000 | DJ14: 25000 | DK14: 25000 | DL14: 25000 | DM14: 25000 | DN14: 25000 | DO14: 25000 | DP14: 25000 | DQ14: 25000 | DR14: 25000 | DS14: 25000 | DT14: 25000 | DU14: 25000 | DV14: 25000 | DW14: 25000 | DX14: 25000 | DY14: 25000 | DZ14: 25000 | EA14: 25000 | EB14: 25000 | EC14: 25000 | ED14: 25000 | EE14: 25000 | EF14: 25000 | EG14: 25000 | EH14: 25000 | EI14: =EI10*EI11*EI13 -> 25000 | EJ14: 25000 | EK14: 25000 | EL14: 25000 | EM14: 25000 | EN14: 25000 | EO14: 25000 | EP14: 25000 | EQ14: 25000 | ER14: 25000 | ES14: 25000 | ET14: 25000 | EU14: 25000 | EV14: 25000 | EW14: 25000 | EX14: 25000 | EY14: 25000 | EZ14: 25000 | FA14: 25000 | FB14: 25000 | FC14: 25000 | FD14: 25000 | FE14: 25000 | FF14: 25000 | FG14: 25000 | FH14: 25000 | FI14: 25000 | FJ14: 25000 | FK14: 25000 | FL14: 25000 | FM14: 25000 | FN14: 25000 | FO14: 25000 | FP14: 25000 | FQ14: 25000 | FR14: 25000 | FS14: 25000 | FT14: 25000 | FU14: 25000 | FV14: 25000 | FW14: 25000 | FX14: 25000 | FY14: 25000 | FZ14: 25000 | GA14: 25000 | GB14: 25000 | GC14: 25000 | GD14: 25000 | GE14: 25000 | GF14: 25000 | GG14: 25000 | GH14: 25000 | GI14: 25000 | GJ14: 25000 | GK14: 25000 | GL14: 25000 | GM14: 25000 | GN14: 25000 | GO14: 25000 | GP14: 25000 | GQ14: 25000 | GR14: 25000 | GS14: 25000 | GT14: 25000 | GU14: =GU10*GU11*GU13 -> 25000 | GV14: 25000 | GW14: 25000 | GX14: 25000 | GY14: 25000 | GZ14: 25000 | HA14: 25000 | HB14: 25000 | HC14: 25000 | HD14: 25000 | HE14: 25000 | HF14: 25000 | HG14: 25000 | HH14: 25000 | HI14: 25000 | HJ14: 25000 | HK14: 25000 | HL14: 25000 | HM14: 25000 | HN14: 25000 | HO14: 25000 | HP14: 25000 | HQ14: 25000 | HR14: 25000 | HS14: 25000 | HT14: 25000 | HU14: 25000 | HV14: 25000 | HW14: 25000 | HX14: 25000 | HY14: 25000 | HZ14: 25000 | IA14: 25000 | IB14: 25000 | IC14: 25000 | ID14: 25000 | IE14: 25000 | IF14: 25000 | IG14: 25000 | IH14: 25000 | II14: 25000 | IJ14: 25000 | IK14: 25000 | IL14: 25000 | IM14: 25000 | IN14: 25000 | IO14: 25000 | IP14: 25000 | IQ14: 25000 | IR14: 25000 | IS14: 25000 | IT14: 25000 | IU14: 25000 | IV14: 25000 | IW14: 25000 | IX14: 25000 | IY14: 25000 | IZ14: 25000 | JA14: 25000 | JB14: 25000 | JC14: 25000 | JD14: 25000 | JE14: 25000 | JF14: 25000 | JG14: =JG10*JG11*JG13 -> 25000 | JH14: 25000 | JI14: 25000 | JJ14: 25000 | JK14: 25000 | JL14: 25000 | JM14: 25000 | JN14: 25000 | JO14: 25000 | JP14: 25000 | JQ14: 25000 | JR14: 25000 | JS14: 25000 | JT14: 25000 | JU14: 25000 | JV14: 25000 | JW14: 25000 | JX14: 25000 | JY14: 25000 | JZ14: 25000 | KA14: 25000 | KB14: 25000 | KC14: 25000 | KD14: 25000 | KE14: 25000 | KF14: 25000 | KG14: 25000 | KH14: 25000 | KI14: 25000 | KJ14: 25000 | KK14: 25000 | KL14: 25000 | KM14: 25000 | KN14: 25000 | KO14: 25000 | KP14: 25000 | KQ14: 25000 | KR14: 25000 | KS14: 25000 | KT14: 25000 | KU14: 25000 | KV14: 25000 | KW14: 25000 | KX14: 25000 | KY14: 25000 | KZ14: 25000 | LA14: 25000 | LB14: 25000 | LC14: 25000 | LD14: 25000 | LE14: 25000 | LF14: 25000 | LG14: 25000 | LH14: 25000 | LI14: 25000 | LJ14: 25000 | LK14: 25000 | LL14: 25000 | LM14: 25000 | LN14: 25000 | LO14: 25000 | LP14: 25000 | LQ14: 25000 | LR14: 25000 | LS14: =LS10*LS11*LS13 -> 25000 | LT14: 25000 | LU14: 25000 | LV14: 25000 | LW14: 25000 | LX14: 25000 | LY14: 25000 | LZ14: 25000 | MA14: 25000 | MB14: 25000 | MC14: 25000 | MD14: 25000 | ME14: 25000 | MF14: 25000 | MG14: 25000 | MH14: 25000 | MI14: 25000 | MJ14: 25000 | MK14: 25000 | ML14: 25000 | MM14: 25000 | MN14: 25000 | MO14: 25000 | MP14: 25000 | MQ14: 25000 | MR14: 25000 | MS14: 25000 | MT14: 25000 | MU14: 25000 | MV14: 25000 | MW14: 25000 | MX14: 25000 | MY14: 25000 | MZ14: 25000 | NA14: 25000 | NB14: 25000 | NC14: 25000 | ND14: 25000 | NE14: 25000 | NF14: 25000 | NG14: 25000 | NH14: 25000 | NI14: 25000 | NJ14: 25000 | NK14: 25000 | NL14: 25000 | NM14: 25000 | NN14: 25000 | NO14: 25000 | NP14: 25000 | NQ14: 25000 | NR14: 25000 | NS14: 25000 | NT14: 25000 | NU14: 25000 | NV14: 25000 | NW14: 25000 | NX14: 25000 | NY14: 25000 | NZ14: 25000 | OA14: 25000 | OB14: 25000 | OC14: 25000 | OD14: 25000 | OE14: =OE10*OE11*OE13 -> 25000 | OF14: 25000 | OG14: 25000 | OH14: 25000 | OI14: 25000 | OJ14: 25000 | OK14: 25000 | OL14: 25000 | OM14: 25000 | ON14: 25000 | OO14: 25000 | OP14: 25000 | OQ14: 25000 | OR14: 25000 | OS14: 25000 | OT14: 25000 | OU14: 25000 | OV14: 25000 | OW14: 25000 | OX14: 25000 | OY14: 25000 | OZ14: 25000 | PA14: 25000 | PB14: 25000 | PC14: 25000 | PD14: 25000 | PE14: 25000 | PF14: 25000 | PG14: 25000 | PH14: 25000 | PI14: 25000 | PJ14: 25000 | PK14: 25000 | PL14: 25000 | PM14: 25000 | PN14: 25000 | PO14: 25000 | PP14: 25000 | PQ14: 25000 | PR14: 25000 | PS14: 25000 | PT14: 25000 | PU14: 25000 | PV14: 25000 | PW14: 25000 | PX14: 25000 | PY14: 25000 | PZ14: 25000 | QA14: 25000 | QB14: 25000 | QC14: 25000 | QD14: 25000 | QE14: 25000 | QF14: 25000 | QG14: 25000 | QH14: 25000 | QI14: 25000 | QJ14: 25000 | QK14: 25000 | QL14: 25000 | QM14: 25000 | QN14: 25000 | QO14: 25000 | QP14: 25000 | QQ14: =QQ10*QQ11*QQ13 -> 25000 | QR14: 25000 | QS14: 25000 | QT14: 25000 | QU14: 25000 | QV14: 25000 | QW14: 25000 | QX14: 25000 | QY14: 0 | QZ14: 0 | RA14: 0 | RB14: 0 | RC14: 0 | RD14: 0 | RE14: 0 | RF14: 0 | RG14: 0 | RH14: 0 | RI14: 0 | RJ14: 0 | RK14: 0 | RL14: 0 | RM14: 0 | RN14: 0 | RO14: 0 | RP14: 0 | RQ14: 0 | RR14: 0 | RS14: 0 | RT14: 0 | RU14: 0 | RV14: 0 | RW14: 0 | RX14: 0 | RY14: 0 | RZ14: 0 | SA14: 0 | SB14: 0 | SC14: 0 | SD14: 0 | SE14: 0 | SF14: 0 | SG14: 0 | SH14: 0 | SI14: 0 | SJ14: 0 | SK14: 0 | SL14: 0 | SM14: 0 | SN14: 0 | SO14: 0 | SP14: 0 | SQ14: 0 | SR14: 0 | SS14: 0 | ST14: 0 | SU14: 0 | SV14: 0 | SW14: 0 | SX14: 0 | SY14: 0 | SZ14: 0 | TA14: 0 | TB14: 0 | TC14: =TC10*TC11*TC13 -> 0 | TD14: 0 | TE14: 0 | TF14: 0 | TG14: 0 | TH14: 0 | TI14: 0 | TJ14: 0 | TK14: 0 | TL14: 0 | TM14: 0 | TN14: 0 | TO14: 0 | TP14: 0 | TQ14: 0 | TR14: 0 | TS14: 0 | TT14: 0 | TU14: 0 | TV14: 0 | TW14: 0 | TX14: 0 | TY14: 0 | TZ14: 0 | UA14: 0 | UB14: 0 | UC14: 0 | UD14: 0 | UE14: 0 | UF14: 0 | UG14: 0 | UH14: 0 | UI14: 0 | UJ14: 0 | UK14: 0 | UL14: 0 | UM14: 0 | UN14: 0 | UO14: 0 | UP14: 0 | UQ14: 0 | UR14: 0 | US14: 0 | UT14: 0 | UU14: 0 | UV14: 0 | UW14: 0 | UX14: 0 | UY14: 0 | UZ14: 0 | VA14: 0 | VB14: 0 | VC14: 0 | VD14: 0 | VE14: 0 | VF14: 0 | VG14: 0 | VH14: 0 | VI14: 0 | VJ14: 0 | VK14: 0 | VL14: 0 | VM14: 0 | VN14: 0 | VO14: =VO10*VO11*VO13 -> 0 | VP14: 0 | VQ14: 0 | VR14: 0 | VS14: 0 | VT14: 0 | VU14: 0 | VV14: 0 | VW14: 0 | VX14: 0 | VY14: 0 | VZ14: 0 | WA14: 0 | WB14: 0 | WC14: 0 | WD14: 0 | WE14: 0 | WF14: 0 | WG14: 0 | WH14: 0 | WI14: 0 | WJ14: 0 | WK14: 0 | WL14: 0
B16: Macro Economic
C17: Year | J17: =YEAR(J4) -> 2020 | K17: =YEAR(K4) -> 2020 | L17: 2020 | M17: 2020 | N17: 2020 | O17: 2020 | P17: 2020 | Q17: 2020 | R17: 2020 | S17: 2020 | T17: 2020 | U17: 2020 | V17: 2021 | W17: 2021 | X17: 2021 | Y17: 2021 | Z17: 2021 | AA17: 2021 | AB17: 2021 | AC17: 2021 | AD17: 2021 | AE17: 2021 | AF17: 2021 | AG17: 2021 | AH17: 2022 | AI17: 2022 | AJ17: 2022 | AK17: 2022 | AL17: 2022 | AM17: 2022 | AN17: 2022 | AO17: 2022 | AP17: 2022 | AQ17: 2022 | AR17: 2022 | AS17: 2022 | AT17: 2023 | AU17: 2023 | AV17: 2023 | AW17: 2023 | AX17: 2023 | AY17: 2023 | AZ17: 2023 | BA17: 2023 | BB17: 2023 | BC17: 2023 | BD17: 2023 | BE17: 2023 | BF17: 2024 | BG17: 2024 | BH17: 2024 | BI17: 2024 | BJ17: 2024 | BK17: 2024 | BL17: 2024 | BM17: 2024 | BN17: 2024 | BO17: 2024 | BP17: 2024 | BQ17: 2024 | BR17: 2025 | BS17: 2025 | BT17: 2025 | BU17: 2025 | BV17: 2025 | BW17: =YEAR(BW4) -> 2025 | BX17: 2025 | BY17: 2025 | BZ17: 2025 | CA17: 2025 | CB17: 2025 | CC17: 2025 | CD17: 2026 | CE17: 2026 | CF17: 2026 | CG17: 2026 | CH17: 2026 | CI17: 2026 | CJ17: 2026 | CK17: 2026 | CL17: 2026 | CM17: 2026 | CN17: 2026 | CO17: 2026 | CP17: 2027 | CQ17: 2027 | CR17: 2027 | CS17: 2027 | CT17: 2027 | CU17: 2027 | CV17: 2027 | CW17: 2027 | CX17: 2027 | CY17: 2027 | CZ17: 2027 | DA17: 2027 | DB17: 2028 | DC17: 2028 | DD17: 2028 | DE17: 2028 | DF17: 2028 | DG17: 2028 | DH17: 2028 | DI17: 2028 | DJ17: 2028 | DK17: 2028 | DL17: 2028 | DM17: 2028 | DN17: 2029 | DO17: 2029 | DP17: 2029 | DQ17: 2029 | DR17: 2029 | DS17: 2029 | DT17: 2029 | DU17: 2029 | DV17: 2029 | DW17: 2029 | DX17: 2029 | DY17: 2029 | DZ17: 2030 | EA17: 2030 | EB17: 2030 | EC17: 2030 | ED17: 2030 | EE17: 2030 | EF17: 2030 | EG17: 2030 | EH17: 2030 | EI17: =YEAR(EI4) -> 2030 | EJ17: 2030 | EK17: 2030 | EL17: 2031 | EM17: 2031 | EN17: 2031 | EO17: 2031 | EP17: 2031 | EQ17: 2031 | ER17: 2031 | ES17: 2031 | ET17: 2031 | EU17: 2031 | EV17: 2031 | EW17: 2031 | EX17: 2032 | EY17: 2032 | EZ17: 2032 | FA17: 2032 | FB17: 2032 | FC17: 2032 | FD17: 2032 | FE17: 2032 | FF17: 2032 | FG17: 2032 | FH17: 2032 | FI17: 2032 | FJ17: 2033 | FK17: 2033 | FL17: 2033 | FM17: 2033 | FN17: 2033 | FO17: 2033 | FP17: 2033 | FQ17: 2033 | FR17: 2033 | FS17: 2033 | FT17: 2033 | FU17: 2033 | FV17: 2034 | FW17: 2034 | FX17: 2034 | FY17: 2034 | FZ17: 2034 | GA17: 2034 | GB17: 2034 | GC17: 2034 | GD17: 2034 | GE17: 2034 | GF17: 2034 | GG17: 2034 | GH17: 2035 | GI17: 2035 | GJ17: 2035 | GK17: 2035 | GL17: 2035 | GM17: 2035 | GN17: 2035 | GO17: 2035 | GP17: 2035 | GQ17: 2035 | GR17: 2035 | GS17: 2035 | GT17: 2036 | GU17: =YEAR(GU4) -> 2036 | GV17: 2036 | GW17: 2036 | GX17: 2036 | GY17: 2036 | GZ17: 2036 | HA17: 2036 | HB17: 2036 | HC17: 2036 | HD17: 2036 | HE17: 2036 | HF17: 2037 | HG17: 2037 | HH17: 2037 | HI17: 2037 | HJ17: 2037 | HK17: 2037 | HL17: 2037 | HM17: 2037 | HN17: 2037 | HO17: 2037 | HP17: 2037 | HQ17: 2037 | HR17: 2038 | HS17: 2038 | HT17: 2038 | HU17: 2038 | HV17: 2038 | HW17: 2038 | HX17: 2038 | HY17: 2038 | HZ17: 2038 | IA17: 2038 | IB17: 2038 | IC17: 2038 | ID17: 2039 | IE17: 2039 | IF17: 2039 | IG17: 2039 | IH17: 2039 | II17: 2039 | IJ17: 2039 | IK17: 2039 | IL17: 2039 | IM17: 2039 | IN17: 2039 | IO17: 2039 | IP17: 2040 | IQ17: 2040 | IR17: 2040 | IS17: 2040 | IT17: 2040 | IU17: 2040 | IV17: 2040 | IW17: 2040 | IX17: 2040 | IY17: 2040 | IZ17: 2040 | JA17: 2040 | JB17: 2041 | JC17: 2041 | JD17: 2041 | JE17: 2041 | JF17: 2041 | JG17: =YEAR(JG4) -> 2041 | JH17: 2041 | JI17: 2041 | JJ17: 2041 | JK17: 2041 | JL17: 2041 | JM17: 2041 | JN17: 2042 | JO17: 2042 | JP17: 2042 | JQ17: 2042 | JR17: 2042 | JS17: 2042 | JT17: 2042 | JU17: 2042 | JV17: 2042 | JW17: 2042 | JX17: 2042 | JY17: 2042 | JZ17: 2043 | KA17: 2043 | KB17: 2043 | KC17: 2043 | KD17: 2043 | KE17: 2043 | KF17: 2043 | KG17: 2043 | KH17: 2043 | KI17: 2043 | KJ17: 2043 | KK17: 2043 | KL17: 2044 | KM17: 2044 | KN17: 2044 | KO17: 2044 | KP17: 2044 | KQ17: 2044 | KR17: 2044 | KS17: 2044 | KT17: 2044 | KU17: 2044 | KV17: 2044 | KW17: 2044 | KX17: 2045 | KY17: 2045 | KZ17: 2045 | LA17: 2045 | LB17: 2045 | LC17: 2045 | LD17: 2045 | LE17: 2045 | LF17: 2045 | LG17: 2045 | LH17: 2045 | LI17: 2045 | LJ17: 2046 | LK17: 2046 | LL17: 2046 | LM17: 2046 | LN17: 2046 | LO17: 2046 | LP17: 2046 | LQ17: 2046 | LR17: 2046 | LS17: =YEAR(LS4) -> 2046 | LT17: 2046 | LU17: 2046 | LV17: 2047 | LW17: 2047 | LX17: 2047 | LY17: 2047 | LZ17: 2047 | MA17: 2047 | MB17: 2047 | MC17: 2047 | MD17: 2047 | ME17: 2047 | MF17: 2047 | MG17: 2047 | MH17: 2048 | MI17: 2048 | MJ17: 2048 | MK17: 2048 | ML17: 2048 | MM17: 2048 | MN17: 2048 | MO17: 2048 | MP17: 2048 | MQ17: 2048 | MR17: 2048 | MS17: 2048 | MT17: 2049 | MU17: 2049 | MV17: 2049 | MW17: 2049 | MX17: 2049 | MY17: 2049 | MZ17: 2049 | NA17: 2049 | NB17: 2049 | NC17: 2049 | ND17: 2049 | NE17: 2049 | NF17: 2050 | NG17: 2050 | NH17: 2050 | NI17: 2050 | NJ17: 2050 | NK17: 2050 | NL17: 2050 | NM17: 2050 | NN17: 2050 | NO17: 2050 | NP17: 2050 | NQ17: 2050 | NR17: 2051 | NS17: 2051 | NT17: 2051 | NU17: 2051 | NV17: 2051 | NW17: 2051 | NX17: 2051 | NY17: 2051 | NZ17: 2051 | OA17: 2051 | OB17: 2051 | OC17: 2051 | OD17: 2052 | OE17: =YEAR(OE4) -> 2052 | OF17: 2052 | OG17: 2052 | OH17: 2052 | OI17: 2052 | OJ17: 2052 | OK17: 2052 | OL17: 2052 | OM17: 2052 | ON17: 2052 | OO17: 2052 | OP17: 2053 | OQ17: 2053 | OR17: 2053 | OS17: 2053 | OT17: 2053 | OU17: 2053 | OV17: 2053 | OW17: 2053 | OX17: 2053 | OY17: 2053 | OZ17: 2053 | PA17: 2053 | PB17: 2054 | PC17: 2054 | PD17: 2054 | PE17: 2054 | PF17: 2054 | PG17: 2054 | PH17: 2054 | PI17: 2054 | PJ17: 2054 | PK17: 2054 | PL17: 2054 | PM17: 2054 | PN17: 2055 | PO17: 2055 | PP17: 2055 | PQ17: 2055 | PR17: 2055 | PS17: 2055 | PT17: 2055 | PU17: 2055 | PV17: 2055 | PW17: 2055 | PX17: 2055 | PY17: 2055 | PZ17: 2056 | QA17: 2056 | QB17: 2056 | QC17: 2056 | QD17: 2056 | QE17: 2056 | QF17: 2056 | QG17: 2056 | QH17: 2056 | QI17: 2056 | QJ17: 2056 | QK17: 2056 | QL17: 2057 | QM17: 2057 | QN17: 2057 | QO17: 2057 | QP17: 2057 | QQ17: =YEAR(QQ4) -> 2057 | QR17: 2057 | QS17: 2057 | QT17: 2057 | QU17: 2057 | QV17: 2057 | QW17: 2057 | QX17: 2058 | QY17: 2058 | QZ17: 2058 | RA17: 2058 | RB17: 2058 | RC17: 2058 | RD17: 2058 | RE17: 2058 | RF17: 2058 | RG17: 2058 | RH17: 2058 | RI17: 2058 | RJ17: 2059 | RK17: 2059 | RL17: 2059 | RM17: 2059 | RN17: 2059 | RO17: 2059 | RP17: 2059 | RQ17: 2059 | RR17: 2059 | RS17: 2059 | RT17: 2059 | RU17: 2059 | RV17: 2060 | RW17: 2060 | RX17: 2060 | RY17: 2060 | RZ17: 2060 | SA17: 2060 | SB17: 2060 | SC17: 2060 | SD17: 2060 | SE17: 2060 | SF17: 2060 | SG17: 2060 | SH17: 2061 | SI17: 2061 | SJ17: 2061 | SK17: 2061 | SL17: 2061 | SM17: 2061 | SN17: 2061 | SO17: 2061 | SP17: 2061 | SQ17: 2061 | SR17: 2061 | SS17: 2061 | ST17: 2062 | SU17: 2062 | SV17: 2062 | SW17: 2062 | SX17: 2062 | SY17: 2062 | SZ17: 2062 | TA17: 2062 | TB17: 2062 | TC17: =YEAR(TC4) -> 2062 | TD17: 2062 | TE17: 2062 | TF17: 2063 | TG17: 2063 | TH17: 2063 | TI17: 2063 | TJ17: 2063 | TK17: 2063 | TL17: 2063 | TM17: 2063 | TN17: 2063 | TO17: 2063 | TP17: 2063 | TQ17: 2063 | TR17: 2064 | TS17: 2064 | TT17: 2064 | TU17: 2064 | TV17: 2064 | TW17: 2064 | TX17: 2064 | TY17: 2064 | TZ17: 2064 | UA17: 2064 | UB17: 2064 | UC17: 2064 | UD17: 2065 | UE17: 2065 | UF17: 2065 | UG17: 2065 | UH17: 2065 | UI17: 2065 | UJ17: 2065 | UK17: 2065 | UL17: 2065 | UM17: 2065 | UN17: 2065 | UO17: 2065 | UP17: 2066 | UQ17: 2066 | UR17: 2066 | US17: 2066 | UT17: 2066 | UU17: 2066 | UV17: 2066 | UW17: 2066 | UX17: 2066 | UY17: 2066 | UZ17: 2066 | VA17: 2066 | VB17: 2067 | VC17: 2067 | VD17: 2067 | VE17: 2067 | VF17: 2067 | VG17: 2067 | VH17: 2067 | VI17: 2067 | VJ17: 2067 | VK17: 2067 | VL17: 2067 | VM17: 2067 | VN17: 2068 | VO17: =YEAR(VO4) -> 2068 | VP17: 2068 | VQ17: 2068 | VR17: 2068 | VS17: 2068 | VT17: 2068 | VU17: 2068 | VV17: 2068 | VW17: 2068 | VX17: 2068 | VY17: 2068 | VZ17: 2069 | WA17: 2069 | WB17: 2069 | WC17: 2069 | WD17: 2069 | WE17: 2069 | WF17: 2069 | WG17: 2069 | WH17: 2069 | WI17: 2069 | WJ17: 2069 | WK17: 2069 | WL17: 2070
C18: USD Inflation Rate | J18: =(1+LOOKUP(J$17,'Project Database'!$5:$5,'Project Database'!6:6))^(1/12)-1 -> 0.0008295381143 | K18: =(1+LOOKUP(K$17,'Project Database'!$5:$5,'Project Database'!6:6))^(1/12)-1 -> 0.0008295381143 | L18: =(1+LOOKUP(L$17,'Project Database'!$5:$5,'Project Database'!6:6))^(1/12)-1 -> 0.0008295381143 | M18: =(1+LOOKUP(M$17,'Project Database'!$5:$5,'Project Database'!6:6))^(1/12)-1 -> 0.0008295381143 | N18: =(1+LOOKUP(N$17,'Project Database'!$5:$5,'Project Database'!6:6))^(1/12)-1 -> 0.0008295381143 | O18: =(1+LOOKUP(O$17,'Project Database'!$5:$5,'Project Database'!6:6))^(1/12)-1 -> 0.0008295381143 | P18: =(1+LOOKUP(P$17,'Project Database'!$5:$5,'Project Database'!6:6))^(1/12)-1 -> 0.0008295381143 | Q18: =(1+LOOKUP(Q$17,'Project Database'!$5:$5,'Project Database'!6:6))^(1/12)-1 -> 0.0008295381143 | R18: =(1+LOOKUP(R$17,'Project Database'!$5:$5,'Project Database'!6:6))^(1/12)-1 -> 0.0008295381143 | S18: =(1+LOOKUP(S$17,'Project Database'!$5:$5,'Project Database'!6:6))^(1/12)-1 -> 0.0008295381143 | T18: =(1+LOOKUP(T$17,'Project Database'!$5:$5,'Project Database'!6:6))^(1/12)-1 -> 0.0008295381143 | U18: =(1+LOOKUP(U$17,'Project Database'!$5:$5,'Project Database'!6:6))^(1/12)-1 -> 0.0008295381143 | V18: =(1+LOOKUP(V$17,'Project Database'!$5:$5,'Project Database'!6:6))^(1/12)-1 -> 0.001487765471 | W18: =(1+LOOKUP(W$17,'Project Database'!$5:$5,'Project Database'!6:6))^(1/12)-1 -> 0.001487765471 | X18: =(1+LOOKUP(X$17,'Project Database'!$5:$5,'Project Database'!6:6))^(1/12)-1 -> 0.001487765471 | Y18: =(1+LOOKUP(Y$17,'Project Database'!$5:$5,'Project Database'!6:6))^(1/12)-1 -> 0.001487765471 | Z18: =(1+LOOKUP(Z$17,'Project Database'!$5:$5,'Project Database'!6:6))^(1/12)-1 -> 0.001487765471 | AA18: =(1+LOOKUP(AA$17,'Project Database'!$5:$5,'Project Database'!6:6))^(1/12)-1 -> 0.001487765471 | AB18: =(1+LOOKUP(AB$17,'Project Database'!$5:$5,'Project Database'!6:6))^(1/12)-1 -> 0.001487765471 | AC18: =(1+LOOKUP(AC$17,'Project Database'!$5:$5,'Project Database'!6:6))^(1/12)-1 -> 0.001487765471 | AD18: =(1+LOOKUP(AD$17,'Project Database'!$5:$5,'Project Database'!6:6))^(1/12)-1 -> 0.001487765471 | AE18: =(1+LOOKUP(AE$17,'Project Database'!$5:$5,'Project Database'!6:6))^(1/12)-1 -> 0.001487765471 | AF18: =(1+LOOKUP(AF$17,'Project Database'!$5:$5,'Project Database'!6:6))^(1/12)-1 -> 0.001487765471 | AG18: =(1+LOOKUP(AG$17,'Project Database'!$5:$5,'Project Database'!6:6))^(1/12)-1 -> 0.001487765471 | AH18: =(1+LOOKUP(AH$17,'Project Database'!$5:$5,'Project Database'!6:6))^(1/12)-1 -> 0.00205983627 | AI18: =(1+LOOKUP(AI$17,'Project Database'!$5:$5,'Project Database'!6:6))^(1/12)-1 -> 0.00205983627 | AJ18: =(1+LOOKUP(AJ$17,'Project Database'!$5:$5,'Project Database'!6:6))^(1/12)-1 -> 0.00205983627 | AK18: =(1+LOOKUP(AK$17,'Project Database'!$5:$5,'Project Database'!6:6))^(1/12)-1 -> 0.00205983627 | AL18: =(1+LOOKUP(AL$17,'Project Database'!$5:$5,'Project Database'!6:6))^(1/12)-1 -> 0.00205983627 | AM18: =(1+LOOKUP(AM$17,'Project Database'!$5:$5,'Project Database'!6:6))^(1/12)-1 -> 0.00205983627 | AN18: =(1+LOOKUP(AN$17,'Project Database'!$5:$5,'Project Database'!6:6))^(1/12)-1 -> 0.00205983627 | AO18: =(1+LOOKUP(AO$17,'Project Database'!$5:$5,'Project Database'!6:6))^(1/12)-1 -> 0.00205983627 | AP18: =(1+LOOKUP(AP$17,'Project Database'!$5:$5,'Project Database'!6:6))^(1/12)-1 -> 0.00205983627 | AQ18: =(1+LOOKUP(AQ$17,'Project Database'!$5:$5,'Project Database'!6:6))^(1/12)-1 -> 0.00205983627 | AR18: =(1+LOOKUP(AR$17,'Project Database'!$5:$5,'Project Database'!6:6))^(1/12)-1 -> 0.00205983627 | AS18: =(1+LOOKUP(AS$17,'Project Database'!$5:$5,'Project Database'!6:6))^(1/12)-1 -> 0.00205983627 | AT18: =(1+LOOKUP(AT$17,'Project Database'!$5:$5,'Project Database'!6:6))^(1/12)-1 -> 0.002466269772 | AU18: =(1+LOOKUP(AU$17,'Project Database'!$5:$5,'Project Database'!6:6))^(1/12)-1 -> 0.002466269772 | AV18: =(1+LOOKUP(AV$17,'Project Database'!$5:$5,'Project Database'!6:6))^(1/12)-1 -> 0.002466269772 | AW18: =(1+LOOKUP(AW$17,'Project Database'!$5:$5,'Project Database'!6:6))^(1/12)-1 -> 0.002466269772 | AX18: =(1+LOOKUP(AX$17,'Project Database'!$5:$5,'Project Database'!6:6))^(1/12)-1 -> 0.002466269772 | AY18: =(1+LOOKUP(AY$17,'Project Database'!$5:$5,'Project Database'!6:6))^(1/12)-1 -> 0.002466269772 | AZ18: =(1+LOOKUP(AZ$17,'Project Database'!$5:$5,'Project Database'!6:6))^(1/12)-1 -> 0.002466269772 | BA18: =(1+LOOKUP(BA$17,'Project Database'!$5:$5,'Project Database'!6:6))^(1/12)-1 -> 0.002466269772 | BB18: =(1+LOOKUP(BB$17,'Project Database'!$5:$5,'Project Database'!6:6))^(1/12)-1 -> 0.002466269772 | BC18: =(1+LOOKUP(BC$17,'Project Database'!$5:$5,'Project Database'!6:6))^(1/12)-1 -> 0.002466269772 | BD18: =(1+LOOKUP(BD$17,'Project Database'!$5:$5,'Project Database'!6:6))^(1/12)-1 -> 0.002466269772 | BE18: =(1+LOOKUP(BE$17,'Project Database'!$5:$5,'Project Database'!6:6))^(1/12)-1 -> 0.002466269772 | BF18: =(1+LOOKUP(BF$17,'Project Database'!$5:$5,'Project Database'!6:6))^(1/12)-1 -> 0.001487765471 | BG18: =(1+LOOKUP(BG$17,'Project Database'!$5:$5,'Project Database'!6:6))^(1/12)-1 -> 0.001487765471 | BH18: =(1+LOOKUP(BH$17,'Project Database'!$5:$5,'Project Database'!6:6))^(1/12)-1 -> 0.001487765471 | BI18: =(1+LOOKUP(BI$17,'Project Database'!$5:$5,'Project Database'!6:6))^(1/12)-1 -> 0.001487765471 | BJ18: =(1+LOOKUP(BJ$17,'Project Database'!$5:$5,'Project Database'!6:6))^(1/12)-1 -> 0.001487765471 | BK18: =(1+LOOKUP(BK$17,'Project Database'!$5:$5,'Project Database'!6:6))^(1/12)-1 -> 0.001487765471 | BL18: =(1+LOOKUP(BL$17,'Project Database'!$5:$5,'Project Database'!6:6))^(1/12)-1 -> 0.001487765471 | BM18: =(1+LOOKUP(BM$17,'Project Database'!$5:$5,'Project Database'!6:6))^(1/12)-1 -> 0.001487765471 | BN18: =(1+LOOKUP(BN$17,'Project Database'!$5:$5,'Project Database'!6:6))^(1/12)-1 -> 0.001487765471 | BO18: =(1+LOOKUP(BO$17,'Project Database'!$5:$5,'Project Database'!6:6))^(1/12)-1 -> 0.001487765471 | BP18: =(1+LOOKUP(BP$17,'Project Database'!$5:$5,'Project Database'!6:6))^(1/12)-1 -> 0.001487765471 | BQ18: =(1+LOOKUP(BQ$17,'Project Database'!$5:$5,'Project Database'!6:6))^(1/12)-1 -> 0.001487765471 | BR18: =(1+LOOKUP(BR$17,'Project Database'!$5:$5,'Project Database'!6:6))^(1/12)-1 -> 0.001651581302 | BS18: =(1+LOOKUP(BS$17,'Project Database'!$5:$5,'Project Database'!6:6))^(1/12)-1 -> 0.001651581302 | BT18: =(1+LOOKUP(BT$17,'Project Database'!$5:$5,'Project Database'!6:6))^(1/12)-1 -> 0.001651581302 | BU18: =(1+LOOKUP(BU$17,'Project Database'!$5:$5,'Project Database'!6:6))^(1/12)-1 -> 0.001651581302 | BV18: =(1+LOOKUP(BV$17,'Project Database'!$5:$5,'Project Database'!6:6))^(1/12)-1 -> 0.001651581302 | BW18: =(1+LOOKUP(BW$17,'Project Database'!$5:$5,'Project Database'!6:6))^(1/12)-1 -> 0.001651581302 | BX18: =(1+LOOKUP(BX$17,'Project Database'!$5:$5,'Project Database'!6:6))^(1/12)-1 -> 0.001651581302 | BY18: =(1+LOOKUP(BY$17,'Project Database'!$5:$5,'Project Database'!6:6))^(1/12)-1 -> 0.001651581302 | BZ18: =(1+LOOKUP(BZ$17,'Project Database'!$5:$5,'Project Database'!6:6))^(1/12)-1 -> 0.001651581302 | CA18: =(1+LOOKUP(CA$17,'Project Database'!$5:$5,'Project Database'!6:6))^(1/12)-1 -> 0.001651581302 | CB18: =(1+LOOKUP(CB$17,'Project Database'!$5:$5,'Project Database'!6:6))^(1/12)-1 -> 0.001651581302 | CC18: =(1+LOOKUP(CC$17,'Project Database'!$5:$5,'Project Database'!6:6))^(1/12)-1 -> 0.001651581302 | CD18: =(1+LOOKUP(CD$17,'Project Database'!$5:$5,'Project Database'!6:6))^(1/12)-1 -> 0.001651581302 | CE18: =(1+LOOKUP(CE$17,'Project Database'!$5:$5,'Project Database'!6:6))^(1/12)-1 -> 0.001651581302 | CF18: =(1+LOOKUP(CF$17,'Project Database'!$5:$5,'Project Database'!6:6))^(1/12)-1 -> 0.001651581302 | CG18: =(1+LOOKUP(CG$17,'Project Database'!$5:$5,'Project Database'!6:6))^(1/12)-1 -> 0.001651581302 | CH18: =(1+LOOKUP(CH$17,'Project Database'!$5:$5,'Project Database'!6:6))^(1/12)-1 -> 0.001651581302 | CI18: =(1+LOOKUP(CI$17,'Project Database'!$5:$5,'Project Database'!6:6))^(1/12)-1 -> 0.001651581302 | CJ18: =(1+LOOKUP(CJ$17,'Project Database'!$5:$5,'Project Database'!6:6))^(1/12)-1 -> 0.001651581302 | CK18: =(1+LOOKUP(CK$17,'Project Database'!$5:$5,'Project Database'!6:6))^(1/12)-1 -> 0.001651581302 | CL18: =(1+LOOKUP(CL$17,'Project Database'!$5:$5,'Project Database'!6:6))^(1/12)-1 -> 0.001651581302 | CM18: =(1+LOOKUP(CM$17,'Project Database'!$5:$5,'Project Database'!6:6))^(1/12)-1 -> 0.001651581302 | CN18: =(1+LOOKUP(CN$17,'Project Database'!$5:$5,'Project Database'!6:6))^(1/12)-1 -> 0.001651581302 | CO18: =(1+LOOKUP(CO$17,'Project Database'!$5:$5,'Project Database'!6:6))^(1/12)-1 -> 0.001651581302 | CP18: =(1+LOOKUP(CP$17,'Project Database'!$5:$5,'Project Database'!6:6))^(1/12)-1 -> 0.001651581302 | CQ18: =(1+LOOKUP(CQ$17,'Project Database'!$5:$5,'Project Database'!6:6))^(1/12)-1 -> 0.001651581302 | CR18: =(1+LOOKUP(CR$17,'Project Database'!$5:$5,'Project Database'!6:6))^(1/12)-1 -> 0.001651581302 | CS18: =(1+LOOKUP(CS$17,'Project Database'!$5:$5,'Project Database'!6:6))^(1/12)-1 -> 0.001651581302 | CT18: =(1+LOOKUP(CT$17,'Project Database'!$5:$5,'Project Database'!6:6))^(1/12)-1 -> 0.001651581302 | CU18: =(1+LOOKUP(CU$17,'Project Database'!$5:$5,'Project Database'!6:6))^(1/12)-1 -> 0.001651581302 | CV18: =(1+LOOKUP(CV$17,'Project Database'!$5:$5,'Project Database'!6:6))^(1/12)-1 -> 0.001651581302 | CW18: =(1+LOOKUP(CW$17,'Project Database'!$5:$5,'Project Database'!6:6))^(1/12)-1 -> 0.001651581302 | CX18: =(1+LOOKUP(CX$17,'Project Database'!$5:$5,'Project Database'!6:6))^(1/12)-1 -> 0.001651581302 | CY18: =(1+LOOKUP(CY$17,'Project Database'!$5:$5,'Project Database'!6:6))^(1/12)-1 -> 0.001651581302 | CZ18: =(1+LOOKUP(CZ$17,'Project Database'!$5:$5,'Project Database'!6:6))^(1/12)-1 -> 0.001651581302 | DA18: =(1+LOOKUP(DA$17,'Project Database'!$5:$5,'Project Database'!6:6))^(1/12)-1 -> 0.001651581302 | DB18: =(1+LOOKUP(DB$17,'Project Database'!$5:$5,'Project Database'!6:6))^(1/12)-1 -> 0.001651581302 | DC18: =(1+LOOKUP(DC$17,'Project Database'!$5:$5,'Project Database'!6:6))^(1/12)-1 -> 0.001651581302 | DD18: =(1+LOOKUP(DD$17,'Project Database'!$5:$5,'Project Database'!6:6))^(1/12)-1 -> 0.001651581302 | DE18: =(1+LOOKUP(DE$17,'Project Database'!$5:$5,'Project Database'!6:6))^(1/12)-1 -> 0.001651581302 | DF18: =(1+LOOKUP(DF$17,'Project Database'!$5:$5,'Project Database'!6:6))^(1/12)-1 -> 0.001651581302 | DG18: =(1+LOOKUP(DG$17,'Project Database'!$5:$5,'Project Database'!6:6))^(1/12)-1 -> 0.001651581302 | DH18: =(1+LOOKUP(DH$17,'Project Database'!$5:$5,'Project Database'!6:6))^(1/12)-1 -> 0.001651581302 | DI18: =(1+LOOKUP(DI$17,'Project Database'!$5:$5,'Project Database'!6:6))^(1/12)-1 -> 0.001651581302 | DJ18: =(1+LOOKUP(DJ$17,'Project Database'!$5:$5,'Project Database'!6:6))^(1/12)-1 -> 0.001651581302 | DK18: =(1+LOOKUP(DK$17,'Project Database'!$5:$5,'Project Database'!6:6))^(1/12)-1 -> 0.001651581302 | DL18: =(1+LOOKUP(DL$17,'Project Database'!$5:$5,'Project Database'!6:6))^(1/12)-1 -> 0.001651581302 | DM18: =(1+LOOKUP(DM$17,'Project Database'!$5:$5,'Project Database'!6:6))^(1/12)-1 -> 0.001651581302 | DN18: =(1+LOOKUP(DN$17,'Project Database'!$5:$5,'Project Database'!6:6))^(1/12)-1 -> 0.001651581302 | DO18: =(1+LOOKUP(DO$17,'Project Database'!$5:$5,'Project Database'!6:6))^(1/12)-1 -> 0.001651581302 | DP18: =(1+LOOKUP(DP$17,'Project Database'!$5:$5,'Project Database'!6:6))^(1/12)-1 -> 0.001651581302 | DQ18: =(1+LOOKUP(DQ$17,'Project Database'!$5:$5,'Project Database'!6:6))^(1/12)-1 -> 0.001651581302 | DR18: =(1+LOOKUP(DR$17,'Project Database'!$5:$5,'Project Database'!6:6))^(1/12)-1 -> 0.001651581302 | DS18: =(1+LOOKUP(DS$17,'Project Database'!$5:$5,'Project Database'!6:6))^(1/12)-1 -> 0.001651581302 | DT18: =(1+LOOKUP(DT$17,'Project Database'!$5:$5,'Project Database'!6:6))^(1/12)-1 -> 0.001651581302 | DU18: =(1+LOOKUP(DU$17,'Project Database'!$5:$5,'Project Database'!6:6))^(1/12)-1 -> 0.001651581302 | DV18: =(1+LOOKUP(DV$17,'Project Database'!$5:$5,'Project Database'!6:6))^(1/12)-1 -> 0.001651581302 | DW18: =(1+LOOKUP(DW$17,'Project Database'!$5:$5,'Project Database'!6:6))^(1/12)-1 -> 0.001651581302 | DX18: =(1+LOOKUP(DX$17,'Project Database'!$5:$5,'Project Database'!6:6))^(1/12)-1 -> 0.001651581302 | DY18: =(1+LOOKUP(DY$17,'Project Database'!$5:$5,'Project Database'!6:6))^(1/12)-1 -> 0.001651581302 | DZ18: =(1+LOOKUP(DZ$17,'Project Database'!$5:$5,'Project Database'!6:6))^(1/12)-1 -> 0.001651581302 | EA18: =(1+LOOKUP(EA$17,'Project Database'!$5:$5,'Project Database'!6:6))^(1/12)-1 -> 0.001651581302 | EB18: =(1+LOOKUP(EB$17,'Project Database'!$5:$5,'Project Database'!6:6))^(1/12)-1 -> 0.001651581302 | EC18: =(1+LOOKUP(EC$17,'Project Database'!$5:$5,'Project Database'!6:6))^(1/12)-1 -> 0.001651581302 | ED18: =(1+LOOKUP(ED$17,'Project Database'!$5:$5,'Project Database'!6:6))^(1/12)-1 -> 0.001651581302 | EE18: =(1+LOOKUP(EE$17,'Project Database'!$5:$5,'Project Database'!6:6))^(1/12)-1 -> 0.001651581302 | EF18: =(1+LOOKUP(EF$17,'Project Database'!$5:$5,'Project Database'!6:6))^(1/12)-1 -> 0.001651581302 | EG18: =(1+LOOKUP(EG$17,'Project Database'!$5:$5,'Project Database'!6:6))^(1/12)-1 -> 0.001651581302 | EH18: =(1+LOOKUP(EH$17,'Project Database'!$5:$5,'Project Database'!6:6))^(1/12)-1 -> 0.001651581302 | EI18: =(1+LOOKUP(EI$17,'Project Database'!$5:$5,'Project Database'!6:6))^(1/12)-1 -> 0.001651581302 | EJ18: =(1+LOOKUP(EJ$17,'Project Database'!$5:$5,'Project Database'!6:6))^(1/12)-1 -> 0.001651581302 | EK18: =(1+LOOKUP(EK$17,'Project Database'!$5:$5,'Project Database'!6:6))^(1/12)-1 -> 0.001651581302 | EL18: =(1+LOOKUP(EL$17,'Project Database'!$5:$5,'Project Database'!6:6))^(1/12)-1 -> 0.001651581302 | EM18: =(1+LOOKUP(EM$17,'Project Database'!$5:$5,'Project Database'!6:6))^(1/12)-1 -> 0.001651581302 | EN18: =(1+LOOKUP(EN$17,'Project Database'!$5:$5,'Project Database'!6:6))^(1/12)-1 -> 0.001651581302 | EO18: =(1+LOOKUP(EO$17,'Project Database'!$5:$5,'Project Database'!6:6))^(1/12)-1 -> 0.001651581302 | EP18: =(1+LOOKUP(EP$17,'Project Database'!$5:$5,'Project Database'!6:6))^(1/12)-1 -> 0.001651581302 | EQ18: =(1+LOOKUP(EQ$17,'Project Database'!$5:$5,'Project Database'!6:6))^(1/12)-1 -> 0.001651581302 | ER18: =(1+LOOKUP(ER$17,'Project Database'!$5:$5,'Project Database'!6:6))^(1/12)-1 -> 0.001651581302 | ES18: =(1+LOOKUP(ES$17,'Project Database'!$5:$5,'Project Database'!6:6))^(1/12)-1 -> 0.001651581302 | ET18: =(1+LOOKUP(ET$17,'Project Database'!$5:$5,'Project Database'!6:6))^(1/12)-1 -> 0.001651581302 | EU18: =(1+LOOKUP(EU$17,'Project Database'!$5:$5,'Project Database'!6:6))^(1/12)-1 -> 0.001651581302 | EV18: =(1+LOOKUP(EV$17,'Project Database'!$5:$5,'Project Database'!6:6))^(1/12)-1 -> 0.001651581302 | EW18: =(1+LOOKUP(EW$17,'Project Database'!$5:$5,'Project Database'!6:6))^(1/12)-1 -> 0.001651581302 | EX18: =(1+LOOKUP(EX$17,'Project Database'!$5:$5,'Project Database'!6:6))^(1/12)-1 -> 0.001651581302 | EY18: =(1+LOOKUP(EY$17,'Project Database'!$5:$5,'Project Database'!6:6))^(1/12)-1 -> 0.001651581302 | EZ18: =(1+LOOKUP(EZ$17,'Project Database'!$5:$5,'Project Database'!6:6))^(1/12)-1 -> 0.001651581302 | FA18: =(1+LOOKUP(FA$17,'Project Database'!$5:$5,'Project Database'!6:6))^(1/12)-1 -> 0.001651581302 | FB18: =(1+LOOKUP(FB$17,'Project Database'!$5:$5,'Project Database'!6:6))^(1/12)-1 -> 0.001651581302 | FC18: =(1+LOOKUP(FC$17,'Project Database'!$5:$5,'Project Database'!6:6))^(1/12)-1 -> 0.001651581302 | FD18: =(1+LOOKUP(FD$17,'Project Database'!$5:$5,'Project Database'!6:6))^(1/12)-1 -> 0.001651581302 | FE18: =(1+LOOKUP(FE$17,'Project Database'!$5:$5,'Project Database'!6:6))^(1/12)-1 -> 0.001651581302 | FF18: =(1+LOOKUP(FF$17,'Project Database'!$5:$5,'Project Database'!6:6))^(1/12)-1 -> 0.001651581302 | FG18: =(1+LOOKUP(FG$17,'Project Database'!$5:$5,'Project Database'!6:6))^(1/12)-1 -> 0.001651581302 | FH18: =(1+LOOKUP(FH$17,'Project Database'!$5:$5,'Project Database'!6:6))^(1/12)-1 -> 0.001651581302 | FI18: =(1+LOOKUP(FI$17,'Project Database'!$5:$5,'Project Database'!6:6))^(1/12)-1 -> 0.001651581302 | FJ18: =(1+LOOKUP(FJ$17,'Project Database'!$5:$5,'Project Database'!6:6))^(1/12)-1 -> 0.001651581302 | FK18: =(1+LOOKUP(FK$17,'Project Database'!$5:$5,'Project Database'!6:6))^(1/12)-1 -> 0.001651581302 | FL18: =(1+LOOKUP(FL$17,'Project Database'!$5:$5,'Project Database'!6:6))^(1/12)-1 -> 0.001651581302 | FM18: =(1+LOOKUP(FM$17,'Project Database'!$5:$5,'Project Database'!6:6))^(1/12)-1 -> 0.001651581302 | FN18: =(1+LOOKUP(FN$17,'Project Database'!$5:$5,'Project Database'!6:6))^(1/12)-1 -> 0.001651581302 | FO18: =(1+LOOKUP(FO$17,'Project Database'!$5:$5,'Project Database'!6:6))^(1/12)-1 -> 0.001651581302 | FP18: =(1+LOOKUP(FP$17,'Project Database'!$5:$5,'Project Database'!6:6))^(1/12)-1 -> 0.001651581302 | FQ18: =(1+LOOKUP(FQ$17,'Project Database'!$5:$5,'Project Database'!6:6))^(1/12)-1 -> 0.001651581302 | FR18: =(1+LOOKUP(FR$17,'Project Database'!$5:$5,'Project Database'!6:6))^(1/12)-1 -> 0.001651581302 | FS18: =(1+LOOKUP(FS$17,'Project Database'!$5:$5,'Project Database'!6:6))^(1/12)-1 -> 0.001651581302 | FT18: =(1+LOOKUP(FT$17,'Project Database'!$5:$5,'Project Database'!6:6))^(1/12)-1 -> 0.001651581302 | FU18: =(1+LOOKUP(FU$17,'Project Database'!$5:$5,'Project Database'!6:6))^(1/12)-1 -> 0.001651581302 | FV18: =(1+LOOKUP(FV$17,'Project Database'!$5:$5,'Project Database'!6:6))^(1/12)-1 -> 0.001651581302 | FW18: =(1+LOOKUP(FW$17,'Project Database'!$5:$5,'Project Database'!6:6))^(1/12)-1 -> 0.001651581302 | FX18: =(1+LOOKUP(FX$17,'Project Database'!$5:$5,'Project Database'!6:6))^(1/12)-1 -> 0.001651581302 | FY18: =(1+LOOKUP(FY$17,'Project Database'!$5:$5,'Project Database'!6:6))^(1/12)-1 -> 0.001651581302 | FZ18: =(1+LOOKUP(FZ$17,'Project Database'!$5:$5,'Project Database'!6:6))^(1/12)-1 -> 0.001651581302 | GA18: =(1+LOOKUP(GA$17,'Project Database'!$5:$5,'Project Database'!6:6))^(1/12)-1 -> 0.001651581302 | GB18: =(1+LOOKUP(GB$17,'Project Database'!$5:$5,'Project Database'!6:6))^(1/12)-1 -> 0.001651581302 | GC18: =(1+LOOKUP(GC$17,'Project Database'!$5:$5,'Project Database'!6:6))^(1/12)-1 -> 0.001651581302 | GD18: =(1+LOOKUP(GD$17,'Project Database'!$5:$5,'Project Database'!6:6))^(1/12)-1 -> 0.001651581302 | GE18: =(1+LOOKUP(GE$17,'Project Database'!$5:$5,'Project Database'!6:6))^(1/12)-1 -> 0.001651581302 | GF18: =(1+LOOKUP(GF$17,'Project Database'!$5:$5,'Project Database'!6:6))^(1/12)-1 -> 0.001651581302 | GG18: =(1+LOOKUP(GG$17,'Project Database'!$5:$5,'Project Database'!6:6))^(1/12)-1 -> 0.001651581302 | GH18: =(1+LOOKUP(GH$17,'Project Database'!$5:$5,'Project Database'!6:6))^(1/12)-1 -> 0.001651581302 | GI18: =(1+LOOKUP(GI$17,'Project Database'!$5:$5,'Project Database'!6:6))^(1/12)-1 -> 0.001651581302 | GJ18: =(1+LOOKUP(GJ$17,'Project Database'!$5:$5,'Project Database'!6:6))^(1/12)-1 -> 0.001651581302 | GK18: =(1+LOOKUP(GK$17,'Project Database'!$5:$5,'Project Database'!6:6))^(1/12)-1 -> 0.001651581302 | GL18: =(1+LOOKUP(GL$17,'Project Database'!$5:$5,'Project Database'!6:6))^(1/12)-1 -> 0.001651581302 | GM18: =(1+LOOKUP(GM$17,'Project Database'!$5:$5,'Project Database'!6:6))^(1/12)-1 -> 0.001651581302 | GN18: =(1+LOOKUP(GN$17,'Project Database'!$5:$5,'Project Database'!6:6))^(1/12)-1 -> 0.001651581302 | GO18: =(1+LOOKUP(GO$17,'Project Database'!$5:$5,'Project Database'!6:6))^(1/12)-1 -> 0.001651581302 | GP18: =(1+LOOKUP(GP$17,'Project Database'!$5:$5,'Project Database'!6:6))^(1/12)-1 -> 0.001651581302 | GQ18: =(1+LOOKUP(GQ$17,'Project Database'!$5:$5,'Project Database'!6:6))^(1/12)-1 -> 0.001651581302 | GR18: =(1+LOOKUP(GR$17,'Project Database'!$5:$5,'Project Database'!6:6))^(1/12)-1 -> 0.001651581302 | GS18: =(1+LOOKUP(GS$17,'Project Database'!$5:$5,'Project Database'!6:6))^(1/12)-1 -> 0.001651581302 | GT18: =(1+LOOKUP(GT$17,'Project Database'!$5:$5,'Project Database'!6:6))^(1/12)-1 -> 0.001651581302 | GU18: =(1+LOOKUP(GU$17,'Project Database'!$5:$5,'Project Database'!6:6))^(1/12)-1 -> 0.001651581302 | GV18: =(1+LOOKUP(GV$17,'Project Database'!$5:$5,'Project Database'!6:6))^(1/12)-1 -> 0.001651581302 | GW18: =(1+LOOKUP(GW$17,'Project Database'!$5:$5,'Project Database'!6:6))^(1/12)-1 -> 0.001651581302 | GX18: =(1+LOOKUP(GX$17,'Project Database'!$5:$5,'Project Database'!6:6))^(1/12)-1 -> 0.001651581302 | GY18: =(1+LOOKUP(GY$17,'Project Database'!$5:$5,'Project Database'!6:6))^(1/12)-1 -> 0.001651581302 | GZ18: =(1+LOOKUP(GZ$17,'Project Database'!$5:$5,'Project Database'!6:6))^(1/12)-1 -> 0.001651581302 | HA18: =(1+LOOKUP(HA$17,'Project Database'!$5:$5,'Project Database'!6:6))^(1/12)-1 -> 0.001651581302 | HB18: =(1+LOOKUP(HB$17,'Project Database'!$5:$5,'Project Database'!6:6))^(1/12)-1 -> 0.001651581302 | HC18: =(1+LOOKUP(HC$17,'Project Database'!$5:$5,'Project Database'!6:6))^(1/12)-1 -> 0.001651581302 | HD18: =(1+LOOKUP(HD$17,'Project Database'!$5:$5,'Project Database'!6:6))^(1/12)-1 -> 0.001651581302 | HE18: =(1+LOOKUP(HE$17,'Project Database'!$5:$5,'Project Database'!6:6))^(1/12)-1 -> 0.001651581302 | HF18: =(1+LOOKUP(HF$17,'Project Database'!$5:$5,'Project Database'!6:6))^(1/12)-1 -> 0.001651581302 | HG18: =(1+LOOKUP(HG$17,'Project Database'!$5:$5,'Project Database'!6:6))^(1/12)-1 -> 0.001651581302 | HH18: =(1+LOOKUP(HH$17,'Project Database'!$5:$5,'Project Database'!6:6))^(1/12)-1 -> 0.001651581302 | HI18: =(1+LOOKUP(HI$17,'Project Database'!$5:$5,'Project Database'!6:6))^(1/12)-1 -> 0.001651581302 | HJ18: =(1+LOOKUP(HJ$17,'Project Database'!$5:$5,'Project Database'!6:6))^(1/12)-1 -> 0.001651581302 | HK18: =(1+LOOKUP(HK$17,'Project Database'!$5:$5,'Project Database'!6:6))^(1/12)-1 -> 0.001651581302 | HL18: =(1+LOOKUP(HL$17,'Project Database'!$5:$5,'Project Database'!6:6))^(1/12)-1 -> 0.001651581302 | HM18: =(1+LOOKUP(HM$17,'Project Database'!$5:$5,'Project Database'!6:6))^(1/12)-1 -> 0.001651581302 | HN18: =(1+LOOKUP(HN$17,'Project Database'!$5:$5,'Project Database'!6:6))^(1/12)-1 -> 0.001651581302 | HO18: =(1+LOOKUP(HO$17,'Project Database'!$5:$5,'Project Database'!6:6))^(1/12)-1 -> 0.001651581302 | HP18: =(1+LOOKUP(HP$17,'Project Database'!$5:$5,'Project Database'!6:6))^(1/12)-1 -> 0.001651581302 | HQ18: =(1+LOOKUP(HQ$17,'Project Database'!$5:$5,'Project Database'!6:6))^(1/12)-1 -> 0.001651581302 | HR18: =(1+LOOKUP(HR$17,'Project Database'!$5:$5,'Project Database'!6:6))^(1/12)-1 -> 0.001651581302 | HS18: =(1+LOOKUP(HS$17,'Project Database'!$5:$5,'Project Database'!6:6))^(1/12)-1 -> 0.001651581302 | HT18: =(1+LOOKUP(HT$17,'Project Database'!$5:$5,'Project Database'!6:6))^(1/12)-1 -> 0.001651581302 | HU18: =(1+LOOKUP(HU$17,'Project Database'!$5:$5,'Project Database'!6:6))^(1/12)-1 -> 0.001651581302 | HV18: =(1+LOOKUP(HV$17,'Project Database'!$5:$5,'Project Database'!6:6))^(1/12)-1 -> 0.001651581302 | HW18: =(1+LOOKUP(HW$17,'Project Database'!$5:$5,'Project Database'!6:6))^(1/12)-1 -> 0.001651581302 | HX18: =(1+LOOKUP(HX$17,'Project Database'!$5:$5,'Project Database'!6:6))^(1/12)-1 -> 0.001651581302 | HY18: =(1+LOOKUP(HY$17,'Project Database'!$5:$5,'Project Database'!6:6))^(1/12)-1 -> 0.001651581302 | HZ18: =(1+LOOKUP(HZ$17,'Project Database'!$5:$5,'Project Database'!6:6))^(1/12)-1 -> 0.001651581302 | IA18: =(1+LOOKUP(IA$17,'Project Database'!$5:$5,'Project Database'!6:6))^(1/12)-1 -> 0.001651581302 | IB18: =(1+LOOKUP(IB$17,'Project Database'!$5:$5,'Project Database'!6:6))^(1/12)-1 -> 0.001651581302 | IC18: =(1+LOOKUP(IC$17,'Project Database'!$5:$5,'Project Database'!6:6))^(1/12)-1 -> 0.001651581302 | ID18: =(1+LOOKUP(ID$17,'Project Database'!$5:$5,'Project Database'!6:6))^(1/12)-1 -> 0.001651581302 | IE18: =(1+LOOKUP(IE$17,'Project Database'!$5:$5,'Project Database'!6:6))^(1/12)-1 -> 0.001651581302 | IF18: =(1+LOOKUP(IF$17,'Project Database'!$5:$5,'Project Database'!6:6))^(1/12)-1 -> 0.001651581302 | IG18: =(1+LOOKUP(IG$17,'Project Database'!$5:$5,'Project Database'!6:6))^(1/12)-1 -> 0.001651581302 | IH18: =(1+LOOKUP(IH$17,'Project Database'!$5:$5,'Project Database'!6:6))^(1/12)-1 -> 0.001651581302 | II18: =(1+LOOKUP(II$17,'Project Database'!$5:$5,'Project Database'!6:6))^(1/12)-1 -> 0.001651581302 | IJ18: =(1+LOOKUP(IJ$17,'Project Database'!$5:$5,'Project Database'!6:6))^(1/12)-1 -> 0.001651581302 | IK18: =(1+LOOKUP(IK$17,'Project Database'!$5:$5,'Project Database'!6:6))^(1/12)-1 -> 0.001651581302 | IL18: =(1+LOOKUP(IL$17,'Project Database'!$5:$5,'Project Database'!6:6))^(1/12)-1 -> 0.001651581302 | IM18: =(1+LOOKUP(IM$17,'Project Database'!$5:$5,'Project Database'!6:6))^(1/12)-1 -> 0.001651581302 | IN18: =(1+LOOKUP(IN$17,'Project Database'!$5:$5,'Project Database'!6:6))^(1/12)-1 -> 0.001651581302 | IO18: =(1+LOOKUP(IO$17,'Project Database'!$5:$5,'Project Database'!6:6))^(1/12)-1 -> 0.001651581302 | IP18: =(1+LOOKUP(IP$17,'Project Database'!$5:$5,'Project Database'!6:6))^(1/12)-1 -> 0.001651581302 | IQ18: =(1+LOOKUP(IQ$17,'Project Database'!$5:$5,'Project Database'!6:6))^(1/12)-1 -> 0.001651581302 | IR18: =(1+LOOKUP(IR$17,'Project Database'!$5:$5,'Project Database'!6:6))^(1/12)-1 -> 0.001651581302 | IS18: =(1+LOOKUP(IS$17,'Project Database'!$5:$5,'Project Database'!6:6))^(1/12)-1 -> 0.001651581302 | IT18: =(1+LOOKUP(IT$17,'Project Database'!$5:$5,'Project Database'!6:6))^(1/12)-1 -> 0.001651581302 | IU18: =(1+LOOKUP(IU$17,'Project Database'!$5:$5,'Project Database'!6:6))^(1/12)-1 -> 0.001651581302 | IV18: =(1+LOOKUP(IV$17,'Project Database'!$5:$5,'Project Database'!6:6))^(1/12)-1 -> 0.001651581302 | IW18: =(1+LOOKUP(IW$17,'Project Database'!$5:$5,'Project Database'!6:6))^(1/12)-1 -> 0.001651581302 | IX18: =(1+LOOKUP(IX$17,'Project Database'!$5:$5,'Project Database'!6:6))^(1/12)-1 -> 0.001651581302 | IY18: =(1+LOOKUP(IY$17,'Project Database'!$5:$5,'Project Database'!6:6))^(1/12)-1 -> 0.001651581302 | IZ18: =(1+LOOKUP(IZ$17,'Project Database'!$5:$5,'Project Database'!6:6))^(1/12)-1 -> 0.001651581302 | JA18: =(1+LOOKUP(JA$17,'Project Database'!$5:$5,'Project Database'!6:6))^(1/12)-1 -> 0.001651581302 | JB18: =(1+LOOKUP(JB$17,'Project Database'!$5:$5,'Project Database'!6:6))^(1/12)-1 -> 0.001651581302 | JC18: =(1+LOOKUP(JC$17,'Project Database'!$5:$5,'Project Database'!6:6))^(1/12)-1 -> 0.001651581302 | JD18: =(1+LOOKUP(JD$17,'Project Database'!$5:$5,'Project Database'!6:6))^(1/12)-1 -> 0.001651581302 | JE18: =(1+LOOKUP(JE$17,'Project Database'!$5:$5,'Project Database'!6:6))^(1/12)-1 -> 0.001651581302 | JF18: =(1+LOOKUP(JF$17,'Project Database'!$5:$5,'Project Database'!6:6))^(1/12)-1 -> 0.001651581302 | JG18: =(1+LOOKUP(JG$17,'Project Database'!$5:$5,'Project Database'!6:6))^(1/12)-1 -> 0.001651581302 | JH18: =(1+LOOKUP(JH$17,'Project Database'!$5:$5,'Project Database'!6:6))^(1/12)-1 -> 0.001651581302 | JI18: =(1+LOOKUP(JI$17,'Project Database'!$5:$5,'Project Database'!6:6))^(1/12)-1 -> 0.001651581302 | JJ18: =(1+LOOKUP(JJ$17,'Project Database'!$5:$5,'Project Database'!6:6))^(1/12)-1 -> 0.001651581302 | JK18: =(1+LOOKUP(JK$17,'Project Database'!$5:$5,'Project Database'!6:6))^(1/12)-1 -> 0.001651581302 | JL18: =(1+LOOKUP(JL$17,'Project Database'!$5:$5,'Project Database'!6:6))^(1/12)-1 -> 0.001651581302 | JM18: =(1+LOOKUP(JM$17,'Project Database'!$5:$5,'Project Database'!6:6))^(1/12)-1 -> 0.001651581302 | JN18: =(1+LOOKUP(JN$17,'Project Database'!$5:$5,'Project Database'!6:6))^(1/12)-1 -> 0.001651581302 | JO18: =(1+LOOKUP(JO$17,'Project Database'!$5:$5,'Project Database'!6:6))^(1/12)-1 -> 0.001651581302 | JP18: =(1+LOOKUP(JP$17,'Project Database'!$5:$5,'Project Database'!6:6))^(1/12)-1 -> 0.001651581302 | JQ18: =(1+LOOKUP(JQ$17,'Project Database'!$5:$5,'Project Database'!6:6))^(1/12)-1 -> 0.001651581302 | JR18: =(1+LOOKUP(JR$17,'Project Database'!$5:$5,'Project Database'!6:6))^(1/12)-1 -> 0.001651581302 | JS18: =(1+LOOKUP(JS$17,'Project Database'!$5:$5,'Project Database'!6:6))^(1/12)-1 -> 0.001651581302 | JT18: =(1+LOOKUP(JT$17,'Project Database'!$5:$5,'Project Database'!6:6))^(1/12)-1 -> 0.001651581302 | JU18: =(1+LOOKUP(JU$17,'Project Database'!$5:$5,'Project Database'!6:6))^(1/12)-1 -> 0.001651581302 | JV18: =(1+LOOKUP(JV$17,'Project Database'!$5:$5,'Project Database'!6:6))^(1/12)-1 -> 0.001651581302 | JW18: =(1+LOOKUP(JW$17,'Project Database'!$5:$5,'Project Database'!6:6))^(1/12)-1 -> 0.001651581302 | JX18: =(1+LOOKUP(JX$17,'Project Database'!$5:$5,'Project Database'!6:6))^(1/12)-1 -> 0.001651581302 | JY18: =(1+LOOKUP(JY$17,'Project Database'!$5:$5,'Project Database'!6:6))^(1/12)-1 -> 0.001651581302 | JZ18: =(1+LOOKUP(JZ$17,'Project Database'!$5:$5,'Project Database'!6:6))^(1/12)-1 -> 0.001651581302 | KA18: =(1+LOOKUP(KA$17,'Project Database'!$5:$5,'Project Database'!6:6))^(1/12)-1 -> 0.001651581302 | KB18: =(1+LOOKUP(KB$17,'Project Database'!$5:$5,'Project Database'!6:6))^(1/12)-1 -> 0.001651581302 | KC18: =(1+LOOKUP(KC$17,'Project Database'!$5:$5,'Project Database'!6:6))^(1/12)-1 -> 0.001651581302 | KD18: =(1+LOOKUP(KD$17,'Project Database'!$5:$5,'Project Database'!6:6))^(1/12)-1 -> 0.001651581302 | KE18: =(1+LOOKUP(KE$17,'Project Database'!$5:$5,'Project Database'!6:6))^(1/12)-1 -> 0.001651581302 | KF18: =(1+LOOKUP(KF$17,'Project Database'!$5:$5,'Project Database'!6:6))^(1/12)-1 -> 0.001651581302 | KG18: =(1+LOOKUP(KG$17,'Project Database'!$5:$5,'Project Database'!6:6))^(1/12)-1 -> 0.001651581302 | KH18: =(1+LOOKUP(KH$17,'Project Database'!$5:$5,'Project Database'!6:6))^(1/12)-1 -> 0.001651581302 | KI18: =(1+LOOKUP(KI$17,'Project Database'!$5:$5,'Project Database'!6:6))^(1/12)-1 -> 0.001651581302 | KJ18: =(1+LOOKUP(KJ$17,'Project Database'!$5:$5,'Project Database'!6:6))^(1/12)-1 -> 0.001651581302 | KK18: =(1+LOOKUP(KK$17,'Project Database'!$5:$5,'Project Database'!6:6))^(1/12)-1 -> 0.001651581302 | KL18: =(1+LOOKUP(KL$17,'Project Database'!$5:$5,'Project Database'!6:6))^(1/12)-1 -> 0.001651581302 | KM18: =(1+LOOKUP(KM$17,'Project Database'!$5:$5,'Project Database'!6:6))^(1/12)-1 -> 0.001651581302 | KN18: =(1+LOOKUP(KN$17,'Project Database'!$5:$5,'Project Database'!6:6))^(1/12)-1 -> 0.001651581302 | KO18: =(1+LOOKUP(KO$17,'Project Database'!$5:$5,'Project Database'!6:6))^(1/12)-1 -> 0.001651581302 | KP18: =(1+LOOKUP(KP$17,'Project Database'!$5:$5,'Project Database'!6:6))^(1/12)-1 -> 0.001651581302 | KQ18: =(1+LOOKUP(KQ$17,'Project Database'!$5:$5,'Project Database'!6:6))^(1/12)-1 -> 0.001651581302 | KR18: =(1+LOOKUP(KR$17,'Project Database'!$5:$5,'Project Database'!6:6))^(1/12)-1 -> 0.001651581302 | KS18: =(1+LOOKUP(KS$17,'Project Database'!$5:$5,'Project Database'!6:6))^(1/12)-1 -> 0.001651581302 | KT18: =(1+LOOKUP(KT$17,'Project Database'!$5:$5,'Project Database'!6:6))^(1/12)-1 -> 0.001651581302 | KU18: =(1+LOOKUP(KU$17,'Project Database'!$5:$5,'Project Database'!6:6))^(1/12)-1 -> 0.001651581302 | KV18: =(1+LOOKUP(KV$17,'Project Database'!$5:$5,'Project Database'!6:6))^(1/12)-1 -> 0.001651581302 | KW18: =(1+LOOKUP(KW$17,'Project Database'!$5:$5,'Project Database'!6:6))^(1/12)-1 -> 0.001651581302 | KX18: =(1+LOOKUP(KX$17,'Project Database'!$5:$5,'Project Database'!6:6))^(1/12)-1 -> 0.001651581302 | KY18: =(1+LOOKUP(KY$17,'Project Database'!$5:$5,'Project Database'!6:6))^(1/12)-1 -> 0.001651581302 | KZ18: =(1+LOOKUP(KZ$17,'Project Database'!$5:$5,'Project Database'!6:6))^(1/12)-1 -> 0.001651581302 | LA18: =(1+LOOKUP(LA$17,'Project Database'!$5:$5,'Project Database'!6:6))^(1/12)-1 -> 0.001651581302 | LB18: =(1+LOOKUP(LB$17,'Project Database'!$5:$5,'Project Database'!6:6))^(1/12)-1 -> 0.001651581302 | LC18: =(1+LOOKUP(LC$17,'Project Database'!$5:$5,'Project Database'!6:6))^(1/12)-1 -> 0.001651581302 | LD18: =(1+LOOKUP(LD$17,'Project Database'!$5:$5,'Project Database'!6:6))^(1/12)-1 -> 0.001651581302 | LE18: =(1+LOOKUP(LE$17,'Project Database'!$5:$5,'Project Database'!6:6))^(1/12)-1 -> 0.001651581302 | LF18: =(1+LOOKUP(LF$17,'Project Database'!$5:$5,'Project Database'!6:6))^(1/12)-1 -> 0.001651581302 | LG18: =(1+LOOKUP(LG$17,'Project Database'!$5:$5,'Project Database'!6:6))^(1/12)-1 -> 0.001651581302 | LH18: =(1+LOOKUP(LH$17,'Project Database'!$5:$5,'Project Database'!6:6))^(1/12)-1 -> 0.001651581302 | LI18: =(1+LOOKUP(LI$17,'Project Database'!$5:$5,'Project Database'!6:6))^(1/12)-1 -> 0.001651581302 | LJ18: =(1+LOOKUP(LJ$17,'Project Database'!$5:$5,'Project Database'!6:6))^(1/12)-1 -> 0.001651581302 | LK18: =(1+LOOKUP(LK$17,'Project Database'!$5:$5,'Project Database'!6:6))^(1/12)-1 -> 0.001651581302 | LL18: =(1+LOOKUP(LL$17,'Project Database'!$5:$5,'Project Database'!6:6))^(1/12)-1 -> 0.001651581302 | LM18: =(1+LOOKUP(LM$17,'Project Database'!$5:$5,'Project Database'!6:6))^(1/12)-1 -> 0.001651581302 | LN18: =(1+LOOKUP(LN$17,'Project Database'!$5:$5,'Project Database'!6:6))^(1/12)-1 -> 0.001651581302 | LO18: =(1+LOOKUP(LO$17,'Project Database'!$5:$5,'Project Database'!6:6))^(1/12)-1 -> 0.001651581302 | LP18: =(1+LOOKUP(LP$17,'Project Database'!$5:$5,'Project Database'!6:6))^(1/12)-1 -> 0.001651581302 | LQ18: =(1+LOOKUP(LQ$17,'Project Database'!$5:$5,'Project Database'!6:6))^(1/12)-1 -> 0.001651581302 | LR18: =(1+LOOKUP(LR$17,'Project Database'!$5:$5,'Project Database'!6:6))^(1/12)-1 -> 0.001651581302 | LS18: =(1+LOOKUP(LS$17,'Project Database'!$5:$5,'Project Database'!6:6))^(1/12)-1 -> 0.001651581302 | LT18: =(1+LOOKUP(LT$17,'Project Database'!$5:$5,'Project Database'!6:6))^(1/12)-1 -> 0.001651581302 | LU18: =(1+LOOKUP(LU$17,'Project Database'!$5:$5,'Project Database'!6:6))^(1/12)-1 -> 0.001651581302 | LV18: =(1+LOOKUP(LV$17,'Project Database'!$5:$5,'Project Database'!6:6))^(1/12)-1 -> 0.001651581302 | LW18: =(1+LOOKUP(LW$17,'Project Database'!$5:$5,'Project Database'!6:6))^(1/12)-1 -> 0.001651581302 | LX18: =(1+LOOKUP(LX$17,'Project Database'!$5:$5,'Project Database'!6:6))^(1/12)-1 -> 0.001651581302 | LY18: =(1+LOOKUP(LY$17,'Project Database'!$5:$5,'Project Database'!6:6))^(1/12)-1 -> 0.001651581302 | LZ18: =(1+LOOKUP(LZ$17,'Project Database'!$5:$5,'Project Database'!6:6))^(1/12)-1 -> 0.001651581302 | MA18: =(1+LOOKUP(MA$17,'Project Database'!$5:$5,'Project Database'!6:6))^(1/12)-1 -> 0.001651581302 | MB18: =(1+LOOKUP(MB$17,'Project Database'!$5:$5,'Project Database'!6:6))^(1/12)-1 -> 0.001651581302 | MC18: =(1+LOOKUP(MC$17,'Project Database'!$5:$5,'Project Database'!6:6))^(1/12)-1 -> 0.001651581302 | MD18: =(1+LOOKUP(MD$17,'Project Database'!$5:$5,'Project Database'!6:6))^(1/12)-1 -> 0.001651581302 | ME18: =(1+LOOKUP(ME$17,'Project Database'!$5:$5,'Project Database'!6:6))^(1/12)-1 -> 0.001651581302 | MF18: =(1+LOOKUP(MF$17,'Project Database'!$5:$5,'Project Database'!6:6))^(1/12)-1 -> 0.001651581302 | MG18: =(1+LOOKUP(MG$17,'Project Database'!$5:$5,'Project Database'!6:6))^(1/12)-1 -> 0.001651581302 | MH18: =(1+LOOKUP(MH$17,'Project Database'!$5:$5,'Project Database'!6:6))^(1/12)-1 -> 0.001651581302 | MI18: =(1+LOOKUP(MI$17,'Project Database'!$5:$5,'Project Database'!6:6))^(1/12)-1 -> 0.001651581302 | MJ18: =(1+LOOKUP(MJ$17,'Project Database'!$5:$5,'Project Database'!6:6))^(1/12)-1 -> 0.001651581302 | MK18: =(1+LOOKUP(MK$17,'Project Database'!$5:$5,'Project Database'!6:6))^(1/12)-1 -> 0.001651581302 | ML18: =(1+LOOKUP(ML$17,'Project Database'!$5:$5,'Project Database'!6:6))^(1/12)-1 -> 0.001651581302 | MM18: =(1+LOOKUP(MM$17,'Project Database'!$5:$5,'Project Database'!6:6))^(1/12)-1 -> 0.001651581302 | MN18: =(1+LOOKUP(MN$17,'Project Database'!$5:$5,'Project Database'!6:6))^(1/12)-1 -> 0.001651581302 | MO18: =(1+LOOKUP(MO$17,'Project Database'!$5:$5,'Project Database'!6:6))^(1/12)-1 -> 0.001651581302 | MP18: =(1+LOOKUP(MP$17,'Project Database'!$5:$5,'Project Database'!6:6))^(1/12)-1 -> 0.001651581302 | MQ18: =(1+LOOKUP(MQ$17,'Project Database'!$5:$5,'Project Database'!6:6))^(1/12)-1 -> 0.001651581302 | MR18: =(1+LOOKUP(MR$17,'Project Database'!$5:$5,'Project Database'!6:6))^(1/12)-1 -> 0.001651581302 | MS18: =(1+LOOKUP(MS$17,'Project Database'!$5:$5,'Project Database'!6:6))^(1/12)-1 -> 0.001651581302 | MT18: =(1+LOOKUP(MT$17,'Project Database'!$5:$5,'Project Database'!6:6))^(1/12)-1 -> 0.001651581302 | MU18: =(1+LOOKUP(MU$17,'Project Database'!$5:$5,'Project Database'!6:6))^(1/12)-1 -> 0.001651581302 | MV18: =(1+LOOKUP(MV$17,'Project Database'!$5:$5,'Project Database'!6:6))^(1/12)-1 -> 0.001651581302 | MW18: =(1+LOOKUP(MW$17,'Project Database'!$5:$5,'Project Database'!6:6))^(1/12)-1 -> 0.001651581302 | MX18: =(1+LOOKUP(MX$17,'Project Database'!$5:$5,'Project Database'!6:6))^(1/12)-1 -> 0.001651581302 | MY18: =(1+LOOKUP(MY$17,'Project Database'!$5:$5,'Project Database'!6:6))^(1/12)-1 -> 0.001651581302 | MZ18: =(1+LOOKUP(MZ$17,'Project Database'!$5:$5,'Project Database'!6:6))^(1/12)-1 -> 0.001651581302 | NA18: =(1+LOOKUP(NA$17,'Project Database'!$5:$5,'Project Database'!6:6))^(1/12)-1 -> 0.001651581302 | NB18: =(1+LOOKUP(NB$17,'Project Database'!$5:$5,'Project Database'!6:6))^(1/12)-1 -> 0.001651581302 | NC18: =(1+LOOKUP(NC$17,'Project Database'!$5:$5,'Project Database'!6:6))^(1/12)-1 -> 0.001651581302 | ND18: =(1+LOOKUP(ND$17,'Project Database'!$5:$5,'Project Database'!6:6))^(1/12)-1 -> 0.001651581302 | NE18: =(1+LOOKUP(NE$17,'Project Database'!$5:$5,'Project Database'!6:6))^(1/12)-1 -> 0.001651581302 | NF18: =(1+LOOKUP(NF$17,'Project Database'!$5:$5,'Project Database'!6:6))^(1/12)-1 -> 0.001651581302 | NG18: =(1+LOOKUP(NG$17,'Project Database'!$5:$5,'Project Database'!6:6))^(1/12)-1 -> 0.001651581302 | NH18: =(1+LOOKUP(NH$17,'Project Database'!$5:$5,'Project Database'!6:6))^(1/12)-1 -> 0.001651581302 | NI18: =(1+LOOKUP(NI$17,'Project Database'!$5:$5,'Project Database'!6:6))^(1/12)-1 -> 0.001651581302 | NJ18: =(1+LOOKUP(NJ$17,'Project Database'!$5:$5,'Project Database'!6:6))^(1/12)-1 -> 0.001651581302 | NK18: =(1+LOOKUP(NK$17,'Project Database'!$5:$5,'Project Database'!6:6))^(1/12)-1 -> 0.001651581302 | NL18: =(1+LOOKUP(NL$17,'Project Database'!$5:$5,'Project Database'!6:6))^(1/12)-1 -> 0.001651581302 | NM18: =(1+LOOKUP(NM$17,'Project Database'!$5:$5,'Project Database'!6:6))^(1/12)-1 -> 0.001651581302 | NN18: =(1+LOOKUP(NN$17,'Project Database'!$5:$5,'Project Database'!6:6))^(1/12)-1 -> 0.001651581302 | NO18: =(1+LOOKUP(NO$17,'Project Database'!$5:$5,'Project Database'!6:6))^(1/12)-1 -> 0.001651581302 | NP18: =(1+LOOKUP(NP$17,'Project Database'!$5:$5,'Project Database'!6:6))^(1/12)-1 -> 0.001651581302 | NQ18: =(1+LOOKUP(NQ$17,'Project Database'!$5:$5,'Project Database'!6:6))^(1/12)-1 -> 0.001651581302 | NR18: =(1+LOOKUP(NR$17,'Project Database'!$5:$5,'Project Database'!6:6))^(1/12)-1 -> 0.001651581302 | NS18: =(1+LOOKUP(NS$17,'Project Database'!$5:$5,'Project Database'!6:6))^(1/12)-1 -> 0.001651581302 | NT18: =(1+LOOKUP(NT$17,'Project Database'!$5:$5,'Project Database'!6:6))^(1/12)-1 -> 0.001651581302 | NU18: =(1+LOOKUP(NU$17,'Project Database'!$5:$5,'Project Database'!6:6))^(1/12)-1 -> 0.001651581302 | NV18: =(1+LOOKUP(NV$17,'Project Database'!$5:$5,'Project Database'!6:6))^(1/12)-1 -> 0.001651581302 | NW18: =(1+LOOKUP(NW$17,'Project Database'!$5:$5,'Project Database'!6:6))^(1/12)-1 -> 0.001651581302 | NX18: =(1+LOOKUP(NX$17,'Project Database'!$5:$5,'Project Database'!6:6))^(1/12)-1 -> 0.001651581302 | NY18: =(1+LOOKUP(NY$17,'Project Database'!$5:$5,'Project Database'!6:6))^(1/12)-1 -> 0.001651581302 | NZ18: =(1+LOOKUP(NZ$17,'Project Database'!$5:$5,'Project Database'!6:6))^(1/12)-1 -> 0.001651581302 | OA18: =(1+LOOKUP(OA$17,'Project Database'!$5:$5,'Project Database'!6:6))^(1/12)-1 -> 0.001651581302 | OB18: =(1+LOOKUP(OB$17,'Project Database'!$5:$5,'Project Database'!6:6))^(1/12)-1 -> 0.001651581302 | OC18: =(1+LOOKUP(OC$17,'Project Database'!$5:$5,'Project Database'!6:6))^(1/12)-1 -> 0.001651581302 | OD18: =(1+LOOKUP(OD$17,'Project Database'!$5:$5,'Project Database'!6:6))^(1/12)-1 -> 0.001651581302 | OE18: =(1+LOOKUP(OE$17,'Project Database'!$5:$5,'Project Database'!6:6))^(1/12)-1 -> 0.001651581302 | OF18: =(1+LOOKUP(OF$17,'Project Database'!$5:$5,'Project Database'!6:6))^(1/12)-1 -> 0.001651581302 | OG18: =(1+LOOKUP(OG$17,'Project Database'!$5:$5,'Project Database'!6:6))^(1/12)-1 -> 0.001651581302 | OH18: =(1+LOOKUP(OH$17,'Project Database'!$5:$5,'Project Database'!6:6))^(1/12)-1 -> 0.001651581302 | OI18: =(1+LOOKUP(OI$17,'Project Database'!$5:$5,'Project Database'!6:6))^(1/12)-1 -> 0.001651581302 | OJ18: =(1+LOOKUP(OJ$17,'Project Database'!$5:$5,'Project Database'!6:6))^(1/12)-1 -> 0.001651581302 | OK18: =(1+LOOKUP(OK$17,'Project Database'!$5:$5,'Project Database'!6:6))^(1/12)-1 -> 0.001651581302 | OL18: =(1+LOOKUP(OL$17,'Project Database'!$5:$5,'Project Database'!6:6))^(1/12)-1 -> 0.001651581302 | OM18: =(1+LOOKUP(OM$17,'Project Database'!$5:$5,'Project Database'!6:6))^(1/12)-1 -> 0.001651581302 | ON18: =(1+LOOKUP(ON$17,'Project Database'!$5:$5,'Project Database'!6:6))^(1/12)-1 -> 0.001651581302 | OO18: =(1+LOOKUP(OO$17,'Project Database'!$5:$5,'Project Database'!6:6))^(1/12)-1 -> 0.001651581302 | OP18: =(1+LOOKUP(OP$17,'Project Database'!$5:$5,'Project Database'!6:6))^(1/12)-1 -> 0.001651581302 | OQ18: =(1+LOOKUP(OQ$17,'Project Database'!$5:$5,'Project Database'!6:6))^(1/12)-1 -> 0.001651581302 | OR18: =(1+LOOKUP(OR$17,'Project Database'!$5:$5,'Project Database'!6:6))^(1/12)-1 -> 0.001651581302 | OS18: =(1+LOOKUP(OS$17,'Project Database'!$5:$5,'Project Database'!6:6))^(1/12)-1 -> 0.001651581302 | OT18: =(1+LOOKUP(OT$17,'Project Database'!$5:$5,'Project Database'!6:6))^(1/12)-1 -> 0.001651581302 | OU18: =(1+LOOKUP(OU$17,'Project Database'!$5:$5,'Project Database'!6:6))^(1/12)-1 -> 0.001651581302 | OV18: =(1+LOOKUP(OV$17,'Project Database'!$5:$5,'Project Database'!6:6))^(1/12)-1 -> 0.001651581302 | OW18: =(1+LOOKUP(OW$17,'Project Database'!$5:$5,'Project Database'!6:6))^(1/12)-1 -> 0.001651581302 | OX18: =(1+LOOKUP(OX$17,'Project Database'!$5:$5,'Project Database'!6:6))^(1/12)-1 -> 0.001651581302 | OY18: =(1+LOOKUP(OY$17,'Project Database'!$5:$5,'Project Database'!6:6))^(1/12)-1 -> 0.001651581302 | OZ18: =(1+LOOKUP(OZ$17,'Project Database'!$5:$5,'Project Database'!6:6))^(1/12)-1 -> 0.001651581302 | PA18: =(1+LOOKUP(PA$17,'Project Database'!$5:$5,'Project Database'!6:6))^(1/12)-1 -> 0.001651581302 | PB18: =(1+LOOKUP(PB$17,'Project Database'!$5:$5,'Project Database'!6:6))^(1/12)-1 -> 0.001651581302 | PC18: =(1+LOOKUP(PC$17,'Project Database'!$5:$5,'Project Database'!6:6))^(1/12)-1 -> 0.001651581302 | PD18: =(1+LOOKUP(PD$17,'Project Database'!$5:$5,'Project Database'!6:6))^(1/12)-1 -> 0.001651581302 | PE18: =(1+LOOKUP(PE$17,'Project Database'!$5:$5,'Project Database'!6:6))^(1/12)-1 -> 0.001651581302 | PF18: =(1+LOOKUP(PF$17,'Project Database'!$5:$5,'Project Database'!6:6))^(1/12)-1 -> 0.001651581302 | PG18: =(1+LOOKUP(PG$17,'Project Database'!$5:$5,'Project Database'!6:6))^(1/12)-1 -> 0.001651581302 | PH18: =(1+LOOKUP(PH$17,'Project Database'!$5:$5,'Project Database'!6:6))^(1/12)-1 -> 0.001651581302 | PI18: =(1+LOOKUP(PI$17,'Project Database'!$5:$5,'Project Database'!6:6))^(1/12)-1 -> 0.001651581302 | PJ18: =(1+LOOKUP(PJ$17,'Project Database'!$5:$5,'Project Database'!6:6))^(1/12)-1 -> 0.001651581302 | PK18: =(1+LOOKUP(PK$17,'Project Database'!$5:$5,'Project Database'!6:6))^(1/12)-1 -> 0.001651581302 | PL18: =(1+LOOKUP(PL$17,'Project Database'!$5:$5,'Project Database'!6:6))^(1/12)-1 -> 0.001651581302 | PM18: =(1+LOOKUP(PM$17,'Project Database'!$5:$5,'Project Database'!6:6))^(1/12)-1 -> 0.001651581302 | PN18: =(1+LOOKUP(PN$17,'Project Database'!$5:$5,'Project Database'!6:6))^(1/12)-1 -> 0.001651581302 | PO18: =(1+LOOKUP(PO$17,'Project Database'!$5:$5,'Project Database'!6:6))^(1/12)-1 -> 0.001651581302 | PP18: =(1+LOOKUP(PP$17,'Project Database'!$5:$5,'Project Database'!6:6))^(1/12)-1 -> 0.001651581302 | PQ18: =(1+LOOKUP(PQ$17,'Project Database'!$5:$5,'Project Database'!6:6))^(1/12)-1 -> 0.001651581302 | PR18: =(1+LOOKUP(PR$17,'Project Database'!$5:$5,'Project Database'!6:6))^(1/12)-1 -> 0.001651581302 | PS18: =(1+LOOKUP(PS$17,'Project Database'!$5:$5,'Project Database'!6:6))^(1/12)-1 -> 0.001651581302 | PT18: =(1+LOOKUP(PT$17,'Project Database'!$5:$5,'Project Database'!6:6))^(1/12)-1 -> 0.001651581302 | PU18: =(1+LOOKUP(PU$17,'Project Database'!$5:$5,'Project Database'!6:6))^(1/12)-1 -> 0.001651581302 | PV18: =(1+LOOKUP(PV$17,'Project Database'!$5:$5,'Project Database'!6:6))^(1/12)-1 -> 0.001651581302 | PW18: =(1+LOOKUP(PW$17,'Project Database'!$5:$5,'Project Database'!6:6))^(1/12)-1 -> 0.001651581302 | PX18: =(1+LOOKUP(PX$17,'Project Database'!$5:$5,'Project Database'!6:6))^(1/12)-1 -> 0.001651581302 | PY18: =(1+LOOKUP(PY$17,'Project Database'!$5:$5,'Project Database'!6:6))^(1/12)-1 -> 0.001651581302 | PZ18: =(1+LOOKUP(PZ$17,'Project Database'!$5:$5,'Project Database'!6:6))^(1/12)-1 -> 0.001651581302 | QA18: =(1+LOOKUP(QA$17,'Project Database'!$5:$5,'Project Database'!6:6))^(1/12)-1 -> 0.001651581302 | QB18: =(1+LOOKUP(QB$17,'Project Database'!$5:$5,'Project Database'!6:6))^(1/12)-1 -> 0.001651581302 | QC18: =(1+LOOKUP(QC$17,'Project Database'!$5:$5,'Project Database'!6:6))^(1/12)-1 -> 0.001651581302 | QD18: =(1+LOOKUP(QD$17,'Project Database'!$5:$5,'Project Database'!6:6))^(1/12)-1 -> 0.001651581302 | QE18: =(1+LOOKUP(QE$17,'Project Database'!$5:$5,'Project Database'!6:6))^(1/12)-1 -> 0.001651581302 | QF18: =(1+LOOKUP(QF$17,'Project Database'!$5:$5,'Project Database'!6:6))^(1/12)-1 -> 0.001651581302 | QG18: =(1+LOOKUP(QG$17,'Project Database'!$5:$5,'Project Database'!6:6))^(1/12)-1 -> 0.001651581302 | QH18: =(1+LOOKUP(QH$17,'Project Database'!$5:$5,'Project Database'!6:6))^(1/12)-1 -> 0.001651581302 | QI18: =(1+LOOKUP(QI$17,'Project Database'!$5:$5,'Project Database'!6:6))^(1/12)-1 -> 0.001651581302 | QJ18: =(1+LOOKUP(QJ$17,'Project Database'!$5:$5,'Project Database'!6:6))^(1/12)-1 -> 0.001651581302 | QK18: =(1+LOOKUP(QK$17,'Project Database'!$5:$5,'Project Database'!6:6))^(1/12)-1 -> 0.001651581302 | QL18: =(1+LOOKUP(QL$17,'Project Database'!$5:$5,'Project Database'!6:6))^(1/12)-1 -> 0.001651581302 | QM18: =(1+LOOKUP(QM$17,'Project Database'!$5:$5,'Project Database'!6:6))^(1/12)-1 -> 0.001651581302 | QN18: =(1+LOOKUP(QN$17,'Project Database'!$5:$5,'Project Database'!6:6))^(1/12)-1 -> 0.001651581302 | QO18: =(1+LOOKUP(QO$17,'Project Database'!$5:$5,'Project Database'!6:6))^(1/12)-1 -> 0.001651581302 | QP18: =(1+LOOKUP(QP$17,'Project Database'!$5:$5,'Project Database'!6:6))^(1/12)-1 -> 0.001651581302 | QQ18: =(1+LOOKUP(QQ$17,'Project Database'!$5:$5,'Project Database'!6:6))^(1/12)-1 -> 0.001651581302 | QR18: =(1+LOOKUP(QR$17,'Project Database'!$5:$5,'Project Database'!6:6))^(1/12)-1 -> 0.001651581302 | QS18: =(1+LOOKUP(QS$17,'Project Database'!$5:$5,'Project Database'!6:6))^(1/12)-1 -> 0.001651581302 | QT18: =(1+LOOKUP(QT$17,'Project Database'!$5:$5,'Project Database'!6:6))^(1/12)-1 -> 0.001651581302 | QU18: =(1+LOOKUP(QU$17,'Project Database'!$5:$5,'Project Database'!6:6))^(1/12)-1 -> 0.001651581302 | QV18: =(1+LOOKUP(QV$17,'Project Database'!$5:$5,'Project Database'!6:6))^(1/12)-1 -> 0.001651581302 | QW18: =(1+LOOKUP(QW$17,'Project Database'!$5:$5,'Project Database'!6:6))^(1/12)-1 -> 0.001651581302 | QX18: =(1+LOOKUP(QX$17,'Project Database'!$5:$5,'Project Database'!6:6))^(1/12)-1 -> 0.001651581302 | QY18: =(1+LOOKUP(QY$17,'Project Database'!$5:$5,'Project Database'!6:6))^(1/12)-1 -> 0.001651581302 | QZ18: =(1+LOOKUP(QZ$17,'Project Database'!$5:$5,'Project Database'!6:6))^(1/12)-1 -> 0.001651581302 | RA18: =(1+LOOKUP(RA$17,'Project Database'!$5:$5,'Project Database'!6:6))^(1/12)-1 -> 0.001651581302 | RB18: =(1+LOOKUP(RB$17,'Project Database'!$5:$5,'Project Database'!6:6))^(1/12)-1 -> 0.001651581302 | RC18: =(1+LOOKUP(RC$17,'Project Database'!$5:$5,'Project Database'!6:6))^(1/12)-1 -> 0.001651581302 | RD18: =(1+LOOKUP(RD$17,'Project Database'!$5:$5,'Project Database'!6:6))^(1/12)-1 -> 0.001651581302 | RE18: =(1+LOOKUP(RE$17,'Project Database'!$5:$5,'Project Database'!6:6))^(1/12)-1 -> 0.001651581302 | RF18: =(1+LOOKUP(RF$17,'Project Database'!$5:$5,'Project Database'!6:6))^(1/12)-1 -> 0.001651581302 | RG18: =(1+LOOKUP(RG$17,'Project Database'!$5:$5,'Project Database'!6:6))^(1/12)-1 -> 0.001651581302 | RH18: =(1+LOOKUP(RH$17,'Project Database'!$5:$5,'Project Database'!6:6))^(1/12)-1 -> 0.001651581302 | RI18: =(1+LOOKUP(RI$17,'Project Database'!$5:$5,'Project Database'!6:6))^(1/12)-1 -> 0.001651581302 | RJ18: =(1+LOOKUP(RJ$17,'Project Database'!$5:$5,'Project Database'!6:6))^(1/12)-1 -> 0.001651581302 | RK18: =(1+LOOKUP(RK$17,'Project Database'!$5:$5,'Project Database'!6:6))^(1/12)-1 -> 0.001651581302 | RL18: =(1+LOOKUP(RL$17,'Project Database'!$5:$5,'Project Database'!6:6))^(1/12)-1 -> 0.001651581302 | RM18: =(1+LOOKUP(RM$17,'Project Database'!$5:$5,'Project Database'!6:6))^(1/12)-1 -> 0.001651581302 | RN18: =(1+LOOKUP(RN$17,'Project Database'!$5:$5,'Project Database'!6:6))^(1/12)-1 -> 0.001651581302 | RO18: =(1+LOOKUP(RO$17,'Project Database'!$5:$5,'Project Database'!6:6))^(1/12)-1 -> 0.001651581302 | RP18: =(1+LOOKUP(RP$17,'Project Database'!$5:$5,'Project Database'!6:6))^(1/12)-1 -> 0.001651581302 | RQ18: =(1+LOOKUP(RQ$17,'Project Database'!$5:$5,'Project Database'!6:6))^(1/12)-1 -> 0.001651581302 | RR18: =(1+LOOKUP(RR$17,'Project Database'!$5:$5,'Project Database'!6:6))^(1/12)-1 -> 0.001651581302 | RS18: =(1+LOOKUP(RS$17,'Project Database'!$5:$5,'Project Database'!6:6))^(1/12)-1 -> 0.001651581302 | RT18: =(1+LOOKUP(RT$17,'Project Database'!$5:$5,'Project Database'!6:6))^(1/12)-1 -> 0.001651581302 | RU18: =(1+LOOKUP(RU$17,'Project Database'!$5:$5,'Project Database'!6:6))^(1/12)-1 -> 0.001651581302 | RV18: =(1+LOOKUP(RV$17,'Project Database'!$5:$5,'Project Database'!6:6))^(1/12)-1 -> 0.001651581302 | RW18: =(1+LOOKUP(RW$17,'Project Database'!$5:$5,'Project Database'!6:6))^(1/12)-1 -> 0.001651581302 | RX18: =(1+LOOKUP(RX$17,'Project Database'!$5:$5,'Project Database'!6:6))^(1/12)-1 -> 0.001651581302 | RY18: =(1+LOOKUP(RY$17,'Project Database'!$5:$5,'Project Database'!6:6))^(1/12)-1 -> 0.001651581302 | RZ18: =(1+LOOKUP(RZ$17,'Project Database'!$5:$5,'Project Database'!6:6))^(1/12)-1 -> 0.001651581302 | SA18: =(1+LOOKUP(SA$17,'Project Database'!$5:$5,'Project Database'!6:6))^(1/12)-1 -> 0.001651581302 | SB18: =(1+LOOKUP(SB$17,'Project Database'!$5:$5,'Project Database'!6:6))^(1/12)-1 -> 0.001651581302 | SC18: =(1+LOOKUP(SC$17,'Project Database'!$5:$5,'Project Database'!6:6))^(1/12)-1 -> 0.001651581302 | SD18: =(1+LOOKUP(SD$17,'Project Database'!$5:$5,'Project Database'!6:6))^(1/12)-1 -> 0.001651581302 | SE18: =(1+LOOKUP(SE$17,'Project Database'!$5:$5,'Project Database'!6:6))^(1/12)-1 -> 0.001651581302 | SF18: =(1+LOOKUP(SF$17,'Project Database'!$5:$5,'Project Database'!6:6))^(1/12)-1 -> 0.001651581302 | SG18: =(1+LOOKUP(SG$17,'Project Database'!$5:$5,'Project Database'!6:6))^(1/12)-1 -> 0.001651581302 | SH18: =(1+LOOKUP(SH$17,'Project Database'!$5:$5,'Project Database'!6:6))^(1/12)-1 -> 0.001651581302 | SI18: =(1+LOOKUP(SI$17,'Project Database'!$5:$5,'Project Database'!6:6))^(1/12)-1 -> 0.001651581302 | SJ18: =(1+LOOKUP(SJ$17,'Project Database'!$5:$5,'Project Database'!6:6))^(1/12)-1 -> 0.001651581302 | SK18: =(1+LOOKUP(SK$17,'Project Database'!$5:$5,'Project Database'!6:6))^(1/12)-1 -> 0.001651581302 | SL18: =(1+LOOKUP(SL$17,'Project Database'!$5:$5,'Project Database'!6:6))^(1/12)-1 -> 0.001651581302 | SM18: =(1+LOOKUP(SM$17,'Project Database'!$5:$5,'Project Database'!6:6))^(1/12)-1 -> 0.001651581302 | SN18: =(1+LOOKUP(SN$17,'Project Database'!$5:$5,'Project Database'!6:6))^(1/12)-1 -> 0.001651581302 | SO18: =(1+LOOKUP(SO$17,'Project Database'!$5:$5,'Project Database'!6:6))^(1/12)-1 -> 0.001651581302 | SP18: =(1+LOOKUP(SP$17,'Project Database'!$5:$5,'Project Database'!6:6))^(1/12)-1 -> 0.001651581302 | SQ18: =(1+LOOKUP(SQ$17,'Project Database'!$5:$5,'Project Database'!6:6))^(1/12)-1 -> 0.001651581302 | SR18: =(1+LOOKUP(SR$17,'Project Database'!$5:$5,'Project Database'!6:6))^(1/12)-1 -> 0.001651581302 | SS18: =(1+LOOKUP(SS$17,'Project Database'!$5:$5,'Project Database'!6:6))^(1/12)-1 -> 0.001651581302 | ST18: =(1+LOOKUP(ST$17,'Project Database'!$5:$5,'Project Database'!6:6))^(1/12)-1 -> 0.001651581302 | SU18: =(1+LOOKUP(SU$17,'Project Database'!$5:$5,'Project Database'!6:6))^(1/12)-1 -> 0.001651581302 | SV18: =(1+LOOKUP(SV$17,'Project Database'!$5:$5,'Project Database'!6:6))^(1/12)-1 -> 0.001651581302 | SW18: =(1+LOOKUP(SW$17,'Project Database'!$5:$5,'Project Database'!6:6))^(1/12)-1 -> 0.001651581302 | SX18: =(1+LOOKUP(SX$17,'Project Database'!$5:$5,'Project Database'!6:6))^(1/12)-1 -> 0.001651581302 | SY18: =(1+LOOKUP(SY$17,'Project Database'!$5:$5,'Project Database'!6:6))^(1/12)-1 -> 0.001651581302 | SZ18: =(1+LOOKUP(SZ$17,'Project Database'!$5:$5,'Project Database'!6:6))^(1/12)-1 -> 0.001651581302 | TA18: =(1+LOOKUP(TA$17,'Project Database'!$5:$5,'Project Database'!6:6))^(1/12)-1 -> 0.001651581302 | TB18: =(1+LOOKUP(TB$17,'Project Database'!$5:$5,'Project Database'!6:6))^(1/12)-1 -> 0.001651581302 | TC18: =(1+LOOKUP(TC$17,'Project Database'!$5:$5,'Project Database'!6:6))^(1/12)-1 -> 0.001651581302 | TD18: =(1+LOOKUP(TD$17,'Project Database'!$5:$5,'Project Database'!6:6))^(1/12)-1 -> 0.001651581302 | TE18: =(1+LOOKUP(TE$17,'Project Database'!$5:$5,'Project Database'!6:6))^(1/12)-1 -> 0.001651581302 | TF18: =(1+LOOKUP(TF$17,'Project Database'!$5:$5,'Project Database'!6:6))^(1/12)-1 -> 0.001651581302 | TG18: =(1+LOOKUP(TG$17,'Project Database'!$5:$5,'Project Database'!6:6))^(1/12)-1 -> 0.001651581302 | TH18: =(1+LOOKUP(TH$17,'Project Database'!$5:$5,'Project Database'!6:6))^(1/12)-1 -> 0.001651581302 | TI18: =(1+LOOKUP(TI$17,'Project Database'!$5:$5,'Project Database'!6:6))^(1/12)-1 -> 0.001651581302 | TJ18: =(1+LOOKUP(TJ$17,'Project Database'!$5:$5,'Project Database'!6:6))^(1/12)-1 -> 0.001651581302 | TK18: =(1+LOOKUP(TK$17,'Project Database'!$5:$5,'Project Database'!6:6))^(1/12)-1 -> 0.001651581302 | TL18: =(1+LOOKUP(TL$17,'Project Database'!$5:$5,'Project Database'!6:6))^(1/12)-1 -> 0.001651581302 | TM18: =(1+LOOKUP(TM$17,'Project Database'!$5:$5,'Project Database'!6:6))^(1/12)-1 -> 0.001651581302 | TN18: =(1+LOOKUP(TN$17,'Project Database'!$5:$5,'Project Database'!6:6))^(1/12)-1 -> 0.001651581302 | TO18: =(1+LOOKUP(TO$17,'Project Database'!$5:$5,'Project Database'!6:6))^(1/12)-1 -> 0.001651581302 | TP18: =(1+LOOKUP(TP$17,'Project Database'!$5:$5,'Project Database'!6:6))^(1/12)-1 -> 0.001651581302 | TQ18: =(1+LOOKUP(TQ$17,'Project Database'!$5:$5,'Project Database'!6:6))^(1/12)-1 -> 0.001651581302 | TR18: =(1+LOOKUP(TR$17,'Project Database'!$5:$5,'Project Database'!6:6))^(1/12)-1 -> 0.001651581302 | TS18: =(1+LOOKUP(TS$17,'Project Database'!$5:$5,'Project Database'!6:6))^(1/12)-1 -> 0.001651581302 | TT18: =(1+LOOKUP(TT$17,'Project Database'!$5:$5,'Project Database'!6:6))^(1/12)-1 -> 0.001651581302 | TU18: =(1+LOOKUP(TU$17,'Project Database'!$5:$5,'Project Database'!6:6))^(1/12)-1 -> 0.001651581302 | TV18: =(1+LOOKUP(TV$17,'Project Database'!$5:$5,'Project Database'!6:6))^(1/12)-1 -> 0.001651581302 | TW18: =(1+LOOKUP(TW$17,'Project Database'!$5:$5,'Project Database'!6:6))^(1/12)-1 -> 0.001651581302 | TX18: =(1+LOOKUP(TX$17,'Project Database'!$5:$5,'Project Database'!6:6))^(1/12)-1 -> 0.001651581302 | TY18: =(1+LOOKUP(TY$17,'Project Database'!$5:$5,'Project Database'!6:6))^(1/12)-1 -> 0.001651581302 | TZ18: =(1+LOOKUP(TZ$17,'Project Database'!$5:$5,'Project Database'!6:6))^(1/12)-1 -> 0.001651581302 | UA18: =(1+LOOKUP(UA$17,'Project Database'!$5:$5,'Project Database'!6:6))^(1/12)-1 -> 0.001651581302 | UB18: =(1+LOOKUP(UB$17,'Project Database'!$5:$5,'Project Database'!6:6))^(1/12)-1 -> 0.001651581302 | UC18: =(1+LOOKUP(UC$17,'Project Database'!$5:$5,'Project Database'!6:6))^(1/12)-1 -> 0.001651581302 | UD18: =(1+LOOKUP(UD$17,'Project Database'!$5:$5,'Project Database'!6:6))^(1/12)-1 -> 0.001651581302 | UE18: =(1+LOOKUP(UE$17,'Project Database'!$5:$5,'Project Database'!6:6))^(1/12)-1 -> 0.001651581302 | UF18: =(1+LOOKUP(UF$17,'Project Database'!$5:$5,'Project Database'!6:6))^(1/12)-1 -> 0.001651581302 | UG18: =(1+LOOKUP(UG$17,'Project Database'!$5:$5,'Project Database'!6:6))^(1/12)-1 -> 0.001651581302 | UH18: =(1+LOOKUP(UH$17,'Project Database'!$5:$5,'Project Database'!6:6))^(1/12)-1 -> 0.001651581302 | UI18: =(1+LOOKUP(UI$17,'Project Database'!$5:$5,'Project Database'!6:6))^(1/12)-1 -> 0.001651581302 | UJ18: =(1+LOOKUP(UJ$17,'Project Database'!$5:$5,'Project Database'!6:6))^(1/12)-1 -> 0.001651581302 | UK18: =(1+LOOKUP(UK$17,'Project Database'!$5:$5,'Project Database'!6:6))^(1/12)-1 -> 0.001651581302 | UL18: =(1+LOOKUP(UL$17,'Project Database'!$5:$5,'Project Database'!6:6))^(1/12)-1 -> 0.001651581302 | UM18: =(1+LOOKUP(UM$17,'Project Database'!$5:$5,'Project Database'!6:6))^(1/12)-1 -> 0.001651581302 | UN18: =(1+LOOKUP(UN$17,'Project Database'!$5:$5,'Project Database'!6:6))^(1/12)-1 -> 0.001651581302 | UO18: =(1+LOOKUP(UO$17,'Project Database'!$5:$5,'Project Database'!6:6))^(1/12)-1 -> 0.001651581302 | UP18: =(1+LOOKUP(UP$17,'Project Database'!$5:$5,'Project Database'!6:6))^(1/12)-1 -> 0.001651581302 | UQ18: =(1+LOOKUP(UQ$17,'Project Database'!$5:$5,'Project Database'!6:6))^(1/12)-1 -> 0.001651581302 | UR18: =(1+LOOKUP(UR$17,'Project Database'!$5:$5,'Project Database'!6:6))^(1/12)-1 -> 0.001651581302 | US18: =(1+LOOKUP(US$17,'Project Database'!$5:$5,'Project Database'!6:6))^(1/12)-1 -> 0.001651581302 | UT18: =(1+LOOKUP(UT$17,'Project Database'!$5:$5,'Project Database'!6:6))^(1/12)-1 -> 0.001651581302 | UU18: =(1+LOOKUP(UU$17,'Project Database'!$5:$5,'Project Database'!6:6))^(1/12)-1 -> 0.001651581302 | UV18: =(1+LOOKUP(UV$17,'Project Database'!$5:$5,'Project Database'!6:6))^(1/12)-1 -> 0.001651581302 | UW18: =(1+LOOKUP(UW$17,'Project Database'!$5:$5,'Project Database'!6:6))^(1/12)-1 -> 0.001651581302 | UX18: =(1+LOOKUP(UX$17,'Project Database'!$5:$5,'Project Database'!6:6))^(1/12)-1 -> 0.001651581302 | UY18: =(1+LOOKUP(UY$17,'Project Database'!$5:$5,'Project Database'!6:6))^(1/12)-1 -> 0.001651581302 | UZ18: =(1+LOOKUP(UZ$17,'Project Database'!$5:$5,'Project Database'!6:6))^(1/12)-1 -> 0.001651581302 | VA18: =(1+LOOKUP(VA$17,'Project Database'!$5:$5,'Project Database'!6:6))^(1/12)-1 -> 0.001651581302 | VB18: =(1+LOOKUP(VB$17,'Project Database'!$5:$5,'Project Database'!6:6))^(1/12)-1 -> 0.001651581302 | VC18: =(1+LOOKUP(VC$17,'Project Database'!$5:$5,'Project Database'!6:6))^(1/12)-1 -> 0.001651581302 | VD18: =(1+LOOKUP(VD$17,'Project Database'!$5:$5,'Project Database'!6:6))^(1/12)-1 -> 0.001651581302 | VE18: =(1+LOOKUP(VE$17,'Project Database'!$5:$5,'Project Database'!6:6))^(1/12)-1 -> 0.001651581302 | VF18: =(1+LOOKUP(VF$17,'Project Database'!$5:$5,'Project Database'!6:6))^(1/12)-1 -> 0.001651581302 | VG18: =(1+LOOKUP(VG$17,'Project Database'!$5:$5,'Project Database'!6:6))^(1/12)-1 -> 0.001651581302 | VH18: =(1+LOOKUP(VH$17,'Project Database'!$5:$5,'Project Database'!6:6))^(1/12)-1 -> 0.001651581302 | VI18: =(1+LOOKUP(VI$17,'Project Database'!$5:$5,'Project Database'!6:6))^(1/12)-1 -> 0.001651581302 | VJ18: =(1+LOOKUP(VJ$17,'Project Database'!$5:$5,'Project Database'!6:6))^(1/12)-1 -> 0.001651581302 | VK18: =(1+LOOKUP(VK$17,'Project Database'!$5:$5,'Project Database'!6:6))^(1/12)-1 -> 0.001651581302 | VL18: =(1+LOOKUP(VL$17,'Project Database'!$5:$5,'Project Database'!6:6))^(1/12)-1 -> 0.001651581302 | VM18: =(1+LOOKUP(VM$17,'Project Database'!$5:$5,'Project Database'!6:6))^(1/12)-1 -> 0.001651581302 | VN18: =(1+LOOKUP(VN$17,'Project Database'!$5:$5,'Project Database'!6:6))^(1/12)-1 -> 0.001651581302 | VO18: =(1+LOOKUP(VO$17,'Project Database'!$5:$5,'Project Database'!6:6))^(1/12)-1 -> 0.001651581302 | VP18: =(1+LOOKUP(VP$17,'Project Database'!$5:$5,'Project Database'!6:6))^(1/12)-1 -> 0.001651581302 | VQ18: =(1+LOOKUP(VQ$17,'Project Database'!$5:$5,'Project Database'!6:6))^(1/12)-1 -> 0.001651581302 | VR18: =(1+LOOKUP(VR$17,'Project Database'!$5:$5,'Project Database'!6:6))^(1/12)-1 -> 0.001651581302 | VS18: =(1+LOOKUP(VS$17,'Project Database'!$5:$5,'Project Database'!6:6))^(1/12)-1 -> 0.001651581302 | VT18: =(1+LOOKUP(VT$17,'Project Database'!$5:$5,'Project Database'!6:6))^(1/12)-1 -> 0.001651581302 | VU18: =(1+LOOKUP(VU$17,'Project Database'!$5:$5,'Project Database'!6:6))^(1/12)-1 -> 0.001651581302 | VV18: =(1+LOOKUP(VV$17,'Project Database'!$5:$5,'Project Database'!6:6))^(1/12)-1 -> 0.001651581302 | VW18: =(1+LOOKUP(VW$17,'Project Database'!$5:$5,'Project Database'!6:6))^(1/12)-1 -> 0.001651581302 | VX18: =(1+LOOKUP(VX$17,'Project Database'!$5:$5,'Project Database'!6:6))^(1/12)-1 -> 0.001651581302 | VY18: =(1+LOOKUP(VY$17,'Project Database'!$5:$5,'Project Database'!6:6))^(1/12)-1 -> 0.001651581302 | VZ18: =(1+LOOKUP(VZ$17,'Project Database'!$5:$5,'Project Database'!6:6))^(1/12)-1 -> 0.001651581302 | WA18: =(1+LOOKUP(WA$17,'Project Database'!$5:$5,'Project Database'!6:6))^(1/12)-1 -> 0.001651581302 | WB18: =(1+LOOKUP(WB$17,'Project Database'!$5:$5,'Project Database'!6:6))^(1/12)-1 -> 0.001651581302 | WC18: =(1+LOOKUP(WC$17,'Project Database'!$5:$5,'Project Database'!6:6))^(1/12)-1 -> 0.001651581302 | WD18: =(1+LOOKUP(WD$17,'Project Database'!$5:$5,'Project Database'!6:6))^(1/12)-1 -> 0.001651581302 | WE18: =(1+LOOKUP(WE$17,'Project Database'!$5:$5,'Project Database'!6:6))^(1/12)-1 -> 0.001651581302 | WF18: =(1+LOOKUP(WF$17,'Project Database'!$5:$5,'Project Database'!6:6))^(1/12)-1 -> 0.001651581302 | WG18: =(1+LOOKUP(WG$17,'Project Database'!$5:$5,'Project Database'!6:6))^(1/12)-1 -> 0.001651581302 | WH18: =(1+LOOKUP(WH$17,'Project Database'!$5:$5,'Project Database'!6:6))^(1/12)-1 -> 0.001651581302 | WI18: =(1+LOOKUP(WI$17,'Project Database'!$5:$5,'Project Database'!6:6))^(1/12)-1 -> 0.001651581302 | WJ18: =(1+LOOKUP(WJ$17,'Project Database'!$5:$5,'Project Database'!6:6))^(1/12)-1 -> 0.001651581302 | WK18: =(1+LOOKUP(WK$17,'Project Database'!$5:$5,'Project Database'!6:6))^(1/12)-1 -> 0.001651581302 | WL18: =(1+LOOKUP(WL$17,'Project Database'!$5:$5,'Project Database'!6:6))^(1/12)-1 -> 0.001651581302
C19: ZAR Infaltion Rate | J19: =(1+LOOKUP(J$17,'Project Database'!$5:$5,'Project Database'!7:7))^(1/12)-1 -> 0.003273739782 | K19: =(1+LOOKUP(K$17,'Project Database'!$5:$5,'Project Database'!7:7))^(1/12)-1 -> 0.003273739782 | L19: =(1+LOOKUP(L$17,'Project Database'!$5:$5,'Project Database'!7:7))^(1/12)-1 -> 0.003273739782 | M19: =(1+LOOKUP(M$17,'Project Database'!$5:$5,'Project Database'!7:7))^(1/12)-1 -> 0.003273739782 | N19: =(1+LOOKUP(N$17,'Project Database'!$5:$5,'Project Database'!7:7))^(1/12)-1 -> 0.003273739782 | O19: =(1+LOOKUP(O$17,'Project Database'!$5:$5,'Project Database'!7:7))^(1/12)-1 -> 0.003273739782 | P19: =(1+LOOKUP(P$17,'Project Database'!$5:$5,'Project Database'!7:7))^(1/12)-1 -> 0.003273739782 | Q19: =(1+LOOKUP(Q$17,'Project Database'!$5:$5,'Project Database'!7:7))^(1/12)-1 -> 0.003273739782 | R19: =(1+LOOKUP(R$17,'Project Database'!$5:$5,'Project Database'!7:7))^(1/12)-1 -> 0.003273739782 | S19: =(1+LOOKUP(S$17,'Project Database'!$5:$5,'Project Database'!7:7))^(1/12)-1 -> 0.003273739782 | T19: =(1+LOOKUP(T$17,'Project Database'!$5:$5,'Project Database'!7:7))^(1/12)-1 -> 0.003273739782 | U19: =(1+LOOKUP(U$17,'Project Database'!$5:$5,'Project Database'!7:7))^(1/12)-1 -> 0.003273739782 | V19: =(1+LOOKUP(V$17,'Project Database'!$5:$5,'Project Database'!7:7))^(1/12)-1 -> 0.003273739782 | W19: =(1+LOOKUP(W$17,'Project Database'!$5:$5,'Project Database'!7:7))^(1/12)-1 -> 0.003273739782 | X19: =(1+LOOKUP(X$17,'Project Database'!$5:$5,'Project Database'!7:7))^(1/12)-1 -> 0.003273739782 | Y19: =(1+LOOKUP(Y$17,'Project Database'!$5:$5,'Project Database'!7:7))^(1/12)-1 -> 0.003273739782 | Z19: =(1+LOOKUP(Z$17,'Project Database'!$5:$5,'Project Database'!7:7))^(1/12)-1 -> 0.003273739782 | AA19: =(1+LOOKUP(AA$17,'Project Database'!$5:$5,'Project Database'!7:7))^(1/12)-1 -> 0.003273739782 | AB19: =(1+LOOKUP(AB$17,'Project Database'!$5:$5,'Project Database'!7:7))^(1/12)-1 -> 0.003273739782 | AC19: =(1+LOOKUP(AC$17,'Project Database'!$5:$5,'Project Database'!7:7))^(1/12)-1 -> 0.003273739782 | AD19: =(1+LOOKUP(AD$17,'Project Database'!$5:$5,'Project Database'!7:7))^(1/12)-1 -> 0.003273739782 | AE19: =(1+LOOKUP(AE$17,'Project Database'!$5:$5,'Project Database'!7:7))^(1/12)-1 -> 0.003273739782 | AF19: =(1+LOOKUP(AF$17,'Project Database'!$5:$5,'Project Database'!7:7))^(1/12)-1 -> 0.003273739782 | AG19: =(1+LOOKUP(AG$17,'Project Database'!$5:$5,'Project Database'!7:7))^(1/12)-1 -> 0.003273739782 | AH19: =(1+LOOKUP(AH$17,'Project Database'!$5:$5,'Project Database'!7:7))^(1/12)-1 -> 0.003273739782 | AI19: =(1+LOOKUP(AI$17,'Project Database'!$5:$5,'Project Database'!7:7))^(1/12)-1 -> 0.003273739782 | AJ19: =(1+LOOKUP(AJ$17,'Project Database'!$5:$5,'Project Database'!7:7))^(1/12)-1 -> 0.003273739782 | AK19: =(1+LOOKUP(AK$17,'Project Database'!$5:$5,'Project Database'!7:7))^(1/12)-1 -> 0.003273739782 | AL19: =(1+LOOKUP(AL$17,'Project Database'!$5:$5,'Project Database'!7:7))^(1/12)-1 -> 0.003273739782 | AM19: =(1+LOOKUP(AM$17,'Project Database'!$5:$5,'Project Database'!7:7))^(1/12)-1 -> 0.003273739782 | AN19: =(1+LOOKUP(AN$17,'Project Database'!$5:$5,'Project Database'!7:7))^(1/12)-1 -> 0.003273739782 | AO19: =(1+LOOKUP(AO$17,'Project Database'!$5:$5,'Project Database'!7:7))^(1/12)-1 -> 0.003273739782 | AP19: =(1+LOOKUP(AP$17,'Project Database'!$5:$5,'Project Database'!7:7))^(1/12)-1 -> 0.003273739782 | AQ19: =(1+LOOKUP(AQ$17,'Project Database'!$5:$5,'Project Database'!7:7))^(1/12)-1 -> 0.003273739782 | AR19: =(1+LOOKUP(AR$17,'Project Database'!$5:$5,'Project Database'!7:7))^(1/12)-1 -> 0.003273739782 | AS19: =(1+LOOKUP(AS$17,'Project Database'!$5:$5,'Project Database'!7:7))^(1/12)-1 -> 0.003273739782 | AT19: =(1+LOOKUP(AT$17,'Project Database'!$5:$5,'Project Database'!7:7))^(1/12)-1 -> 0.002466269772 | AU19: =(1+LOOKUP(AU$17,'Project Database'!$5:$5,'Project Database'!7:7))^(1/12)-1 -> 0.002466269772 | AV19: =(1+LOOKUP(AV$17,'Project Database'!$5:$5,'Project Database'!7:7))^(1/12)-1 -> 0.002466269772 | AW19: =(1+LOOKUP(AW$17,'Project Database'!$5:$5,'Project Database'!7:7))^(1/12)-1 -> 0.002466269772 | AX19: =(1+LOOKUP(AX$17,'Project Database'!$5:$5,'Project Database'!7:7))^(1/12)-1 -> 0.002466269772 | AY19: =(1+LOOKUP(AY$17,'Project Database'!$5:$5,'Project Database'!7:7))^(1/12)-1 -> 0.002466269772 | AZ19: =(1+LOOKUP(AZ$17,'Project Database'!$5:$5,'Project Database'!7:7))^(1/12)-1 -> 0.002466269772 | BA19: =(1+LOOKUP(BA$17,'Project Database'!$5:$5,'Project Database'!7:7))^(1/12)-1 -> 0.002466269772 | BB19: =(1+LOOKUP(BB$17,'Project Database'!$5:$5,'Project Database'!7:7))^(1/12)-1 -> 0.002466269772 | BC19: =(1+LOOKUP(BC$17,'Project Database'!$5:$5,'Project Database'!7:7))^(1/12)-1 -> 0.002466269772 | BD19: =(1+LOOKUP(BD$17,'Project Database'!$5:$5,'Project Database'!7:7))^(1/12)-1 -> 0.002466269772 | BE19: =(1+LOOKUP(BE$17,'Project Database'!$5:$5,'Project Database'!7:7))^(1/12)-1 -> 0.002466269772 | BF19: =(1+LOOKUP(BF$17,'Project Database'!$5:$5,'Project Database'!7:7))^(1/12)-1 -> 0.002466269772 | BG19: =(1+LOOKUP(BG$17,'Project Database'!$5:$5,'Project Database'!7:7))^(1/12)-1 -> 0.002466269772 | BH19: =(1+LOOKUP(BH$17,'Project Database'!$5:$5,'Project Database'!7:7))^(1/12)-1 -> 0.002466269772 | BI19: =(1+LOOKUP(BI$17,'Project Database'!$5:$5,'Project Database'!7:7))^(1/12)-1 -> 0.002466269772 | BJ19: =(1+LOOKUP(BJ$17,'Project Database'!$5:$5,'Project Database'!7:7))^(1/12)-1 -> 0.002466269772 | BK19: =(1+LOOKUP(BK$17,'Project Database'!$5:$5,'Project Database'!7:7))^(1/12)-1 -> 0.002466269772 | BL19: =(1+LOOKUP(BL$17,'Project Database'!$5:$5,'Project Database'!7:7))^(1/12)-1 -> 0.002466269772 | BM19: =(1+LOOKUP(BM$17,'Project Database'!$5:$5,'Project Database'!7:7))^(1/12)-1 -> 0.002466269772 | BN19: =(1+LOOKUP(BN$17,'Project Database'!$5:$5,'Project Database'!7:7))^(1/12)-1 -> 0.002466269772 | BO19: =(1+LOOKUP(BO$17,'Project Database'!$5:$5,'Project Database'!7:7))^(1/12)-1 -> 0.002466269772 | BP19: =(1+LOOKUP(BP$17,'Project Database'!$5:$5,'Project Database'!7:7))^(1/12)-1 -> 0.002466269772 | BQ19: =(1+LOOKUP(BQ$17,'Project Database'!$5:$5,'Project Database'!7:7))^(1/12)-1 -> 0.002466269772 | BR19: =(1+LOOKUP(BR$17,'Project Database'!$5:$5,'Project Database'!7:7))^(1/12)-1 -> 0.002466269772 | BS19: =(1+LOOKUP(BS$17,'Project Database'!$5:$5,'Project Database'!7:7))^(1/12)-1 -> 0.002466269772 | BT19: =(1+LOOKUP(BT$17,'Project Database'!$5:$5,'Project Database'!7:7))^(1/12)-1 -> 0.002466269772 | BU19: =(1+LOOKUP(BU$17,'Project Database'!$5:$5,'Project Database'!7:7))^(1/12)-1 -> 0.002466269772 | BV19: =(1+LOOKUP(BV$17,'Project Database'!$5:$5,'Project Database'!7:7))^(1/12)-1 -> 0.002466269772 | BW19: =(1+LOOKUP(BW$17,'Project Database'!$5:$5,'Project Database'!7:7))^(1/12)-1 -> 0.002466269772 | BX19: =(1+LOOKUP(BX$17,'Project Database'!$5:$5,'Project Database'!7:7))^(1/12)-1 -> 0.002466269772 | BY19: =(1+LOOKUP(BY$17,'Project Database'!$5:$5,'Project Database'!7:7))^(1/12)-1 -> 0.002466269772 | BZ19: =(1+LOOKUP(BZ$17,'Project Database'!$5:$5,'Project Database'!7:7))^(1/12)-1 -> 0.002466269772 | CA19: =(1+LOOKUP(CA$17,'Project Database'!$5:$5,'Project Database'!7:7))^(1/12)-1 -> 0.002466269772 | CB19: =(1+LOOKUP(CB$17,'Project Database'!$5:$5,'Project Database'!7:7))^(1/12)-1 -> 0.002466269772 | CC19: =(1+LOOKUP(CC$17,'Project Database'!$5:$5,'Project Database'!7:7))^(1/12)-1 -> 0.002466269772 | CD19: =(1+LOOKUP(CD$17,'Project Database'!$5:$5,'Project Database'!7:7))^(1/12)-1 -> 0.002466269772 | CE19: =(1+LOOKUP(CE$17,'Project Database'!$5:$5,'Project Database'!7:7))^(1/12)-1 -> 0.002466269772 | CF19: =(1+LOOKUP(CF$17,'Project Database'!$5:$5,'Project Database'!7:7))^(1/12)-1 -> 0.002466269772 | CG19: =(1+LOOKUP(CG$17,'Project Database'!$5:$5,'Project Database'!7:7))^(1/12)-1 -> 0.002466269772 | CH19: =(1+LOOKUP(CH$17,'Project Database'!$5:$5,'Project Database'!7:7))^(1/12)-1 -> 0.002466269772 | CI19: =(1+LOOKUP(CI$17,'Project Database'!$5:$5,'Project Database'!7:7))^(1/12)-1 -> 0.002466269772 | CJ19: =(1+LOOKUP(CJ$17,'Project Database'!$5:$5,'Project Database'!7:7))^(1/12)-1 -> 0.002466269772 | CK19: =(1+LOOKUP(CK$17,'Project Database'!$5:$5,'Project Database'!7:7))^(1/12)-1 -> 0.002466269772 | CL19: =(1+LOOKUP(CL$17,'Project Database'!$5:$5,'Project Database'!7:7))^(1/12)-1 -> 0.002466269772 | CM19: =(1+LOOKUP(CM$17,'Project Database'!$5:$5,'Project Database'!7:7))^(1/12)-1 -> 0.002466269772 | CN19: =(1+LOOKUP(CN$17,'Project Database'!$5:$5,'Project Database'!7:7))^(1/12)-1 -> 0.002466269772 | CO19: =(1+LOOKUP(CO$17,'Project Database'!$5:$5,'Project Database'!7:7))^(1/12)-1 -> 0.002466269772 | CP19: =(1+LOOKUP(CP$17,'Project Database'!$5:$5,'Project Database'!7:7))^(1/12)-1 -> 0.002466269772 | CQ19: =(1+LOOKUP(CQ$17,'Project Database'!$5:$5,'Project Database'!7:7))^(1/12)-1 -> 0.002466269772 | CR19: =(1+LOOKUP(CR$17,'Project Database'!$5:$5,'Project Database'!7:7))^(1/12)-1 -> 0.002466269772 | CS19: =(1+LOOKUP(CS$17,'Project Database'!$5:$5,'Project Database'!7:7))^(1/12)-1 -> 0.002466269772 | CT19: =(1+LOOKUP(CT$17,'Project Database'!$5:$5,'Project Database'!7:7))^(1/12)-1 -> 0.002466269772 | CU19: =(1+LOOKUP(CU$17,'Project Database'!$5:$5,'Project Database'!7:7))^(1/12)-1 -> 0.002466269772 | CV19: =(1+LOOKUP(CV$17,'Project Database'!$5:$5,'Project Database'!7:7))^(1/12)-1 -> 0.002466269772 | CW19: =(1+LOOKUP(CW$17,'Project Database'!$5:$5,'Project Database'!7:7))^(1/12)-1 -> 0.002466269772 | CX19: =(1+LOOKUP(CX$17,'Project Database'!$5:$5,'Project Database'!7:7))^(1/12)-1 -> 0.002466269772 | CY19: =(1+LOOKUP(CY$17,'Project Database'!$5:$5,'Project Database'!7:7))^(1/12)-1 -> 0.002466269772 | CZ19: =(1+LOOKUP(CZ$17,'Project Database'!$5:$5,'Project Database'!7:7))^(1/12)-1 -> 0.002466269772 | DA19: =(1+LOOKUP(DA$17,'Project Database'!$5:$5,'Project Database'!7:7))^(1/12)-1 -> 0.002466269772 | DB19: =(1+LOOKUP(DB$17,'Project Database'!$5:$5,'Project Database'!7:7))^(1/12)-1 -> 0.002466269772 | DC19: =(1+LOOKUP(DC$17,'Project Database'!$5:$5,'Project Database'!7:7))^(1/12)-1 -> 0.002466269772 | DD19: =(1+LOOKUP(DD$17,'Project Database'!$5:$5,'Project Database'!7:7))^(1/12)-1 -> 0.002466269772 | DE19: =(1+LOOKUP(DE$17,'Project Database'!$5:$5,'Project Database'!7:7))^(1/12)-1 -> 0.002466269772 | DF19: =(1+LOOKUP(DF$17,'Project Database'!$5:$5,'Project Database'!7:7))^(1/12)-1 -> 0.002466269772 | DG19: =(1+LOOKUP(DG$17,'Project Database'!$5:$5,'Project Database'!7:7))^(1/12)-1 -> 0.002466269772 | DH19: =(1+LOOKUP(DH$17,'Project Database'!$5:$5,'Project Database'!7:7))^(1/12)-1 -> 0.002466269772 | DI19: =(1+LOOKUP(DI$17,'Project Database'!$5:$5,'Project Database'!7:7))^(1/12)-1 -> 0.002466269772 | DJ19: =(1+LOOKUP(DJ$17,'Project Database'!$5:$5,'Project Database'!7:7))^(1/12)-1 -> 0.002466269772 | DK19: =(1+LOOKUP(DK$17,'Project Database'!$5:$5,'Project Database'!7:7))^(1/12)-1 -> 0.002466269772 | DL19: =(1+LOOKUP(DL$17,'Project Database'!$5:$5,'Project Database'!7:7))^(1/12)-1 -> 0.002466269772 | DM19: =(1+LOOKUP(DM$17,'Project Database'!$5:$5,'Project Database'!7:7))^(1/12)-1 -> 0.002466269772 | DN19: =(1+LOOKUP(DN$17,'Project Database'!$5:$5,'Project Database'!7:7))^(1/12)-1 -> 0.002466269772 | DO19: =(1+LOOKUP(DO$17,'Project Database'!$5:$5,'Project Database'!7:7))^(1/12)-1 -> 0.002466269772 | DP19: =(1+LOOKUP(DP$17,'Project Database'!$5:$5,'Project Database'!7:7))^(1/12)-1 -> 0.002466269772 | DQ19: =(1+LOOKUP(DQ$17,'Project Database'!$5:$5,'Project Database'!7:7))^(1/12)-1 -> 0.002466269772 | DR19: =(1+LOOKUP(DR$17,'Project Database'!$5:$5,'Project Database'!7:7))^(1/12)-1 -> 0.002466269772 | DS19: =(1+LOOKUP(DS$17,'Project Database'!$5:$5,'Project Database'!7:7))^(1/12)-1 -> 0.002466269772 | DT19: =(1+LOOKUP(DT$17,'Project Database'!$5:$5,'Project Database'!7:7))^(1/12)-1 -> 0.002466269772 | DU19: =(1+LOOKUP(DU$17,'Project Database'!$5:$5,'Project Database'!7:7))^(1/12)-1 -> 0.002466269772 | DV19: =(1+LOOKUP(DV$17,'Project Database'!$5:$5,'Project Database'!7:7))^(1/12)-1 -> 0.002466269772 | DW19: =(1+LOOKUP(DW$17,'Project Database'!$5:$5,'Project Database'!7:7))^(1/12)-1 -> 0.002466269772 | DX19: =(1+LOOKUP(DX$17,'Project Database'!$5:$5,'Project Database'!7:7))^(1/12)-1 -> 0.002466269772 | DY19: =(1+LOOKUP(DY$17,'Project Database'!$5:$5,'Project Database'!7:7))^(1/12)-1 -> 0.002466269772 | DZ19: =(1+LOOKUP(DZ$17,'Project Database'!$5:$5,'Project Database'!7:7))^(1/12)-1 -> 0.002466269772 | EA19: =(1+LOOKUP(EA$17,'Project Database'!$5:$5,'Project Database'!7:7))^(1/12)-1 -> 0.002466269772 | EB19: =(1+LOOKUP(EB$17,'Project Database'!$5:$5,'Project Database'!7:7))^(1/12)-1 -> 0.002466269772 | EC19: =(1+LOOKUP(EC$17,'Project Database'!$5:$5,'Project Database'!7:7))^(1/12)-1 -> 0.002466269772 | ED19: =(1+LOOKUP(ED$17,'Project Database'!$5:$5,'Project Database'!7:7))^(1/12)-1 -> 0.002466269772 | EE19: =(1+LOOKUP(EE$17,'Project Database'!$5:$5,'Project Database'!7:7))^(1/12)-1 -> 0.002466269772 | EF19: =(1+LOOKUP(EF$17,'Project Database'!$5:$5,'Project Database'!7:7))^(1/12)-1 -> 0.002466269772 | EG19: =(1+LOOKUP(EG$17,'Project Database'!$5:$5,'Project Database'!7:7))^(1/12)-1 -> 0.002466269772 | EH19: =(1+LOOKUP(EH$17,'Project Database'!$5:$5,'Project Database'!7:7))^(1/12)-1 -> 0.002466269772 | EI19: =(1+LOOKUP(EI$17,'Project Database'!$5:$5,'Project Database'!7:7))^(1/12)-1 -> 0.002466269772 | EJ19: =(1+LOOKUP(EJ$17,'Project Database'!$5:$5,'Project Database'!7:7))^(1/12)-1 -> 0.002466269772 | EK19: =(1+LOOKUP(EK$17,'Project Database'!$5:$5,'Project Database'!7:7))^(1/12)-1 -> 0.002466269772 | EL19: =(1+LOOKUP(EL$17,'Project Database'!$5:$5,'Project Database'!7:7))^(1/12)-1 -> 0.002466269772 | EM19: =(1+LOOKUP(EM$17,'Project Database'!$5:$5,'Project Database'!7:7))^(1/12)-1 -> 0.002466269772 | EN19: =(1+LOOKUP(EN$17,'Project Database'!$5:$5,'Project Database'!7:7))^(1/12)-1 -> 0.002466269772 | EO19: =(1+LOOKUP(EO$17,'Project Database'!$5:$5,'Project Database'!7:7))^(1/12)-1 -> 0.002466269772 | EP19: =(1+LOOKUP(EP$17,'Project Database'!$5:$5,'Project Database'!7:7))^(1/12)-1 -> 0.002466269772 | EQ19: =(1+LOOKUP(EQ$17,'Project Database'!$5:$5,'Project Database'!7:7))^(1/12)-1 -> 0.002466269772 | ER19: =(1+LOOKUP(ER$17,'Project Database'!$5:$5,'Project Database'!7:7))^(1/12)-1 -> 0.002466269772 | ES19: =(1+LOOKUP(ES$17,'Project Database'!$5:$5,'Project Database'!7:7))^(1/12)-1 -> 0.002466269772 | ET19: =(1+LOOKUP(ET$17,'Project Database'!$5:$5,'Project Database'!7:7))^(1/12)-1 -> 0.002466269772 | EU19: =(1+LOOKUP(EU$17,'Project Database'!$5:$5,'Project Database'!7:7))^(1/12)-1 -> 0.002466269772 | EV19: =(1+LOOKUP(EV$17,'Project Database'!$5:$5,'Project Database'!7:7))^(1/12)-1 -> 0.002466269772 | EW19: =(1+LOOKUP(EW$17,'Project Database'!$5:$5,'Project Database'!7:7))^(1/12)-1 -> 0.002466269772 | EX19: =(1+LOOKUP(EX$17,'Project Database'!$5:$5,'Project Database'!7:7))^(1/12)-1 -> 0.002466269772 | EY19: =(1+LOOKUP(EY$17,'Project Database'!$5:$5,'Project Database'!7:7))^(1/12)-1 -> 0.002466269772 | EZ19: =(1+LOOKUP(EZ$17,'Project Database'!$5:$5,'Project Database'!7:7))^(1/12)-1 -> 0.002466269772 | FA19: =(1+LOOKUP(FA$17,'Project Database'!$5:$5,'Project Database'!7:7))^(1/12)-1 -> 0.002466269772 | FB19: =(1+LOOKUP(FB$17,'Project Database'!$5:$5,'Project Database'!7:7))^(1/12)-1 -> 0.002466269772 | FC19: =(1+LOOKUP(FC$17,'Project Database'!$5:$5,'Project Database'!7:7))^(1/12)-1 -> 0.002466269772 | FD19: =(1+LOOKUP(FD$17,'Project Database'!$5:$5,'Project Database'!7:7))^(1/12)-1 -> 0.002466269772 | FE19: =(1+LOOKUP(FE$17,'Project Database'!$5:$5,'Project Database'!7:7))^(1/12)-1 -> 0.002466269772 | FF19: =(1+LOOKUP(FF$17,'Project Database'!$5:$5,'Project Database'!7:7))^(1/12)-1 -> 0.002466269772 | FG19: =(1+LOOKUP(FG$17,'Project Database'!$5:$5,'Project Database'!7:7))^(1/12)-1 -> 0.002466269772 | FH19: =(1+LOOKUP(FH$17,'Project Database'!$5:$5,'Project Database'!7:7))^(1/12)-1 -> 0.002466269772 | FI19: =(1+LOOKUP(FI$17,'Project Database'!$5:$5,'Project Database'!7:7))^(1/12)-1 -> 0.002466269772 | FJ19: =(1+LOOKUP(FJ$17,'Project Database'!$5:$5,'Project Database'!7:7))^(1/12)-1 -> 0.002466269772 | FK19: =(1+LOOKUP(FK$17,'Project Database'!$5:$5,'Project Database'!7:7))^(1/12)-1 -> 0.002466269772 | FL19: =(1+LOOKUP(FL$17,'Project Database'!$5:$5,'Project Database'!7:7))^(1/12)-1 -> 0.002466269772 | FM19: =(1+LOOKUP(FM$17,'Project Database'!$5:$5,'Project Database'!7:7))^(1/12)-1 -> 0.002466269772 | FN19: =(1+LOOKUP(FN$17,'Project Database'!$5:$5,'Project Database'!7:7))^(1/12)-1 -> 0.002466269772 | FO19: =(1+LOOKUP(FO$17,'Project Database'!$5:$5,'Project Database'!7:7))^(1/12)-1 -> 0.002466269772 | FP19: =(1+LOOKUP(FP$17,'Project Database'!$5:$5,'Project Database'!7:7))^(1/12)-1 -> 0.002466269772 | FQ19: =(1+LOOKUP(FQ$17,'Project Database'!$5:$5,'Project Database'!7:7))^(1/12)-1 -> 0.002466269772 | FR19: =(1+LOOKUP(FR$17,'Project Database'!$5:$5,'Project Database'!7:7))^(1/12)-1 -> 0.002466269772 | FS19: =(1+LOOKUP(FS$17,'Project Database'!$5:$5,'Project Database'!7:7))^(1/12)-1 -> 0.002466269772 | FT19: =(1+LOOKUP(FT$17,'Project Database'!$5:$5,'Project Database'!7:7))^(1/12)-1 -> 0.002466269772 | FU19: =(1+LOOKUP(FU$17,'Project Database'!$5:$5,'Project Database'!7:7))^(1/12)-1 -> 0.002466269772 | FV19: =(1+LOOKUP(FV$17,'Project Database'!$5:$5,'Project Database'!7:7))^(1/12)-1 -> 0.002466269772 | FW19: =(1+LOOKUP(FW$17,'Project Database'!$5:$5,'Project Database'!7:7))^(1/12)-1 -> 0.002466269772 | FX19: =(1+LOOKUP(FX$17,'Project Database'!$5:$5,'Project Database'!7:7))^(1/12)-1 -> 0.002466269772 | FY19: =(1+LOOKUP(FY$17,'Project Database'!$5:$5,'Project Database'!7:7))^(1/12)-1 -> 0.002466269772 | FZ19: =(1+LOOKUP(FZ$17,'Project Database'!$5:$5,'Project Database'!7:7))^(1/12)-1 -> 0.002466269772 | GA19: =(1+LOOKUP(GA$17,'Project Database'!$5:$5,'Project Database'!7:7))^(1/12)-1 -> 0.002466269772 | GB19: =(1+LOOKUP(GB$17,'Project Database'!$5:$5,'Project Database'!7:7))^(1/12)-1 -> 0.002466269772 | GC19: =(1+LOOKUP(GC$17,'Project Database'!$5:$5,'Project Database'!7:7))^(1/12)-1 -> 0.002466269772 | GD19: =(1+LOOKUP(GD$17,'Project Database'!$5:$5,'Project Database'!7:7))^(1/12)-1 -> 0.002466269772 | GE19: =(1+LOOKUP(GE$17,'Project Database'!$5:$5,'Project Database'!7:7))^(1/12)-1 -> 0.002466269772 | GF19: =(1+LOOKUP(GF$17,'Project Database'!$5:$5,'Project Database'!7:7))^(1/12)-1 -> 0.002466269772 | GG19: =(1+LOOKUP(GG$17,'Project Database'!$5:$5,'Project Database'!7:7))^(1/12)-1 -> 0.002466269772 | GH19: =(1+LOOKUP(GH$17,'Project Database'!$5:$5,'Project Database'!7:7))^(1/12)-1 -> 0.002466269772 | GI19: =(1+LOOKUP(GI$17,'Project Database'!$5:$5,'Project Database'!7:7))^(1/12)-1 -> 0.002466269772 | GJ19: =(1+LOOKUP(GJ$17,'Project Database'!$5:$5,'Project Database'!7:7))^(1/12)-1 -> 0.002466269772 | GK19: =(1+LOOKUP(GK$17,'Project Database'!$5:$5,'Project Database'!7:7))^(1/12)-1 -> 0.002466269772 | GL19: =(1+LOOKUP(GL$17,'Project Database'!$5:$5,'Project Database'!7:7))^(1/12)-1 -> 0.002466269772 | GM19: =(1+LOOKUP(GM$17,'Project Database'!$5:$5,'Project Database'!7:7))^(1/12)-1 -> 0.002466269772 | GN19: =(1+LOOKUP(GN$17,'Project Database'!$5:$5,'Project Database'!7:7))^(1/12)-1 -> 0.002466269772 | GO19: =(1+LOOKUP(GO$17,'Project Database'!$5:$5,'Project Database'!7:7))^(1/12)-1 -> 0.002466269772 | GP19: =(1+LOOKUP(GP$17,'Project Database'!$5:$5,'Project Database'!7:7))^(1/12)-1 -> 0.002466269772 | GQ19: =(1+LOOKUP(GQ$17,'Project Database'!$5:$5,'Project Database'!7:7))^(1/12)-1 -> 0.002466269772 | GR19: =(1+LOOKUP(GR$17,'Project Database'!$5:$5,'Project Database'!7:7))^(1/12)-1 -> 0.002466269772 | GS19: =(1+LOOKUP(GS$17,'Project Database'!$5:$5,'Project Database'!7:7))^(1/12)-1 -> 0.002466269772 | GT19: =(1+LOOKUP(GT$17,'Project Database'!$5:$5,'Project Database'!7:7))^(1/12)-1 -> 0.002466269772 | GU19: =(1+LOOKUP(GU$17,'Project Database'!$5:$5,'Project Database'!7:7))^(1/12)-1 -> 0.002466269772 | GV19: =(1+LOOKUP(GV$17,'Project Database'!$5:$5,'Project Database'!7:7))^(1/12)-1 -> 0.002466269772 | GW19: =(1+LOOKUP(GW$17,'Project Database'!$5:$5,'Project Database'!7:7))^(1/12)-1 -> 0.002466269772 | GX19: =(1+LOOKUP(GX$17,'Project Database'!$5:$5,'Project Database'!7:7))^(1/12)-1 -> 0.002466269772 | GY19: =(1+LOOKUP(GY$17,'Project Database'!$5:$5,'Project Database'!7:7))^(1/12)-1 -> 0.002466269772 | GZ19: =(1+LOOKUP(GZ$17,'Project Database'!$5:$5,'Project Database'!7:7))^(1/12)-1 -> 0.002466269772 | HA19: =(1+LOOKUP(HA$17,'Project Database'!$5:$5,'Project Database'!7:7))^(1/12)-1 -> 0.002466269772 | HB19: =(1+LOOKUP(HB$17,'Project Database'!$5:$5,'Project Database'!7:7))^(1/12)-1 -> 0.002466269772 | HC19: =(1+LOOKUP(HC$17,'Project Database'!$5:$5,'Project Database'!7:7))^(1/12)-1 -> 0.002466269772 | HD19: =(1+LOOKUP(HD$17,'Project Database'!$5:$5,'Project Database'!7:7))^(1/12)-1 -> 0.002466269772 | HE19: =(1+LOOKUP(HE$17,'Project Database'!$5:$5,'Project Database'!7:7))^(1/12)-1 -> 0.002466269772 | HF19: =(1+LOOKUP(HF$17,'Project Database'!$5:$5,'Project Database'!7:7))^(1/12)-1 -> 0.002466269772 | HG19: =(1+LOOKUP(HG$17,'Project Database'!$5:$5,'Project Database'!7:7))^(1/12)-1 -> 0.002466269772 | HH19: =(1+LOOKUP(HH$17,'Project Database'!$5:$5,'Project Database'!7:7))^(1/12)-1 -> 0.002466269772 | HI19: =(1+LOOKUP(HI$17,'Project Database'!$5:$5,'Project Database'!7:7))^(1/12)-1 -> 0.002466269772 | HJ19: =(1+LOOKUP(HJ$17,'Project Database'!$5:$5,'Project Database'!7:7))^(1/12)-1 -> 0.002466269772 | HK19: =(1+LOOKUP(HK$17,'Project Database'!$5:$5,'Project Database'!7:7))^(1/12)-1 -> 0.002466269772 | HL19: =(1+LOOKUP(HL$17,'Project Database'!$5:$5,'Project Database'!7:7))^(1/12)-1 -> 0.002466269772 | HM19: =(1+LOOKUP(HM$17,'Project Database'!$5:$5,'Project Database'!7:7))^(1/12)-1 -> 0.002466269772 | HN19: =(1+LOOKUP(HN$17,'Project Database'!$5:$5,'Project Database'!7:7))^(1/12)-1 -> 0.002466269772 | HO19: =(1+LOOKUP(HO$17,'Project Database'!$5:$5,'Project Database'!7:7))^(1/12)-1 -> 0.002466269772 | HP19: =(1+LOOKUP(HP$17,'Project Database'!$5:$5,'Project Database'!7:7))^(1/12)-1 -> 0.002466269772 | HQ19: =(1+LOOKUP(HQ$17,'Project Database'!$5:$5,'Project Database'!7:7))^(1/12)-1 -> 0.002466269772 | HR19: =(1+LOOKUP(HR$17,'Project Database'!$5:$5,'Project Database'!7:7))^(1/12)-1 -> 0.002466269772 | HS19: =(1+LOOKUP(HS$17,'Project Database'!$5:$5,'Project Database'!7:7))^(1/12)-1 -> 0.002466269772 | HT19: =(1+LOOKUP(HT$17,'Project Database'!$5:$5,'Project Database'!7:7))^(1/12)-1 -> 0.002466269772 | HU19: =(1+LOOKUP(HU$17,'Project Database'!$5:$5,'Project Database'!7:7))^(1/12)-1 -> 0.002466269772 | HV19: =(1+LOOKUP(HV$17,'Project Database'!$5:$5,'Project Database'!7:7))^(1/12)-1 -> 0.002466269772 | HW19: =(1+LOOKUP(HW$17,'Project Database'!$5:$5,'Project Database'!7:7))^(1/12)-1 -> 0.002466269772 | HX19: =(1+LOOKUP(HX$17,'Project Database'!$5:$5,'Project Database'!7:7))^(1/12)-1 -> 0.002466269772 | HY19: =(1+LOOKUP(HY$17,'Project Database'!$5:$5,'Project Database'!7:7))^(1/12)-1 -> 0.002466269772 | HZ19: =(1+LOOKUP(HZ$17,'Project Database'!$5:$5,'Project Database'!7:7))^(1/12)-1 -> 0.002466269772 | IA19: =(1+LOOKUP(IA$17,'Project Database'!$5:$5,'Project Database'!7:7))^(1/12)-1 -> 0.002466269772 | IB19: =(1+LOOKUP(IB$17,'Project Database'!$5:$5,'Project Database'!7:7))^(1/12)-1 -> 0.002466269772 | IC19: =(1+LOOKUP(IC$17,'Project Database'!$5:$5,'Project Database'!7:7))^(1/12)-1 -> 0.002466269772 | ID19: =(1+LOOKUP(ID$17,'Project Database'!$5:$5,'Project Database'!7:7))^(1/12)-1 -> 0.002466269772 | IE19: =(1+LOOKUP(IE$17,'Project Database'!$5:$5,'Project Database'!7:7))^(1/12)-1 -> 0.002466269772 | IF19: =(1+LOOKUP(IF$17,'Project Database'!$5:$5,'Project Database'!7:7))^(1/12)-1 -> 0.002466269772 | IG19: =(1+LOOKUP(IG$17,'Project Database'!$5:$5,'Project Database'!7:7))^(1/12)-1 -> 0.002466269772 | IH19: =(1+LOOKUP(IH$17,'Project Database'!$5:$5,'Project Database'!7:7))^(1/12)-1 -> 0.002466269772 | II19: =(1+LOOKUP(II$17,'Project Database'!$5:$5,'Project Database'!7:7))^(1/12)-1 -> 0.002466269772 | IJ19: =(1+LOOKUP(IJ$17,'Project Database'!$5:$5,'Project Database'!7:7))^(1/12)-1 -> 0.002466269772 | IK19: =(1+LOOKUP(IK$17,'Project Database'!$5:$5,'Project Database'!7:7))^(1/12)-1 -> 0.002466269772 | IL19: =(1+LOOKUP(IL$17,'Project Database'!$5:$5,'Project Database'!7:7))^(1/12)-1 -> 0.002466269772 | IM19: =(1+LOOKUP(IM$17,'Project Database'!$5:$5,'Project Database'!7:7))^(1/12)-1 -> 0.002466269772 | IN19: =(1+LOOKUP(IN$17,'Project Database'!$5:$5,'Project Database'!7:7))^(1/12)-1 -> 0.002466269772 | IO19: =(1+LOOKUP(IO$17,'Project Database'!$5:$5,'Project Database'!7:7))^(1/12)-1 -> 0.002466269772 | IP19: =(1+LOOKUP(IP$17,'Project Database'!$5:$5,'Project Database'!7:7))^(1/12)-1 -> 0.002466269772 | IQ19: =(1+LOOKUP(IQ$17,'Project Database'!$5:$5,'Project Database'!7:7))^(1/12)-1 -> 0.002466269772 | IR19: =(1+LOOKUP(IR$17,'Project Database'!$5:$5,'Project Database'!7:7))^(1/12)-1 -> 0.002466269772 | IS19: =(1+LOOKUP(IS$17,'Project Database'!$5:$5,'Project Database'!7:7))^(1/12)-1 -> 0.002466269772 | IT19: =(1+LOOKUP(IT$17,'Project Database'!$5:$5,'Project Database'!7:7))^(1/12)-1 -> 0.002466269772 | IU19: =(1+LOOKUP(IU$17,'Project Database'!$5:$5,'Project Database'!7:7))^(1/12)-1 -> 0.002466269772 | IV19: =(1+LOOKUP(IV$17,'Project Database'!$5:$5,'Project Database'!7:7))^(1/12)-1 -> 0.002466269772 | IW19: =(1+LOOKUP(IW$17,'Project Database'!$5:$5,'Project Database'!7:7))^(1/12)-1 -> 0.002466269772 | IX19: =(1+LOOKUP(IX$17,'Project Database'!$5:$5,'Project Database'!7:7))^(1/12)-1 -> 0.002466269772 | IY19: =(1+LOOKUP(IY$17,'Project Database'!$5:$5,'Project Database'!7:7))^(1/12)-1 -> 0.002466269772 | IZ19: =(1+LOOKUP(IZ$17,'Project Database'!$5:$5,'Project Database'!7:7))^(1/12)-1 -> 0.002466269772 | JA19: =(1+LOOKUP(JA$17,'Project Database'!$5:$5,'Project Database'!7:7))^(1/12)-1 -> 0.002466269772 | JB19: =(1+LOOKUP(JB$17,'Project Database'!$5:$5,'Project Database'!7:7))^(1/12)-1 -> 0.002466269772 | JC19: =(1+LOOKUP(JC$17,'Project Database'!$5:$5,'Project Database'!7:7))^(1/12)-1 -> 0.002466269772 | JD19: =(1+LOOKUP(JD$17,'Project Database'!$5:$5,'Project Database'!7:7))^(1/12)-1 -> 0.002466269772 | JE19: =(1+LOOKUP(JE$17,'Project Database'!$5:$5,'Project Database'!7:7))^(1/12)-1 -> 0.002466269772 | JF19: =(1+LOOKUP(JF$17,'Project Database'!$5:$5,'Project Database'!7:7))^(1/12)-1 -> 0.002466269772 | JG19: =(1+LOOKUP(JG$17,'Project Database'!$5:$5,'Project Database'!7:7))^(1/12)-1 -> 0.002466269772 | JH19: =(1+LOOKUP(JH$17,'Project Database'!$5:$5,'Project Database'!7:7))^(1/12)-1 -> 0.002466269772 | JI19: =(1+LOOKUP(JI$17,'Project Database'!$5:$5,'Project Database'!7:7))^(1/12)-1 -> 0.002466269772 | JJ19: =(1+LOOKUP(JJ$17,'Project Database'!$5:$5,'Project Database'!7:7))^(1/12)-1 -> 0.002466269772 | JK19: =(1+LOOKUP(JK$17,'Project Database'!$5:$5,'Project Database'!7:7))^(1/12)-1 -> 0.002466269772 | JL19: =(1+LOOKUP(JL$17,'Project Database'!$5:$5,'Project Database'!7:7))^(1/12)-1 -> 0.002466269772 | JM19: =(1+LOOKUP(JM$17,'Project Database'!$5:$5,'Project Database'!7:7))^(1/12)-1 -> 0.002466269772 | JN19: =(1+LOOKUP(JN$17,'Project Database'!$5:$5,'Project Database'!7:7))^(1/12)-1 -> 0.002466269772 | JO19: =(1+LOOKUP(JO$17,'Project Database'!$5:$5,'Project Database'!7:7))^(1/12)-1 -> 0.002466269772 | JP19: =(1+LOOKUP(JP$17,'Project Database'!$5:$5,'Project Database'!7:7))^(1/12)-1 -> 0.002466269772 | JQ19: =(1+LOOKUP(JQ$17,'Project Database'!$5:$5,'Project Database'!7:7))^(1/12)-1 -> 0.002466269772 | JR19: =(1+LOOKUP(JR$17,'Project Database'!$5:$5,'Project Database'!7:7))^(1/12)-1 -> 0.002466269772 | JS19: =(1+LOOKUP(JS$17,'Project Database'!$5:$5,'Project Database'!7:7))^(1/12)-1 -> 0.002466269772 | JT19: =(1+LOOKUP(JT$17,'Project Database'!$5:$5,'Project Database'!7:7))^(1/12)-1 -> 0.002466269772 | JU19: =(1+LOOKUP(JU$17,'Project Database'!$5:$5,'Project Database'!7:7))^(1/12)-1 -> 0.002466269772 | JV19: =(1+LOOKUP(JV$17,'Project Database'!$5:$5,'Project Database'!7:7))^(1/12)-1 -> 0.002466269772 | JW19: =(1+LOOKUP(JW$17,'Project Database'!$5:$5,'Project Database'!7:7))^(1/12)-1 -> 0.002466269772 | JX19: =(1+LOOKUP(JX$17,'Project Database'!$5:$5,'Project Database'!7:7))^(1/12)-1 -> 0.002466269772 | JY19: =(1+LOOKUP(JY$17,'Project Database'!$5:$5,'Project Database'!7:7))^(1/12)-1 -> 0.002466269772 | JZ19: =(1+LOOKUP(JZ$17,'Project Database'!$5:$5,'Project Database'!7:7))^(1/12)-1 -> 0.002466269772 | KA19: =(1+LOOKUP(KA$17,'Project Database'!$5:$5,'Project Database'!7:7))^(1/12)-1 -> 0.002466269772 | KB19: =(1+LOOKUP(KB$17,'Project Database'!$5:$5,'Project Database'!7:7))^(1/12)-1 -> 0.002466269772 | KC19: =(1+LOOKUP(KC$17,'Project Database'!$5:$5,'Project Database'!7:7))^(1/12)-1 -> 0.002466269772 | KD19: =(1+LOOKUP(KD$17,'Project Database'!$5:$5,'Project Database'!7:7))^(1/12)-1 -> 0.002466269772 | KE19: =(1+LOOKUP(KE$17,'Project Database'!$5:$5,'Project Database'!7:7))^(1/12)-1 -> 0.002466269772 | KF19: =(1+LOOKUP(KF$17,'Project Database'!$5:$5,'Project Database'!7:7))^(1/12)-1 -> 0.002466269772 | KG19: =(1+LOOKUP(KG$17,'Project Database'!$5:$5,'Project Database'!7:7))^(1/12)-1 -> 0.002466269772 | KH19: =(1+LOOKUP(KH$17,'Project Database'!$5:$5,'Project Database'!7:7))^(1/12)-1 -> 0.002466269772 | KI19: =(1+LOOKUP(KI$17,'Project Database'!$5:$5,'Project Database'!7:7))^(1/12)-1 -> 0.002466269772 | KJ19: =(1+LOOKUP(KJ$17,'Project Database'!$5:$5,'Project Database'!7:7))^(1/12)-1 -> 0.002466269772 | KK19: =(1+LOOKUP(KK$17,'Project Database'!$5:$5,'Project Database'!7:7))^(1/12)-1 -> 0.002466269772 | KL19: =(1+LOOKUP(KL$17,'Project Database'!$5:$5,'Project Database'!7:7))^(1/12)-1 -> 0.002466269772 | KM19: =(1+LOOKUP(KM$17,'Project Database'!$5:$5,'Project Database'!7:7))^(1/12)-1 -> 0.002466269772 | KN19: =(1+LOOKUP(KN$17,'Project Database'!$5:$5,'Project Database'!7:7))^(1/12)-1 -> 0.002466269772 | KO19: =(1+LOOKUP(KO$17,'Project Database'!$5:$5,'Project Database'!7:7))^(1/12)-1 -> 0.002466269772 | KP19: =(1+LOOKUP(KP$17,'Project Database'!$5:$5,'Project Database'!7:7))^(1/12)-1 -> 0.002466269772 | KQ19: =(1+LOOKUP(KQ$17,'Project Database'!$5:$5,'Project Database'!7:7))^(1/12)-1 -> 0.002466269772 | KR19: =(1+LOOKUP(KR$17,'Project Database'!$5:$5,'Project Database'!7:7))^(1/12)-1 -> 0.002466269772 | KS19: =(1+LOOKUP(KS$17,'Project Database'!$5:$5,'Project Database'!7:7))^(1/12)-1 -> 0.002466269772 | KT19: =(1+LOOKUP(KT$17,'Project Database'!$5:$5,'Project Database'!7:7))^(1/12)-1 -> 0.002466269772 | KU19: =(1+LOOKUP(KU$17,'Project Database'!$5:$5,'Project Database'!7:7))^(1/12)-1 -> 0.002466269772 | KV19: =(1+LOOKUP(KV$17,'Project Database'!$5:$5,'Project Database'!7:7))^(1/12)-1 -> 0.002466269772 | KW19: =(1+LOOKUP(KW$17,'Project Database'!$5:$5,'Project Database'!7:7))^(1/12)-1 -> 0.002466269772 | KX19: =(1+LOOKUP(KX$17,'Project Database'!$5:$5,'Project Database'!7:7))^(1/12)-1 -> 0.002466269772 | KY19: =(1+LOOKUP(KY$17,'Project Database'!$5:$5,'Project Database'!7:7))^(1/12)-1 -> 0.002466269772 | KZ19: =(1+LOOKUP(KZ$17,'Project Database'!$5:$5,'Project Database'!7:7))^(1/12)-1 -> 0.002466269772 | LA19: =(1+LOOKUP(LA$17,'Project Database'!$5:$5,'Project Database'!7:7))^(1/12)-1 -> 0.002466269772 | LB19: =(1+LOOKUP(LB$17,'Project Database'!$5:$5,'Project Database'!7:7))^(1/12)-1 -> 0.002466269772 | LC19: =(1+LOOKUP(LC$17,'Project Database'!$5:$5,'Project Database'!7:7))^(1/12)-1 -> 0.002466269772 | LD19: =(1+LOOKUP(LD$17,'Project Database'!$5:$5,'Project Database'!7:7))^(1/12)-1 -> 0.002466269772 | LE19: =(1+LOOKUP(LE$17,'Project Database'!$5:$5,'Project Database'!7:7))^(1/12)-1 -> 0.002466269772 | LF19: =(1+LOOKUP(LF$17,'Project Database'!$5:$5,'Project Database'!7:7))^(1/12)-1 -> 0.002466269772 | LG19: =(1+LOOKUP(LG$17,'Project Database'!$5:$5,'Project Database'!7:7))^(1/12)-1 -> 0.002466269772 | LH19: =(1+LOOKUP(LH$17,'Project Database'!$5:$5,'Project Database'!7:7))^(1/12)-1 -> 0.002466269772 | LI19: =(1+LOOKUP(LI$17,'Project Database'!$5:$5,'Project Database'!7:7))^(1/12)-1 -> 0.002466269772 | LJ19: =(1+LOOKUP(LJ$17,'Project Database'!$5:$5,'Project Database'!7:7))^(1/12)-1 -> 0.002466269772 | LK19: =(1+LOOKUP(LK$17,'Project Database'!$5:$5,'Project Database'!7:7))^(1/12)-1 -> 0.002466269772 | LL19: =(1+LOOKUP(LL$17,'Project Database'!$5:$5,'Project Database'!7:7))^(1/12)-1 -> 0.002466269772 | LM19: =(1+LOOKUP(LM$17,'Project Database'!$5:$5,'Project Database'!7:7))^(1/12)-1 -> 0.002466269772 | LN19: =(1+LOOKUP(LN$17,'Project Database'!$5:$5,'Project Database'!7:7))^(1/12)-1 -> 0.002466269772 | LO19: =(1+LOOKUP(LO$17,'Project Database'!$5:$5,'Project Database'!7:7))^(1/12)-1 -> 0.002466269772 | LP19: =(1+LOOKUP(LP$17,'Project Database'!$5:$5,'Project Database'!7:7))^(1/12)-1 -> 0.002466269772 | LQ19: =(1+LOOKUP(LQ$17,'Project Database'!$5:$5,'Project Database'!7:7))^(1/12)-1 -> 0.002466269772 | LR19: =(1+LOOKUP(LR$17,'Project Database'!$5:$5,'Project Database'!7:7))^(1/12)-1 -> 0.002466269772 | LS19: =(1+LOOKUP(LS$17,'Project Database'!$5:$5,'Project Database'!7:7))^(1/12)-1 -> 0.002466269772 | LT19: =(1+LOOKUP(LT$17,'Project Database'!$5:$5,'Project Database'!7:7))^(1/12)-1 -> 0.002466269772 | LU19: =(1+LOOKUP(LU$17,'Project Database'!$5:$5,'Project Database'!7:7))^(1/12)-1 -> 0.002466269772 | LV19: =(1+LOOKUP(LV$17,'Project Database'!$5:$5,'Project Database'!7:7))^(1/12)-1 -> 0.002466269772 | LW19: =(1+LOOKUP(LW$17,'Project Database'!$5:$5,'Project Database'!7:7))^(1/12)-1 -> 0.002466269772 | LX19: =(1+LOOKUP(LX$17,'Project Database'!$5:$5,'Project Database'!7:7))^(1/12)-1 -> 0.002466269772 | LY19: =(1+LOOKUP(LY$17,'Project Database'!$5:$5,'Project Database'!7:7))^(1/12)-1 -> 0.002466269772 | LZ19: =(1+LOOKUP(LZ$17,'Project Database'!$5:$5,'Project Database'!7:7))^(1/12)-1 -> 0.002466269772 | MA19: =(1+LOOKUP(MA$17,'Project Database'!$5:$5,'Project Database'!7:7))^(1/12)-1 -> 0.002466269772 | MB19: =(1+LOOKUP(MB$17,'Project Database'!$5:$5,'Project Database'!7:7))^(1/12)-1 -> 0.002466269772 | MC19: =(1+LOOKUP(MC$17,'Project Database'!$5:$5,'Project Database'!7:7))^(1/12)-1 -> 0.002466269772 | MD19: =(1+LOOKUP(MD$17,'Project Database'!$5:$5,'Project Database'!7:7))^(1/12)-1 -> 0.002466269772 | ME19: =(1+LOOKUP(ME$17,'Project Database'!$5:$5,'Project Database'!7:7))^(1/12)-1 -> 0.002466269772 | MF19: =(1+LOOKUP(MF$17,'Project Database'!$5:$5,'Project Database'!7:7))^(1/12)-1 -> 0.002466269772 | MG19: =(1+LOOKUP(MG$17,'Project Database'!$5:$5,'Project Database'!7:7))^(1/12)-1 -> 0.002466269772 | MH19: =(1+LOOKUP(MH$17,'Project Database'!$5:$5,'Project Database'!7:7))^(1/12)-1 -> 0.002466269772 | MI19: =(1+LOOKUP(MI$17,'Project Database'!$5:$5,'Project Database'!7:7))^(1/12)-1 -> 0.002466269772 | MJ19: =(1+LOOKUP(MJ$17,'Project Database'!$5:$5,'Project Database'!7:7))^(1/12)-1 -> 0.002466269772 | MK19: =(1+LOOKUP(MK$17,'Project Database'!$5:$5,'Project Database'!7:7))^(1/12)-1 -> 0.002466269772 | ML19: =(1+LOOKUP(ML$17,'Project Database'!$5:$5,'Project Database'!7:7))^(1/12)-1 -> 0.002466269772 | MM19: =(1+LOOKUP(MM$17,'Project Database'!$5:$5,'Project Database'!7:7))^(1/12)-1 -> 0.002466269772 | MN19: =(1+LOOKUP(MN$17,'Project Database'!$5:$5,'Project Database'!7:7))^(1/12)-1 -> 0.002466269772 | MO19: =(1+LOOKUP(MO$17,'Project Database'!$5:$5,'Project Database'!7:7))^(1/12)-1 -> 0.002466269772 | MP19: =(1+LOOKUP(MP$17,'Project Database'!$5:$5,'Project Database'!7:7))^(1/12)-1 -> 0.002466269772 | MQ19: =(1+LOOKUP(MQ$17,'Project Database'!$5:$5,'Project Database'!7:7))^(1/12)-1 -> 0.002466269772 | MR19: =(1+LOOKUP(MR$17,'Project Database'!$5:$5,'Project Database'!7:7))^(1/12)-1 -> 0.002466269772 | MS19: =(1+LOOKUP(MS$17,'Project Database'!$5:$5,'Project Database'!7:7))^(1/12)-1 -> 0.002466269772 | MT19: =(1+LOOKUP(MT$17,'Project Database'!$5:$5,'Project Database'!7:7))^(1/12)-1 -> 0.002466269772 | MU19: =(1+LOOKUP(MU$17,'Project Database'!$5:$5,'Project Database'!7:7))^(1/12)-1 -> 0.002466269772 | MV19: =(1+LOOKUP(MV$17,'Project Database'!$5:$5,'Project Database'!7:7))^(1/12)-1 -> 0.002466269772 | MW19: =(1+LOOKUP(MW$17,'Project Database'!$5:$5,'Project Database'!7:7))^(1/12)-1 -> 0.002466269772 | MX19: =(1+LOOKUP(MX$17,'Project Database'!$5:$5,'Project Database'!7:7))^(1/12)-1 -> 0.002466269772 | MY19: =(1+LOOKUP(MY$17,'Project Database'!$5:$5,'Project Database'!7:7))^(1/12)-1 -> 0.002466269772 | MZ19: =(1+LOOKUP(MZ$17,'Project Database'!$5:$5,'Project Database'!7:7))^(1/12)-1 -> 0.002466269772 | NA19: =(1+LOOKUP(NA$17,'Project Database'!$5:$5,'Project Database'!7:7))^(1/12)-1 -> 0.002466269772 | NB19: =(1+LOOKUP(NB$17,'Project Database'!$5:$5,'Project Database'!7:7))^(1/12)-1 -> 0.002466269772 | NC19: =(1+LOOKUP(NC$17,'Project Database'!$5:$5,'Project Database'!7:7))^(1/12)-1 -> 0.002466269772 | ND19: =(1+LOOKUP(ND$17,'Project Database'!$5:$5,'Project Database'!7:7))^(1/12)-1 -> 0.002466269772 | NE19: =(1+LOOKUP(NE$17,'Project Database'!$5:$5,'Project Database'!7:7))^(1/12)-1 -> 0.002466269772 | NF19: =(1+LOOKUP(NF$17,'Project Database'!$5:$5,'Project Database'!7:7))^(1/12)-1 -> 0.002466269772 | NG19: =(1+LOOKUP(NG$17,'Project Database'!$5:$5,'Project Database'!7:7))^(1/12)-1 -> 0.002466269772 | NH19: =(1+LOOKUP(NH$17,'Project Database'!$5:$5,'Project Database'!7:7))^(1/12)-1 -> 0.002466269772 | NI19: =(1+LOOKUP(NI$17,'Project Database'!$5:$5,'Project Database'!7:7))^(1/12)-1 -> 0.002466269772 | NJ19: =(1+LOOKUP(NJ$17,'Project Database'!$5:$5,'Project Database'!7:7))^(1/12)-1 -> 0.002466269772 | NK19: =(1+LOOKUP(NK$17,'Project Database'!$5:$5,'Project Database'!7:7))^(1/12)-1 -> 0.002466269772 | NL19: =(1+LOOKUP(NL$17,'Project Database'!$5:$5,'Project Database'!7:7))^(1/12)-1 -> 0.002466269772 | NM19: =(1+LOOKUP(NM$17,'Project Database'!$5:$5,'Project Database'!7:7))^(1/12)-1 -> 0.002466269772 | NN19: =(1+LOOKUP(NN$17,'Project Database'!$5:$5,'Project Database'!7:7))^(1/12)-1 -> 0.002466269772 | NO19: =(1+LOOKUP(NO$17,'Project Database'!$5:$5,'Project Database'!7:7))^(1/12)-1 -> 0.002466269772 | NP19: =(1+LOOKUP(NP$17,'Project Database'!$5:$5,'Project Database'!7:7))^(1/12)-1 -> 0.002466269772 | NQ19: =(1+LOOKUP(NQ$17,'Project Database'!$5:$5,'Project Database'!7:7))^(1/12)-1 -> 0.002466269772 | NR19: =(1+LOOKUP(NR$17,'Project Database'!$5:$5,'Project Database'!7:7))^(1/12)-1 -> 0.002466269772 | NS19: =(1+LOOKUP(NS$17,'Project Database'!$5:$5,'Project Database'!7:7))^(1/12)-1 -> 0.002466269772 | NT19: =(1+LOOKUP(NT$17,'Project Database'!$5:$5,'Project Database'!7:7))^(1/12)-1 -> 0.002466269772 | NU19: =(1+LOOKUP(NU$17,'Project Database'!$5:$5,'Project Database'!7:7))^(1/12)-1 -> 0.002466269772 | NV19: =(1+LOOKUP(NV$17,'Project Database'!$5:$5,'Project Database'!7:7))^(1/12)-1 -> 0.002466269772 | NW19: =(1+LOOKUP(NW$17,'Project Database'!$5:$5,'Project Database'!7:7))^(1/12)-1 -> 0.002466269772 | NX19: =(1+LOOKUP(NX$17,'Project Database'!$5:$5,'Project Database'!7:7))^(1/12)-1 -> 0.002466269772 | NY19: =(1+LOOKUP(NY$17,'Project Database'!$5:$5,'Project Database'!7:7))^(1/12)-1 -> 0.002466269772 | NZ19: =(1+LOOKUP(NZ$17,'Project Database'!$5:$5,'Project Database'!7:7))^(1/12)-1 -> 0.002466269772 | OA19: =(1+LOOKUP(OA$17,'Project Database'!$5:$5,'Project Database'!7:7))^(1/12)-1 -> 0.002466269772 | OB19: =(1+LOOKUP(OB$17,'Project Database'!$5:$5,'Project Database'!7:7))^(1/12)-1 -> 0.002466269772 | OC19: =(1+LOOKUP(OC$17,'Project Database'!$5:$5,'Project Database'!7:7))^(1/12)-1 -> 0.002466269772 | OD19: =(1+LOOKUP(OD$17,'Project Database'!$5:$5,'Project Database'!7:7))^(1/12)-1 -> 0.002466269772 | OE19: =(1+LOOKUP(OE$17,'Project Database'!$5:$5,'Project Database'!7:7))^(1/12)-1 -> 0.002466269772 | OF19: =(1+LOOKUP(OF$17,'Project Database'!$5:$5,'Project Database'!7:7))^(1/12)-1 -> 0.002466269772 | OG19: =(1+LOOKUP(OG$17,'Project Database'!$5:$5,'Project Database'!7:7))^(1/12)-1 -> 0.002466269772 | OH19: =(1+LOOKUP(OH$17,'Project Database'!$5:$5,'Project Database'!7:7))^(1/12)-1 -> 0.002466269772 | OI19: =(1+LOOKUP(OI$17,'Project Database'!$5:$5,'Project Database'!7:7))^(1/12)-1 -> 0.002466269772 | OJ19: =(1+LOOKUP(OJ$17,'Project Database'!$5:$5,'Project Database'!7:7))^(1/12)-1 -> 0.002466269772 | OK19: =(1+LOOKUP(OK$17,'Project Database'!$5:$5,'Project Database'!7:7))^(1/12)-1 -> 0.002466269772 | OL19: =(1+LOOKUP(OL$17,'Project Database'!$5:$5,'Project Database'!7:7))^(1/12)-1 -> 0.002466269772 | OM19: =(1+LOOKUP(OM$17,'Project Database'!$5:$5,'Project Database'!7:7))^(1/12)-1 -> 0.002466269772 | ON19: =(1+LOOKUP(ON$17,'Project Database'!$5:$5,'Project Database'!7:7))^(1/12)-1 -> 0.002466269772 | OO19: =(1+LOOKUP(OO$17,'Project Database'!$5:$5,'Project Database'!7:7))^(1/12)-1 -> 0.002466269772 | OP19: =(1+LOOKUP(OP$17,'Project Database'!$5:$5,'Project Database'!7:7))^(1/12)-1 -> 0.002466269772 | OQ19: =(1+LOOKUP(OQ$17,'Project Database'!$5:$5,'Project Database'!7:7))^(1/12)-1 -> 0.002466269772 | OR19: =(1+LOOKUP(OR$17,'Project Database'!$5:$5,'Project Database'!7:7))^(1/12)-1 -> 0.002466269772 | OS19: =(1+LOOKUP(OS$17,'Project Database'!$5:$5,'Project Database'!7:7))^(1/12)-1 -> 0.002466269772 | OT19: =(1+LOOKUP(OT$17,'Project Database'!$5:$5,'Project Database'!7:7))^(1/12)-1 -> 0.002466269772 | OU19: =(1+LOOKUP(OU$17,'Project Database'!$5:$5,'Project Database'!7:7))^(1/12)-1 -> 0.002466269772 | OV19: =(1+LOOKUP(OV$17,'Project Database'!$5:$5,'Project Database'!7:7))^(1/12)-1 -> 0.002466269772 | OW19: =(1+LOOKUP(OW$17,'Project Database'!$5:$5,'Project Database'!7:7))^(1/12)-1 -> 0.002466269772 | OX19: =(1+LOOKUP(OX$17,'Project Database'!$5:$5,'Project Database'!7:7))^(1/12)-1 -> 0.002466269772 | OY19: =(1+LOOKUP(OY$17,'Project Database'!$5:$5,'Project Database'!7:7))^(1/12)-1 -> 0.002466269772 | OZ19: =(1+LOOKUP(OZ$17,'Project Database'!$5:$5,'Project Database'!7:7))^(1/12)-1 -> 0.002466269772 | PA19: =(1+LOOKUP(PA$17,'Project Database'!$5:$5,'Project Database'!7:7))^(1/12)-1 -> 0.002466269772 | PB19: =(1+LOOKUP(PB$17,'Project Database'!$5:$5,'Project Database'!7:7))^(1/12)-1 -> 0.002466269772 | PC19: =(1+LOOKUP(PC$17,'Project Database'!$5:$5,'Project Database'!7:7))^(1/12)-1 -> 0.002466269772 | PD19: =(1+LOOKUP(PD$17,'Project Database'!$5:$5,'Project Database'!7:7))^(1/12)-1 -> 0.002466269772 | PE19: =(1+LOOKUP(PE$17,'Project Database'!$5:$5,'Project Database'!7:7))^(1/12)-1 -> 0.002466269772 | PF19: =(1+LOOKUP(PF$17,'Project Database'!$5:$5,'Project Database'!7:7))^(1/12)-1 -> 0.002466269772 | PG19: =(1+LOOKUP(PG$17,'Project Database'!$5:$5,'Project Database'!7:7))^(1/12)-1 -> 0.002466269772 | PH19: =(1+LOOKUP(PH$17,'Project Database'!$5:$5,'Project Database'!7:7))^(1/12)-1 -> 0.002466269772 | PI19: =(1+LOOKUP(PI$17,'Project Database'!$5:$5,'Project Database'!7:7))^(1/12)-1 -> 0.002466269772 | PJ19: =(1+LOOKUP(PJ$17,'Project Database'!$5:$5,'Project Database'!7:7))^(1/12)-1 -> 0.002466269772 | PK19: =(1+LOOKUP(PK$17,'Project Database'!$5:$5,'Project Database'!7:7))^(1/12)-1 -> 0.002466269772 | PL19: =(1+LOOKUP(PL$17,'Project Database'!$5:$5,'Project Database'!7:7))^(1/12)-1 -> 0.002466269772 | PM19: =(1+LOOKUP(PM$17,'Project Database'!$5:$5,'Project Database'!7:7))^(1/12)-1 -> 0.002466269772 | PN19: =(1+LOOKUP(PN$17,'Project Database'!$5:$5,'Project Database'!7:7))^(1/12)-1 -> 0.002466269772 | PO19: =(1+LOOKUP(PO$17,'Project Database'!$5:$5,'Project Database'!7:7))^(1/12)-1 -> 0.002466269772 | PP19: =(1+LOOKUP(PP$17,'Project Database'!$5:$5,'Project Database'!7:7))^(1/12)-1 -> 0.002466269772 | PQ19: =(1+LOOKUP(PQ$17,'Project Database'!$5:$5,'Project Database'!7:7))^(1/12)-1 -> 0.002466269772 | PR19: =(1+LOOKUP(PR$17,'Project Database'!$5:$5,'Project Database'!7:7))^(1/12)-1 -> 0.002466269772 | PS19: =(1+LOOKUP(PS$17,'Project Database'!$5:$5,'Project Database'!7:7))^(1/12)-1 -> 0.002466269772 | PT19: =(1+LOOKUP(PT$17,'Project Database'!$5:$5,'Project Database'!7:7))^(1/12)-1 -> 0.002466269772 | PU19: =(1+LOOKUP(PU$17,'Project Database'!$5:$5,'Project Database'!7:7))^(1/12)-1 -> 0.002466269772 | PV19: =(1+LOOKUP(PV$17,'Project Database'!$5:$5,'Project Database'!7:7))^(1/12)-1 -> 0.002466269772 | PW19: =(1+LOOKUP(PW$17,'Project Database'!$5:$5,'Project Database'!7:7))^(1/12)-1 -> 0.002466269772 | PX19: =(1+LOOKUP(PX$17,'Project Database'!$5:$5,'Project Database'!7:7))^(1/12)-1 -> 0.002466269772 | PY19: =(1+LOOKUP(PY$17,'Project Database'!$5:$5,'Project Database'!7:7))^(1/12)-1 -> 0.002466269772 | PZ19: =(1+LOOKUP(PZ$17,'Project Database'!$5:$5,'Project Database'!7:7))^(1/12)-1 -> 0.002466269772 | QA19: =(1+LOOKUP(QA$17,'Project Database'!$5:$5,'Project Database'!7:7))^(1/12)-1 -> 0.002466269772 | QB19: =(1+LOOKUP(QB$17,'Project Database'!$5:$5,'Project Database'!7:7))^(1/12)-1 -> 0.002466269772 | QC19: =(1+LOOKUP(QC$17,'Project Database'!$5:$5,'Project Database'!7:7))^(1/12)-1 -> 0.002466269772 | QD19: =(1+LOOKUP(QD$17,'Project Database'!$5:$5,'Project Database'!7:7))^(1/12)-1 -> 0.002466269772 | QE19: =(1+LOOKUP(QE$17,'Project Database'!$5:$5,'Project Database'!7:7))^(1/12)-1 -> 0.002466269772 | QF19: =(1+LOOKUP(QF$17,'Project Database'!$5:$5,'Project Database'!7:7))^(1/12)-1 -> 0.002466269772 | QG19: =(1+LOOKUP(QG$17,'Project Database'!$5:$5,'Project Database'!7:7))^(1/12)-1 -> 0.002466269772 | QH19: =(1+LOOKUP(QH$17,'Project Database'!$5:$5,'Project Database'!7:7))^(1/12)-1 -> 0.002466269772 | QI19: =(1+LOOKUP(QI$17,'Project Database'!$5:$5,'Project Database'!7:7))^(1/12)-1 -> 0.002466269772 | QJ19: =(1+LOOKUP(QJ$17,'Project Database'!$5:$5,'Project Database'!7:7))^(1/12)-1 -> 0.002466269772 | QK19: =(1+LOOKUP(QK$17,'Project Database'!$5:$5,'Project Database'!7:7))^(1/12)-1 -> 0.002466269772 | QL19: =(1+LOOKUP(QL$17,'Project Database'!$5:$5,'Project Database'!7:7))^(1/12)-1 -> 0.002466269772 | QM19: =(1+LOOKUP(QM$17,'Project Database'!$5:$5,'Project Database'!7:7))^(1/12)-1 -> 0.002466269772 | QN19: =(1+LOOKUP(QN$17,'Project Database'!$5:$5,'Project Database'!7:7))^(1/12)-1 -> 0.002466269772 | QO19: =(1+LOOKUP(QO$17,'Project Database'!$5:$5,'Project Database'!7:7))^(1/12)-1 -> 0.002466269772 | QP19: =(1+LOOKUP(QP$17,'Project Database'!$5:$5,'Project Database'!7:7))^(1/12)-1 -> 0.002466269772 | QQ19: =(1+LOOKUP(QQ$17,'Project Database'!$5:$5,'Project Database'!7:7))^(1/12)-1 -> 0.002466269772 | QR19: =(1+LOOKUP(QR$17,'Project Database'!$5:$5,'Project Database'!7:7))^(1/12)-1 -> 0.002466269772 | QS19: =(1+LOOKUP(QS$17,'Project Database'!$5:$5,'Project Database'!7:7))^(1/12)-1 -> 0.002466269772 | QT19: =(1+LOOKUP(QT$17,'Project Database'!$5:$5,'Project Database'!7:7))^(1/12)-1 -> 0.002466269772 | QU19: =(1+LOOKUP(QU$17,'Project Database'!$5:$5,'Project Database'!7:7))^(1/12)-1 -> 0.002466269772 | QV19: =(1+LOOKUP(QV$17,'Project Database'!$5:$5,'Project Database'!7:7))^(1/12)-1 -> 0.002466269772 | QW19: =(1+LOOKUP(QW$17,'Project Database'!$5:$5,'Project Database'!7:7))^(1/12)-1 -> 0.002466269772 | QX19: =(1+LOOKUP(QX$17,'Project Database'!$5:$5,'Project Database'!7:7))^(1/12)-1 -> 0.002466269772 | QY19: =(1+LOOKUP(QY$17,'Project Database'!$5:$5,'Project Database'!7:7))^(1/12)-1 -> 0.002466269772 | QZ19: =(1+LOOKUP(QZ$17,'Project Database'!$5:$5,'Project Database'!7:7))^(1/12)-1 -> 0.002466269772 | RA19: =(1+LOOKUP(RA$17,'Project Database'!$5:$5,'Project Database'!7:7))^(1/12)-1 -> 0.002466269772 | RB19: =(1+LOOKUP(RB$17,'Project Database'!$5:$5,'Project Database'!7:7))^(1/12)-1 -> 0.002466269772 | RC19: =(1+LOOKUP(RC$17,'Project Database'!$5:$5,'Project Database'!7:7))^(1/12)-1 -> 0.002466269772 | RD19: =(1+LOOKUP(RD$17,'Project Database'!$5:$5,'Project Database'!7:7))^(1/12)-1 -> 0.002466269772 | RE19: =(1+LOOKUP(RE$17,'Project Database'!$5:$5,'Project Database'!7:7))^(1/12)-1 -> 0.002466269772 | RF19: =(1+LOOKUP(RF$17,'Project Database'!$5:$5,'Project Database'!7:7))^(1/12)-1 -> 0.002466269772 | RG19: =(1+LOOKUP(RG$17,'Project Database'!$5:$5,'Project Database'!7:7))^(1/12)-1 -> 0.002466269772 | RH19: =(1+LOOKUP(RH$17,'Project Database'!$5:$5,'Project Database'!7:7))^(1/12)-1 -> 0.002466269772 | RI19: =(1+LOOKUP(RI$17,'Project Database'!$5:$5,'Project Database'!7:7))^(1/12)-1 -> 0.002466269772 | RJ19: =(1+LOOKUP(RJ$17,'Project Database'!$5:$5,'Project Database'!7:7))^(1/12)-1 -> 0.002466269772 | RK19: =(1+LOOKUP(RK$17,'Project Database'!$5:$5,'Project Database'!7:7))^(1/12)-1 -> 0.002466269772 | RL19: =(1+LOOKUP(RL$17,'Project Database'!$5:$5,'Project Database'!7:7))^(1/12)-1 -> 0.002466269772 | RM19: =(1+LOOKUP(RM$17,'Project Database'!$5:$5,'Project Database'!7:7))^(1/12)-1 -> 0.002466269772 | RN19: =(1+LOOKUP(RN$17,'Project Database'!$5:$5,'Project Database'!7:7))^(1/12)-1 -> 0.002466269772 | RO19: =(1+LOOKUP(RO$17,'Project Database'!$5:$5,'Project Database'!7:7))^(1/12)-1 -> 0.002466269772 | RP19: =(1+LOOKUP(RP$17,'Project Database'!$5:$5,'Project Database'!7:7))^(1/12)-1 -> 0.002466269772 | RQ19: =(1+LOOKUP(RQ$17,'Project Database'!$5:$5,'Project Database'!7:7))^(1/12)-1 -> 0.002466269772 | RR19: =(1+LOOKUP(RR$17,'Project Database'!$5:$5,'Project Database'!7:7))^(1/12)-1 -> 0.002466269772 | RS19: =(1+LOOKUP(RS$17,'Project Database'!$5:$5,'Project Database'!7:7))^(1/12)-1 -> 0.002466269772 | RT19: =(1+LOOKUP(RT$17,'Project Database'!$5:$5,'Project Database'!7:7))^(1/12)-1 -> 0.002466269772 | RU19: =(1+LOOKUP(RU$17,'Project Database'!$5:$5,'Project Database'!7:7))^(1/12)-1 -> 0.002466269772 | RV19: =(1+LOOKUP(RV$17,'Project Database'!$5:$5,'Project Database'!7:7))^(1/12)-1 -> 0.002466269772 | RW19: =(1+LOOKUP(RW$17,'Project Database'!$5:$5,'Project Database'!7:7))^(1/12)-1 -> 0.002466269772 | RX19: =(1+LOOKUP(RX$17,'Project Database'!$5:$5,'Project Database'!7:7))^(1/12)-1 -> 0.002466269772 | RY19: =(1+LOOKUP(RY$17,'Project Database'!$5:$5,'Project Database'!7:7))^(1/12)-1 -> 0.002466269772 | RZ19: =(1+LOOKUP(RZ$17,'Project Database'!$5:$5,'Project Database'!7:7))^(1/12)-1 -> 0.002466269772 | SA19: =(1+LOOKUP(SA$17,'Project Database'!$5:$5,'Project Database'!7:7))^(1/12)-1 -> 0.002466269772 | SB19: =(1+LOOKUP(SB$17,'Project Database'!$5:$5,'Project Database'!7:7))^(1/12)-1 -> 0.002466269772 | SC19: =(1+LOOKUP(SC$17,'Project Database'!$5:$5,'Project Database'!7:7))^(1/12)-1 -> 0.002466269772 | SD19: =(1+LOOKUP(SD$17,'Project Database'!$5:$5,'Project Database'!7:7))^(1/12)-1 -> 0.002466269772 | SE19: =(1+LOOKUP(SE$17,'Project Database'!$5:$5,'Project Database'!7:7))^(1/12)-1 -> 0.002466269772 | SF19: =(1+LOOKUP(SF$17,'Project Database'!$5:$5,'Project Database'!7:7))^(1/12)-1 -> 0.002466269772 | SG19: =(1+LOOKUP(SG$17,'Project Database'!$5:$5,'Project Database'!7:7))^(1/12)-1 -> 0.002466269772 | SH19: =(1+LOOKUP(SH$17,'Project Database'!$5:$5,'Project Database'!7:7))^(1/12)-1 -> 0.002466269772 | SI19: =(1+LOOKUP(SI$17,'Project Database'!$5:$5,'Project Database'!7:7))^(1/12)-1 -> 0.002466269772 | SJ19: =(1+LOOKUP(SJ$17,'Project Database'!$5:$5,'Project Database'!7:7))^(1/12)-1 -> 0.002466269772 | SK19: =(1+LOOKUP(SK$17,'Project Database'!$5:$5,'Project Database'!7:7))^(1/12)-1 -> 0.002466269772 | SL19: =(1+LOOKUP(SL$17,'Project Database'!$5:$5,'Project Database'!7:7))^(1/12)-1 -> 0.002466269772 | SM19: =(1+LOOKUP(SM$17,'Project Database'!$5:$5,'Project Database'!7:7))^(1/12)-1 -> 0.002466269772 | SN19: =(1+LOOKUP(SN$17,'Project Database'!$5:$5,'Project Database'!7:7))^(1/12)-1 -> 0.002466269772 | SO19: =(1+LOOKUP(SO$17,'Project Database'!$5:$5,'Project Database'!7:7))^(1/12)-1 -> 0.002466269772 | SP19: =(1+LOOKUP(SP$17,'Project Database'!$5:$5,'Project Database'!7:7))^(1/12)-1 -> 0.002466269772 | SQ19: =(1+LOOKUP(SQ$17,'Project Database'!$5:$5,'Project Database'!7:7))^(1/12)-1 -> 0.002466269772 | SR19: =(1+LOOKUP(SR$17,'Project Database'!$5:$5,'Project Database'!7:7))^(1/12)-1 -> 0.002466269772 | SS19: =(1+LOOKUP(SS$17,'Project Database'!$5:$5,'Project Database'!7:7))^(1/12)-1 -> 0.002466269772 | ST19: =(1+LOOKUP(ST$17,'Project Database'!$5:$5,'Project Database'!7:7))^(1/12)-1 -> 0.002466269772 | SU19: =(1+LOOKUP(SU$17,'Project Database'!$5:$5,'Project Database'!7:7))^(1/12)-1 -> 0.002466269772 | SV19: =(1+LOOKUP(SV$17,'Project Database'!$5:$5,'Project Database'!7:7))^(1/12)-1 -> 0.002466269772 | SW19: =(1+LOOKUP(SW$17,'Project Database'!$5:$5,'Project Database'!7:7))^(1/12)-1 -> 0.002466269772 | SX19: =(1+LOOKUP(SX$17,'Project Database'!$5:$5,'Project Database'!7:7))^(1/12)-1 -> 0.002466269772 | SY19: =(1+LOOKUP(SY$17,'Project Database'!$5:$5,'Project Database'!7:7))^(1/12)-1 -> 0.002466269772 | SZ19: =(1+LOOKUP(SZ$17,'Project Database'!$5:$5,'Project Database'!7:7))^(1/12)-1 -> 0.002466269772 | TA19: =(1+LOOKUP(TA$17,'Project Database'!$5:$5,'Project Database'!7:7))^(1/12)-1 -> 0.002466269772 | TB19: =(1+LOOKUP(TB$17,'Project Database'!$5:$5,'Project Database'!7:7))^(1/12)-1 -> 0.002466269772 | TC19: =(1+LOOKUP(TC$17,'Project Database'!$5:$5,'Project Database'!7:7))^(1/12)-1 -> 0.002466269772 | TD19: =(1+LOOKUP(TD$17,'Project Database'!$5:$5,'Project Database'!7:7))^(1/12)-1 -> 0.002466269772 | TE19: =(1+LOOKUP(TE$17,'Project Database'!$5:$5,'Project Database'!7:7))^(1/12)-1 -> 0.002466269772 | TF19: =(1+LOOKUP(TF$17,'Project Database'!$5:$5,'Project Database'!7:7))^(1/12)-1 -> 0.002466269772 | TG19: =(1+LOOKUP(TG$17,'Project Database'!$5:$5,'Project Database'!7:7))^(1/12)-1 -> 0.002466269772 | TH19: =(1+LOOKUP(TH$17,'Project Database'!$5:$5,'Project Database'!7:7))^(1/12)-1 -> 0.002466269772 | TI19: =(1+LOOKUP(TI$17,'Project Database'!$5:$5,'Project Database'!7:7))^(1/12)-1 -> 0.002466269772 | TJ19: =(1+LOOKUP(TJ$17,'Project Database'!$5:$5,'Project Database'!7:7))^(1/12)-1 -> 0.002466269772 | TK19: =(1+LOOKUP(TK$17,'Project Database'!$5:$5,'Project Database'!7:7))^(1/12)-1 -> 0.002466269772 | TL19: =(1+LOOKUP(TL$17,'Project Database'!$5:$5,'Project Database'!7:7))^(1/12)-1 -> 0.002466269772 | TM19: =(1+LOOKUP(TM$17,'Project Database'!$5:$5,'Project Database'!7:7))^(1/12)-1 -> 0.002466269772 | TN19: =(1+LOOKUP(TN$17,'Project Database'!$5:$5,'Project Database'!7:7))^(1/12)-1 -> 0.002466269772 | TO19: =(1+LOOKUP(TO$17,'Project Database'!$5:$5,'Project Database'!7:7))^(1/12)-1 -> 0.002466269772 | TP19: =(1+LOOKUP(TP$17,'Project Database'!$5:$5,'Project Database'!7:7))^(1/12)-1 -> 0.002466269772 | TQ19: =(1+LOOKUP(TQ$17,'Project Database'!$5:$5,'Project Database'!7:7))^(1/12)-1 -> 0.002466269772 | TR19: =(1+LOOKUP(TR$17,'Project Database'!$5:$5,'Project Database'!7:7))^(1/12)-1 -> 0.002466269772 | TS19: =(1+LOOKUP(TS$17,'Project Database'!$5:$5,'Project Database'!7:7))^(1/12)-1 -> 0.002466269772 | TT19: =(1+LOOKUP(TT$17,'Project Database'!$5:$5,'Project Database'!7:7))^(1/12)-1 -> 0.002466269772 | TU19: =(1+LOOKUP(TU$17,'Project Database'!$5:$5,'Project Database'!7:7))^(1/12)-1 -> 0.002466269772 | TV19: =(1+LOOKUP(TV$17,'Project Database'!$5:$5,'Project Database'!7:7))^(1/12)-1 -> 0.002466269772 | TW19: =(1+LOOKUP(TW$17,'Project Database'!$5:$5,'Project Database'!7:7))^(1/12)-1 -> 0.002466269772 | TX19: =(1+LOOKUP(TX$17,'Project Database'!$5:$5,'Project Database'!7:7))^(1/12)-1 -> 0.002466269772 | TY19: =(1+LOOKUP(TY$17,'Project Database'!$5:$5,'Project Database'!7:7))^(1/12)-1 -> 0.002466269772 | TZ19: =(1+LOOKUP(TZ$17,'Project Database'!$5:$5,'Project Database'!7:7))^(1/12)-1 -> 0.002466269772 | UA19: =(1+LOOKUP(UA$17,'Project Database'!$5:$5,'Project Database'!7:7))^(1/12)-1 -> 0.002466269772 | UB19: =(1+LOOKUP(UB$17,'Project Database'!$5:$5,'Project Database'!7:7))^(1/12)-1 -> 0.002466269772 | UC19: =(1+LOOKUP(UC$17,'Project Database'!$5:$5,'Project Database'!7:7))^(1/12)-1 -> 0.002466269772 | UD19: =(1+LOOKUP(UD$17,'Project Database'!$5:$5,'Project Database'!7:7))^(1/12)-1 -> 0.002466269772 | UE19: =(1+LOOKUP(UE$17,'Project Database'!$5:$5,'Project Database'!7:7))^(1/12)-1 -> 0.002466269772 | UF19: =(1+LOOKUP(UF$17,'Project Database'!$5:$5,'Project Database'!7:7))^(1/12)-1 -> 0.002466269772 | UG19: =(1+LOOKUP(UG$17,'Project Database'!$5:$5,'Project Database'!7:7))^(1/12)-1 -> 0.002466269772 | UH19: =(1+LOOKUP(UH$17,'Project Database'!$5:$5,'Project Database'!7:7))^(1/12)-1 -> 0.002466269772 | UI19: =(1+LOOKUP(UI$17,'Project Database'!$5:$5,'Project Database'!7:7))^(1/12)-1 -> 0.002466269772 | UJ19: =(1+LOOKUP(UJ$17,'Project Database'!$5:$5,'Project Database'!7:7))^(1/12)-1 -> 0.002466269772 | UK19: =(1+LOOKUP(UK$17,'Project Database'!$5:$5,'Project Database'!7:7))^(1/12)-1 -> 0.002466269772 | UL19: =(1+LOOKUP(UL$17,'Project Database'!$5:$5,'Project Database'!7:7))^(1/12)-1 -> 0.002466269772 | UM19: =(1+LOOKUP(UM$17,'Project Database'!$5:$5,'Project Database'!7:7))^(1/12)-1 -> 0.002466269772 | UN19: =(1+LOOKUP(UN$17,'Project Database'!$5:$5,'Project Database'!7:7))^(1/12)-1 -> 0.002466269772 | UO19: =(1+LOOKUP(UO$17,'Project Database'!$5:$5,'Project Database'!7:7))^(1/12)-1 -> 0.002466269772 | UP19: =(1+LOOKUP(UP$17,'Project Database'!$5:$5,'Project Database'!7:7))^(1/12)-1 -> 0.002466269772 | UQ19: =(1+LOOKUP(UQ$17,'Project Database'!$5:$5,'Project Database'!7:7))^(1/12)-1 -> 0.002466269772 | UR19: =(1+LOOKUP(UR$17,'Project Database'!$5:$5,'Project Database'!7:7))^(1/12)-1 -> 0.002466269772 | US19: =(1+LOOKUP(US$17,'Project Database'!$5:$5,'Project Database'!7:7))^(1/12)-1 -> 0.002466269772 | UT19: =(1+LOOKUP(UT$17,'Project Database'!$5:$5,'Project Database'!7:7))^(1/12)-1 -> 0.002466269772 | UU19: =(1+LOOKUP(UU$17,'Project Database'!$5:$5,'Project Database'!7:7))^(1/12)-1 -> 0.002466269772 | UV19: =(1+LOOKUP(UV$17,'Project Database'!$5:$5,'Project Database'!7:7))^(1/12)-1 -> 0.002466269772 | UW19: =(1+LOOKUP(UW$17,'Project Database'!$5:$5,'Project Database'!7:7))^(1/12)-1 -> 0.002466269772 | UX19: =(1+LOOKUP(UX$17,'Project Database'!$5:$5,'Project Database'!7:7))^(1/12)-1 -> 0.002466269772 | UY19: =(1+LOOKUP(UY$17,'Project Database'!$5:$5,'Project Database'!7:7))^(1/12)-1 -> 0.002466269772 | UZ19: =(1+LOOKUP(UZ$17,'Project Database'!$5:$5,'Project Database'!7:7))^(1/12)-1 -> 0.002466269772 | VA19: =(1+LOOKUP(VA$17,'Project Database'!$5:$5,'Project Database'!7:7))^(1/12)-1 -> 0.002466269772 | VB19: =(1+LOOKUP(VB$17,'Project Database'!$5:$5,'Project Database'!7:7))^(1/12)-1 -> 0.002466269772 | VC19: =(1+LOOKUP(VC$17,'Project Database'!$5:$5,'Project Database'!7:7))^(1/12)-1 -> 0.002466269772 | VD19: =(1+LOOKUP(VD$17,'Project Database'!$5:$5,'Project Database'!7:7))^(1/12)-1 -> 0.002466269772 | VE19: =(1+LOOKUP(VE$17,'Project Database'!$5:$5,'Project Database'!7:7))^(1/12)-1 -> 0.002466269772 | VF19: =(1+LOOKUP(VF$17,'Project Database'!$5:$5,'Project Database'!7:7))^(1/12)-1 -> 0.002466269772 | VG19: =(1+LOOKUP(VG$17,'Project Database'!$5:$5,'Project Database'!7:7))^(1/12)-1 -> 0.002466269772 | VH19: =(1+LOOKUP(VH$17,'Project Database'!$5:$5,'Project Database'!7:7))^(1/12)-1 -> 0.002466269772 | VI19: =(1+LOOKUP(VI$17,'Project Database'!$5:$5,'Project Database'!7:7))^(1/12)-1 -> 0.002466269772 | VJ19: =(1+LOOKUP(VJ$17,'Project Database'!$5:$5,'Project Database'!7:7))^(1/12)-1 -> 0.002466269772 | VK19: =(1+LOOKUP(VK$17,'Project Database'!$5:$5,'Project Database'!7:7))^(1/12)-1 -> 0.002466269772 | VL19: =(1+LOOKUP(VL$17,'Project Database'!$5:$5,'Project Database'!7:7))^(1/12)-1 -> 0.002466269772 | VM19: =(1+LOOKUP(VM$17,'Project Database'!$5:$5,'Project Database'!7:7))^(1/12)-1 -> 0.002466269772 | VN19: =(1+LOOKUP(VN$17,'Project Database'!$5:$5,'Project Database'!7:7))^(1/12)-1 -> 0.002466269772 | VO19: =(1+LOOKUP(VO$17,'Project Database'!$5:$5,'Project Database'!7:7))^(1/12)-1 -> 0.002466269772 | VP19: =(1+LOOKUP(VP$17,'Project Database'!$5:$5,'Project Database'!7:7))^(1/12)-1 -> 0.002466269772 | VQ19: =(1+LOOKUP(VQ$17,'Project Database'!$5:$5,'Project Database'!7:7))^(1/12)-1 -> 0.002466269772 | VR19: =(1+LOOKUP(VR$17,'Project Database'!$5:$5,'Project Database'!7:7))^(1/12)-1 -> 0.002466269772 | VS19: =(1+LOOKUP(VS$17,'Project Database'!$5:$5,'Project Database'!7:7))^(1/12)-1 -> 0.002466269772 | VT19: =(1+LOOKUP(VT$17,'Project Database'!$5:$5,'Project Database'!7:7))^(1/12)-1 -> 0.002466269772 | VU19: =(1+LOOKUP(VU$17,'Project Database'!$5:$5,'Project Database'!7:7))^(1/12)-1 -> 0.002466269772 | VV19: =(1+LOOKUP(VV$17,'Project Database'!$5:$5,'Project Database'!7:7))^(1/12)-1 -> 0.002466269772 | VW19: =(1+LOOKUP(VW$17,'Project Database'!$5:$5,'Project Database'!7:7))^(1/12)-1 -> 0.002466269772 | VX19: =(1+LOOKUP(VX$17,'Project Database'!$5:$5,'Project Database'!7:7))^(1/12)-1 -> 0.002466269772 | VY19: =(1+LOOKUP(VY$17,'Project Database'!$5:$5,'Project Database'!7:7))^(1/12)-1 -> 0.002466269772 | VZ19: =(1+LOOKUP(VZ$17,'Project Database'!$5:$5,'Project Database'!7:7))^(1/12)-1 -> 0.002466269772 | WA19: =(1+LOOKUP(WA$17,'Project Database'!$5:$5,'Project Database'!7:7))^(1/12)-1 -> 0.002466269772 | WB19: =(1+LOOKUP(WB$17,'Project Database'!$5:$5,'Project Database'!7:7))^(1/12)-1 -> 0.002466269772 | WC19: =(1+LOOKUP(WC$17,'Project Database'!$5:$5,'Project Database'!7:7))^(1/12)-1 -> 0.002466269772 | WD19: =(1+LOOKUP(WD$17,'Project Database'!$5:$5,'Project Database'!7:7))^(1/12)-1 -> 0.002466269772 | WE19: =(1+LOOKUP(WE$17,'Project Database'!$5:$5,'Project Database'!7:7))^(1/12)-1 -> 0.002466269772 | WF19: =(1+LOOKUP(WF$17,'Project Database'!$5:$5,'Project Database'!7:7))^(1/12)-1 -> 0.002466269772 | WG19: =(1+LOOKUP(WG$17,'Project Database'!$5:$5,'Project Database'!7:7))^(1/12)-1 -> 0.002466269772 | WH19: =(1+LOOKUP(WH$17,'Project Database'!$5:$5,'Project Database'!7:7))^(1/12)-1 -> 0.002466269772 | WI19: =(1+LOOKUP(WI$17,'Project Database'!$5:$5,'Project Database'!7:7))^(1/12)-1 -> 0.002466269772 | WJ19: =(1+LOOKUP(WJ$17,'Project Database'!$5:$5,'Project Database'!7:7))^(1/12)-1 -> 0.002466269772 | WK19: =(1+LOOKUP(WK$17,'Project Database'!$5:$5,'Project Database'!7:7))^(1/12)-1 -> 0.002466269772 | WL19: =(1+LOOKUP(WL$17,'Project Database'!$5:$5,'Project Database'!7:7))^(1/12)-1 -> 0.002466269772
C21: USD Index | I21: 1 | J21: =I21*(1+J18) -> 1.000829538 | K21: =J21*(1+K18) -> 1.001659764 | L21: 1.002490679 | M21: 1.003322284 | N21: 1.004154578 | O21: 1.004987562 | P21: 1.005821238 | Q21: 1.006655605 | R21: 1.007490664 | S21: 1.008326416 | T21: 1.009162861 | U21: 1.01 | V21: 1.011502643 | W21: 1.013007522 | X21: 1.014514639 | Y21: 1.016023999 | Z21: 1.017535605 | AA21: 1.019049459 | AB21: 1.020565566 | AC21: 1.022083928 | AD21: 1.023604549 | AE21: 1.025127433 | AF21: 1.026652582 | AG21: 1.02818 | AH21: 1.030297882 | AI21: 1.032420127 | AJ21: 1.034546744 | AK21: 1.036677741 | AL21: 1.038813127 | AM21: 1.040952912 | AN21: 1.043097105 | AO21: 1.045245714 | AP21: 1.047398749 | AQ21: 1.049556219 | AR21: 1.051718133 | AS21: 1.0538845 | AT21: 1.056483663 | AU21: 1.059089237 | AV21: 1.061701237 | AW21: 1.064319679 | AX21: 1.066944578 | AY21: 1.069575951 | AZ21: 1.072213814 | BA21: 1.074858183 | BB21: 1.077509073 | BC21: 1.080166501 | BD21: 1.082830483 | BE21: 1.085501035 | BF21: 1.087116006 | BG21: 1.08873338 | BH21: 1.09035316 | BI21: 1.091975349 | BJ21: 1.093599953 | BK21: 1.095226973 | BL21: 1.096856414 | BM21: 1.098488279 | BN21: 1.100122572 | BO21: 1.101759296 | BP21: 1.103398456 | BQ21: 1.105040054 | BR21: 1.106865117 | BS21: 1.108693195 | BT21: 1.110524292 | BU21: 1.112358413 | BV21: 1.114195563 | BW21: =BV21*(1+BW18) -> 1.116035748 | BX21: 1.117878972 | BY21: 1.11972524 | BZ21: 1.121574557 | CA21: 1.123426928 | CB21: 1.125282359 | CC21: 1.127140855 | CD21: 1.129002419 | CE21: 1.130867059 | CF21: 1.132734778 | CG21: 1.134605581 | CH21: 1.136479475 | CI21: 1.138356463 | CJ21: 1.140236551 | CK21: 1.142119744 | CL21: 1.144006048 | CM21: 1.145895467 | CN21: 1.147788007 | CO21: 1.149683672 | CP21: 1.151582468 | CQ21: 1.1534844 | CR21: 1.155389473 | CS21: 1.157297693 | CT21: 1.159209064 | CU21: 1.161123592 | CV21: 1.163041282 | CW21: 1.164962139 | CX21: 1.166886169 | CY21: 1.168813376 | CZ21: 1.170743767 | DA21: 1.172677345 | DB21: 1.174614117 | DC21: 1.176554088 | DD21: 1.178497263 | DE21: 1.180443647 | DF21: 1.182393245 | DG21: 1.184346064 | DH21: 1.186302108 | DI21: 1.188261382 | DJ21: 1.190223892 | DK21: 1.192189644 | DL21: 1.194158642 | DM21: 1.196130892 | DN21: 1.1981064 | DO21: 1.20008517 | DP21: 1.202067208 | DQ21: 1.20405252 | DR21: 1.20604111 | DS21: 1.208032985 | DT21: 1.21002815 | DU21: 1.21202661 | DV21: 1.21402837 | DW21: 1.216033437 | DX21: 1.218041815 | DY21: 1.22005351 | DZ21: 1.222068528 | EA21: 1.224086873 | EB21: 1.226108552 | EC21: 1.22813357 | ED21: 1.230161932 | EE21: 1.232193645 | EF21: 1.234228713 | EG21: 1.236267142 | EH21: 1.238308938 | EI21: =EH21*(1+EI18) -> 1.240354106 | EJ21: 1.242402651 | EK21: 1.24445458 | EL21: 1.246509898 | EM21: 1.248568611 | EN21: 1.250630723 | EO21: 1.252696241 | EP21: 1.254765171 | EQ21: 1.256837518 | ER21: 1.258913287 | ES21: 1.260992485 | ET21: 1.263075116 | EU21: 1.265161188 | EV21: 1.267250704 | EW21: 1.269343672 | EX21: 1.271440096 | EY21: 1.273539983 | EZ21: 1.275643338 | FA21: 1.277750166 | FB21: 1.279860475 | FC21: 1.281974268 | FD21: 1.284091553 | FE21: 1.286212334 | FF21: 1.288336619 | FG21: 1.290464411 | FH21: 1.292595718 | FI21: 1.294730545 | FJ21: 1.296868898 | FK21: 1.299010782 | FL21: 1.301156204 | FM21: 1.30330517 | FN21: 1.305457684 | FO21: 1.307613754 | FP21: 1.309773384 | FQ21: 1.311936581 | FR21: 1.314103351 | FS21: 1.3162737 | FT21: 1.318447633 | FU21: 1.320625156 | FV21: 1.322806276 | FW21: 1.324990998 | FX21: 1.327179328 | FY21: 1.329371273 | FZ21: 1.331566838 | GA21: 1.333766029 | GB21: 1.335968852 | GC21: 1.338175313 | GD21: 1.340385418 | GE21: 1.342599174 | GF21: 1.344816585 | GG21: 1.347037659 | GH21: 1.349262401 | GI21: 1.351490818 | GJ21: 1.353722915 | GK21: 1.355958698 | GL21: 1.358198174 | GM21: 1.360441349 | GN21: 1.362688229 | GO21: 1.364938819 | GP21: 1.367193126 | GQ21: 1.369451157 | GR21: 1.371712917 | GS21: 1.373978412 | GT21: 1.376247649 | GU21: =GT21*(1+GU18) -> 1.378520634 | GV21: 1.380797373 | GW21: 1.383077872 | GX21: 1.385362138 | GY21: 1.387650176 | GZ21: 1.389941993 | HA21: 1.392237595 | HB21: 1.394536989 | HC21: 1.39684018 | HD21: 1.399147175 | HE21: 1.401457981 | HF21: 1.403772602 | HG21: 1.406091047 | HH21: 1.408413321 | HI21: 1.41073943 | HJ21: 1.413069381 | HK21: 1.41540318 | HL21: 1.417740833 | HM21: 1.420082347 | HN21: 1.422427729 | HO21: 1.424776984 | HP21: 1.427130119 | HQ21: 1.42948714 | HR21: 1.431848055 | HS21: 1.434212868 | HT21: 1.436581587 | HU21: 1.438954218 | HV21: 1.441330768 | HW21: 1.443711243 | HX21: 1.44609565 | HY21: 1.448483994 | HZ21: 1.450876283 | IA21: 1.453272524 | IB21: 1.455672721 | IC21: 1.458076883 | ID21: 1.460485016 | IE21: 1.462897125 | IF21: 1.465313219 | IG21: 1.467733303 | IH21: 1.470157384 | II21: 1.472585468 | IJ21: 1.475017563 | IK21: 1.477453674 | IL21: 1.479893809 | IM21: 1.482337974 | IN21: 1.484786176 | IO21: 1.487238421 | IP21: 1.489694716 | IQ21: 1.492155068 | IR21: 1.494619483 | IS21: 1.497087969 | IT21: 1.499560531 | IU21: 1.502037177 | IV21: 1.504517914 | IW21: 1.507002748 | IX21: 1.509491685 | IY21: 1.511984733 | IZ21: 1.514481899 | JA21: 1.516983189 | JB21: 1.51948861 | JC21: 1.521998169 | JD21: 1.524511873 | JE21: 1.527029728 | JF21: 1.529551742 | JG21: =JF21*(1+JG18) -> 1.532077921 | JH21: 1.534608272 | JI21: 1.537142803 | JJ21: 1.539681519 | JK21: 1.542224428 | JL21: 1.544771537 | JM21: 1.547322853 | JN21: 1.549878382 | JO21: 1.552438133 | JP21: 1.55500211 | JQ21: 1.557570323 | JR21: 1.560142777 | JS21: 1.562719479 | JT21: 1.565300438 | JU21: 1.567885659 | JV21: 1.570475149 | JW21: 1.573068917 | JX21: 1.575666968 | JY21: 1.57826931 | JZ21: 1.58087595 | KA21: 1.583486895 | KB21: 1.586102153 | KC21: 1.588721729 | KD21: 1.591345632 | KE21: 1.593973869 | KF21: 1.596606446 | KG21: 1.599243372 | KH21: 1.601884652 | KI21: 1.604530295 | KJ21: 1.607180307 | KK21: 1.609834696 | KL21: 1.612493469 | KM21: 1.615156633 | KN21: 1.617824196 | KO21: 1.620496164 | KP21: 1.623172545 | KQ21: 1.625853346 | KR21: 1.628538575 | KS21: 1.631228239 | KT21: 1.633922345 | KU21: 1.636620901 | KV21: 1.639323913 | KW21: 1.64203139 | KX21: 1.644743338 | KY21: 1.647459766 | KZ21: 1.65018068 | LA21: 1.652906087 | LB21: 1.655635996 | LC21: 1.658370413 | LD21: 1.661109347 | LE21: 1.663852804 | LF21: 1.666600792 | LG21: 1.669353319 | LH21: 1.672110392 | LI21: 1.674872018 | LJ21: 1.677638205 | LK21: 1.680408961 | LL21: 1.683184293 | LM21: 1.685964209 | LN21: 1.688748716 | LO21: 1.691537822 | LP21: 1.694331534 | LQ21: 1.69712986 | LR21: 1.699932808 | LS21: =LR21*(1+LS18) -> 1.702740385 | LT21: 1.7055526 | LU21: 1.708369458 | LV21: 1.711190969 | LW21: 1.71401714 | LX21: 1.716847979 | LY21: 1.719683493 | LZ21: 1.72252369 | MA21: 1.725368578 | MB21: 1.728218165 | MC21: 1.731072457 | MD21: 1.733931464 | ME21: 1.736795193 | MF21: 1.739663652 | MG21: 1.742536847 | MH21: 1.745414789 | MI21: 1.748297483 | MJ21: 1.751184939 | MK21: 1.754077163 | ML21: 1.756974164 | MM21: 1.75987595 | MN21: 1.762782528 | MO21: 1.765693907 | MP21: 1.768610094 | MQ21: 1.771531097 | MR21: 1.774456925 | MS21: 1.777387584 | MT21: 1.780323085 | MU21: 1.783263433 | MV21: 1.786208637 | MW21: 1.789158706 | MX21: 1.792113647 | MY21: 1.795073469 | MZ21: 1.798038178 | NA21: 1.801007785 | NB21: 1.803982295 | NC21: 1.806961719 | ND21: 1.809946063 | NE21: 1.812935336 | NF21: 1.815929546 | NG21: 1.818928701 | NH21: 1.82193281 | NI21: 1.82494188 | NJ21: 1.82795592 | NK21: 1.830974938 | NL21: 1.833998942 | NM21: 1.83702794 | NN21: 1.840061941 | NO21: 1.843100953 | NP21: 1.846144984 | NQ21: 1.849194043 | NR21: 1.852248137 | NS21: 1.855307276 | NT21: 1.858371466 | NU21: 1.861440718 | NV21: 1.864515039 | NW21: 1.867594437 | NX21: 1.870678921 | NY21: 1.873768499 | NZ21: 1.87686318 | OA21: 1.879962972 | OB21: 1.883067884 | OC21: 1.886177924 | OD21: 1.8892931 | OE21: =OD21*(1+OE18) -> 1.892413421 | OF21: 1.895538896 | OG21: 1.898669532 | OH21: 1.901805339 | OI21: 1.904946325 | OJ21: 1.908092499 | OK21: 1.911243869 | OL21: 1.914400444 | OM21: 1.917562232 | ON21: 1.920729242 | OO21: 1.923901482 | OP21: 1.927078962 | OQ21: 1.930261689 | OR21: 1.933449674 | OS21: 1.936642923 | OT21: 1.939841446 | OU21: 1.943045252 | OV21: 1.946254349 | OW21: 1.949468747 | OX21: 1.952688453 | OY21: 1.955913476 | OZ21: 1.959143826 | PA21: 1.962379512 | PB21: 1.965620541 | PC21: 1.968866923 | PD21: 1.972118667 | PE21: 1.975375781 | PF21: 1.978638275 | PG21: 1.981906157 | PH21: 1.985179436 | PI21: 1.988458121 | PJ21: 1.991742222 | PK21: 1.995031746 | PL21: 1.998326703 | PM21: 2.001627102 | PN21: 2.004932952 | PO21: 2.008244262 | PP21: 2.01156104 | PQ21: 2.014883297 | PR21: 2.018211041 | PS21: 2.02154428 | PT21: 2.024883025 | PU21: 2.028227284 | PV21: 2.031577066 | PW21: 2.034932381 | PX21: 2.038293237 | PY21: 2.041659644 | PZ21: 2.045031611 | QA21: 2.048409147 | QB21: 2.051792261 | QC21: 2.055180963 | QD21: 2.058575261 | QE21: 2.061975166 | QF21: 2.065380685 | QG21: 2.06879183 | QH21: 2.072208607 | QI21: 2.075631028 | QJ21: 2.079059102 | QK21: 2.082492837 | QL21: 2.085932243 | QM21: 2.08937733 | QN21: 2.092828106 | QO21: 2.096284582 | QP21: 2.099746767 | QQ21: =QP21*(1+QQ18) -> 2.103214669 | QR21: 2.106688299 | QS21: 2.110167666 | QT21: 2.11365278 | QU21: 2.117143649 | QV21: 2.120640284 | QW21: 2.124142694 | QX21: 2.127650888 | QY21: 2.131164876 | QZ21: 2.134684669 | RA21: 2.138210274 | RB21: 2.141741702 | RC21: 2.145278962 | RD21: 2.148822065 | RE21: 2.152371019 | RF21: 2.155925835 | RG21: 2.159486522 | RH21: 2.16305309 | RI21: 2.166625548 | RJ21: 2.170203906 | RK21: 2.173788174 | RL21: 2.177378362 | RM21: 2.180974479 | RN21: 2.184576536 | RO21: 2.188184542 | RP21: 2.191798506 | RQ21: 2.19541844 | RR21: 2.199044352 | RS21: 2.202676252 | RT21: 2.206314151 | RU21: 2.209958059 | RV21: 2.213607984 | RW21: 2.217263937 | RX21: 2.220925929 | RY21: 2.224593969 | RZ21: 2.228268067 | SA21: 2.231948233 | SB21: 2.235634477 | SC21: 2.239326809 | SD21: 2.243025239 | SE21: 2.246729777 | SF21: 2.250440434 | SG21: 2.25415722 | SH21: 2.257880144 | SI21: 2.261609216 | SJ21: 2.265344448 | SK21: 2.269085848 | SL21: 2.272833428 | SM21: 2.276587197 | SN21: 2.280347166 | SO21: 2.284113345 | SP21: 2.287885744 | SQ21: 2.291664373 | SR21: 2.295449243 | SS21: 2.299240364 | ST21: 2.303037746 | SU21: 2.306841401 | SV21: 2.310651337 | SW21: 2.314467565 | SX21: 2.318290097 | SY21: 2.322118941 | SZ21: 2.325954109 | TA21: 2.329795612 | TB21: 2.333643459 | TC21: =TB21*(1+TC18) -> 2.33749766 | TD21: 2.341358228 | TE21: 2.345225171 | TF21: 2.349098501 | TG21: 2.352978229 | TH21: 2.356864363 | TI21: 2.360756917 | TJ21: 2.364655899 | TK21: 2.36856132 | TL21: 2.372473192 | TM21: 2.376391524 | TN21: 2.380316328 | TO21: 2.384247614 | TP21: 2.388185392 | TQ21: 2.392129675 | TR21: 2.396080471 | TS21: 2.400037793 | TT21: 2.404001651 | TU21: 2.407972055 | TV21: 2.411949016 | TW21: 2.415932546 | TX21: 2.419922655 | TY21: 2.423919354 | TZ21: 2.427922654 | UA21: 2.431932566 | UB21: 2.4359491 | UC21: 2.439972268 | UD21: 2.444002081 | UE21: 2.448038549 | UF21: 2.452081684 | UG21: 2.456131496 | UH21: 2.460187997 | UI21: 2.464251197 | UJ21: 2.468321109 | UK21: 2.472397742 | UL21: 2.476481107 | UM21: 2.480571217 | UN21: 2.484668082 | UO21: 2.488771714 | UP21: 2.492882122 | UQ21: 2.49699932 | UR21: 2.501123317 | US21: 2.505254126 | UT21: 2.509391757 | UU21: 2.513536221 | UV21: 2.517687531 | UW21: 2.521845696 | UX21: 2.52601073 | UY21: 2.530182642 | UZ21: 2.534361444 | VA21: 2.538547148 | VB21: 2.542739765 | VC21: 2.546939306 | VD21: 2.551145784 | VE21: 2.555359208 | VF21: 2.559579592 | VG21: 2.563806946 | VH21: 2.568041281 | VI21: 2.57228261 | VJ21: 2.576530944 | VK21: 2.580786294 | VL21: 2.585048673 | VM21: 2.589318091 | VN21: 2.59359456 | VO21: =VN21*(1+VO18) -> 2.597878093 | VP21: 2.602168699 | VQ21: 2.606466393 | VR21: 2.610771184 | VS21: 2.615083085 | VT21: 2.619402107 | VU21: 2.623728262 | VV21: 2.628061563 | VW21: 2.63240202 | VX21: 2.636749646 | VY21: 2.641104453 | VZ21: 2.645466451 | WA21: 2.649835654 | WB21: 2.654212073 | WC21: 2.65859572 | WD21: 2.662986607 | WE21: 2.667384746 | WF21: 2.671790149 | WG21: 2.676202828 | WH21: 2.680622794 | WI21: 2.685050061 | WJ21: 2.689484639 | WK21: 2.693926542 | WL21: 2.69837578
